Workbook

Sheet Contents And Resources (hidden)
B3: Tab Name | C3: Description | E3: Source | F3: Use | G3: Link
B4: Resources | C4: List recommended resources for Extreme Value Theory and for documenting methodologies used | E4: Topics in Statistics: Environmental Extremes | F4: A thorough overview of Extreme Value Theory with equations for Loglikelihood and Percentiles | G4: http://www.mas.ncl.ac.uk/~nlf8/teaching/mas8391/background/chapter2.pdf
B5: Introduction | C5: Description of the workbook and its general methodology | E5: Real Statistics | F5: Overview of fitting GEV distributions to data, both analytically and through Excel's Solver | G5: https://real-statistics.com/distribution-fitting/distribution-fitting-via-maximum-likelihood/fitting-gev-distribution-mle/
B6: Data | C6: The raw precipitation data and initial summary statistics | E6: Lamont-Doherty Earth Observatory | F6: Overview of EVT with climate applications of the Block Maxima and Peaks-Over-Threshold approach | G6: https://www.ldeo.columbia.edu/~amfiore/eescG9910_f14_ppts/Rieder_EVTPrimer.pdf
B7: GEV Fitting | C7: Estimates the GEV parameters for the observed data | E7: Statistical Analysis of Climate Extremes | F7: Provides statistical frameworks for stationary and non-stationary models | G7: https://www.manfredmudelsee.com/
B8: Monte Carlo Simulations | C8: Run the GEV Fitting algorithm for 1,000 scenarios to estimate the Standard Errors | E8: A Introduction to Statistical Learning | F8: Chpater 5 provides in-depth algortihms for calculating confidence intervals of estimated parameters | G8: https://www.statlearning.com/
B9: Boostrap Resampling | C9: Implements the bootstrap resampling algorithm for 1,000 scenarios to estimate the Standard Errors
B10: Parameter Fitting Comparison | C10: Compares expected observations from various fitting methodologies
B11: Return Period Comparison | C11: Compares the Estimations and Percentiles for 10 parameter sets

Sheet Introduction (hidden)
Q4: Steps for Updating
Q5: 1) | R5: Retrieve historical precipitation observations and update columns A-L in the Data tab. Update the years in column O as needed.
Q6: 2) | R6: In the GEV Fitting tab:
Q7: 2a) | R7: Update columns I and J to reflect the new data.
Q8: 2b) | R8: Set increment values for the GEV parameters in cells R7:T7. By default, the initial parameter estimates will be set to the median, standard deviation, and 0.25.
Q9: 2c) | R9: Run the Gradient Descent Algorithm.
Q10: 3) | R10: In the Monte Carlo Simulations tab:
Q11: 3a) | R11: Set increment values for the GEV parameters in cells H3:H5.
Q12: 3b) | R12: Produce Monte Carlo Data
Q13: 3c) | R13: Run the Gradient Descent Algorithm.
Q14: 3d) | R14: Update table ranges in columns CP-DX as needed.
Q15: 4) | R15: In the Bootstrap Resampling tab:
Q16: 4a) | R16: Set increment values for the GEV parameters in cells H3:H5.
Q17: 4b) | R17: Produce Bootstrap Data
Q18: 4c) | R18: Run the Gradient Descent Algorithm.
Q19: 4d) | R19: Update table ranges in columns CP-DX as needed.
Q20: 5) | R20: In the Return Period Comparison tab
Q21: 5a) | R21: Set the parameters in C3:L5 as desired to see the differing impacts on the distribution.
Q22: 5b) | R22: Set the parameters in T4:X6 as desired to see the differing impacts on the return periods.

Sheet Data
A1: Source | B1: https://www.ncdc.noaa.gov/cdo-web/datasets/GHCND/stations/GHCND:USC00083163/detail
B2: https://www.ncei.noaa.gov/pub/data/ghcn/daily/
AE3: Inches | AF3: Observations
A4: GHCN observations for Precipitation at Fort Lauderdale INTERNATIONAL AIRPORT, MO US | AE4: 0 | AF4: =COUNTIFS(Q:Q,">="&AE4,Q:Q,"<"&AE5) -> 0
A5: Station | B5: Date | C5: Element | D5: Value (10ths of mm) | E5: M-Flag | F5: Q-Flag | G5: S-Flag | H5: ObsTime | I5: Value (Inches) | J5: Year | K5: Month | L5: Day | O5: Year | P5: Days of Observations | Q5: Maximum Daily Rainfall | AE5: =AE4+1 -> 1 | AF5: =COUNTIFS(Q:Q,">="&AE5,Q:Q,"<"&AE6) -> 1
A6: USC00083163 | B6: 19121101 | C6: PRCP | D6: 0 | G6: Z | I6: =(D6/10)*0.0393701 -> 0 | J6: =INT(LEFT(B6,4)) -> 1912 | K6: =INT(MID(B6,5,2)) -> 11 | L6: =INT(RIGHT(B6,2)) -> 1 | O6: 1912 | P6: =COUNTIFS(J:J,O6) -> 28 | Q6: =_xlfn.MAXIFS(I:I,J:J,O6) -> 2.75984401 | AE6: =AE5+1 -> 2 | AF6: 20
A7: USC00083163 | B7: 19121103 | C7: PRCP | D7: 43 | E7: T | G7: Z | I7: 0.16929143 | J7: 1912 | K7: 11 | L7: 3 | O7: =O6+1 -> 1913 | P7: =COUNTIFS(J:J,O7) -> 317 | Q7: =_xlfn.MAXIFS(I:I,J:J,O7) -> 2.35039497 | AE7: 3 | AF7: 27
A8: USC00083163 | B8: 19121106 | C8: PRCP | D8: 25 | E8: T | G8: Z | I8: 0.09842525 | J8: 1912 | K8: 11 | L8: 6 | O8: =O7+1 -> 1914 | P8: 345 | Q8: 4.07086834 | AE8: 4 | AF8: 19
A9: USC00083163 | B9: 19121107 | C9: PRCP | D9: 25 | G9: Z | I9: 0.09842525 | J9: 1912 | K9: 11 | L9: 7 | O9: 1915 | P9: 365 | Q9: 8.25984698 | AE9: 5 | AF9: 19
A10: USC00083163 | B10: 19121108 | C10: PRCP | D10: 10 | G10: Z | I10: 0.0393701 | J10: 1912 | K10: 11 | L10: 8 | O10: 1916 | P10: 366 | Q10: 2.61023763 | AE10: 6 | AF10: 11
A11: USC00083163 | B11: 19121114 | C11: PRCP | D11: 330 | G11: Z | I11: 1.2992133 | J11: 1912 | K11: 11 | L11: 14 | O11: 1917 | P11: 365 | Q11: 3.00000162 | AE11: 7 | AF11: 3
A12: USC00083163 | B12: 19121115 | C12: PRCP | D12: 0 | G12: Z | I12: 0 | J12: 1912 | K12: 11 | L12: 15 | O12: 1918 | P12: 365 | Q12: 3.40157664 | AE12: 8 | AF12: 5
A13: USC00083163 | B13: 19121118 | C13: PRCP | D13: 3 | G13: Z | I13: 0.01181103 | J13: 1912 | K13: 11 | L13: 18 | O13: 1919 | P13: 365 | Q13: 6.09842849 | AE13: 9 | AF13: 1
A14: USC00083163 | B14: 19121119 | C14: PRCP | D14: 0 | G14: Z | I14: 0 | J14: 1912 | K14: 11 | L14: 19 | O14: 1920 | P14: 366 | Q14: 2.50000135 | AE14: 10 | AF14: 4
A15: USC00083163 | B15: 19121121 | C15: PRCP | D15: 25 | G15: Z | I15: 0.09842525 | J15: 1912 | K15: 11 | L15: 21 | O15: 1921 | P15: 341 | Q15: 8.16142173 | AE15: 11 | AF15: 0
A16: USC00083163 | B16: 19121122 | C16: PRCP | D16: 701 | G16: Z | I16: 2.75984401 | J16: 1912 | K16: 11 | L16: 22 | O16: 1922 | P16: 365 | Q16: 4.16141957 | AE16: 12 | AF16: 0
A17: USC00083163 | B17: 19121123 | C17: PRCP | D17: 5 | G17: Z | I17: 0.01968505 | J17: 1912 | K17: 11 | L17: 23 | O17: 1923 | P17: 365 | Q17: 1.98031603 | AE17: 13 | AF17: 0
A18: USC00083163 | B18: 19121130 | C18: PRCP | D18: 0 | G18: Z | I18: 0 | J18: 1912 | K18: 11 | L18: 30 | O18: 1924 | P18: 366 | Q18: 9.20079237 | AE18: 14 | AF18: 1
A19: USC00083163 | B19: 19121201 | C19: PRCP | D19: 3 | G19: Z | I19: 0.01181103 | J19: 1912 | K19: 12 | L19: 1 | O19: 1925 | P19: 365 | Q19: 5.42913679 | AE19: 15 | AF19: 0
A20: USC00083163 | B20: 19121202 | C20: PRCP | D20: 51 | G20: Z | I20: 0.20078751 | J20: 1912 | K20: 12 | L20: 2 | O20: 1926 | P20: 345 | Q20: 5.75197161 | AE20: 16 | AF20: 0
A21: USC00083163 | B21: 19121208 | C21: PRCP | D21: 8 | G21: Z | I21: 0.03149608 | J21: 1912 | K21: 12 | L21: 8 | O21: 1927 | P21: 365 | Q21: 6.12992457 | AE21: 17 | AF21: 1
A22: USC00083163 | B22: 19121210 | C22: PRCP | D22: 71 | G22: Z | I22: 0.27952771 | J22: 1912 | K22: 12 | L22: 10 | O22: 1928 | P22: 366 | Q22: 6.00000324 | AE22: 18 | AF22: 0
A23: USC00083163 | B23: 19121211 | C23: PRCP | D23: 152 | G23: Z | I23: 0.59842552 | J23: 1912 | K23: 12 | L23: 11 | O23: 1929 | P23: 356 | Q23: 5.75197161 | AE23: 19 | AF23: =COUNTIFS(Q:Q,">="&AE23) -> 0
A24: USC00083163 | B24: 19121212 | C24: PRCP | D24: 3 | G24: Z | I24: 0.01181103 | J24: 1912 | K24: 12 | L24: 12 | O24: 1930 | P24: 365 | Q24: 8.59842984 | AE24: =AE23+1 -> 20 | AF24: =COUNTIFS(Q:Q,">="&AE24) -> 0
A25: USC00083163 | B25: 19121213 | C25: PRCP | D25: 0 | G25: Z | I25: 0 | J25: 1912 | K25: 12 | L25: 13 | O25: 1931 | P25: 365 | Q25: 4.64960881
A26: USC00083163 | B26: 19121215 | C26: PRCP | D26: 0 | G26: Z | I26: 0 | J26: 1912 | K26: 12 | L26: 15 | O26: 1932 | P26: 366 | Q26: 5.05905785
A27: USC00083163 | B27: 19121216 | C27: PRCP | D27: 38 | G27: Z | I27: 0.14960638 | J27: 1912 | K27: 12 | L27: 16 | O27: 1933 | P27: 365 | Q27: 6.90157853
A28: USC00083163 | B28: 19121218 | C28: PRCP | D28: 36 | G28: Z | I28: 0.14173236 | J28: 1912 | K28: 12 | L28: 18 | O28: 1934 | P28: 365 | Q28: 4.18110462
A29: USC00083163 | B29: 19121219 | C29: PRCP | D29: 5 | G29: Z | I29: 0.01968505 | J29: 1912 | K29: 12 | L29: 19 | O29: 1935 | P29: 365 | Q29: 2.87008029
A30: USC00083163 | B30: 19121223 | C30: PRCP | D30: 38 | G30: Z | I30: 0.14960638 | J30: 1912 | K30: 12 | L30: 23 | O30: 1936 | P30: 348 | Q30: 8.01968937
A31: USC00083163 | B31: 19121229 | C31: PRCP | D31: 18 | G31: Z | I31: 0.07086618 | J31: 1912 | K31: 12 | L31: 29 | O31: 1937 | P31: 222 | Q31: 2.46850527
A32: USC00083163 | B32: 19121230 | C32: PRCP | D32: 3 | G32: Z | I32: 0.01181103 | J32: 1912 | K32: 12 | L32: 30 | O32: 1938 | P32: 357 | Q32: 2.20078859
A33: USC00083163 | B33: 19121231 | C33: PRCP | D33: 15 | G33: Z | I33: 0.05905515 | J33: 1912 | K33: 12 | L33: 31 | O33: 1939 | P33: 365 | Q33: 2.53149743
A34: USC00083163 | B34: 19130101 | C34: PRCP | D34: 0 | G34: Z | I34: 0 | J34: 1913 | K34: 1 | L34: 1 | O34: 1940 | P34: 359 | Q34: 4.50000243
A35: USC00083163 | B35: 19130102 | C35: PRCP | D35: 0 | G35: Z | I35: 0 | J35: 1913 | K35: 1 | L35: 2 | O35: 1941 | P35: 365 | Q35: 3.01968667
A36: USC00083163 | B36: 19130103 | C36: PRCP | D36: 81 | G36: Z | I36: 0.31889781 | J36: 1913 | K36: 1 | L36: 3 | O36: 1942 | P36: 365 | Q36: 3.20078913
A37: USC00083163 | B37: 19130104 | C37: PRCP | D37: 0 | G37: Z | I37: 0 | J37: 1913 | K37: 1 | L37: 4 | O37: 1943 | P37: 365 | Q37: 3.33071046
A38: USC00083163 | B38: 19130105 | C38: PRCP | D38: 0 | G38: Z | I38: 0 | J38: 1913 | K38: 1 | L38: 5 | O38: 1944 | P38: 366 | Q38: 3.90157691
A39: USC00083163 | B39: 19130106 | C39: PRCP | D39: 5 | G39: Z | I39: 0.01968505 | J39: 1913 | K39: 1 | L39: 6 | O39: 1945 | P39: 212 | Q39: 2.75984401
A40: USC00083163 | B40: 19130107 | C40: PRCP | D40: 5 | G40: Z | I40: 0.01968505 | J40: 1913 | K40: 1 | L40: 7 | O40: 1946 | P40: 275 | Q40: 2.03937118
A41: USC00083163 | B41: 19130108 | C41: PRCP | D41: 0 | E41: T | G41: Z | I41: 0 | J41: 1913 | K41: 1 | L41: 8 | O41: 1947 | P41: 365 | Q41: 10.85039956
A42: USC00083163 | B42: 19130109 | C42: PRCP | D42: 0 | E42: T | G42: Z | I42: 0 | J42: 1913 | K42: 1 | L42: 9 | O42: 1948 | P42: 366 | Q42: 10.44882454
A43: USC00083163 | B43: 19130110 | C43: PRCP | D43: 10 | G43: Z | I43: 0.0393701 | J43: 1913 | K43: 1 | L43: 10 | O43: 1949 | P43: 341 | Q43: 3.79921465
A44: USC00083163 | B44: 19130111 | C44: PRCP | D44: 0 | G44: Z | I44: 0 | J44: 1913 | K44: 1 | L44: 11 | O44: 1950 | P44: 327 | Q44: 3.20078913
A45: USC00083163 | B45: 19130112 | C45: PRCP | D45: 0 | G45: Z | I45: 0 | J45: 1913 | K45: 1 | L45: 12 | O45: 1951 | P45: 334 | Q45: 3.09842687
A46: USC00083163 | B46: 19130113 | C46: PRCP | D46: 13 | E46: T | G46: Z | I46: 0.05118113 | J46: 1913 | K46: 1 | L46: 13 | O46: 1952 | P46: 366 | Q46: 3.00000162
A47: USC00083163 | B47: 19130114 | C47: PRCP | D47: 0 | G47: Z | I47: 0 | J47: 1913 | K47: 1 | L47: 14 | O47: 1953 | P47: 365 | Q47: 4.79921519
A48: USC00083163 | B48: 19130115 | C48: PRCP | D48: 0 | G48: Z | I48: 0 | J48: 1913 | K48: 1 | L48: 15 | O48: 1954 | P48: 364 | Q48: 5.50000297
A49: USC00083163 | B49: 19130116 | C49: PRCP | D49: 76 | G49: Z | I49: 0.29921276 | J49: 1913 | K49: 1 | L49: 16 | O49: 1955 | P49: 365 | Q49: 3.40157664
A50: USC00083163 | B50: 19130117 | C50: PRCP | D50: 43 | G50: Z | I50: 0.16929143 | J50: 1913 | K50: 1 | L50: 17 | O50: 1956 | P50: 355 | Q50: 3.00000162
A51: USC00083163 | B51: 19130118 | C51: PRCP | D51: 64 | G51: Z | I51: 0.25196864 | J51: 1913 | K51: 1 | L51: 18 | O51: 1957 | P51: 352 | Q51: 6.40157826
A52: USC00083163 | B52: 19130119 | C52: PRCP | D52: 76 | G52: Z | I52: 0.29921276 | J52: 1913 | K52: 1 | L52: 19 | O52: 1958 | P52: 359 | Q52: 4.09842741
A53: USC00083163 | B53: 19130120 | C53: PRCP | D53: 0 | G53: Z | I53: 0 | J53: 1913 | K53: 1 | L53: 20 | O53: 1959 | P53: 361 | Q53: 3.94882103
A54: USC00083163 | B54: 19130121 | C54: PRCP | D54: 0 | E54: T | G54: Z | I54: 0 | J54: 1913 | K54: 1 | L54: 21 | O54: 1960 | P54: 322 | Q54: 2.5984266
A55: USC00083163 | B55: 19130122 | C55: PRCP | D55: 0 | G55: Z | I55: 0 | J55: 1913 | K55: 1 | L55: 22 | O55: 1961 | P55: 365 | Q55: 2.09055231
A56: USC00083163 | B56: 19130123 | C56: PRCP | D56: 0 | G56: Z | I56: 0 | J56: 1913 | K56: 1 | L56: 23 | O56: 1962 | P56: 212 | Q56: 2.74015896
A57: USC00083163 | B57: 19130124 | C57: PRCP | D57: 0 | G57: Z | I57: 0 | J57: 1913 | K57: 1 | L57: 24 | O57: 1963 | P57: 231 | Q57: 2.90157637
A58: USC00083163 | B58: 19130125 | C58: PRCP | D58: 0 | G58: Z | I58: 0 | J58: 1913 | K58: 1 | L58: 25 | O58: 1964 | P58: 366 | Q58: 6.09842849
A59: USC00083163 | B59: 19130126 | C59: PRCP | D59: 0 | G59: Z | I59: 0 | J59: 1913 | K59: 1 | L59: 26 | O59: 1965 | P59: 365 | Q59: 5.50000297
A60: USC00083163 | B60: 19130127 | C60: PRCP | D60: 0 | G60: Z | I60: 0 | J60: 1913 | K60: 1 | L60: 27 | O60: 1966 | P60: 365 | Q60: 6.8503974
A61: USC00083163 | B61: 19130128 | C61: PRCP | D61: 64 | G61: Z | I61: 0.25196864 | J61: 1913 | K61: 1 | L61: 28 | O61: 1967 | P61: 365 | Q61: 4.51181346
A62: USC00083163 | B62: 19130129 | C62: PRCP | D62: 0 | G62: Z | I62: 0 | J62: 1913 | K62: 1 | L62: 29 | O62: 1968 | P62: 366 | Q62: 4.61023871
A63: USC00083163 | B63: 19130130 | C63: PRCP | D63: 0 | G63: Z | I63: 0 | J63: 1913 | K63: 1 | L63: 30 | O63: 1969 | P63: 365 | Q63: 10.0000054
A64: USC00083163 | B64: 19130131 | C64: PRCP | D64: 0 | E64: T | G64: Z | I64: 0 | J64: 1913 | K64: 1 | L64: 31 | O64: 1970 | P64: 365 | Q64: 4.09842741
A65: USC00083163 | B65: 19130201 | C65: PRCP | D65: 0 | G65: Z | I65: 0 | J65: 1913 | K65: 2 | L65: 1 | O65: 1971 | P65: 365 | Q65: 2.05118221
A66: USC00083163 | B66: 19130202 | C66: PRCP | D66: 3 | G66: Z | I66: 0.01181103 | J66: 1913 | K66: 2 | L66: 2 | O66: 1972 | P66: 366 | Q66: 6.03149932
A67: USC00083163 | B67: 19130203 | C67: PRCP | D67: 20 | G67: Z | I67: 0.0787402 | J67: 1913 | K67: 2 | L67: 3 | O67: 1973 | P67: 365 | Q67: 10.44882454
A68: USC00083163 | B68: 19130204 | C68: PRCP | D68: 0 | G68: Z | I68: 0 | J68: 1913 | K68: 2 | L68: 4 | O68: 1974 | P68: 365 | Q68: 3.72047445
A69: USC00083163 | B69: 19130205 | C69: PRCP | D69: 0 | G69: Z | I69: 0 | J69: 1913 | K69: 2 | L69: 5 | O69: 1975 | P69: 365 | Q69: 2.64960773
A70: USC00083163 | B70: 19130206 | C70: PRCP | D70: 0 | G70: Z | I70: 0 | J70: 1913 | K70: 2 | L70: 6 | O70: 1976 | P70: 366 | Q70: 5.61811327
A71: USC00083163 | B71: 19130207 | C71: PRCP | D71: 0 | E71: T | G71: Z | I71: 0 | J71: 1913 | K71: 2 | L71: 7 | O71: 1977 | P71: =COUNTIFS(J:J,O71) -> 365 | Q71: =_xlfn.MAXIFS(I:I,J:J,O71) -> 5.44882184
A72: USC00083163 | B72: 19130208 | C72: PRCP | D72: 0 | G72: Z | I72: 0 | J72: 1913 | K72: 2 | L72: 8 | O72: =O71+1 -> 1978 | P72: 365 | Q72: 5.46850689
A73: USC00083163 | B73: 19130209 | C73: PRCP | D73: 0 | G73: Z | I73: 0 | J73: 1913 | K73: 2 | L73: 9 | O73: 1979 | P73: 365 | Q73: 14.59055906
A74: USC00083163 | B74: 19130210 | C74: PRCP | D74: 0 | G74: Z | I74: 0 | J74: 1913 | K74: 2 | L74: 10 | O74: 1980 | P74: 366 | Q74: 5.46063287
A75: USC00083163 | B75: 19130211 | C75: PRCP | D75: 0 | G75: Z | I75: 0 | J75: 1913 | K75: 2 | L75: 11 | O75: 1981 | P75: 365 | Q75: 4.61811273
A76: USC00083163 | B76: 19130212 | C76: PRCP | D76: 0 | G76: Z | I76: 0 | J76: 1913 | K76: 2 | L76: 12 | O76: 1982 | P76: 365 | Q76: 7.5984293
A77: USC00083163 | B77: 19130213 | C77: PRCP | D77: 0 | G77: Z | I77: 0 | J77: 1913 | K77: 2 | L77: 13 | O77: 1983 | P77: 365 | Q77: 4.42126223
A78: USC00083163 | B78: 19130214 | C78: PRCP | D78: 0 | G78: Z | I78: 0 | J78: 1913 | K78: 2 | L78: 14 | O78: 1984 | P78: 365 | Q78: 5.35039659
A79: USC00083163 | B79: 19130215 | C79: PRCP | D79: 71 | G79: Z | I79: 0.27952771 | J79: 1913 | K79: 2 | L79: 15 | O79: 1985 | P79: 364 | Q79: 3.90157691
A80: USC00083163 | B80: 19130216 | C80: PRCP | D80: 10 | G80: Z | I80: 0.0393701 | J80: 1913 | K80: 2 | L80: 16 | O80: 1986 | P80: 365 | Q80: 3.83858475
A81: USC00083163 | B81: 19130217 | C81: PRCP | D81: 0 | G81: Z | I81: 0 | J81: 1913 | K81: 2 | L81: 17 | O81: 1987 | P81: 365 | Q81: 4.24015977
A82: USC00083163 | B82: 19130218 | C82: PRCP | D82: 0 | G82: Z | I82: 0 | J82: 1913 | K82: 2 | L82: 18 | O82: 1988 | P82: 366 | Q82: 2.33070992
A83: USC00083163 | B83: 19130219 | C83: PRCP | D83: 0 | E83: T | G83: Z | I83: 0 | J83: 1913 | K83: 2 | L83: 19 | O83: 1989 | P83: 365 | Q83: 5.20079021
A84: USC00083163 | B84: 19130220 | C84: PRCP | D84: 86 | E84: T | G84: Z | I84: 0.33858286 | J84: 1913 | K84: 2 | L84: 20 | O84: 1990 | P84: 365 | Q84: 4.4488213
A85: USC00083163 | B85: 19130221 | C85: PRCP | D85: 13 | G85: Z | I85: 0.05118113 | J85: 1913 | K85: 2 | L85: 21 | O85: 1991 | P85: 365 | Q85: 7.09055501
A86: USC00083163 | B86: 19130222 | C86: PRCP | D86: 0 | G86: Z | I86: 0 | J86: 1913 | K86: 2 | L86: 22 | O86: 1992 | P86: 365 | Q86: 3.90157691
A87: USC00083163 | B87: 19130223 | C87: PRCP | D87: 0 | G87: Z | I87: 0 | J87: 1913 | K87: 2 | L87: 23 | O87: 1993 | P87: 364 | Q87: 3.27952933
A88: USC00083163 | B88: 19130224 | C88: PRCP | D88: 122 | G88: Z | I88: 0.48031522 | J88: 1913 | K88: 2 | L88: 24 | O88: 1994 | P88: 364 | Q88: 6.7716572
A89: USC00083163 | B89: 19130225 | C89: PRCP | D89: 8 | E89: T | G89: Z | I89: 0.03149608 | J89: 1913 | K89: 2 | L89: 25 | O89: 1995 | P89: 365 | Q89: 3.29134036
A90: USC00083163 | B90: 19130226 | C90: PRCP | D90: 0 | G90: Z | I90: 0 | J90: 1913 | K90: 2 | L90: 26 | O90: 1996 | P90: =COUNTIFS(J:J,O90) -> 366 | Q90: =_xlfn.MAXIFS(I:I,J:J,O90) -> 4.14960854
A91: USC00083163 | B91: 19130227 | C91: PRCP | D91: 0 | G91: Z | I91: 0 | J91: 1913 | K91: 2 | L91: 27 | O91: 1997 | P91: 365 | Q91: 5.81890078
A92: USC00083163 | B92: 19130228 | C92: PRCP | D92: 0 | G92: Z | I92: 0 | J92: 1913 | K92: 2 | L92: 28 | O92: 1998 | P92: 365 | Q92: 4.72047499
A93: USC00083163 | B93: 19130301 | C93: PRCP | D93: 0 | G93: Z | I93: 0 | J93: 1913 | K93: 3 | L93: 1 | O93: 1999 | P93: 365 | Q93: 8.27953203
A94: USC00083163 | B94: 19130302 | C94: PRCP | D94: 0 | G94: Z | I94: 0 | J94: 1913 | K94: 3 | L94: 2 | O94: 2000 | P94: 366 | Q94: 5.75197161
A95: USC00083163 | B95: 19130303 | C95: PRCP | D95: 3 | G95: Z | I95: 0.01181103 | J95: 1913 | K95: 3 | L95: 3 | O95: 2001 | P95: 365 | Q95: 5.27953041
A96: USC00083163 | B96: 19130304 | C96: PRCP | D96: 0 | G96: Z | I96: 0 | J96: 1913 | K96: 3 | L96: 4 | O96: 2002 | P96: 365 | Q96: 3.72834847
A97: USC00083163 | B97: 19130305 | C97: PRCP | D97: 0 | G97: Z | I97: 0 | J97: 1913 | K97: 3 | L97: 5 | O97: 2003 | P97: 365 | Q97: 5.72834955
A98: USC00083163 | B98: 19130306 | C98: PRCP | D98: 0 | G98: Z | I98: 0 | J98: 1913 | K98: 3 | L98: 6 | O98: 2004 | P98: 366 | Q98: 4.4094512
A99: USC00083163 | B99: 19130307 | C99: PRCP | D99: 0 | G99: Z | I99: 0 | J99: 1913 | K99: 3 | L99: 7 | O99: 2005 | P99: 365 | Q99: 3.85039578
A100: USC00083163 | B100: 19130308 | C100: PRCP | D100: 0 | G100: Z | I100: 0 | J100: 1913 | K100: 3 | L100: 8 | O100: 2006 | P100: 365 | Q100: 3.25197026
A101: USC00083163 | B101: 19130309 | C101: PRCP | D101: 0 | G101: Z | I101: 0 | J101: 1913 | K101: 3 | L101: 9 | O101: 2007 | P101: 365 | Q101: 3.11811192
A102: USC00083163 | B102: 19130310 | C102: PRCP | D102: 15 | G102: Z | I102: 0.05905515 | J102: 1913 | K102: 3 | L102: 10 | O102: 2008 | P102: 366 | Q102: 3.90945093
A103: USC00083163 | B103: 19130311 | C103: PRCP | D103: 0 | G103: Z | I103: 0 | J103: 1913 | K103: 3 | L103: 11 | O103: 2009 | P103: 363 | Q103: 2.46850527
A104: USC00083163 | B104: 19130312 | C104: PRCP | D104: 0 | G104: Z | I104: 0 | J104: 1913 | K104: 3 | L104: 12 | O104: 2010 | P104: 365 | Q104: 5.18110516
A105: USC00083163 | B105: 19130313 | C105: PRCP | D105: 0 | G105: Z | I105: 0 | J105: 1913 | K105: 3 | L105: 13 | O105: =O104+1 -> 2011 | P105: =COUNTIFS(J:J,O105) -> 365 | Q105: =_xlfn.MAXIFS(I:I,J:J,O105) -> 3.74803352
A106: USC00083163 | B106: 19130314 | C106: PRCP | D106: 0 | G106: Z | I106: 0 | J106: 1913 | K106: 3 | L106: 14 | O106: 2012 | P106: 366 | Q106: 5.72047553
A107: USC00083163 | B107: 19130315 | C107: PRCP | D107: 0 | G107: Z | I107: 0 | J107: 1913 | K107: 3 | L107: 15 | O107: 2013 | P107: 365 | Q107: 5.75984563
A108: USC00083163 | B108: 19130316 | C108: PRCP | D108: 15 | G108: Z | I108: 0.05905515 | J108: 1913 | K108: 3 | L108: 16 | O108: 2014 | P108: 365 | Q108: 3.88189186
A109: USC00083163 | B109: 19130317 | C109: PRCP | D109: 84 | G109: Z | I109: 0.33070884 | J109: 1913 | K109: 3 | L109: 17 | O109: 2015 | P109: 365 | Q109: 2.25196972
A110: USC00083163 | B110: 19130318 | C110: PRCP | D110: 114 | E110: T | G110: Z | I110: 0.44881914 | J110: 1913 | K110: 3 | L110: 18 | O110: 2016 | P110: 363 | Q110: 2.12992241
A111: USC00083163 | B111: 19130319 | C111: PRCP | D111: 76 | G111: Z | I111: 0.29921276 | J111: 1913 | K111: 3 | L111: 19 | O111: 2017 | P111: 365 | Q111: 6.01968829
A112: USC00083163 | B112: 19130320 | C112: PRCP | D112: 20 | G112: Z | I112: 0.0787402 | J112: 1913 | K112: 3 | L112: 20 | O112: 2018 | P112: 365 | Q112: 4.64960881
A113: USC00083163 | B113: 19130321 | C113: PRCP | D113: 43 | G113: Z | I113: 0.16929143 | J113: 1913 | K113: 3 | L113: 21 | O113: 2019 | P113: 360 | Q113: 4.75984509
A114: USC00083163 | B114: 19130322 | C114: PRCP | D114: 0 | G114: Z | I114: 0 | J114: 1913 | K114: 3 | L114: 22 | O114: 2020 | P114: 354 | Q114: 7.29921654
A115: USC00083163 | B115: 19130323 | C115: PRCP | D115: 8 | G115: Z | I115: 0.03149608 | J115: 1913 | K115: 3 | L115: 23 | O115: 2021 | P115: 356 | Q115: 3.00000162
A116: USC00083163 | B116: 19130324 | C116: PRCP | D116: 53 | G116: Z | I116: 0.20866153 | J116: 1913 | K116: 3 | L116: 24 | O116: 2022 | P116: 349 | Q116: 6.00000324
A117: USC00083163 | B117: 19130325 | C117: PRCP | D117: 0 | G117: Z | I117: 0 | J117: 1913 | K117: 3 | L117: 25 | O117: =O116+1 -> 2023 | P117: =COUNTIFS(J:J,O117) -> 103 | Q117: =_xlfn.MAXIFS(I:I,J:J,O117) -> 17.09843443
A118: USC00083163 | B118: 19130326 | C118: PRCP | D118: 0 | G118: Z | I118: 0 | J118: 1913 | K118: 3 | L118: 26
A119: USC00083163 | B119: 19130327 | C119: PRCP | D119: 0 | G119: Z | I119: 0 | J119: 1913 | K119: 3 | L119: 27
A120: USC00083163 | B120: 19130328 | C120: PRCP | D120: 81 | G120: Z | I120: 0.31889781 | J120: 1913 | K120: 3 | L120: 28
A121: USC00083163 | B121: 19130329 | C121: PRCP | D121: 0 | G121: Z | I121: 0 | J121: 1913 | K121: 3 | L121: 29
A122: USC00083163 | B122: 19130330 | C122: PRCP | D122: 33 | G122: Z | I122: 0.12992133 | J122: 1913 | K122: 3 | L122: 30
A123: USC00083163 | B123: 19130331 | C123: PRCP | D123: 36 | G123: Z | I123: 0.14173236 | J123: 1913 | K123: 3 | L123: 31
A124: USC00083163 | B124: 19130405 | C124: PRCP | D124: 0 | G124: Z | I124: 0 | J124: 1913 | K124: 4 | L124: 5
A125: USC00083163 | B125: 19130406 | C125: PRCP | D125: 25 | E125: T | G125: Z | I125: 0.09842525 | J125: 1913 | K125: 4 | L125: 6
A126: USC00083163 | B126: 19130413 | C126: PRCP | D126: 442 | E126: T | G126: Z | I126: 1.74015842 | J126: 1913 | K126: 4 | L126: 13
A127: USC00083163 | B127: 19130414 | C127: PRCP | D127: 13 | G127: Z | I127: 0.05118113 | J127: 1913 | K127: 4 | L127: 14
A128: USC00083163 | B128: 19130422 | C128: PRCP | D128: 38 | G128: Z | I128: 0.14960638 | J128: 1913 | K128: 4 | L128: 22
A129: USC00083163 | B129: 19130501 | C129: PRCP | D129: 0 | G129: Z | I129: 0 | J129: 1913 | K129: 5 | L129: 1
A130: USC00083163 | B130: 19130502 | C130: PRCP | D130: 81 | G130: Z | I130: 0.31889781 | J130: 1913 | K130: 5 | L130: 2
A131: USC00083163 | B131: 19130503 | C131: PRCP | D131: 0 | G131: Z | I131: 0 | J131: 1913 | K131: 5 | L131: 3
A132: USC00083163 | B132: 19130504 | C132: PRCP | D132: 0 | E132: T | G132: Z | I132: 0 | J132: 1913 | K132: 5 | L132: 4
A133: USC00083163 | B133: 19130505 | C133: PRCP | D133: 0 | E133: T | G133: Z | I133: 0 | J133: 1913 | K133: 5 | L133: 5
A134: USC00083163 | B134: 19130506 | C134: PRCP | D134: 0 | G134: Z | I134: 0 | J134: 1913 | K134: 5 | L134: 6
A135: USC00083163 | B135: 19130507 | C135: PRCP | D135: 0 | G135: Z | I135: 0 | J135: 1913 | K135: 5 | L135: 7
A136: USC00083163 | B136: 19130508 | C136: PRCP | D136: 0 | G136: Z | I136: 0 | J136: 1913 | K136: 5 | L136: 8
A137: USC00083163 | B137: 19130509 | C137: PRCP | D137: 0 | G137: Z | I137: 0 | J137: 1913 | K137: 5 | L137: 9
A138: USC00083163 | B138: 19130510 | C138: PRCP | D138: 0 | G138: Z | I138: 0 | J138: 1913 | K138: 5 | L138: 10
A139: USC00083163 | B139: 19130511 | C139: PRCP | D139: 234 | G139: Z | I139: 0.92126034 | J139: 1913 | K139: 5 | L139: 11
A140: USC00083163 | B140: 19130512 | C140: PRCP | D140: 318 | G140: Z | I140: 1.25196918 | J140: 1913 | K140: 5 | L140: 12
A141: USC00083163 | B141: 19130513 | C141: PRCP | D141: 381 | G141: Z | I141: 1.50000081 | J141: 1913 | K141: 5 | L141: 13
A142: USC00083163 | B142: 19130514 | C142: PRCP | D142: 0 | G142: Z | I142: 0 | J142: 1913 | K142: 5 | L142: 14
A143: USC00083163 | B143: 19130515 | C143: PRCP | D143: 0 | E143: T | G143: Z | I143: 0 | J143: 1913 | K143: 5 | L143: 15
A144: USC00083163 | B144: 19130516 | C144: PRCP | D144: 0 | G144: Z | I144: 0 | J144: 1913 | K144: 5 | L144: 16
A145: USC00083163 | B145: 19130517 | C145: PRCP | D145: 0 | G145: Z | I145: 0 | J145: 1913 | K145: 5 | L145: 17
A146: USC00083163 | B146: 19130518 | C146: PRCP | D146: 0 | G146: Z | I146: 0 | J146: 1913 | K146: 5 | L146: 18
A147: USC00083163 | B147: 19130519 | C147: PRCP | D147: 109 | E147: T | G147: Z | I147: 0.42913409 | J147: 1913 | K147: 5 | L147: 19
A148: USC00083163 | B148: 19130520 | C148: PRCP | D148: 0 | G148: Z | I148: 0 | J148: 1913 | K148: 5 | L148: 20
A149: USC00083163 | B149: 19130521 | C149: PRCP | D149: 0 | G149: Z | I149: 0 | J149: 1913 | K149: 5 | L149: 21
A150: USC00083163 | B150: 19130522 | C150: PRCP | D150: 0 | G150: Z | I150: 0 | J150: 1913 | K150: 5 | L150: 22
A151: USC00083163 | B151: 19130523 | C151: PRCP | D151: 18 | G151: Z | I151: 0.07086618 | J151: 1913 | K151: 5 | L151: 23
A152: USC00083163 | B152: 19130524 | C152: PRCP | D152: 318 | G152: Z | I152: 1.25196918 | J152: 1913 | K152: 5 | L152: 24
A153: USC00083163 | B153: 19130525 | C153: PRCP | D153: 20 | E153: T | G153: Z | I153: 0.0787402 | J153: 1913 | K153: 5 | L153: 25
A154: USC00083163 | B154: 19130526 | C154: PRCP | D154: 597 | G154: Z | I154: 2.35039497 | J154: 1913 | K154: 5 | L154: 26
A155: USC00083163 | B155: 19130527 | C155: PRCP | D155: 165 | G155: Z | I155: 0.64960665 | J155: 1913 | K155: 5 | L155: 27
A156: USC00083163 | B156: 19130528 | C156: PRCP | D156: 132 | G156: Z | I156: 0.51968532 | J156: 1913 | K156: 5 | L156: 28
A157: USC00083163 | B157: 19130529 | C157: PRCP | D157: 0 | G157: Z | I157: 0 | J157: 1913 | K157: 5 | L157: 29
A158: USC00083163 | B158: 19130530 | C158: PRCP | D158: 0 | E158: T | G158: Z | I158: 0 | J158: 1913 | K158: 5 | L158: 30
A159: USC00083163 | B159: 19130531 | C159: PRCP | D159: 0 | G159: Z | I159: 0 | J159: 1913 | K159: 5 | L159: 31
A160: USC00083163 | B160: 19130601 | C160: PRCP | D160: 0 | G160: Z | I160: 0 | J160: 1913 | K160: 6 | L160: 1
A161: USC00083163 | B161: 19130602 | C161: PRCP | D161: 0 | E161: T | G161: Z | I161: 0 | J161: 1913 | K161: 6 | L161: 2
A162: USC00083163 | B162: 19130603 | C162: PRCP | D162: 0 | G162: Z | I162: 0 | J162: 1913 | K162: 6 | L162: 3
A163: USC00083163 | B163: 19130604 | C163: PRCP | D163: 0 | G163: Z | I163: 0 | J163: 1913 | K163: 6 | L163: 4
A164: USC00083163 | B164: 19130605 | C164: PRCP | D164: 0 | G164: Z | I164: 0 | J164: 1913 | K164: 6 | L164: 5
A165: USC00083163 | B165: 19130606 | C165: PRCP | D165: 264 | G165: Z | I165: 1.03937064 | J165: 1913 | K165: 6 | L165: 6
A166: USC00083163 | B166: 19130607 | C166: PRCP | D166: 0 | G166: Z | I166: 0 | J166: 1913 | K166: 6 | L166: 7
A167: USC00083163 | B167: 19130608 | C167: PRCP | D167: 25 | E167: T | G167: Z | I167: 0.09842525 | J167: 1913 | K167: 6 | L167: 8
A168: USC00083163 | B168: 19130609 | C168: PRCP | D168: 0 | G168: Z | I168: 0 | J168: 1913 | K168: 6 | L168: 9
A169: USC00083163 | B169: 19130610 | C169: PRCP | D169: 0 | G169: Z | I169: 0 | J169: 1913 | K169: 6 | L169: 10
A170: USC00083163 | B170: 19130611 | C170: PRCP | D170: 0 | G170: Z | I170: 0 | J170: 1913 | K170: 6 | L170: 11
A171: USC00083163 | B171: 19130612 | C171: PRCP | D171: 0 | G171: Z | I171: 0 | J171: 1913 | K171: 6 | L171: 12
A172: USC00083163 | B172: 19130613 | C172: PRCP | D172: 132 | G172: Z | I172: 0.51968532 | J172: 1913 | K172: 6 | L172: 13
A173: USC00083163 | B173: 19130614 | C173: PRCP | D173: 0 | G173: Z | I173: 0 | J173: 1913 | K173: 6 | L173: 14
A174: USC00083163 | B174: 19130615 | C174: PRCP | D174: 0 | G174: Z | I174: 0 | J174: 1913 | K174: 6 | L174: 15
A175: USC00083163 | B175: 19130616 | C175: PRCP | D175: 0 | G175: Z | I175: 0 | J175: 1913 | K175: 6 | L175: 16
A176: USC00083163 | B176: 19130617 | C176: PRCP | D176: 0 | G176: Z | I176: 0 | J176: 1913 | K176: 6 | L176: 17
A177: USC00083163 | B177: 19130618 | C177: PRCP | D177: 0 | G177: Z | I177: 0 | J177: 1913 | K177: 6 | L177: 18
A178: USC00083163 | B178: 19130619 | C178: PRCP | D178: 0 | G178: Z | I178: 0 | J178: 1913 | K178: 6 | L178: 19
A179: USC00083163 | B179: 19130620 | C179: PRCP | D179: 0 | G179: Z | I179: 0 | J179: 1913 | K179: 6 | L179: 20
A180: USC00083163 | B180: 19130621 | C180: PRCP | D180: 0 | G180: Z | I180: 0 | J180: 1913 | K180: 6 | L180: 21
A181: USC00083163 | B181: 19130622 | C181: PRCP | D181: 183 | G181: Z | I181: 0.72047283 | J181: 1913 | K181: 6 | L181: 22
A182: USC00083163 | B182: 19130623 | C182: PRCP | D182: 152 | G182: Z | I182: 0.59842552 | J182: 1913 | K182: 6 | L182: 23
A183: USC00083163 | B183: 19130624 | C183: PRCP | D183: 175 | G183: Z | I183: 0.68897675 | J183: 1913 | K183: 6 | L183: 24
A184: USC00083163 | B184: 19130625 | C184: PRCP | D184: 0 | G184: Z | I184: 0 | J184: 1913 | K184: 6 | L184: 25
A185: USC00083163 | B185: 19130626 | C185: PRCP | D185: 0 | G185: Z | I185: 0 | J185: 1913 | K185: 6 | L185: 26
A186: USC00083163 | B186: 19130627 | C186: PRCP | D186: 145 | G186: Z | I186: 0.57086645 | J186: 1913 | K186: 6 | L186: 27
A187: USC00083163 | B187: 19130628 | C187: PRCP | D187: 0 | G187: Z | I187: 0 | J187: 1913 | K187: 6 | L187: 28
A188: USC00083163 | B188: 19130629 | C188: PRCP | D188: 0 | G188: Z | I188: 0 | J188: 1913 | K188: 6 | L188: 29
A189: USC00083163 | B189: 19130630 | C189: PRCP | D189: 211 | G189: Z | I189: 0.83070911 | J189: 1913 | K189: 6 | L189: 30
A190: USC00083163 | B190: 19130701 | C190: PRCP | D190: 157 | G190: Z | I190: 0.61811057 | J190: 1913 | K190: 7 | L190: 1
A191: USC00083163 | B191: 19130702 | C191: PRCP | D191: 0 | G191: Z | I191: 0 | J191: 1913 | K191: 7 | L191: 2
A192: USC00083163 | B192: 19130703 | C192: PRCP | D192: 0 | G192: Z | I192: 0 | J192: 1913 | K192: 7 | L192: 3
A193: USC00083163 | B193: 19130704 | C193: PRCP | D193: 0 | E193: T | G193: Z | I193: 0 | J193: 1913 | K193: 7 | L193: 4
A194: USC00083163 | B194: 19130705 | C194: PRCP | D194: 0 | G194: Z | I194: 0 | J194: 1913 | K194: 7 | L194: 5
A195: USC00083163 | B195: 19130706 | C195: PRCP | D195: 0 | G195: Z | I195: 0 | J195: 1913 | K195: 7 | L195: 6
A196: USC00083163 | B196: 19130707 | C196: PRCP | D196: 84 | G196: Z | I196: 0.33070884 | J196: 1913 | K196: 7 | L196: 7
A197: USC00083163 | B197: 19130708 | C197: PRCP | D197: 168 | G197: Z | I197: 0.66141768 | J197: 1913 | K197: 7 | L197: 8
A198: USC00083163 | B198: 19130709 | C198: PRCP | D198: 38 | G198: Z | I198: 0.14960638 | J198: 1913 | K198: 7 | L198: 9
A199: USC00083163 | B199: 19130710 | C199: PRCP | D199: 0 | G199: Z | I199: 0 | J199: 1913 | K199: 7 | L199: 10
A200: USC00083163 | B200: 19130711 | C200: PRCP | D200: 0 | G200: Z | I200: 0 | J200: 1913 | K200: 7 | L200: 11
... 4300 more rows

Sheet GEV Fitting
R1: Location | S1: Scale | T1: Shape | U1: Log Likelihood | V1: Density Variances | W1: Tail Variance (>=4.5 inches) | X1: Probability of > 2023 Max
Q2: Current | R2: 3.710886773 | S2: 1.457342399 | T2: 0.2096500491 | U2: =MAX(-I4*LN(S2)-(1+1/T2)*SUM(O6:O117)-SUM(N6:N117),-1000000) -> -232.3090547 | V2: =SUM(E5:E25) -> 543.7023499 | W2: =SUM(E13:E25) -> 51.21984697 | X2: =1-IF($T2=0,EXP(-EXP(-($K$117-$R2)/$S2)),IF($T2*($K$117-$R2)/$S2>-1,EXP(-1*(1+$T2*($K$117-$R2)/$S2)^(-1/$T2)),IF(AND($T2>0,$T2*($K$117-$R2)/$S2<=-1),0,1))) -> 0.005952682565
I4: =COUNT(I6:I117) -> 112 | K4: =AVERAGE(K6:K117) -> 4.902983525 | M4: =MIN(M6:M91) -> 0.7510439265
B5: Inches | C5: Observations | D5: Density Estimates | E5: Variance | F5: PDF | G5: CDF | I5: Year | J5: Observations | K5: Max Daily Precipitation | L5: Rank | M5: y(j) | N5: y(i)^shape | O5: ln(y(j)) | R5: Location | S5: Scale | T5: Shape | U5: Log Likelihood
B6: =Data!AE4 -> 0 | C6: =Data!AF4 -> 0 | D6: =G6*$I$4 -> 3.149525956e-15 | E6: =(C6-D6)^2 -> 9.919513748e-30 | F6: =IF($T$2=0,EXP(-(B6-$R$2)/$S$2)*EXP(-EXP(-(B6-$R$2)/$S$2)),IF($T$2*(B6-$R$2)/$S$2>-1,((1+$T$2*(B6-$R$2)/$S$2)^(-(1+1/$T$2)))*EXP(-1*(1+$T$2*(B6-$R$2)/$S$2)^(-1/$T$2)),0)) -> 2.298959564e-15 | G6: =IF($T$2=0,EXP(-EXP(-(B6-$R$2)/$S$2)),IF($T$2*(B6-$R$2)/$S$2>-1,EXP(-1*(1+$T$2*(B6-$R$2)/$S$2)^(-1/$T$2)),IF(AND($T$2>0,$T$2*(B6-$R$2)/$S$2<=-1),0,1))) -> 2.812076746e-17 | I6: =Data!O6 -> 1912 | J6: =Data!P6 -> 28 | K6: =Data!Q6 -> 2.75984401 | L6: =RANK(K6,K$6:K$117) -> 94 | M6: =1+T$2*((K6-R$2)/S$2) -> 0.8631850949 | N6: =M6^(-1/$T$2) -> 2.017320375 | O6: =LN(M6) -> -0.1471261325 | Q6: Best | R6: 3.697175821 | S6: 1.445076471 | T6: 0.2127950617 | U6: -232.314172
B7: =Data!AE5 -> 1 | C7: =Data!AF5 -> 1 | D7: =$I$4*(G7-G6) -> 0.002888928064 | E7: 0.9942304898 | F7: 0.0004467461592 | G7: 2.579400057e-05 | I7: =Data!O7 -> 1913 | J7: =Data!P7 -> 317 | K7: =Data!Q7 -> 2.35039497 | L7: =RANK(K7,K$6:K$117) -> 104 | M7: 0.804282663 | N7: 2.826093979 | O7: =LN(M7) -> -0.2178045007 | Q7: Increments | R7: 0.01 | S7: 0.01 | T7: 0.01
B8: =Data!AE6 -> 2 | C8: =Data!AF6 -> 20 | D8: =$I$4*(G8-G7) -> 2.384633485 | E8: 310.3011374 | F8: 0.1088158577 | G8: 0.0213171644 | I8: =Data!O8 -> 1914 | J8: =Data!P8 -> 345 | K8: =Data!Q8 -> 4.07086834 | L8: 64 | M8: 1.051786151 | N8: 0.7859760048 | O8: 0.05048981485 | Q8: Iteration | R8: Location | S8: Scale | T8: Shape | U8: Log Likelihood
B9: =Data!AE7 -> 3 | C9: =Data!AF7 -> 27 | D9: 18.63427507 | E9: 69.98535368 | F9: 0.349771601 | G9: 0.1876946203 | I9: =Data!O9 -> 1915 | J9: =Data!P9 -> 365 | K9: =Data!Q9 -> 8.25984698 | L9: 10 | M9: 1.654403338 | N9: 0.09059674306 | O9: 0.5034404231 | Q9: 0 | R9: 3 | S9: 1 | T9: 0.5 | U9: -245.3480188
B10: =Data!AE8 -> 4 | C10: =Data!AF8 -> 19 | D10: 28.14138822 | E10: 83.56497864 | F10: 0.3469853858 | G10: 0.4389570152 | I10: =Data!O10 -> 1916 | J10: =Data!P10 -> 366 | K10: =Data!Q10 -> 2.61023763 | L10: 98 | M10: 0.8416630525 | N10: 2.275514 | O10: -0.1723755201 | Q10: 1 | R10: 3.03 | S10: 1 | T10: 0.5 | U10: -244.6416925
B11: =Data!AE9 -> 5 | C11: =Data!AF9 -> 19 | D11: 22.66576501 | E11: 13.43783314 | F11: 0.2403190513 | G11: 0.6413299171 | I11: =Data!O11 -> 1917 | J11: =Data!P11 -> 365 | K11: =Data!Q11 -> 3.00000162 | L11: 88 | M11: 0.8977336366 | N11: 1.672936925 | O11: -0.1078818731 | Q11: 2 | R11: 3.0603 | S11: 1 | T11: 0.5 | U11: -244.0764461
B12: =Data!AE10 -> 6 | C12: =Data!AF10 -> 11 | D12: 14.768152 | E12: 14.19896952 | F12: 0.1496187376 | G12: 0.7731884171 | I12: =Data!O12 -> 1918 | J12: =Data!P12 -> 365 | K12: =Data!Q12 -> 3.40157664 | L12: 77 | M12: 0.9555033294 | N12: 1.242480226 | O12: =LN(M12) -> -0.04551703084 | Q12: 3 | R12: 3.090903 | S12: 1 | T12: 0.5 | U12: -243.6763161
B13: =Data!AE11 -> 7 | C13: =Data!AF11 -> 3 | D13: 9.075458834 | E13: 36.91120005 | F13: 0.09136593224 | G13: 0.8542192996 | I13: =Data!O13 -> 1919 | J13: =Data!P13 -> 365 | K13: =Data!Q13 -> 6.09842849 | L13: 21 | M13: 1.343466462 | N13: 0.2445551549 | O13: 0.2952531858 | Q13: 4 | R13: 3.090903 | S13: 1.01 | T13: 0.5 | U13: -243.389189
B14: =Data!AE12 -> 8 | C14: =Data!AF12 -> 5 | D14: 5.564786846 | E14: 0.3189841815 | F14: 0.05647573878 | G14: 0.9039048964 | I14: =Data!O14 -> 1920 | J14: =Data!P14 -> 366 | K14: =Data!Q14 -> 2.50000135 | L14: 101 | M14: 0.8258047054 | N14: 2.491625919 | O14: -0.1913969675 | Q14: 5 | R14: 3.12181203 | S14: 1.01 | T14: 0.5 | U14: -243.1224484
B15: =Data!AE13 -> 9 | C15: =Data!AF13 -> 1 | D15: 3.474883126 | E15: 6.125046487 | F15: 0.03572354395 | G15: 0.9349306386 | I15: =Data!O15 -> 1921 | J15: =Data!P15 -> 341 | K15: =Data!Q15 -> 8.16142173 | L15: 11 | M15: 1.6402441 | N15: 0.094388272 | O15: 0.494845072 | Q15: 6 | R15: 3.12181203 | S15: 1.0201 | T15: 0.5 | U15: -242.8049403
B16: =Data!AE14 -> 10 | C16: =Data!AF14 -> 4 | D16: 2.224417463 | E16: 3.152693347 | F16: 0.023189978 | G16: 0.9547915088 | I16: =Data!O16 -> 1922 | J16: =Data!P16 -> 365 | K16: =Data!Q16 -> 4.16141957 | L16: 60 | M16: 1.06481265 | N16: 0.7411580412 | O16: 0.06279886825 | Q16: 7 | R16: 3.12181203 | S16: 1.030301 | T16: 0.5 | U16: -242.5157845
B17: =Data!AE15 -> 11 | C17: =Data!AF15 -> 0 | D17: 1.461395017 | E17: 2.135675395 | F17: 0.01544352739 | G17: 0.9678396786 | I17: =Data!O17 -> 1923 | J17: =Data!P17 -> 365 | K17: =Data!Q17 -> 1.98031603 | L17: 112 | M17: 0.7510439265 | N17: 3.917942955 | O17: -0.2862911382 | Q17: 8 | R17: 3.12181203 | S17: 1.04060401 | T17: 0.5 | U17: -242.2536335
B18: =Data!AE16 -> 12 | C18: =Data!AF16 -> 0 | D18: 0.9843463487 | E18: 0.9689377342 | F18: 0.01053443016 | G18: 0.9766284853 | I18: =Data!O18 -> 1924 | J18: =Data!P18 -> 366 | K18: =Data!Q18 -> 9.20079237 | L18: 7 | M18: 1.789765657 | N18: 0.06225859649 | O18: 0.5820846937 | Q18: 9 | R18: 3.15303015 | S18: 1.04060401 | T18: 0.5 | U18: -242.0083733
B19: =Data!AE17 -> 13 | C19: =Data!AF17 -> 0 | D19: 0.6785386839 | E19: 0.4604147455 | F19: 0.007345934235 | G19: 0.9826868664 | I19: =Data!O19 -> 1925 | J19: =Data!P19 -> 365 | K19: =Data!Q19 -> 5.42913679 | L19: 40 | M19: 1.247183641 | N19: 0.3486791897 | O19: 0.2208879221 | Q19: 10 | R19: 3.15303015 | S19: 1.05101005 | T19: 0.5 | U19: -241.7164493
B20: =Data!AE18 -> 14 | C20: =Data!AF18 -> 1 | D20: 0.4777307032 | E20: 0.2727652184 | F20: 0.005226332181 | G20: 0.9869523191 | I20: =Data!O20 -> 1926 | J20: =Data!P20 -> 345 | K20: =Data!Q20 -> 5.75197161 | L20: 29 | M20: 1.293625943 | N20: 0.2928793911 | O20: 0.257449084 | Q20: 11 | R20: 3.15303015 | S20: 1.061520151 | T20: 0.5 | U20: -241.4529018
B21: =Data!AE19 -> 15 | C21: =Data!AF19 -> 0 | D21: 0.3428731475 | E21: 0.1175619953 | F21: 0.003786654681 | G21: 0.9900136865 | I21: =Data!O21 -> 1927 | J21: =Data!P21 -> 365 | K21: =Data!Q21 -> 6.12992457 | L21: 20 | M21: 1.347997419 | N21: 0.2406590474 | O21: 0.2986200975 | Q21: 12 | R21: 3.15303015 | S21: 1.072135352 | T21: 0.5 | U21: -241.2163823
B22: =Data!AE20 -> 16 | C22: =Data!AF20 -> 0 | D22: 0.2504095745 | E22: 0.06270495501 | F22: 0.002789278344 | G22: 0.9922494863 | I22: =Data!O22 -> 1928 | J22: =Data!P22 -> 366 | K22: =Data!Q22 -> 6.00000324 | L22: 25 | M22: 1.329307224 | N22: 0.257232082 | O22: 0.2846579222 | Q22: 13 | R22: 3.184560452 | S22: 1.072135352 | T22: 0.5 | U22: -240.9898167
B23: =Data!AE21 -> 17 | C23: =Data!AF21 -> 1 | D23: 0.1857968413 | E23: 0.6629267837 | F23: 0.002085700199 | G23: 0.9939083867 | I23: =Data!O23 -> 1929 | J23: =Data!P23 -> 356 | K23: =Data!Q23 -> 5.75197161 | L23: 29 | M23: 1.293625943 | N23: 0.2928793911 | O23: 0.257449084 | Q23: 14 | R23: 3.184560452 | S23: 1.082856706 | T23: 0.5 | U23: -240.7242213
B24: =Data!AE22 -> 18 | C24: =Data!AF22 -> 0 | D24: 0.139854111 | E24: 0.01955917237 | F24: 0.001581087105 | G24: 0.9951570841 | I24: =Data!O24 -> 1930 | J24: =Data!P24 -> 365 | K24: =Data!Q24 -> 8.59842984 | L24: 8 | M24: 1.703111118 | N24: 0.07888689549 | O24: 0.5324566481 | Q24: 15 | R24: 3.184560452 | S24: 1.093685273 | T24: 0.5 | U24: -240.4869581
B25: =Data!AE23 -> 19 | C25: =Data!AF23 -> 0 | D25: =$I$4*(G25-G24) -> 0.1066625998 | E25: =(C25-D25)^2 -> 0.01137691019 | F25: =IF($T$2=0,EXP(-(B25-$R$2)/$S$2)*EXP(-EXP(-(B25-$R$2)/$S$2)),IF($T$2*(B25-$R$2)/$S$2>-1,((1+$T$2*(B25-$R$2)/$S$2)^(-(1+1/$T$2)))*EXP(-1*(1+$T$2*(B25-$R$2)/$S$2)^(-1/$T$2)),0)) -> 0.001213640945 | G25: =IF($T$2=0,EXP(-EXP(-(B25-$R$2)/$S$2)),IF($T$2*(B25-$R$2)/$S$2>-1,EXP(-1*(1+$T$2*(B25-$R$2)/$S$2)^(-1/$T$2)),IF(AND($T$2>0,$T$2*(B25-$R$2)/$S$2<=-1),0,1))) -> 0.9961094287 | I25: =Data!O25 -> 1931 | J25: =Data!P25 -> 365 | K25: =Data!Q25 -> 4.64960881 | L25: 49 | M25: 1.135042473 | N25: 0.5465127346 | O25: 0.1266700711 | Q25: 16 | R25: 3.184560452 | S25: 1.104622125 | T25: 0.5 | U25: -240.2766822
I26: =Data!O26 -> 1932 | J26: =Data!P26 -> 366 | K26: =Data!Q26 -> 5.05905785 | L26: 45 | M26: 1.193944905 | N26: 0.4293349459 | O26: 0.1772628703 | Q26: 17 | R26: 3.216406056 | S26: 1.104622125 | T26: 0.5 | U26: -240.0662241
I27: =Data!O27 -> 1933 | J27: =Data!P27 -> 365 | K27: =Data!Q27 -> 6.90157853 | L27: 16 | M27: 1.459005848 | N27: 0.164995464 | O27: 0.3777552776 | Q27: 18 | R27: 3.216406056 | S27: 1.115668347 | T27: 0.5 | U27: -239.827646
I28: =Data!O28 -> 1934 | J28: =Data!P28 -> 365 | K28: =Data!Q28 -> 4.18110462 | L28: 59 | M28: 1.067644498 | N28: 0.7318279119 | O28: 0.06545481784 | Q28: 19 | R28: 3.216406056 | S28: 1.12682503 | T28: 0.5 | U28: -239.6172908
I29: =Data!O29 -> 1935 | J29: =Data!P29 -> 365 | K29: =Data!Q29 -> 2.87008029 | L29: 93 | M29: 0.8790434419 | N29: 1.849534679 | O29: -0.1289209606 | Q29: 20 | R29: 3.216406056 | S29: 1.13809328 | T29: 0.5 | U29: -239.433822
I30: =Data!O30 -> 1936 | J30: =Data!P30 -> 348 | K30: =Data!Q30 -> 8.01968937 | L30: 12 | M30: 1.619854796 | N30: 0.100191246 | O30: 0.4823365134 | Q30: 21 | R30: 3.248570117 | S30: 1.13809328 | T30: 0.5 | U30: -239.2370848
I31: =Data!O31 -> 1937 | J31: =Data!P31 -> 222 | K31: =Data!Q31 -> 2.46850527 | L31: 102 | M31: 0.8212737491 | N31: 2.557878924 | O31: -0.1968987913 | Q31: 22 | R31: 3.248570117 | S31: 1.149474213 | T31: 0.5 | U31: -239.0261516
I32: =Data!O32 -> 1938 | J32: =Data!P32 -> 357 | K32: =Data!Q32 -> 2.20078859 | L32: 107 | M32: 0.7827606206 | N32: 3.216430892 | O32: -0.2449283505 | Q32: 23 | R32: 3.248570117 | S32: 1.160968955 | T32: 0.5 | U32: -238.8432713
I33: =Data!O33 -> 1939 | J33: =Data!P33 -> 365 | K33: =Data!Q33 -> 2.53149743 | L33: 100 | M33: 0.8303356617 | N33: 2.427437509 | O33: -0.1859252482 | Q33: 24 | R33: 3.248570117 | S33: 1.172578645 | T33: 0.5 | U33: -238.6871193
I34: =Data!O34 -> 1940 | J34: =Data!P34 -> 359 | K34: =Data!Q34 -> 4.50000243 | L34: 54 | M34: 1.11352043 | N34: 0.5987651033 | O34: 0.1075265553 | Q34: 25 | R34: 3.281055818 | S34: 1.172578645 | T34: 0.5 | U34: -238.5019162
I35: =Data!O35 -> 1941 | J35: =Data!P35 -> 365 | K35: =Data!Q35 -> 3.01968667 | L35: 87 | M35: 0.9005654843 | N35: 1.647992994 | O35: -0.1047323971 | Q35: 26 | R35: 3.281055818 | S35: 1.184304431 | T35: 0.5 | U35: -238.3191908
I36: =Data!O36 -> 1942 | J36: =Data!P36 -> 365 | K36: =Data!Q36 -> 3.20078913 | L36: 83 | M36: 0.926618483 | N36: 1.438393046 | O36: -0.07621335906 | Q36: 27 | R36: 3.281055818 | S36: 1.196147476 | T36: 0.5 | U36: -238.1642915
I37: =Data!O37 -> 1943 | J37: =Data!P37 -> 365 | K37: =Data!Q37 -> 3.33071046 | L37: 79 | M37: 0.9453086777 | N37: 1.307706054 | O37: -0.05624376171 | Q37: 28 | R37: 3.281055818 | S37: 1.20810895 | T37: 0.5 | U37: -238.0359095
I38: =Data!O38 -> 1944 | J38: =Data!P38 -> 366 | K38: =Data!Q38 -> 3.90157691 | L38: 67 | M38: =1+T$2*((K38-R$2)/S$2) -> 1.027432261 | N38: =M38^(-1/$T$2) -> 0.8788989951 | O38: 0.0270627388 | Q38: 29 | R38: 3.313866376 | S38: 1.20810895 | T38: 0.5 | U38: -237.8602498
I39: =Data!O39 -> 1945 | J39: =Data!P39 -> 212 | K39: =Data!Q39 -> 2.75984401 | L39: 94 | M39: 0.8631850949 | N39: 2.017320375 | O39: -0.1471261325 | Q39: 30 | R39: 3.313866376 | S39: 1.22019004 | T39: 0.5 | U39: -237.7062274
I40: =Data!O40 -> 1946 | J40: =Data!P40 -> 275 | K40: =Data!Q40 -> 2.03937118 | L40: 111 | M40: 0.7595394696 | N40: 3.713276884 | O40: -0.2750429904 | Q40: 31 | R40: 3.313866376 | S40: 1.23239194 | T40: 0.5 | U40: -237.579752
I41: =Data!O41 -> 1947 | J41: =Data!P41 -> 365 | K41: =Data!Q41 -> 10.85039956 | L41: 3 | M41: 2.027074493 | N41: 0.03437767284 | O41: 0.7065936174 | Q41: 32 | R41: 3.34700504 | S41: 1.23239194 | T41: 0.5 | U41: -237.465093
I42: =Data!O42 -> 1948 | J42: =Data!P42 -> 366 | K42: =Data!Q42 -> 10.44882454 | L42: 4 | M42: 1.969304801 | N42: 0.03946121232 | O42: 0.6776805874 | Q42: 33 | R42: 3.34700504 | S42: 1.24471586 | T42: 0.5 | U42: -237.3116179
I43: =Data!O43 -> 1949 | J43: =Data!P43 -> 341 | K43: =Data!Q43 -> 3.79921465 | L43: 73 | M43: 1.012706653 | N43: 0.9415507456 | O43: 0.01262660055 | Q43: 34 | R43: 3.34700504 | S43: 1.257163018 | T43: 0.5 | U43: -237.1867242
I44: =Data!O44 -> 1950 | J44: =Data!P44 -> 327 | K44: =Data!Q44 -> 3.20078913 | L44: 83 | M44: 0.926618483 | N44: 1.438393046 | O44: -0.07621335906 | Q44: 35 | R44: 3.34700504 | S44: 1.257163018 | T44: 0.495 | U44: -237.0859812
A45: CDF | I45: =Data!O45 -> 1951 | J45: =Data!P45 -> 334 | K45: =Data!Q45 -> 3.09842687 | L45: 86 | M45: 0.9118928751 | N45: 1.552608984 | O45: -0.09223275737 | Q45: 36 | R45: 3.34700504 | S45: 1.257163018 | T45: 0.49005 | U45: -236.9890574
I46: =Data!O46 -> 1952 | J46: =Data!P46 -> 366 | K46: =Data!Q46 -> 3.00000162 | L46: 88 | M46: 0.8977336366 | N46: 1.672936925 | O46: -0.1078818731 | Q46: 37 | R46: 3.34700504 | S46: 1.257163018 | T46: 0.4851495 | U46: -236.8958098
I47: =Data!O47 -> 1953 | J47: =Data!P47 -> 365 | K47: =Data!Q47 -> 4.79921519 | L47: 46 | M47: 1.156564515 | N47: 0.4996766001 | O47: 0.1454539859 | Q47: 38 | R47: 3.38047509 | S47: 1.257163018 | T47: 0.4851495 | U47: -236.7918167
I48: =Data!O48 -> 1954 | J48: =Data!P48 -> 364 | K48: =Data!Q48 -> 5.50000297 | L48: 35 | M48: 1.257378293 | N48: 0.3353991516 | O48: 0.2290288331 | Q48: 39 | R48: 3.38047509 | S48: 1.269734649 | T48: 0.4851495 | U48: -236.6566091
I49: =Data!O49 -> 1955 | J49: =Data!P49 -> 365 | K49: =Data!Q49 -> 3.40157664 | L49: 77 | M49: 0.9555033294 | N49: 1.242480226 | O49: -0.04551703084 | Q49: 40 | R49: 3.38047509 | S49: 1.282431995 | T49: 0.4851495 | U49: -236.5493136
I50: =Data!O50 -> 1956 | J50: =Data!P50 -> 355 | K50: =Data!Q50 -> 3.00000162 | L50: 88 | M50: 0.8977336366 | N50: 1.672936925 | O50: -0.1078818731 | Q50: 41 | R50: 3.38047509 | S50: 1.282431995 | T50: 0.480298005 | U50: -236.4547221
I51: =Data!O51 -> 1957 | J51: =Data!P51 -> 352 | K51: =Data!Q51 -> 6.40157826 | L51: 19 | M51: 1.387076917 | N51: 0.2099912674 | O51: 0.3271985952 | Q51: 42 | R51: 3.38047509 | S51: 1.282431995 | T51: 0.4754950249 | U51: -236.3636421
A52: PDF | I52: =Data!O52 -> 1958 | J52: =Data!P52 -> 359 | K52: =Data!Q52 -> 4.09842741 | L52: 62 | M52: 1.055750737 | N52: 0.7719969903 | O52: 0.05425211335 | Q52: 43 | R52: 3.38047509 | S52: 1.282431995 | T52: 0.4707400747 | U52: -236.2759471
I53: =Data!O53 -> 1959 | J53: =Data!P53 -> 361 | K53: =Data!Q53 -> 3.94882103 | L53: 65 | M53: 1.034228695 | N53: 0.8516890048 | O53: 0.03365592673 | Q53: 44 | R53: 3.414279841 | S53: 1.282431995 | T53: 0.4707400747 | U53: -236.1842061
I54: =Data!O54 -> 1960 | J54: =Data!P54 -> 322 | K54: =Data!Q54 -> 2.5984266 | L54: 99 | M54: 0.8399639439 | N54: 2.297553457 | O54: -0.1743963121 | Q54: 45 | R54: 3.414279841 | S54: 1.295256315 | T54: 0.4707400747 | U54: -236.0670835
I55: =Data!O55 -> 1961 | J55: =Data!P55 -> 365 | K55: =Data!Q55 -> 2.09055231 | L55: 109 | M55: 0.7669022736 | N55: 3.546281305 | O55: -0.2653958996 | Q55: 46 | R55: 3.414279841 | S55: 1.295256315 | T55: 0.466032674 | U55: -235.9738055
I56: =Data!O56 -> 1962 | J56: =Data!P56 -> 212 | K56: =Data!Q56 -> 2.74015896 | L56: 96 | M56: 0.8603532472 | N56: 2.04918929 | O56: -0.1504122215 | Q56: 47 | R56: 3.414279841 | S56: 1.295256315 | T56: 0.4613723472 | U56: -235.8839917
I57: =Data!O57 -> 1963 | J57: =Data!P57 -> 231 | K57: =Data!Q57 -> 2.90157637 | L57: 92 | M57: 0.8835743982 | N57: 1.804730757 | O57: -0.1237797823 | Q57: 48 | R57: 3.414279841 | S57: 1.295256315 | T57: 0.4567586237 | U57: -235.7975182
A58: Log-Likelihood | I58: =Data!O58 -> 1964 | J58: =Data!P58 -> 366 | K58: =Data!Q58 -> 6.09842849 | L58: 21 | M58: 1.343466462 | N58: 0.2445551549 | O58: 0.2952531858 | Q58: 49 | R58: 3.414279841 | S58: 1.295256315 | T58: 0.4521910375 | U58: -235.7142681
I59: =Data!O59 -> 1965 | J59: =Data!P59 -> 365 | K59: =Data!Q59 -> 5.50000297 | L59: 35 | M59: 1.257378293 | N59: 0.3353991516 | O59: 0.2290288331 | Q59: 50 | R59: 3.414279841 | S59: 1.295256315 | T59: 0.4476691271 | U59: -235.6341309
I60: =Data!O60 -> 1966 | J60: =Data!P60 -> 365 | K60: =Data!Q60 -> 6.8503974 | L60: 17 | M60: 1.451643044 | N60: 0.1690255291 | O60: 0.3726960486 | Q60: 51 | R60: 3.414279841 | S60: 1.295256315 | T60: 0.4431924359 | U60: -235.5570018
I61: =Data!O61 -> 1967 | J61: =Data!P61 -> 365 | K61: =Data!Q61 -> 4.51181346 | L61: 53 | M61: 1.115219539 | N61: 0.5944262493 | O61: 0.1090512814 | Q61: 52 | R61: 3.414279841 | S61: 1.295256315 | T61: 0.4387605115 | U61: -235.4827816
I62: =Data!O62 -> 1968 | J62: =Data!P62 -> 366 | K62: =Data!Q62 -> 4.61023871 | L62: 52 | M62: 1.129378777 | N62: 0.5597095887 | O62: 0.1216677269 | Q62: 53 | R62: 3.44842264 | S62: 1.295256315 | T62: 0.4387605115 | U62: -235.4025935
I63: =Data!O63 -> 1969 | J63: =Data!P63 -> 365 | K63: =Data!Q63 -> 10.0000054 | L63: 6 | M63: 1.904738673 | N63: 0.0462621877 | O63: 0.6443448199 | Q63: 54 | R63: 3.44842264 | S63: 1.308208878 | T63: 0.4387605115 | U63: -235.2942687
I64: =Data!O64 -> 1970 | J64: =Data!P64 -> 365 | K64: =Data!Q64 -> 4.09842741 | L64: 62 | M64: 1.055750737 | N64: 0.7719969903 | O64: 0.05425211335 | Q64: 55 | R64: 3.44842264 | S64: 1.321290967 | T64: 0.4387605115 | U64: -235.2121591
I65: =Data!O65 -> 1971 | J65: =Data!P65 -> 365 | K65: =Data!Q65 -> 2.05118221 | L65: 110 | M65: 0.7612385782 | N65: 3.673909598 | O65: -0.2728084641 | Q65: 56 | R65: 3.44842264 | S65: 1.321290967 | T65: 0.4343729064 | U65: -235.1368165
I66: =Data!O66 -> 1972 | J66: =Data!P66 -> 366 | K66: =Data!Q66 -> 6.03149932 | L66: 23 | M66: 1.33383818 | N66: 0.2530907891 | O66: 0.2880606359 | Q66: 57 | R66: 3.44842264 | S66: 1.321290967 | T66: 0.4300291773 | U66: -235.0642522
I67: =Data!O67 -> 1973 | J67: =Data!P67 -> 365 | K67: =Data!Q67 -> 10.44882454 | L67: 4 | M67: 1.969304801 | N67: 0.03946121232 | O67: 0.6776805874 | Q67: 58 | R67: 3.44842264 | S67: 1.321290967 | T67: 0.4257288855 | U67: -234.9943775
I68: =Data!O68 -> 1974 | J68: =Data!P68 -> 365 | K68: =Data!Q68 -> 3.72047445 | L68: 76 | M68: 1.001379262 | N68: 0.9934472194 | O68: 0.0013783116 | Q68: 59 | R68: 3.44842264 | S68: 1.321290967 | T68: 0.4214715967 | U68: -234.9271081
I69: =Data!O69 -> 1975 | J69: =Data!P69 -> 365 | K69: =Data!Q69 -> 2.64960773 | L69: 97 | M69: 0.8473267478 | N69: 2.203873092 | O69: -0.165668888 | Q69: 60 | R69: 3.482906866 | S69: 1.321290967 | T69: 0.4214715967 | U69: -234.8535135
I70: =Data!O70 -> 1976 | J70: =Data!P70 -> 366 | K70: =Data!Q70 -> 5.61811327 | L70: 34 | M70: =1+T$2*((K70-R$2)/S$2) -> 1.274369379 | N70: =M70^(-1/$T$2) -> 0.3145985554 | O70: 0.2424514514 | Q70: 61 | R70: 3.482906866 | S70: 1.334503877 | T70: 0.4214715967 | U70: -234.7660567
I71: =Data!O71 -> 1977 | J71: =Data!P71 -> 365 | K71: =Data!Q71 -> 5.44882184 | L71: =RANK(K71,K$6:K$117) -> 39 | M71: 1.250015489 | N71: 0.3449274651 | O71: 0.2231559422 | Q71: 62 | R71: 3.482906866 | S71: 1.334503877 | T71: 0.4172568807 | U71: -234.6945121
I72: =Data!O72 -> 1978 | J72: =Data!P72 -> 365 | K72: =Data!Q72 -> 5.46850689 | L72: 37 | M72: 1.252847336 | N72: 0.3412244615 | O72: 0.22541883 | Q72: 63 | R72: 3.482906866 | S72: 1.334503877 | T72: 0.4130843119 | U72: -234.6256189
I73: =Data!O73 -> 1979 | J73: =Data!P73 -> 365 | K73: =Data!Q73 -> 14.59055906 | L73: 2 | M73: 2.565125554 | N73: 0.01118437764 | O73: 0.9420074262 | Q73: 64 | R73: 3.482906866 | S73: 1.334503877 | T73: 0.4089534688 | U73: -234.5592943
I74: =Data!O74 -> 1980 | J74: =Data!P74 -> 366 | K74: =Data!Q74 -> 5.46063287 | L74: 38 | M74: 1.251714597 | N74: 0.3426998641 | O74: 0.2245142892 | Q74: 65 | R74: 3.482906866 | S74: 1.334503877 | T74: 0.4048639341 | U74: -234.4954593
I75: =Data!O75 -> 1981 | J75: =Data!P75 -> 365 | K75: =Data!Q75 -> 4.61811273 | L75: 51 | M75: 1.130511516 | N75: 0.557039643 | O75: 0.1226701996 | Q75: 66 | R75: 3.482906866 | S75: 1.334503877 | T75: 0.4008152948 | U75: -234.4340387
I76: =Data!O76 -> 1982 | J76: =Data!P76 -> 365 | K76: =Data!Q76 -> 7.5984293 | L76: 13 | M76: 1.559253256 | N76: 0.120175466 | O76: =LN(M76) -> 0.4442070245 | Q76: 67 | R76: 3.482906866 | S76: 1.334503877 | T76: 0.3968071418 | U76: -234.3749609
I77: =Data!O77 -> 1983 | J77: =Data!P77 -> 365 | K77: =Data!Q77 -> 4.42126223 | L77: 56 | M77: 1.10219304 | N77: 0.6286908465 | O77: 0.09730186735 | Q77: 68 | R77: 3.482906866 | S77: 1.334503877 | T77: 0.3928390704 | U77: -234.3181574
I78: =Data!O78 -> 1984 | J78: =Data!P78 -> 365 | K78: =Data!Q78 -> 5.35039659 | L78: 41 | M78: 1.23585625 | N78: 0.364188578 | O78: 0.2117640499 | Q78: 69 | R78: 3.482906866 | S78: 1.334503877 | T78: 0.3889106797 | U78: -234.263563
I79: =Data!O79 -> 1985 | J79: =Data!P79 -> 364 | K79: =Data!Q79 -> 3.90157691 | L79: 67 | M79: 1.027432261 | N79: 0.8788989951 | O79: 0.0270627388 | Q79: 70 | R79: 3.517735935 | S79: 1.334503877 | T79: 0.3889106797 | U79: -234.2043086
I80: =Data!O80 -> 1986 | J80: =Data!P80 -> 365 | K80: =Data!Q80 -> 3.83858475 | L80: 72 | M80: 1.018370348 | N80: 0.9168340905 | O80: 0.0182036516 | Q80: 71 | R80: 3.517735935 | S80: 1.347848915 | T80: 0.3889106797 | U80: -234.1246908
I81: =Data!O81 -> 1987 | J81: =Data!P81 -> 365 | K81: =Data!Q81 -> 4.24015977 | L81: 58 | M81: 1.076140041 | N81: 0.7046777185 | O81: 0.07338060271 | Q81: 72 | R81: 3.517735935 | S81: 1.347848915 | T81: 0.3850215729 | U81: -234.0663547
I82: =Data!O82 -> 1988 | J82: =Data!P82 -> 366 | K82: =Data!Q82 -> 2.33070992 | L82: 105 | M82: 0.8014508153 | N82: 2.87404269 | O82: -0.2213316746 | Q82: 73 | R82: 3.517735935 | S82: 1.347848915 | T82: 0.3811713572 | U82: -234.0102598
I83: =Data!O83 -> 1989 | J83: =Data!P83 -> 365 | K83: =Data!Q83 -> 5.20079021 | L83: 43 | M83: 1.214334208 | N83: 0.396021724 | O83: 0.1941959495 | Q83: 74 | R83: 3.517735935 | S83: 1.347848915 | T83: 0.3773596436 | U83: -233.9563415
I84: =Data!O84 -> 1990 | J84: =Data!P84 -> 365 | K84: =Data!Q84 -> 4.4488213 | L84: 55 | M84: 1.106157626 | N84: 0.6180153303 | O84: 0.1008924122 | Q84: 75 | R84: 3.517735935 | S84: 1.347848915 | T84: 0.3735860472 | U84: -233.9045382
I85: =Data!O85 -> 1991 | J85: =Data!P85 -> 365 | K85: =Data!Q85 -> 7.09055501 | L85: 15 | M85: 1.486191586 | N85: 0.1510874664 | O85: 0.396216865 | Q85: 76 | R85: 3.517735935 | S85: 1.347848915 | T85: 0.3698501867 | U85: -233.8547909
I86: =Data!O86 -> 1992 | J86: =Data!P86 -> 365 | K86: =Data!Q86 -> 3.90157691 | L86: 67 | M86: 1.027432261 | N86: 0.8788989951 | O86: 0.0270627388 | Q86: 77 | R86: 3.517735935 | S86: 1.347848915 | T86: 0.3661516848 | U86: -233.807043
I87: =Data!O87 -> 1993 | J87: =Data!P87 -> 364 | K87: =Data!Q87 -> 3.27952933 | L87: 81 | M87: 0.9379458738 | N87: 1.357400248 | O87: -0.06406303552 | Q87: 78 | R87: 3.517735935 | S87: 1.347848915 | T87: 0.362490168 | U87: -233.7612403
I88: =Data!O88 -> 1994 | J88: =Data!P88 -> 364 | K88: =Data!Q88 -> 6.7716572 | L88: 18 | M88: 1.440315653 | N88: 0.1754607952 | O88: 0.3648622931 | Q88: 79 | R88: 3.517735935 | S88: 1.347848915 | T88: 0.3588652663 | U88: -233.7173309
I89: =Data!O89 -> 1995 | J89: =Data!P89 -> 365 | K89: =Data!Q89 -> 3.29134036 | L89: 80 | M89: 0.9396449824 | N89: 1.345732421 | O89: -0.06225315339 | Q89: 80 | R89: 3.517735935 | S89: 1.347848915 | T89: 0.3552766136 | U89: -233.6752648
I90: =Data!O90 -> 1996 | J90: =Data!P90 -> 366 | K90: =Data!Q90 -> 4.14960854 | L90: 61 | M90: 1.063113541 | N90: 0.7468252035 | O90: 0.06120190593 | Q90: 81 | R90: 3.552913294 | S90: 1.347848915 | T90: 0.3552766136 | U90: -233.6302304
I91: =Data!O91 -> 1997 | J91: =Data!P91 -> 365 | K91: =Data!Q91 -> 5.81890078 | L91: 27 | M91: =1+T$2*((K91-R$2)/S$2) -> 1.303254225 | N91: =M91^(-1/$T$2) -> 0.2827013338 | O91: =LN(M91) -> 0.2648643867 | Q91: 82 | R91: 3.552913294 | S91: 1.361327404 | T91: 0.3552766136 | U91: -233.5579495
I92: =Data!O92 -> 1998 | J92: =Data!P92 -> 365 | K92: =Data!Q92 -> 4.72047499 | L92: 48 | M92: 1.145237124 | N92: 0.5236938708 | O92: 0.135611711 | Q92: 83 | R92: 3.552913294 | S92: 1.374940679 | T92: 0.3552766136 | U92: -233.509232
I93: =Data!O93 -> 1999 | J93: =Data!P93 -> 365 | K93: =Data!Q93 -> 8.27953203 | L93: 9 | M93: 1.657235186 | N93: 0.08986069786 | O93: 0.5051506631 | Q93: 84 | R93: 3.552913294 | S93: 1.374940679 | T93: 0.3517238475 | U93: -233.465977
I94: =Data!O94 -> 2000 | J94: =Data!P94 -> 366 | K94: =Data!Q94 -> 5.75197161 | L94: 29 | M94: 1.293625943 | N94: 0.2928793911 | O94: 0.257449084 | Q94: 85 | R94: 3.552913294 | S94: 1.374940679 | T94: 0.348206609 | U94: -233.4244826
I95: =Data!O95 -> 2001 | J95: =Data!P95 -> 365 | K95: =Data!Q95 -> 5.27953041 | L95: 42 | M95: 1.225661599 | N95: 0.3788657021 | O95: 0.2034807787 | Q95: 86 | R95: 3.552913294 | S95: 1.374940679 | T95: 0.3447245429 | U95: -233.3847036
I96: =Data!O96 -> 2002 | J96: =Data!P96 -> 365 | K96: =Data!Q96 -> 3.72834847 | L96: 75 | M96: 1.002512001 | N96: 0.9881044657 | O96: 0.002508851182 | Q96: 87 | R96: 3.552913294 | S96: 1.374940679 | T96: 0.3412772975 | U96: -233.3465959
I97: =Data!O97 -> 2003 | J97: =Data!P97 -> 365 | K97: =Data!Q97 -> 5.72834955 | L97: 32 | M97: 1.290227726 | N97: 0.2965771157 | O97: 0.2548187344 | Q97: 88 | R97: 3.552913294 | S97: 1.374940679 | T97: 0.3378645245 | U97: -233.3101174
I98: =Data!O98 -> 2004 | J98: =Data!P98 -> 366 | K98: =Data!Q98 -> 4.4094512 | L98: 57 | M98: 1.100493931 | N98: 0.6333342831 | O98: 0.0957591071 | Q98: 89 | R98: 3.552913294 | S98: 1.374940679 | T98: 0.3344858793 | U98: -233.2752276
I99: =Data!O99 -> 2005 | J99: =Data!P99 -> 365 | K99: =Data!Q99 -> 3.85039578 | L99: 71 | M99: 1.020069457 | N99: 0.9095726365 | O99: 0.01987071971 | Q99: 90 | R99: 3.588442427 | S99: 1.374940679 | T99: 0.3344858793 | U99: -233.2358801
I100: =Data!O100 -> 2006 | J100: =Data!P100 -> 365 | K100: =Data!Q100 -> 3.25197026 | L100: 82 | M100: 0.933981287 | N100: 1.385104555 | O100: -0.06829887629 | Q100: 91 | R100: 3.588442427 | S100: 1.388690085 | T100: 0.3344858793 | U100: -233.1852565
I101: =Data!O101 -> 2007 | J101: =Data!P101 -> 365 | K101: =Data!Q101 -> 3.11811192 | L101: 85 | M101: 0.9147247227 | N101: 1.529815425 | O101: -0.08913210843 | Q101: 92 | R101: 3.588442427 | S101: 1.388690085 | T101: 0.3311410205 | U101: -233.1475414
I102: =Data!O102 -> 2008 | J102: =Data!P102 -> 366 | K102: =Data!Q102 -> 3.90945093 | L102: 66 | M102: 1.028565 | N102: 0.8742917576 | O102: 0.02816462664 | Q102: 93 | R102: 3.588442427 | S102: 1.388690085 | T102: 0.3278296103 | U102: -233.1114278
I103: =Data!O103 -> 2009 | J103: =Data!P103 -> 363 | K103: =Data!Q103 -> 2.46850527 | L103: 102 | M103: 0.8212737491 | N103: 2.557878924 | O103: -0.1968987913 | Q103: 94 | R103: 3.588442427 | S103: 1.388690085 | T103: 0.3245513142 | U103: -233.0768756
I104: =Data!O104 -> 2010 | J104: =Data!P104 -> 365 | K104: =Data!Q104 -> 5.18110516 | L104: 44 | M104: 1.21150236 | N104: 0.4004566162 | O104: 0.1918612094 | Q104: 95 | R104: 3.588442427 | S104: 1.388690085 | T104: 0.321305801 | U104: -233.0438459
I105: =Data!O105 -> 2011 | J105: =Data!P105 -> 365 | K105: =Data!Q105 -> 3.74803352 | L105: 74 | M105: 1.005343849 | N105: 0.9748988951 | O105: 0.005329620973 | Q105: 96 | R105: 3.588442427 | S105: 1.388690085 | T105: 0.318092743 | U105: -233.0123013
I106: =Data!O106 -> 2012 | J106: =Data!P106 -> 366 | K106: =Data!Q106 -> 5.72047553 | L106: 33 | M106: 1.289094987 | N106: 0.2978222235 | O106: 0.2539404115 | Q106: 97 | R106: 3.588442427 | S106: 1.388690085 | T106: 0.3149118156 | U106: -232.9822058
I107: =Data!O107 -> 2013 | J107: =Data!P107 -> 365 | K107: =Data!Q107 -> 5.75984563 | L107: 28 | M107: 1.294758682 | N107: 0.2916592256 | O107: 0.2583243319 | Q107: 98 | R107: 3.588442427 | S107: 1.388690085 | T107: 0.3117626974 | U107: -232.9535243
I108: =Data!O108 -> 2014 | J108: =Data!P108 -> 365 | K108: =Data!Q108 -> 3.88189186 | L108: 70 | M108: 1.024600413 | N108: 0.8905462014 | O108: 0.02430269554 | Q108: 99 | R108: 3.588442427 | S108: 1.388690085 | T108: 0.3086450705 | U108: -232.9262232
I109: =Data!O109 -> 2015 | J109: =Data!P109 -> 365 | K109: =Data!Q109 -> 2.25196972 | L109: 106 | M109: 0.7901234246 | N109: 3.075956228 | O109: -0.2355661121 | Q109: 100 | R109: 3.588442427 | S109: 1.388690085 | T109: 0.3055586198 | U109: -232.9002699
I110: =Data!O110 -> 2016 | J110: =Data!P110 -> 363 | K110: =Data!Q110 -> 2.12992241 | L110: 108 | M110: 0.7725659689 | N110: 3.423977361 | O110: -0.2580378772 | Q110: 101 | R110: 3.588442427 | S110: 1.388690085 | T110: 0.3025030336 | U110: -232.875633
I111: =Data!O111 -> 2017 | J111: =Data!P111 -> 365 | K111: =Data!Q111 -> 6.01968829 | L111: 24 | M111: =1+T$2*((K111-R$2)/S$2) -> 1.332139072 | N111: =M111^(-1/$T$2) -> 0.254634255 | O111: =LN(M111) -> 0.2867859747 | Q111: 102 | R111: 3.588442427 | S111: 1.388690085 | T111: 0.2994780032 | U111: -232.8522817
I112: =Data!O112 -> 2018 | J112: =Data!P112 -> 365 | K112: =Data!Q112 -> 4.64960881 | L112: 49 | M112: 1.135042473 | N112: 0.5465127346 | O112: 0.1266700711 | Q112: 103 | R112: 3.624326851 | S112: 1.388690085 | T112: 0.2994780032 | U112: -232.8297399
I113: =Data!O113 -> 2019 | J113: =Data!P113 -> 360 | K113: =Data!Q113 -> 4.75984509 | L113: 47 | M113: 1.15090082 | N113: 0.5115147576 | O113: 0.1405449572 | Q113: 104 | R113: 3.624326851 | S113: 1.402576986 | T113: 0.2994780032 | U113: -232.7845539
I114: =Data!O114 -> 2020 | J114: =Data!P114 -> 354 | K114: =Data!Q114 -> 7.29921654 | L114: 14 | M114: 1.516209171 | N114: 0.1373426744 | O114: 0.4162132533 | Q114: 105 | R114: 3.624326851 | S114: 1.402576986 | T114: 0.2964832232 | U114: -232.7586973
I115: =Data!O115 -> 2021 | J115: =Data!P115 -> 356 | K115: =Data!Q115 -> 3.00000162 | L115: 88 | M115: 0.8977336366 | N115: 1.672936925 | O115: -0.1078818731 | Q115: 106 | R115: 3.624326851 | S115: 1.402576986 | T115: 0.293518391 | U115: -232.7341322
I116: =Data!O116 -> 2022 | J116: =Data!P116 -> 349 | K116: =Data!Q116 -> 6.00000324 | L116: 25 | M116: 1.329307224 | N116: 0.257232082 | O116: 0.2846579222 | Q116: 107 | R116: 3.624326851 | S116: 1.402576986 | T116: 0.2905832071 | U116: -232.7108282
I117: =Data!O117 -> 2023 | J117: =Data!P117 -> 103 | K117: =Data!Q117 -> 17.09843443 | L117: 1 | M117: 2.925902949 | N117: 0.005970470406 | O117: 1.073603133 | Q117: 108 | R117: 3.624326851 | S117: 1.402576986 | T117: 0.287677375 | U117: -232.6887561
Q118: 109 | R118: 3.624326851 | S118: 1.402576986 | T118: 0.2848006012 | U118: -232.6678873
Q119: 110 | R119: 3.624326851 | S119: 1.402576986 | T119: 0.2819525952 | U119: -232.6481944
Q120: 111 | R120: 3.624326851 | S120: 1.402576986 | T120: 0.2791330693 | U120: -232.6296505
Q121: 112 | R121: 3.624326851 | S121: 1.402576986 | T121: 0.2763417386 | U121: -232.6122298
Q122: 113 | R122: 3.624326851 | S122: 1.402576986 | T122: 0.2735783212 | U122: -232.5959069
Q123: 114 | R123: 3.624326851 | S123: 1.402576986 | T123: 0.270842538 | U123: -232.5806574
Q124: 115 | R124: 3.624326851 | S124: 1.402576986 | T124: 0.2681341126 | U124: -232.5664576
Q125: 116 | R125: 3.624326851 | S125: 1.402576986 | T125: 0.2654527715 | U125: -232.5532842
Q126: 117 | R126: 3.624326851 | S126: 1.416602756 | T126: 0.2654527715 | U126: -232.5407575
Q127: 118 | R127: 3.66057012 | S127: 1.416602756 | T127: 0.2654527715 | U127: -232.50922
Q128: 119 | R128: 3.66057012 | S128: 1.430768784 | T128: 0.2654527715 | U128: -232.4884548
Q129: 120 | R129: 3.66057012 | S129: 1.430768784 | T129: 0.2627982438 | U129: -232.4738157
Q130: 121 | R130: 3.66057012 | S130: 1.430768784 | T130: 0.2601702613 | U130: -232.4601551
Q131: 122 | R131: 3.66057012 | S131: 1.430768784 | T131: 0.2575685587 | U131: -232.4474515
Q132: 123 | R132: 3.66057012 | S132: 1.430768784 | T132: 0.2549928731 | U132: -232.435684
Q133: 124 | R133: 3.66057012 | S133: 1.430768784 | T133: 0.2524429444 | U133: -232.4248322
Q134: 125 | R134: 3.66057012 | S134: 1.430768784 | T134: 0.2499185149 | U134: -232.4148763
Q135: 126 | R135: 3.66057012 | S135: 1.430768784 | T135: 0.2474193298 | U135: -232.4057969
Q136: 127 | R136: 3.66057012 | S136: 1.430768784 | T136: 0.2449451365 | U136: -232.3975752
Q137: 128 | R137: 3.66057012 | S137: 1.430768784 | T137: 0.2424956851 | U137: -232.3901928
Q138: 129 | R138: 3.66057012 | S138: 1.430768784 | T138: 0.2400707283 | U138: -232.3836317
Q139: 130 | R139: 3.66057012 | S139: 1.430768784 | T139: 0.237670021 | U139: -232.3778744
Q140: 131 | R140: 3.66057012 | S140: 1.430768784 | T140: 0.2352933208 | U140: -232.3729038
Q141: 132 | R141: 3.66057012 | S141: 1.430768784 | T141: 0.2329403876 | U141: -232.3687033
Q142: 133 | R142: 3.697175821 | S142: 1.430768784 | T142: 0.2329403876 | U142: -232.36355
Q143: 134 | R143: 3.697175821 | S143: 1.445076471 | T143: 0.2329403876 | U143: -232.3429965
Q144: 135 | R144: 3.697175821 | S144: 1.445076471 | T144: 0.2306109837 | U144: -232.3368761
Q145: 136 | R145: 3.697175821 | S145: 1.445076471 | T145: 0.2283048739 | U145: -232.3315224
Q146: 137 | R146: 3.697175821 | S146: 1.445076471 | T146: 0.2260218251 | U146: -232.3269188
Q147: 138 | R147: 3.697175821 | S147: 1.445076471 | T147: 0.2237616069 | U147: -232.3230494
Q148: 139 | R148: 3.697175821 | S148: 1.445076471 | T148: 0.2215239908 | U148: -232.3198981
Q149: 140 | R149: 3.697175821 | S149: 1.445076471 | T149: 0.2193087509 | U149: -232.3174497
Q150: 141 | R150: 3.697175821 | S150: 1.445076471 | T150: 0.2171156634 | U150: -232.315689
Q151: 142 | R151: 3.697175821 | S151: 1.445076471 | T151: 0.2149445068 | U151: -232.3146012
Q152: 143 | R152: 3.697175821 | S152: 1.445076471 | T152: 0.2127950617 | U152: -232.314172

Sheet Monte Carlo Simulations
B2: Scenarios | C2: 1000 | F2: Starting | G2: Best | H2: Increment | I2: Current | M2: Best Estimate | N2: Mean | O2: Standard Error | P2: CI Bottom | Q2: CI Top | R2: 2.5th Percentile | S2: 97.5th Percentile | DQ2: If the distribution of the simulated parameters is normally distributed then we can build confidence intervals using classical techniques
B3: Years | C3: ='GEV Fitting'!I4 -> 112 | E3: Location | F3: 3.710886773 | G3: 3.710886773 | H3: 0.01 | I3: 3.637040127 | L3: =B4 -> Location | M3: 3.710886773 | N3: =$DK$14 -> 3.71934852 | O3: =DK13 -> 0.1497259863 | P3: =N3-_xlfn.NORM.INV(0.975,0,1)*O3 -> 3.42589098 | Q3: =N3+_xlfn.NORM.INV(0.975,0,1)*O3 -> 4.012806061 | R3: =_xlfn.PERCENTILE.INC($DK$17:$DK$1016,0.025) -> 3.424201082 | S3: =_xlfn.PERCENTILE.INC($DK$17:$DK$1016,0.975) -> 4.018358626 | DQ3: Location | DR3: Count | DS3: Mean | DT3: Min | DU3: Max | DV3: Normal
B4: Location | C4: ='GEV Fitting'!CurrentLocation -> 3.710886773 | E4: Scale | F4: 1.457342399 | G4: 1.457342399 | H4: 0.01 | I4: 1.442768975 | L4: Scale | M4: 1.457342399 | N4: =DL14 -> 1.448721934 | O4: =DL13 -> 0.1241098838 | P4: =N4-_xlfn.NORM.INV(0.975,0,1)*O4 -> 1.205471032 | Q4: =N4+_xlfn.NORM.INV(0.975,0,1)*O4 -> 1.691972836 | R4: =_xlfn.PERCENTILE.INC($DL$17:$DL$1016,0.025) -> 1.204010564 | S4: =_xlfn.PERCENTILE.INC($DL$17:$DL$1016,0.975) -> 1.691929282 | DQ4: =MIN(DK17:DK1016) -> 3.191579173 | DR4: =COUNTIFS($DK:$DK,"<="&$DQ4) -> 2 | DS4: =AVERAGEIFS($DN:$DN,$DK:$DK,"<="&$DQ4) -> -102.1279514 | DT4: =_xlfn.MAXIFS($DN:$DN,$DK:$DK,"<="&$DQ4) -> 10.82208198 | DU4: =_xlfn.MINIFS($DN:$DN,$DK:$DK,"<="&$DQ4) -> -215.0779848 | DV4: =_xlfn.NORM.DIST(DQ4,$DK$14,$DK$13,TRUE)*1000 -> 0.2118201741 | ES4: Best Estimate | ET4: Mean | EU4: Standard Error | EV4: CI Bottom | EW4: CI Top | EX4: 2.5th Percentile | EY4: 97.5th Percentile
B5: Scale | C5: ='GEV Fitting'!S2 -> 1.457342399 | E5: Shape | F5: 0.2096500491 | G5: 0.2096500491 | H5: 0.01 | I5: 0.2409873252 | L5: Shape | M5: 0.2096500491 | N5: =DM14 -> 0.2092393286 | O5: =DM13 -> 0.07449441572 | P5: 0.06323295675 | Q5: 0.3552457005 | R5: =_xlfn.PERCENTILE.INC($DM$17:$DM$1016,0.025) -> 0.08400355715 | S5: =_xlfn.PERCENTILE.INC($DM$17:$DM$1016,0.975) -> 0.3587972888 | DQ5: =DQ4+($DQ$13-$DQ$4)/9 -> 3.306218742 | DR5: =COUNTIFS($DK:$DK,"<="&$DQ5,$DK:$DK,">"&$DQ4) -> 5 | DS5: =AVERAGEIFS($DN:$DN,$DK:$DK,"<="&$DQ5,$DK:$DK,">"&$DQ4) -> -213.2385526 | DT5: =_xlfn.MAXIFS($DN:$DN,$DK:$DK,"<="&$DQ5,$DK:$DK,">"&$DQ4) -> -206.1956046 | DU5: =_xlfn.MINIFS($DN:$DN,$DK:$DK,"<="&$DQ5,$DK:$DK,">"&$DQ4) -> -226.5715626 | DV5: =(_xlfn.NORM.DIST(DQ5,$DK$14,$DK$13,TRUE)-_xlfn.NORM.DIST(DQ4,$DK$14,$DK$13,TRUE))*1000 -> 2.684987295 | ER5: Location | ES5: =M3 -> 3.710886773 | ET5: =N3 -> 3.71934852 | EU5: 0.1497259863 | EV5: 3.42589098 | EW5: 4.012806061 | EX5: 3.424201082 | EY5: 4.018358626
B6: Shape | C6: ='GEV Fitting'!T2 -> 0.2096500491 | E6: LLH | F6: -233.6527075 | G6: -233.6527075 | I6: =IFERROR(-C3*LN(I4)-(1+1/I5)*SUM(C14:DJ14)-SUM(C13:DJ13),-1000000) -> -233.4208559 | DQ6: =DQ5+($DQ$13-$DQ$4)/9 -> 3.420858312 | DR6: 13 | DS6: -221.3117717 | DT6: -205.5718508 | DU6: -231.934779 | DV6: =(_xlfn.NORM.DIST(DQ6,$DK$14,$DK$13,TRUE)-_xlfn.NORM.DIST(DQ5,$DK$14,$DK$13,TRUE))*1000 -> 20.20237023 | ER6: Scale | ES6: =M4 -> 1.457342399 | ET6: 1.448721934 | EU6: 0.1241098838 | EV6: 1.205471032 | EW6: 1.691972836 | EX6: 1.204010564 | EY6: 1.691929282
B7: Current Scenario | C7: 1000 | DQ7: 3.535497882 | DR7: 96 | DS7: -224.3584205 | DT7: -193.231935 | DU7: -245.0444447 | DV7: 86.64044464 | ER7: Shape | ES7: =M5 -> 0.2096500491 | ET7: 0.2092393286 | EU7: 0.07449441572 | EV7: 0.06323295675 | EW7: 0.3552457005 | EX7: 0.08400355715 | EY7: 0.3587972888
B8: Current LogLikelihood | C8: =IFERROR(-C3*LN(I4)-(1+1/I5)*SUM(C14:CI14)-SUM(C13:CI13),-1000000) -> -178.9767343 | DQ8: 3.650137452 | DR8: 209 | DS8: -228.0161768 | DT8: -204.5619289 | DU8: -254.8515722 | DV8: 212.2108495
DQ9: 3.764777022 | DR9: 309 | DS9: -231.898383 | DT9: -204.2245076 | DU9: -263.2550216 | DV9: 297.2611714
DQ10: 3.879416592 | DR10: 238 | DS10: -233.1193648 | DT10: -201.211875 | DU10: -259.6846131 | DV10: 238.2700616
B11: Values | C11: =OFFSET(C16,$C$7,0) -> 5.520904282 | D11: =OFFSET(D16,$C$7,0) -> 3.871462103 | E11: 3.142943946 | F11: 4.55244769 | G11: 7.668490818 | H11: 6.422619979 | I11: 4.247529415 | J11: 4.409785579 | K11: 7.037238588 | L11: 4.383210501 | M11: 5.963817227 | N11: 5.563315977 | O11: 4.224301236 | P11: 3.208010048 | Q11: 2.087434367 | R11: 17.05745206 | S11: 6.10941581 | T11: 3.413867502 | U11: 3.530503361 | V11: 1.801274826 | W11: 3.443624331 | X11: 3.474563313 | Y11: 6.779935443 | Z11: 1.856136327 | AA11: 7.344253792 | AB11: 2.52373209 | AC11: 3.218787331 | AD11: 6.704231407 | AE11: 4.616734889 | AF11: 5.771125003 | AG11: 3.196949941 | AH11: 2.90176079 | AI11: 7.681289255 | AJ11: 2.687695586 | AK11: 3.867373088 | AL11: 2.385224193 | AM11: 3.079858189 | AN11: 3.722333375 | AO11: 3.412060812 | AP11: 5.636805737 | AQ11: 4.213752157 | AR11: 8.486512227 | AS11: 5.461418572 | AT11: 4.362099323 | AU11: 3.213530306 | AV11: 4.56250665 | AW11: 3.613404971 | AX11: 3.053586396 | AY11: 5.483665819 | AZ11: 7.077791772 | BA11: 4.551392493 | BB11: 4.165985829 | BC11: 3.644770707 | BD11: 6.143300056 | BE11: 4.246113597 | BF11: 5.851889134 | BG11: 4.266956638 | BH11: 4.900653647 | BI11: 3.762049965 | BJ11: 2.889591376 | BK11: 3.670711549 | BL11: 2.543300083 | BM11: 2.68977358 | BN11: 6.210628659 | BO11: 2.95464563 | BP11: =OFFSET(BP16,$C$7,0) -> 5.679233449 | BQ11: 2.661393273 | BR11: 3.264425601 | BS11: 5.536500564 | BT11: 4.72144707 | BU11: 3.628004745 | BV11: 3.85507304 | BW11: 10.37463332 | BX11: 2.250684737 | BY11: 5.471242435 | BZ11: 3.783191753 | CA11: 2.176845627 | CB11: 16.74736033 | CC11: 4.664254462 | CD11: 7.564016216 | CE11: 4.082284484 | CF11: 3.156762883 | CG11: 5.038356629 | CH11: 5.027645796 | CI11: =OFFSET(CI16,$C$7,0) -> 4.509500479 | CJ11: 2.430231276 | CK11: 14.86771088 | CL11: 3.203860168 | CM11: 2.923135899 | CN11: 3.378155214 | CO11: 3.874173125 | CP11: 2.438065583 | CQ11: 5.010322308 | CR11: 2.974805422 | CS11: 1.547489757 | CT11: 5.156831179 | CU11: 13.06299602 | CV11: 2.264799537 | CW11: 19.52889038 | CX11: 2.876065092 | CY11: 3.578820607 | CZ11: 5.864752213 | DA11: 6.498725724 | DB11: 2.462839158 | DC11: 5.238234243 | DD11: 5.262735392 | DE11: 3.960934315 | DF11: =OFFSET(DF16,$C$7,0) -> 3.640891901 | DG11: 6.146842601 | DH11: 6.45397231 | DI11: 7.91942924 | DJ11: 4.647888768 | DQ11: 3.994056162 | DR11: 93 | DS11: -236.1786129 | DT11: -218.6433468 | DU11: -268.4130911 | DV11: 109.2458795
B12: y(j) | C12: =1+$I$5*((C$11-$I$3)/$I$4) -> 1.31466395 | D12: 1.039155766 | E12: 0.917470559 | F12: 1.152901555 | G12: 1.673377745 | H12: 1.465278537 | I12: 1.101970713 | J12: 1.129072542 | K12: 1.567938975 | L12: 1.124633677 | M12: 1.388644197 | N12: 1.321748023 | O12: 1.098090884 | P12: 0.9283386233 | Q12: 0.7411676065 | R12: 3.241626505 | S12: 1.412963692 | T12: 0.9627232254 | U12: 0.9822050442 | V12: 0.6933700562 | W12: 0.967693542 | X12: 0.9728613149 | Y12: 1.524961341 | Z12: 0.7025336346 | AA12: 1.61922007 | AB12: 0.814042906 | AC12: 0.9301387649 | AD12: 1.512316411 | AE12: 1.163639519 | AF12: 1.356458598 | AG12: 0.9264912411 | AH12: 0.8771854651 | AI12: =1+$I$5*((AI$11-$I$3)/$I$4) -> 1.675515482 | AJ12: 0.8414299133 | AK12: 1.038472774 | AL12: 0.7909077761 | AM12: 0.906933274 | AN12: 1.014246627 | AO12: 0.9624214519 | AP12: 1.3340231 | AQ12: 1.096328859 | AR12: 1.810012781 | AS12: 1.304727984 | AT12: 1.121107453 | AU12: 0.9292606781 | AV12: 1.154581715 | AW12: 0.9960521934 | AX12: 0.9025450668 | AY12: 1.308443967 | AZ12: 1.574712619 | BA12: 1.152725305 | BB12: 1.088350396 | BC12: 1.001291247 | BD12: 1.418623416 | BE12: 1.101734227 | BF12: 1.369948722 | BG12: 1.105215664 | BH12: 1.211062788 | BI12: 1.020880534 | BJ12: 0.8751527941 | BK12: 1.005624176 | BL12: 0.8173113699 | BM12: 0.8417770028 | BN12: 1.429869388 | BO12: =1+$I$5*((BO$11-$I$3)/$I$4) -> 0.8860188794 | BP12: 1.341109848 | BQ12: 0.8370366083 | BR12: 0.9377617766 | BS12: 1.317269014 | BT12: 1.181129712 | BU12: 0.99849081 | BV12: 1.036418283 | BW12: 2.125387772 | BX12: 0.7684354993 | BY12: 1.306368875 | BZ12: 1.024411871 | CA12: 0.7561020697 | CB12: 3.189831535 | CC12: 1.171576766 | CD12: 1.655927235 | CE12: 1.074369666 | CF12: 0.9197787516 | CG12: 1.234063472 | CH12: 1.23227443 | CI12: 1.145728034 | CJ12: 0.7984253598 | CK12: 2.875871572 | CL12: 0.9276454641 | CM12: 0.8807557736 | CN12: 0.9567581618 | CO12: 1.039608592 | CP12: 0.799733933 | CQ12: 1.229380868 | CR12: 0.8893861921 | CS12: 0.6509800506 | CT12: 1.25385241 | CU12: 2.574428019 | CV12: 0.7707931104 | CW12: 3.65443363 | CX12: 0.8728934837 | CY12: 0.9902755281 | CZ12: 1.372097256 | DA12: 1.477990565 | DB12: 0.803871891 | DC12: 1.267449255 | DD12: 1.271541709 | DE12: 1.054100411 | DF12: 1.000643366 | DG12: 1.419215131 | DH12: 1.470515352 | DI12: 1.715292272 | DJ12: 1.168843186 | DQ12: 4.108695731 | DR12: 33 | DS12: -240.2713213 | DT12: -221.8612991 | DU12: -256.0997196 | DV12: 28.61663594 | ET12: Estimated Observations | EW12: CDFs
B13: y(i)^shape | C13: =C12^(-1/$I$5) -> 0.321341482 | D13: 0.8526720678 | E13: 1.429642705 | F13: 0.5540988396 | G13: 0.1180797204 | H13: 0.204879393 | I13: 0.6683613486 | J13: 0.6042625061 | K13: 0.1546902531 | L13: 0.6142209385 | M13: 0.2560383671 | N13: 0.3142548482 | O13: 0.6782152289 | P13: 1.361461319 | Q13: 3.46572613 | R13: 0.007595215307 | S13: 0.2382412827 | T13: 1.170745016 | U13: 1.077352648 | V13: 4.57015186 | W13: 1.14599359 | X13: 1.120943681 | Y13: 0.173600074 | Z13: 4.327822832 | AA13: 0.1353521631 | AB13: 2.348429937 | AC13: 1.350560824 | AD13: 0.1797030908 | AE13: 0.5331875311 | AF13: 0.2822060774 | AG13: 1.372761621 | AH13: 1.722453784 | AI13: =AI12^(-1/$I$5) -> 0.1174558214 | AJ13: 2.047129012 | AK13: 0.8550015457 | AL13: 2.646894106 | AM13: 1.49984096 | AN13: 0.9429890688 | AO13: 1.172269063 | AP13: 0.3024284789 | AQ13: 0.6827498761 | AR13: 0.08525607486 | AS13: 0.331618525 | AT13: 0.6222773886 | AU13: 1.355864366 | AV13: 0.5507605537 | AW13: 1.016549677 | AX13: 1.530333482 | AY13: 0.3277278908 | AZ13: 0.1519477508 | BA13: 0.5544504831 | BB13: 0.7037600206 | BC13: 0.9946596121 | BD13: 0.2343218649 | BE13: 0.6689568625 | BF13: 0.2708521948 | BG13: 0.6602560356 | BH13: 0.451743565 | BI13: 0.9178203815 | BJ13: 1.739115696 | BK13: 0.9769960482 | BL13: 2.309703839 | BM13: 2.043628646 | BN13: 0.226768557 | BO13: =BO12^(-1/$I$5) -> 1.652305725 | BP13: 0.2958519644 | BQ13: 2.092084865 | BR13: 1.305583745 | BS13: 0.3187126438 | BT13: 0.5011805438 | BU13: 1.00628694 | BV13: 0.8620565516 | BW13: 0.04377880506 | BX13: 2.983204148 | BY13: 0.3298934843 | BZ13: 0.9047625873 | CA13: 3.190378092 | CB13: 0.008120213661 | CC13: 0.5183572537 | CD13: 0.1233296067 | CE13: 0.7425480796 | CF13: 1.414813927 | CG13: 0.4178171872 | CH13: 0.4203400763 | CI13: =CI12^(-1/$I$5) -> 0.5686374896 | CJ13: 2.545001526 | CK13: 0.01248222612 | CL13: 1.365687743 | CM13: 1.69366453 | CN13: 1.201332459 | CO13: 0.8511319618 | CP13: 2.527765897 | CQ13: 0.4244606944 | CR13: 1.626501005 | CS13: 5.937707214 | CT13: 0.3911263452 | CU13: 0.01976245333 | CV13: 2.945522427 | CW13: 0.004618746721 | CX13: 1.757870771 | CY13: 1.041383496 | CZ13: 0.2690965988 | DA13: 0.1976656386 | DB13: 2.474208424 | DC13: 0.3740069672 | DD13: 0.3690371889 | DE13: 0.8036168248 | DF13: =DF12^(-1/$I$5) -> 0.9973347067 | DG13: 0.2339167316 | DH13: 0.2018687064 | DI13: 0.1065593269 | DJ13: 0.5234063053 | DK13: =_xlfn.STDEV.S(DK17:DK1016) -> 0.1497259863 | DL13: =_xlfn.STDEV.S(DL17:DL1016) -> 0.1241098838 | DM13: 0.07449441572 | DN13: =_xlfn.STDEV.S(DN17:DN1016) -> 10.82208198 | DQ13: =MAX(DK17:DK1016) -> 4.223335301 | DR13: 4 | DS13: -246.1989518 | DT13: -243.048653 | DU13: -248.7330921 | DV13: =(1-_xlfn.NORM.DIST(DQ12,$DK$14,$DK$13,TRUE))*1000 -> 4.655779756 | ER13: Inches | ES13: Observations | ET13: Mean | EU13: 2.5th Percentile | EV13: 97.5th Percentile | EW13: Mean | EX13: 2.5th Percentile | EY13: 97.5th Percentile
B14: ln(y(j)) | C14: =LN(C12) -> 0.2735810813 | D14: =LN(D12) -> 0.03840862041 | E14: -0.08613478784 | F14: 0.1422818562 | G14: 0.5148441856 | H14: 0.382045352 | I14: 0.09710013385 | J14: 0.1213965367 | K14: 0.4497620021 | L14: 0.1174573623 | M14: 0.3283278733 | N14: 0.2789551202 | O14: 0.09357311182 | P14: -0.07435871695 | Q14: -0.2995284897 | R14: 1.176075212 | S14: 0.3456894079 | T14: -0.0379893172 | U14: -0.01795518974 | V14: -0.3661914307 | W14: -0.03283983071 | X14: -0.02751374043 | Y14: 0.4219690596 | Z14: -0.3530620005 | AA14: 0.4819445949 | AB14: -0.2057422043 | AC14: -0.07242149438 | AD14: 0.4136425222 | AE14: 0.1515526093 | AF14: 0.3048773315 | AG14: -0.07635068702 | AH14: -0.1310368322 | AI14: 0.5161208686 | AJ14: -0.1726525567 | AK14: 0.037751147 | AL14: -0.2345739096 | AM14: -0.09768639939 | AN14: 0.01414609777 | AO14: -0.03830282452 | AP14: 0.2881992636 | AQ14: 0.09196719769 | AR14: 0.5933339068 | AS14: 0.265994578 | AT14: 0.1143169944 | AU14: -0.07336597879 | AV14: 0.1437381267 | AW14: -0.003955619761 | AX14: -0.1025366545 | AY14: 0.2688386198 | AZ14: 0.4540727913 | BA14: 0.1421289688 | BB14: 0.08466315155 | BC14: 0.001290414538 | BD14: 0.349686976 | BE14: 0.09688550834 | BF14: 0.3147733097 | BG14: 0.1000404867 | BH14: 0.1914983113 | BI14: 0.02066552356 | BJ14: -0.133356786 | BK14: 0.005608418929 | BL14: -0.201735143 | BM14: -0.1722401421 | BN14: 0.3575831033 | BO14: -0.12101702 | BP14: =LN(BP12) -> 0.2934975163 | BQ14: -0.1778874719 | BR14: -0.06425933178 | BS14: 0.2755606646 | BT14: 0.1664713635 | BU14: -0.001510330019 | BV14: 0.03577081031 | BW14: 0.7539542666 | BX14: -0.2633986501 | BY14: 0.2672514377 | BZ14: 0.02411866318 | CA14: -0.2795788991 | CB14: 1.159968105 | CC14: 0.158350505 | CD14: 0.5043611146 | CE14: 0.07173413239 | CF14: -0.08362212527 | CG14: 0.2103123603 | CH14: 0.2088615916 | CI14: =LN(CI12) -> 0.1360402728 | CJ14: -0.2251137912 | CK14: 1.056355784 | CL14: -0.07510566222 | CM14: -0.1269749065 | CN14: -0.04420462396 | CO14: 0.03884428803 | CP14: -0.2234761904 | CQ14: 0.2065106832 | CR14: -0.117223726 | CS14: -0.4292762815 | CT14: 0.2262207396 | CU14: 0.945627381 | CV14: -0.2603352808 | CW14: 1.295941124 | CX14: -0.1359417424 | CY14: -0.009772063328 | CZ14: 0.3163404133 | DA14: 0.390683439 | DB14: -0.2183153621 | DC14: 0.2370064201 | DD14: 0.2402301086 | DE14: 0.05268771185 | DF14: =LN(DF12) -> 0.0006431593772 | DG14: 0.3501039943 | DH14: 0.385612919 | DI14: 0.5395834871 | DJ14: 0.1560145297 | DK14: =AVERAGE(DK17:DK1016) -> 3.71934852 | DL14: =AVERAGE(DL17:DL1016) -> 1.448721934 | DM14: 0.2092393286 | DN14: =AVERAGE(DN17:DN1016) -> -231.1383443 | ER14: ='GEV Fitting'!B6 -> 0 | ES14: ='GEV Fitting'!C6 -> 0 | ET14: ='GEV Fitting'!$I$4*EW14 -> 6.245112055e-16 | EU14: ='GEV Fitting'!$I$4*EX14 -> 7.086138664e-10 | EV14: ='GEV Fitting'!$I$4*EY14 -> 4.013124271e-88 | EW14: =IF($ET$7=0,EXP(-EXP(-(ER14-$ET$5)/$ET$6)),IF($ET$7*(ER14-$ET$5)/$ET$6>-1,EXP(-1*(1+$ET$7*(ER14-$ET$5)/$ET$6)^(-1/$ET$7)),IF(AND($ET$7>0,$ET$7*(ER14-$ET$5)/$ET$6<=-1),0,1))) -> 5.575992907e-18 | EX14: =IF($EX$7=0,EXP(-EXP(-(ER14-$EX$5)/$EX$6)),IF($EX$7*(ER14-$EX$5)/$EX$6>-1,EXP(-1*(1+$EX$7*(ER14-$EX$5)/$EX$6)^(-1/$EX$7)),IF(AND($EX$7>0,$EX$7*(ER14-$EX$5)/$EX$6<=-1),0,1))) -> 6.326909522e-12 | EY14: =IF($EY$7=0,EXP(-EXP(-(ER14-$EY$5)/$EY$6)),IF($EY$7*(ER14-$EY$5)/$EY$6>-1,EXP(-1*(1+$EY$7*(ER14-$EY$5)/$EY$6)^(-1/$EY$7)),IF(AND($EY$7>0,$EY$7*(ER14-$EY$5)/$EY$6<=-1),0,1))) -> 3.58314667e-90
ER15: ='GEV Fitting'!B7 -> 1 | ES15: ='GEV Fitting'!C7 -> 1 | ET15: ='GEV Fitting'!$I$4*(EW15-EW14) -> 0.002177379268 | EU15: ='GEV Fitting'!$I$4*(EX15-EX14) -> 0.01279918812 | EV15: ='GEV Fitting'!$I$4*(EY15-EY14) -> 3.593652512e-06 | EW15: =IF($ET$7=0,EXP(-EXP(-(ER15-$ET$5)/$ET$6)),IF($ET$7*(ER15-$ET$5)/$ET$6>-1,EXP(-1*(1+$ET$7*(ER15-$ET$5)/$ET$6)^(-1/$ET$7)),IF(AND($ET$7>0,$ET$7*(ER15-$ET$5)/$ET$6<=-1),0,1))) -> 1.944088632e-05 | EX15: =IF($EX$7=0,EXP(-EXP(-(ER15-$EX$5)/$EX$6)),IF($EX$7*(ER15-$EX$5)/$EX$6>-1,EXP(-1*(1+$EX$7*(ER15-$EX$5)/$EX$6)^(-1/$EX$7)),IF(AND($EX$7>0,$EX$7*(ER15-$EX$5)/$EX$6<=-1),0,1))) -> 0.0001142784717 | EY15: =IF($EY$7=0,EXP(-EXP(-(ER15-$EY$5)/$EY$6)),IF($EY$7*(ER15-$EY$5)/$EY$6>-1,EXP(-1*(1+$EY$7*(ER15-$EY$5)/$EY$6)^(-1/$EY$7)),IF(AND($EY$7>0,$EY$7*(ER15-$EY$5)/$EY$6<=-1),0,1))) -> 3.208618314e-08
C16: 1 | D16: =C16+1 -> 2 | E16: =D16+1 -> 3 | F16: 4 | G16: 5 | H16: 6 | I16: 7 | J16: 8 | K16: 9 | L16: 10 | M16: 11 | N16: 12 | O16: 13 | P16: 14 | Q16: 15 | R16: 16 | S16: 17 | T16: 18 | U16: 19 | V16: 20 | W16: 21 | X16: 22 | Y16: 23 | Z16: 24 | AA16: 25 | AB16: 26 | AC16: 27 | AD16: 28 | AE16: 29 | AF16: 30 | AG16: 31 | AH16: 32 | AI16: 33 | AJ16: 34 | AK16: 35 | AL16: 36 | AM16: 37 | AN16: 38 | AO16: 39 | AP16: 40 | AQ16: 41 | AR16: 42 | AS16: 43 | AT16: 44 | AU16: 45 | AV16: 46 | AW16: 47 | AX16: 48 | AY16: 49 | AZ16: 50 | BA16: 51 | BB16: 52 | BC16: 53 | BD16: 54 | BE16: 55 | BF16: 56 | BG16: 57 | BH16: 58 | BI16: 59 | BJ16: 60 | BK16: 61 | BL16: 62 | BM16: 63 | BN16: 64 | BO16: 65 | BP16: 66 | BQ16: =BP16+1 -> 67 | BR16: 68 | BS16: 69 | BT16: 70 | BU16: 71 | BV16: 72 | BW16: 73 | BX16: 74 | BY16: 75 | BZ16: 76 | CA16: 77 | CB16: 78 | CC16: 79 | CD16: 80 | CE16: 81 | CF16: 82 | CG16: 83 | CH16: 84 | CI16: =CH16+1 -> 85 | CJ16: =CI16+1 -> 86 | CK16: =CJ16+1 -> 87 | CL16: =CK16+1 -> 88 | CM16: =CL16+1 -> 89 | CN16: =CM16+1 -> 90 | CO16: =CN16+1 -> 91 | CP16: =CO16+1 -> 92 | CQ16: =CP16+1 -> 93 | CR16: =CQ16+1 -> 94 | CS16: =CR16+1 -> 95 | CT16: =CS16+1 -> 96 | CU16: =CT16+1 -> 97 | CV16: =CU16+1 -> 98 | CW16: =CV16+1 -> 99 | CX16: =CW16+1 -> 100 | CY16: =CX16+1 -> 101 | CZ16: =CY16+1 -> 102 | DA16: =CZ16+1 -> 103 | DB16: =DA16+1 -> 104 | DC16: =DB16+1 -> 105 | DD16: =DC16+1 -> 106 | DE16: =DD16+1 -> 107 | DF16: =DE16+1 -> 108 | DG16: =DF16+1 -> 109 | DH16: =DG16+1 -> 110 | DI16: =DH16+1 -> 111 | DJ16: =DI16+1 -> 112 | DK16: Location | DL16: Scale | DM16: Shape | DN16: LogLikelihood | DO16: Iterations | DQ16: Scale | DR16: Count | DS16: Mean | DT16: Min | DU16: Max | DV16: Normal | ER16: ='GEV Fitting'!B8 -> 2 | ES16: ='GEV Fitting'!C8 -> 20 | ET16: ='GEV Fitting'!$I$4*(EW16-EW15) -> 2.236202697 | EU16: ='GEV Fitting'!$I$4*(EX16-EX15) -> 3.451746003 | EV16: ='GEV Fitting'!$I$4*(EY16-EY15) -> 0.9741889614 | EW16: 0.01998553639 | EX16: 0.03093343921 | EY16: 0.008698147813
A17: 1 | C17: 5.428605311 | D17: 4.421906769 | E17: 4.65250313 | F17: 3.405051669 | G17: 3.453121323 | H17: 6.015170411 | I17: 1.887624559 | J17: 5.882068945 | K17: 6.448416251 | L17: 5.454542766 | M17: 2.245504984 | N17: 3.896626982 | O17: 7.138580614 | P17: 6.17582279 | Q17: 3.73333276 | R17: 10.49818524 | S17: 7.295056079 | T17: 2.329028872 | U17: 9.691932845 | V17: 3.695609021 | W17: 4.381206925 | X17: 5.941654432 | Y17: 2.309032057 | Z17: 4.7211731 | AA17: 4.127057083 | AB17: 3.438441793 | AC17: 4.889720196 | AD17: 5.039712657 | AE17: 3.304792476 | AF17: 3.365350893 | AG17: 6.643636767 | AH17: 6.575210993 | AI17: 4.703502404 | AJ17: 13.76949017 | AK17: 8.19042072 | AL17: 3.159320985 | AM17: 5.352927469 | AN17: 12.51218601 | AO17: 3.2269333 | AP17: 4.424059528 | AQ17: 2.629105368 | AR17: 29.8527146 | AS17: 5.222034412 | AT17: 1.91671212 | AU17: 4.629917579 | AV17: 2.596026883 | AW17: 2.611698099 | AX17: 6.267120799 | AY17: 3.385316844 | AZ17: 2.247930245 | BA17: 3.429156632 | BB17: 3.767107059 | BC17: 3.449327643 | BD17: 9.638187374 | BE17: 12.48332989 | BF17: 3.845033427 | BG17: 3.361221649 | BH17: 2.883820203 | BI17: 2.894203395 | BJ17: 5.032108628 | BK17: 3.880428373 | BL17: 3.891441948 | BM17: 5.482334995 | BN17: 3.547388089 | BO17: 4.951102167 | BP17: 3.081675886 | BQ17: 2.992986842 | BR17: 4.672685027 | BS17: 2.487898943 | BT17: 4.080711253 | BU17: 8.047621006 | BV17: 3.295323605 | BW17: 6.120627427 | BX17: 3.754698452 | BY17: 3.405449897 | BZ17: 8.441859402 | CA17: 4.942592697 | CB17: 4.91847516 | CC17: 3.956138241 | CD17: 2.584930119 | CE17: 4.557596693 | CF17: 5.348440994 | CG17: 8.269530399 | CH17: 6.711907186 | CI17: 2.017214155 | CJ17: 4.469941738 | CK17: 8.342345616 | CL17: 3.963643293 | CM17: 5.233947646 | CN17: 4.277242151 | CO17: 4.329115827 | CP17: 4.102271006 | CQ17: 3.654033769 | CR17: 3.859080175 | CS17: 3.327951688 | CT17: 2.324372171 | CU17: 3.226593732 | CV17: 12.36196566 | CW17: 2.362010245 | CX17: 3.800295498 | CY17: 3.699471084 | CZ17: 4.220530687 | DA17: 2.862814028 | DB17: 4.152194977 | DC17: 3.279289655 | DD17: 4.924977995 | DE17: 4.463655705 | DF17: 2.865636488 | DG17: 9.152501309 | DH17: 5.081317965 | DI17: 4.293847557 | DJ17: 3.801019122 | DK17: 3.673777906 | DL17: 1.38591812 | DM17: 0.2854023571 | DN17: -231.7758821 | DO17: 38 | DQ17: =MIN(DL17:DL1016) -> 1.056544582 | DR17: =COUNTIFS($DL:$DL,"<="&$DQ17) -> 2 | DS17: =AVERAGEIFS($DN:$DN,$DL:$DL,"<="&$DQ17) -> -97.43000463 | DT17: =_xlfn.MAXIFS($DN:$DN,$DL:$DL,"<="&$DQ17) -> 10.82208198 | DU17: =_xlfn.MINIFS($DN:$DN,$DL:$DL,"<="&$DQ17) -> -205.6820912 | DV17: =_xlfn.NORM.DIST(DQ17,$DL$14,$DL$13,TRUE)*1000 -> 0.7890612711 | ER17: ='GEV Fitting'!B9 -> 3 | ES17: ='GEV Fitting'!C9 -> 27 | ET17: ='GEV Fitting'!$I$4*(EW17-EW16) -> 18.4437267 | EU17: ='GEV Fitting'!$I$4*(EX17-EX16) -> 23.33928402 | EV17: ='GEV Fitting'!$I$4*(EY17-EY16) -> 14.64368263 | EW17: 0.1846616677 | EX17: 0.2393199037 | EY17: 0.1394453141
A18: 2 | C18: 2.634285935 | D18: 6.108087283 | E18: 4.087882509 | F18: 5.818394787 | G18: 4.740822892 | H18: 6.683219595 | I18: 1.964209018 | J18: 3.093060499 | K18: 2.447009666 | L18: 2.624361707 | M18: 3.568775981 | N18: 2.737357093 | O18: 1.216709574 | P18: 4.438103668 | Q18: 5.09744723 | R18: 4.473130275 | S18: 6.611899502 | T18: 2.494842217 | U18: 3.017561843 | V18: 5.2404682 | W18: 4.064595684 | X18: 3.668006325 | Y18: 2.837539308 | Z18: 5.420116095 | AA18: 8.762410959 | AB18: 4.406559713 | AC18: 2.539253903 | AD18: 5.854726675 | AE18: 3.846930022 | AF18: 4.097500265 | AG18: 4.230708382 | AH18: 3.081944577 | AI18: 3.561140006 | AJ18: 2.571188573 | AK18: 4.706868458 | AL18: 2.924677802 | AM18: 8.719933352 | AN18: 2.584694054 | AO18: 4.020657754 | AP18: 3.340473449 | AQ18: 7.315437067 | AR18: 5.791830973 | AS18: 3.340456047 | AT18: 5.205141217 | AU18: 3.276789735 | AV18: 2.540682933 | AW18: 2.113177264 | AX18: 3.533808308 | AY18: 6.172096546 | AZ18: 3.434920304 | BA18: 3.192766287 | BB18: 4.178656069 | BC18: 3.268851442 | BD18: 3.603581993 | BE18: 2.24206101 | BF18: 4.187294624 | BG18: 3.075400038 | BH18: 7.171534071 | BI18: 4.700648617 | BJ18: 5.829297303 | BK18: 8.729543791 | BL18: 3.566133889 | BM18: 4.467896859 | BN18: 2.487761157 | BO18: 4.958193819 | BP18: 3.880279157 | BQ18: 10.3828103 | BR18: 2.670992109 | BS18: 8.574750793 | BT18: 4.875392644 | BU18: 3.631467817 | BV18: 2.834243442 | BW18: 4.176464228 | BX18: 3.129497011 | BY18: 16.8784034 | BZ18: 2.747649149 | CA18: 2.091143584 | CB18: 3.622314756 | CC18: 4.491034663 | CD18: 8.558289189 | CE18: 4.445113039 | CF18: 3.865537481 | CG18: 6.891692556 | CH18: 6.596327718 | CI18: 5.197045257 | CJ18: 5.55294784 | CK18: 19.88845717 | CL18: 3.600451453 | CM18: 4.244410848 | CN18: 3.892264795 | CO18: 5.354112936 | CP18: 2.963907721 | CQ18: 3.93319168 | CR18: 4.469046531 | CS18: 6.450531253 | CT18: 4.458033636 | CU18: 3.952305057 | CV18: 4.307539346 | CW18: 3.162969952 | CX18: 4.869530845 | CY18: 4.220242924 | CZ18: 5.253396683 | DA18: 7.59491927 | DB18: 3.721336763 | DC18: 3.455254164 | DD18: 3.417878181 | DE18: 2.839017428 | DF18: 4.404695245 | DG18: 3.144929875 | DH18: 4.678867862 | DI18: 3.693395744 | DJ18: 7.380210079 | DK18: 3.564663028 | DL18: 1.317994343 | DM18: 0.1680618924 | DN18: -218.4786498 | DO18: 37 | DQ18: =DQ17+($DQ$24-$DQ$17)/7 -> 1.175271348 | DR18: =COUNTIFS($DL:$DL,"<="&$DQ18,$DL:$DL,">"&$DQ17) -> 11 | DS18: =AVERAGEIFS($DN:$DN,$DL:$DL,"<="&$DQ18,$DL:$DL,">"&$DQ17) -> -203.45016 | DT18: =_xlfn.MAXIFS($DN:$DN,$DL:$DL,"<="&$DQ18,$DL:$DL,">"&$DQ17) -> -193.231935 | DU18: =_xlfn.MINIFS($DN:$DN,$DL:$DL,"<="&$DQ18,$DL:$DL,">"&$DQ17) -> -207.7888234 | DV18: =(_xlfn.NORM.DIST(DQ18,$DL$14,$DL$13,TRUE)-_xlfn.NORM.DIST(DQ17,$DL$14,$DL$13,TRUE))*1000 -> 12.99794883 | ER18: ='GEV Fitting'!B10 -> 4 | ES18: ='GEV Fitting'!C10 -> 19 | ET18: ='GEV Fitting'!$I$4*(EW18-EW17) -> 28.30010568 | EU18: ='GEV Fitting'!$I$4*(EX18-EX17) -> 33.10325652 | EV18: ='GEV Fitting'!$I$4*(EY18-EY17) -> 25.13668237 | EW18: 0.4373411827 | EX18: 0.534884694 | EY18: 0.3638799781
A19: 3 | C19: 4.167807005 | D19: 3.012218496 | E19: 5.27557271 | F19: 5.763249599 | G19: 4.839633255 | H19: 6.089104271 | I19: 2.889507408 | J19: 6.368461983 | K19: 3.061544856 | L19: 10.12718176 | M19: 2.395268316 | N19: 2.366174175 | O19: 6.204896017 | P19: 3.757499385 | Q19: 4.104879784 | R19: 2.695327824 | S19: 2.675212097 | T19: 2.941356994 | U19: 2.267776244 | V19: 5.498198402 | W19: 4.419982593 | X19: 4.557441332 | Y19: 3.118747089 | Z19: 4.124038379 | AA19: 5.754065979 | AB19: 5.806158799 | AC19: 3.835142457 | AD19: 7.979300587 | AE19: 5.751064066 | AF19: 2.533172287 | AG19: 4.95938004 | AH19: 5.484590121 | AI19: 1.916355305 | AJ19: 3.967321107 | AK19: 3.847500085 | AL19: 3.349613825 | AM19: 13.58932726 | AN19: 6.30869226 | AO19: 5.359960693 | AP19: 3.911267232 | AQ19: 5.654051799 | AR19: 3.356899149 | AS19: 3.66628589 | AT19: 3.976967419 | AU19: 9.451782756 | AV19: 2.705123558 | AW19: 5.028200969 | AX19: 3.631884659 | AY19: 2.619060927 | AZ19: 2.990433472 | BA19: 2.469807864 | BB19: 3.974055356 | BC19: 10.29942227 | BD19: 4.463456466 | BE19: 4.240650054 | BF19: 11.53616605 | BG19: 3.123034605 | BH19: 3.755052184 | BI19: 3.822662623 | BJ19: 3.373751536 | BK19: 4.281425517 | BL19: 2.78644046 | BM19: 4.345479468 | BN19: 10.77660363 | BO19: 4.539814412 | BP19: 8.141330563 | BQ19: 5.098723769 | BR19: 4.009072654 | BS19: 5.33786544 | BT19: 2.386247022 | BU19: 5.839934481 | BV19: 5.391755165 | BW19: 4.252807336 | BX19: 2.861808884 | BY19: 3.146832038 | BZ19: 3.547145761 | CA19: 6.113161684 | CB19: 2.284512872 | CC19: 4.349026729 | CD19: 5.848389233 | CE19: 6.287058497 | CF19: 3.543491315 | CG19: 11.50870094 | CH19: 6.327835582 | CI19: 5.213002354 | CJ19: 8.031832821 | CK19: 7.376470918 | CL19: 3.907359552 | CM19: 2.71256267 | CN19: 9.960513578 | CO19: 6.249561622 | CP19: 5.361278443 | CQ19: 3.845967012 | CR19: 1.926424906 | CS19: 2.915600487 | CT19: 2.900341809 | CU19: 4.310542186 | CV19: 3.864077844 | CW19: 2.627886804 | CX19: 3.352834181 | CY19: 5.010435602 | CZ19: 6.919936503 | DA19: 4.25687116 | DB19: 3.000335449 | DC19: 7.819810291 | DD19: 3.730464148 | DE19: 3.537066073 | DF19: 5.977183603 | DG19: 3.123840335 | DH19: 4.033900064 | DI19: 3.195719049 | DJ19: 7.426995935 | DK19: 3.673777906 | DL19: 1.331307417 | DM19: 0.2270209615 | DN19: -223.178449 | DO19: 19 | DQ19: =DQ18+($DQ$24-$DQ$17)/7 -> 1.293998114 | DR19: 90 | DS19: -214.7122279 | DT19: -201.211875 | DU19: -233.6506996 | DV19: =(_xlfn.NORM.DIST(DQ19,$DL$14,$DL$13,TRUE)-_xlfn.NORM.DIST(DQ18,$DL$14,$DL$13,TRUE))*1000 -> 92.47261959 | ER19: ='GEV Fitting'!B11 -> 5 | ES19: ='GEV Fitting'!C11 -> 19 | ET19: ='GEV Fitting'!$I$4*(EW19-EW18) -> 22.83527307 | EU19: ='GEV Fitting'!$I$4*(EX19-EX18) -> 23.99174077 | EV19: ='GEV Fitting'!$I$4*(EY19-EY18) -> 21.30909359 | EW19: 0.6412275494 | EX19: 0.7490966651 | EY19: 0.5541397423
A20: 4 | C20: 4.819909228 | D20: 3.736895239 | E20: 3.797122501 | F20: 7.104218895 | G20: 4.686330603 | H20: 8.866527803 | I20: 4.345183689 | J20: 3.563341965 | K20: 7.240665908 | L20: 3.286305029 | M20: 3.288183272 | N20: 2.962235802 | O20: 3.628451114 | P20: 1.535872525 | Q20: 5.719700297 | R20: 6.797726432 | S20: 3.362424891 | T20: 5.40965516 | U20: 3.859204012 | V20: 6.413250479 | W20: 5.714938121 | X20: 3.994572697 | Y20: 2.471590583 | Z20: 3.882709568 | AA20: 3.598766739 | AB20: 5.465911148 | AC20: 3.493264634 | AD20: 6.26588926 | AE20: 2.845471673 | AF20: 4.724043302 | AG20: 10.09260429 | AH20: 3.223845791 | AI20: 9.215611001 | AJ20: 2.66954119 | AK20: 13.32886694 | AL20: 4.949897263 | AM20: 4.755854714 | AN20: 7.965820766 | AO20: 4.62826411 | AP20: 3.231826973 | AQ20: 7.097067037 | AR20: 2.453160014 | AS20: 3.999451378 | AT20: 5.8752356 | AU20: 3.233814481 | AV20: 3.753516644 | AW20: 3.828313936 | AX20: 4.389269581 | AY20: 3.330396869 | AZ20: 4.661194957 | BA20: 3.090348131 | BB20: 2.475963701 | BC20: 7.792254711 | BD20: 2.654967389 | BE20: 5.068009139 | BF20: 7.909795148 | BG20: 3.178146148 | BH20: 9.711257221 | BI20: 6.875751446 | BJ20: 4.009500249 | BK20: 4.229992976 | BL20: 5.964452116 | BM20: 6.712961167 | BN20: 3.769339937 | BO20: 3.032485225 | BP20: 3.54719729 | BQ20: 3.893351169 | BR20: 2.849572286 | BS20: 4.873222405 | BT20: 2.592609441 | BU20: 3.071451506 | BV20: 5.33449421 | BW20: 4.286394706 | BX20: 2.98068925 | BY20: 15.5844579 | BZ20: 4.138781272 | CA20: 1.61890202 | CB20: 3.945320722 | CC20: 3.401770609 | CD20: 5.808211562 | CE20: 7.696983722 | CF20: 6.540944183 | CG20: 2.954589543 | CH20: 2.641515036 | CI20: 1.813059271 | CJ20: 2.845029088 | CK20: 3.748739186 | CL20: 3.001820985 | CM20: 12.43449837 | CN20: 7.307476731 | CO20: 4.662909532 | CP20: 5.612694578 | CQ20: 2.815097663 | CR20: 3.281333459 | CS20: 2.084117546 | CT20: 6.618328777 | CU20: 6.101715236 | CV20: 6.183009971 | CW20: 3.572665104 | CX20: 4.050670344 | CY20: 4.527885186 | CZ20: 6.317136403 | DA20: 4.572508521 | DB20: 3.065480028 | DC20: 3.081807813 | DD20: 3.698255468 | DE20: 4.621299951 | DF20: 3.617571381 | DG20: 4.397126082 | DH20: 3.943811313 | DI20: 4.618684881 | DJ20: 2.282832354 | DK20: 3.673777906 | DL20: 1.399917293 | DM20: 0.1663812735 | DN20: -224.9912429 | DO20: 29 | DQ20: 1.41272488 | DR20: 258 | DS20: -223.8712074 | DT20: -210.5658954 | DU20: -240.2710542 | DV20: 279.6325016 | ER20: ='GEV Fitting'!B12 -> 6 | ES20: ='GEV Fitting'!C12 -> 11 | ET20: ='GEV Fitting'!$I$4*(EW20-EW19) -> 14.84599176 | EU20: ='GEV Fitting'!$I$4*(EX20-EX19) -> 13.48724276 | EV20: ='GEV Fitting'!$I$4*(EY20-EY19) -> 14.82443383 | EW20: 0.7737810473 | EX20: 0.8695184755 | EY20: 0.6865007586
A21: 5 | C21: 4.49069774 | D21: 3.077304321 | E21: 10.55480186 | F21: 8.924652989 | G21: 16.17300762 | H21: 6.779025196 | I21: 3.87736661 | J21: 6.339413823 | K21: 14.78231154 | L21: 3.283884382 | M21: 2.944383759 | N21: 5.349310139 | O21: 1.937418277 | P21: 3.597654535 | Q21: 5.334706888 | R21: 2.649668701 | S21: 2.646373355 | T21: 3.408992157 | U21: 3.834924437 | V21: 4.547442688 | W21: 3.488073977 | X21: 3.428411092 | Y21: 6.370346484 | Z21: 3.482893141 | AA21: 3.742401026 | AB21: 3.843663452 | AC21: 6.805547989 | AD21: 3.878484548 | AE21: 5.573927031 | AF21: 5.108295182 | AG21: 3.865376113 | AH21: 9.73502841 | AI21: 5.025866291 | AJ21: 4.34003825 | AK21: 3.145175375 | AL21: 4.669516786 | AM21: 5.772961685 | AN21: 4.074275078 | AO21: 8.012132047 | AP21: 3.379623863 | AQ21: 5.164874796 | AR21: 7.671388261 | AS21: 3.3732774 | AT21: 3.711586474 | AU21: 1.8912629 | AV21: 3.424833925 | AW21: 13.28315813 | AX21: 5.887217235 | AY21: 4.659630481 | AZ21: 4.793365777 | BA21: 3.321374206 | BB21: 4.303391395 | BC21: 6.209201217 | BD21: 7.051559403 | BE21: 2.55874435 | BF21: 4.462698506 | BG21: 3.902137071 | BH21: 2.443397162 | BI21: 4.052519968 | BJ21: 5.380001645 | BK21: 4.262706917 | BL21: 3.867625803 | BM21: 9.456823346 | BN21: 13.41837805 | BO21: 4.715711357 | BP21: 4.415041944 | BQ21: 4.846070689 | BR21: 2.53651603 | BS21: 2.986342778 | BT21: 3.381740779 | BU21: 1.964947773 | BV21: 2.849229602 | BW21: 3.921608339 | BX21: 4.494750382 | BY21: 4.544544593 | BZ21: 6.077615033 | CA21: 2.225458816 | CB21: 3.862784531 | CC21: 2.348626413 | CD21: 3.491513255 | CE21: 4.778825942 | CF21: 4.34751989 | CG21: 4.742685752 | CH21: 3.560709041 | CI21: 8.143930404 | CJ21: 5.969867831 | CK21: 4.633499603 | CL21: 3.969220126 | CM21: 5.637959127 | CN21: 2.894727555 | CO21: 2.353001918 | CP21: 3.224487603 | CQ21: 5.862407001 | CR21: 9.787116205 | CS21: 3.622093112 | CT21: 5.276875544 | CU21: 6.186301926 | CV21: 2.15798346 | CW21: 6.215439919 | CX21: 4.191993115 | CY21: 3.077357883 | CZ21: 4.773651847 | DA21: 8.132381095 | DB21: 9.467233179 | DC21: 5.074397806 | DD21: 1.897621054 | DE21: 5.128508605 | DF21: 10.72063446 | DG21: 1.792730389 | DH21: 9.926175187 | DI21: 2.445031693 | DJ21: 3.419558177 | DK21: 3.747995641 | DL21: 1.516516344 | DM21: 0.2247732292 | DN21: -237.7904658 | DO21: 13 | DQ21: 1.531451647 | DR21: 380 | DS21: -232.8875627 | DT21: -218.9229402 | DU21: -248.8041474 | DV21: 361.5890508 | ER21: ='GEV Fitting'!B13 -> 7 | ES21: ='GEV Fitting'!C13 -> 3 | ET21: ='GEV Fitting'!$I$4*(EW21-EW20) -> 9.095868499 | EU21: ='GEV Fitting'!$I$4*(EX21-EX20) -> 6.984600198 | EV21: ='GEV Fitting'!$I$4*(EY21-EY20) -> 9.883792598 | EW21: 0.8549941589 | EX21: 0.9318809773 | EY21: 0.7747489068
A22: 6 | C22: 4.668074505 | D22: 6.369711618 | E22: 2.202663164 | F22: 2.317476191 | G22: 4.574118844 | H22: 3.503071736 | I22: 3.889756449 | J22: 4.312051484 | K22: 5.646025 | L22: 4.050913389 | M22: 3.532564506 | N22: 2.447965976 | O22: 3.875072199 | P22: 4.618376191 | Q22: 5.90700968 | R22: 4.657052918 | S22: 5.064944824 | T22: 6.367405201 | U22: 3.908307007 | V22: 6.246427485 | W22: 5.545975972 | X22: 5.340407391 | Y22: 5.624200261 | Z22: 3.019153818 | AA22: 6.004462472 | AB22: 2.421221717 | AC22: 3.243217731 | AD22: 9.739681474 | AE22: 6.515051665 | AF22: 3.129739053 | AG22: 2.985502581 | AH22: 3.199252208 | AI22: 8.643351505 | AJ22: 3.280214938 | AK22: 3.273979653 | AL22: 5.495680904 | AM22: 5.147525784 | AN22: 5.997030175 | AO22: 5.864879895 | AP22: 3.478419997 | AQ22: 6.574985016 | AR22: 5.528778835 | AS22: 7.804545326 | AT22: 3.142010763 | AU22: 3.66423987 | AV22: 4.518873088 | AW22: 3.662314479 | AX22: 3.068429989 | AY22: 4.649574257 | AZ22: 4.932238758 | BA22: 2.789691064 | BB22: 2.362423711 | BC22: 4.957116746 | BD22: 6.764367454 | BE22: 4.997534223 | BF22: 3.941509215 | BG22: 2.997553677 | BH22: 4.245629882 | BI22: 11.5553279 | BJ22: 5.963141485 | BK22: 3.761441183 | BL22: 4.196962656 | BM22: 4.487806634 | BN22: 5.20715514 | BO22: 2.183673263 | BP22: 5.039552995 | BQ22: 7.88904405 | BR22: 3.602729222 | BS22: 2.684004554 | BT22: 3.944014776 | BU22: 5.984552842 | BV22: 3.672265688 | BW22: 3.888289792 | BX22: 5.764614054 | BY22: 3.990043111 | BZ22: 5.536851409 | CA22: 4.296846702 | CB22: 2.94037628 | CC22: 3.360355325 | CD22: 2.525803046 | CE22: 12.33894097 | CF22: 3.381836177 | CG22: 4.863311533 | CH22: 3.471291886 | CI22: 6.969764994 | CJ22: 3.519222221 | CK22: 6.228739408 | CL22: 2.944013075 | CM22: 3.445686722 | CN22: 2.439361609 | CO22: 4.236067627 | CP22: 4.058705908 | CQ22: 4.750069139 | CR22: 2.105963101 | CS22: 3.516416058 | CT22: 2.772102102 | CU22: 3.550319304 | CV22: 5.875522871 | CW22: 4.916466914 | CX22: 10.62912039 | CY22: 6.6153236 | CZ22: 4.5224167 | DA22: 4.799938276 | DB22: 3.010476541 | DC22: 7.95131186 | DD22: 3.517751078 | DE22: 4.764776788 | DF22: 4.747161126 | DG22: 5.940932986 | DH22: 5.499044006 | DI22: 5.296617692 | DJ22: 5.879944068 | DK22: 3.823330354 | DL22: 1.266060107 | DM22: 0.1016784646 | DN22: -210.4606624 | DO22: 90 | DQ22: 1.650178413 | DR22: 203 | DS22: -240.5016035 | DT22: -229.3723318 | DU22: -255.4064975 | DV22: 200.2466213 | ER22: ='GEV Fitting'!B14 -> 8 | ES22: ='GEV Fitting'!C14 -> 5 | ET22: ='GEV Fitting'!$I$4*(EW22-EW21) -> 5.560992939 | EU22: ='GEV Fitting'!$I$4*(EX22-EX21) -> 3.566721679 | EV22: ='GEV Fitting'!$I$4*(EY22-EY21) -> 6.630907096 | EW22: 0.9046458816 | EX22: 0.9637267065 | EY22: 0.8339534344
A23: 7 | C23: 3.28237 | D23: 4.501187234 | E23: 4.307761908 | F23: 4.578767712 | G23: 3.374165442 | H23: 3.904008696 | I23: 3.642377825 | J23: 11.4218114 | K23: 4.352081782 | L23: 4.669878037 | M23: 4.111011769 | N23: 2.12440101 | O23: 3.750074479 | P23: 2.781618247 | Q23: 5.079295938 | R23: 2.85203928 | S23: 3.042632356 | T23: 3.740742174 | U23: 2.572036586 | V23: 4.847855843 | W23: 5.405532343 | X23: 4.002600729 | Y23: 3.924765047 | Z23: 3.585749802 | AA23: 5.394076547 | AB23: 3.104071337 | AC23: 2.233750153 | AD23: 7.583585227 | AE23: 2.227581029 | AF23: 4.0838538 | AG23: 5.691368736 | AH23: 5.832454474 | AI23: 6.549194303 | AJ23: 3.09024887 | AK23: 4.12721313 | AL23: 7.232616147 | AM23: 6.62419213 | AN23: 3.881772023 | AO23: 4.100199631 | AP23: 3.635953526 | AQ23: 3.247935192 | AR23: 6.359852575 | AS23: 4.474582686 | AT23: 4.445134067 | AU23: 4.912877285 | AV23: 2.530744194 | AW23: 5.469692308 | AX23: 3.282096943 | AY23: 2.338571753 | AZ23: 3.349288696 | BA23: 10.3959083 | BB23: 3.550408686 | BC23: 5.038951606 | BD23: 3.693428956 | BE23: 3.718923413 | BF23: 3.549874723 | BG23: 3.110798336 | BH23: 3.100997514 | BI23: 3.93422775 | BJ23: 4.859872961 | BK23: 3.217271588 | BL23: 5.289779224 | BM23: 4.70760207 | BN23: 4.777547869 | BO23: 2.476226075 | BP23: 2.239863801 | BQ23: 2.851938892 | BR23: 3.23596606 | BS23: 3.834427172 | BT23: 4.675684134 | BU23: 3.397543894 | BV23: 6.733585275 | BW23: 7.854859831 | BX23: 4.38947793 | BY23: 3.789233683 | BZ23: 1.549389822 | CA23: 3.254215907 | CB23: 2.894276282 | CC23: 5.023181962 | CD23: 12.70981584 | CE23: 3.491802868 | CF23: 3.214184201 | CG23: 7.431106694 | CH23: 2.743965046 | CI23: 4.602125553 | CJ23: 4.800390793 | CK23: 4.818585133 | CL23: 5.344043048 | CM23: 6.934140953 | CN23: 2.582687051 | CO23: 3.817022213 | CP23: 6.552115013 | CQ23: 3.321718539 | CR23: 5.237227401 | CS23: 3.824091964 | CT23: 6.706090034 | CU23: 3.974337663 | CV23: 6.727790515 | CW23: 3.126994248 | CX23: 5.626658707 | CY23: 7.879516548 | CZ23: 3.122460393 | DA23: 12.89391063 | DB23: 10.80797181 | DC23: 7.293466923 | DD23: 4.371475623 | DE23: 5.058973528 | DF23: 4.075177553 | DG23: 2.866726964 | DH23: 5.010545634 | DI23: 4.832414789 | DJ23: 6.995975061 | DK23: 3.673777906 | DL23: 1.266060107 | DM23: 0.1504722414 | DN23: -213.073787 | DO23: 49 | DQ23: 1.768905179 | DR23: 51 | DS23: -249.3649124 | DT23: -240.5516512 | DU23: -258.7704491 | DV23: 47.32984562 | ER23: ='GEV Fitting'!B15 -> 9 | ES23: ='GEV Fitting'!C15 -> 1 | ET23: ='GEV Fitting'!$I$4*(EW23-EW22) -> 3.463390423 | EU23: ='GEV Fitting'!$I$4*(EX23-EX22) -> 1.844239709 | EV23: ='GEV Fitting'!$I$4*(EY23-EY22) -> 4.544631451 | EW23: 0.9355690103 | EX23: 0.9801931325 | EY23: 0.8745305009
A24: 8 | C24: 3.708513245 | D24: 2.306086863 | E24: 4.292603307 | F24: 2.317238309 | G24: 3.738958079 | H24: 4.051935469 | I24: 3.437784637 | J24: 11.04943881 | K24: 1.866444311 | L24: 5.053312424 | M24: 4.840082998 | N24: 4.421039168 | O24: 2.096753829 | P24: 5.514072266 | Q24: 3.500067392 | R24: 12.73089972 | S24: 3.41083411 | T24: 3.698702373 | U24: 3.529909735 | V24: 3.656056413 | W24: 3.194134265 | X24: 4.723239227 | Y24: 5.40468341 | Z24: 3.321873045 | AA24: 4.630772247 | AB24: 4.63858999 | AC24: 15.29072611 | AD24: 8.860374128 | AE24: 3.250696566 | AF24: 6.395265823 | AG24: 5.968003268 | AH24: 3.87072501 | AI24: 4.931865843 | AJ24: 4.237572453 | AK24: 4.259349309 | AL24: 2.760517546 | AM24: 11.1529022 | AN24: 2.957698433 | AO24: 4.705599509 | AP24: 5.258519432 | AQ24: 2.645482344 | AR24: 5.059206951 | AS24: 5.684181013 | AT24: 6.068015857 | AU24: 3.968979409 | AV24: 2.499763211 | AW24: 4.264728232 | AX24: 4.627228387 | AY24: 2.353423397 | AZ24: 3.89010794 | BA24: 2.688967304 | BB24: 2.819745573 | BC24: 3.502191912 | BD24: 15.2891444 | BE24: 4.785887869 | BF24: 3.348323474 | BG24: 3.905930543 | BH24: 4.132770407 | BI24: 2.377645897 | BJ24: 4.08134517 | BK24: 3.993429131 | BL24: 9.456743109 | BM24: 3.340857921 | BN24: 2.940537388 | BO24: 4.293874327 | BP24: 3.615692305 | BQ24: 4.325444798 | BR24: 3.825344282 | BS24: 3.287749343 | BT24: 2.404976962 | BU24: 4.99875349 | BV24: 3.698520873 | BW24: 4.484515275 | BX24: 7.492126235 | BY24: 3.933628642 | BZ24: 4.732162538 | CA24: 3.762275121 | CB24: 2.336111793 | CC24: 2.644842822 | CD24: 2.818942149 | CE24: 2.814882529 | CF24: 5.876615524 | CG24: 3.308084265 | CH24: 2.785397397 | CI24: 2.219311521 | CJ24: 5.334914533 | CK24: 6.850445474 | CL24: 4.345926252 | CM24: 6.284764206 | CN24: 13.17318656 | CO24: 4.379934272 | CP24: 2.409906522 | CQ24: 4.903378393 | CR24: 3.559635286 | CS24: 3.361731042 | CT24: 5.267431391 | CU24: 3.847723969 | CV24: 3.776594778 | CW24: 3.072697148 | CX24: 7.37928123 | CY24: 2.843235624 | CZ24: 3.846044114 | DA24: 4.811624635 | DB24: 4.498374041 | DC24: 5.613055616 | DD24: 2.713713614 | DE24: 3.542556367 | DF24: 1.751434491 | DG24: 6.102279311 | DH24: 8.513650344 | DI24: 3.443604438 | DJ24: 3.156132777 | DK24: 3.493726234 | DL24: 1.228456855 | DM24: 0.250772377 | DN24: -215.5172474 | DO24: 42 | DQ24: =MAX(DL17:DL1016) -> 1.887631945 | DR24: 7 | DS24: -258.0381305 | DT24: -251.8551845 | DU24: -268.4130911 | DV24: =(1-_xlfn.NORM.DIST(DQ23,$DL$14,$DL$13,TRUE))*1000 -> 4.942350913 | ER24: ='GEV Fitting'!B16 -> 10 | ES24: ='GEV Fitting'!C16 -> 4 | ET24: ='GEV Fitting'!$I$4*(EW24-EW23) -> 2.211931819 | EU24: ='GEV Fitting'!$I$4*(EX24-EX23) -> 0.9750671776 | EV24: ='GEV Fitting'!$I$4*(EY24-EY23) -> 3.193578421 | EW24: 0.9553184016 | EX24: 0.9888990895 | EY24: 0.903044594
A25: 9 | C25: 9.897748823 | D25: 3.005920556 | E25: 3.909325948 | F25: 3.690299215 | G25: 3.541905252 | H25: 12.45019699 | I25: 4.650014895 | J25: 4.389326043 | K25: 2.764906406 | L25: 7.868957282 | M25: 2.115299766 | N25: 6.198092355 | O25: 5.532008285 | P25: 3.227781676 | Q25: 9.319004718 | R25: 4.118926816 | S25: 5.569570087 | T25: 3.827283406 | U25: 3.179705222 | V25: 4.776703422 | W25: 4.508136568 | X25: 4.096943116 | Y25: 5.048806784 | Z25: 5.931485285 | AA25: 2.390687539 | AB25: 2.869716065 | AC25: 2.596798927 | AD25: 2.292121533 | AE25: 4.481258903 | AF25: 10.1516538 | AG25: 3.156368898 | AH25: 3.626922092 | AI25: 7.678646168 | AJ25: 4.179445376 | AK25: 3.179633267 | AL25: 6.930441104 | AM25: 2.412881522 | AN25: 2.760413079 | AO25: 10.68051639 | AP25: 6.699446302 | AQ25: 6.560145995 | AR25: 19.7247991 | AS25: 3.207974014 | AT25: 5.134084405 | AU25: 4.909528764 | AV25: 11.28646252 | AW25: 3.924173144 | AX25: 2.332284846 | AY25: 7.424416968 | AZ25: 2.893970192 | BA25: 3.247281923 | BB25: 4.806054396 | BC25: 3.700772494 | BD25: 4.400534078 | BE25: 8.410795301 | BF25: 4.485936433 | BG25: 10.33010469 | BH25: 5.918214159 | BI25: 3.859636376 | BJ25: 5.839790098 | BK25: 4.622710849 | BL25: 4.025661594 | BM25: 2.247349312 | BN25: 2.187389989 | BO25: 3.692303368 | BP25: 3.904649791 | BQ25: 3.701145514 | BR25: 4.938684381 | BS25: 2.966639605 | BT25: 3.980669239 | BU25: 2.865635699 | BV25: 11.27362325 | BW25: 3.347440998 | BX25: 2.347038917 | BY25: 6.333528125 | BZ25: 5.46189034 | CA25: 3.25866899 | CB25: 6.173838317 | CC25: 7.272065144 | CD25: 13.21017405 | CE25: 3.33298602 | CF25: 4.102233432 | CG25: 8.247094884 | CH25: 8.562030231 | CI25: 4.266392481 | CJ25: 7.55023771 | CK25: 4.616024553 | CL25: 3.930211721 | CM25: 6.508088788 | CN25: 5.591349043 | CO25: 7.79433864 | CP25: 2.85333882 | CQ25: 6.008192036 | CR25: 5.158795541 | CS25: 8.280829335 | CT25: 6.692628104 | CU25: 6.043027684 | CV25: 6.031253623 | CW25: 4.148957574 | CX25: 5.681630457 | CY25: 4.575624256 | CZ25: 2.901532803 | DA25: 3.49023746 | DB25: 4.123404455 | DC25: 7.764537911 | DD25: 7.20119232 | DE25: 3.776332096 | DF25: 10.78822245 | DG25: 4.280385454 | DH25: 13.30438458 | DI25: 4.033272517 | DJ25: 6.058770197 | DK25: 3.978572897 | DL25: 1.578092989 | DM25: 0.2854023571 | DN25: -246.0845502 | DO25: 47 | ER25: ='GEV Fitting'!B17 -> 11 | ES25: ='GEV Fitting'!C17 -> 0 | ET25: ='GEV Fitting'!$I$4*(EW25-EW24) -> 1.450236457 | EU25: ='GEV Fitting'!$I$4*(EX25-EX24) -> 0.5286801886 | EV25: ='GEV Fitting'!$I$4*(EY25-EY24) -> 2.299930029 | EW25: 0.9682669414 | EX25: 0.9936194483 | EY25: 0.9235796835
A26: 10 | C26: 3.478826142 | D26: 2.476799463 | E26: 7.454351959 | F26: 4.651055723 | G26: 7.121599598 | H26: 6.389724269 | I26: 5.948804277 | J26: 8.592975971 | K26: 2.284757643 | L26: 6.578633801 | M26: 3.164400205 | N26: 3.3478754 | O26: 2.302522944 | P26: 7.978268129 | Q26: 14.29160357 | R26: 3.298838484 | S26: 4.452811407 | T26: 3.613164389 | U26: 3.104202971 | V26: 3.05592926 | W26: 2.742827033 | X26: 4.788965367 | Y26: 4.6871916 | Z26: 7.044452035 | AA26: 2.531327868 | AB26: 3.052102836 | AC26: 4.95619972 | AD26: 4.091494988 | AE26: 3.390349693 | AF26: 6.693888822 | AG26: 3.472524025 | AH26: 11.68611922 | AI26: 3.827902085 | AJ26: 6.188282727 | AK26: 6.345681598 | AL26: 4.804810444 | AM26: 3.664876292 | AN26: 4.684178163 | AO26: 5.120935316 | AP26: 4.672067405 | AQ26: 2.347625998 | AR26: 6.788096394 | AS26: 2.348945919 | AT26: 2.843437051 | AU26: 3.507126167 | AV26: 3.986147781 | AW26: 3.935052645 | AX26: 7.035106691 | AY26: 2.329232223 | AZ26: 7.835757311 | BA26: 3.210963476 | BB26: 2.30236068 | BC26: 6.071300535 | BD26: 2.169942323 | BE26: 2.77530889 | BF26: 5.175676485 | BG26: 3.301403361 | BH26: 6.81749137 | BI26: 3.092266183 | BJ26: 3.156721512 | BK26: 4.294148593 | BL26: 4.872149838 | BM26: 4.799320471 | BN26: 2.596891005 | BO26: 9.355209898 | BP26: 3.769559649 | BQ26: 3.629982019 | BR26: 2.198028109 | BS26: 7.671731801 | BT26: 4.236947164 | BU26: 3.869444723 | BV26: 8.85354039 | BW26: 3.25567466 | BX26: 4.522626622 | BY26: 2.238261211 | BZ26: 6.444028776 | CA26: 4.132491303 | CB26: 4.481083461 | CC26: 3.745561474 | CD26: 2.824447771 | CE26: 5.642608381 | CF26: 3.133140563 | CG26: 3.092557765 | CH26: 3.53555344 | CI26: 3.936808909 | CJ26: 5.710324492 | CK26: 2.689893247 | CL26: 3.986535471 | CM26: 6.574923321 | CN26: 4.620162992 | CO26: 5.959359759 | CP26: 3.422081578 | CQ26: 2.425508282 | CR26: 4.896086031 | CS26: 4.277415742 | CT26: 5.305366558 | CU26: 3.649663363 | CV26: 4.950176594 | CW26: 2.884534071 | CX26: 8.072190565 | CY26: 3.717761851 | CZ26: 6.4534784 | DA26: 2.899445933 | DB26: 4.262311411 | DC26: 2.141290438 | DD26: 5.765127381 | DE26: 6.795067469 | DF26: 3.424542917 | DG26: 3.925934831 | DH26: 4.331587419 | DI26: 1.614440388 | DJ26: 5.151717051 | DK26: 3.600669725 | DL26: 1.331307417 | DM26: 0.1582269356 | DN26: -218.7274132 | DO26: 41 | ER26: ='GEV Fitting'!B18 -> 12 | ES26: ='GEV Fitting'!C18 -> 0 | ET26: ='GEV Fitting'!$I$4*(EW26-EW25) -> 0.9750740466 | EU26: ='GEV Fitting'!$I$4*(EX26-EX25) -> 0.2939939814 | EV26: ='GEV Fitting'!$I$4*(EY26-EY25) -> 1.694399326 | EW26: 0.9769729597 | EX26: 0.9962443945 | EY26: 0.9387082489
A27: 11 | C27: 11.99222682 | D27: 2.560086314 | E27: 6.072088398 | F27: 2.235655895 | G27: 10.82210023 | H27: 35.42888607 | I27: 5.30757153 | J27: 5.302108768 | K27: 2.965421322 | L27: 2.945350924 | M27: 10.8939324 | N27: 5.351659028 | O27: 7.564054971 | P27: 2.732432997 | Q27: 2.839573153 | R27: 3.328713154 | S27: 2.118966056 | T27: 3.539169966 | U27: 7.9473861 | V27: 3.209803042 | W27: 5.394497551 | X27: 6.657557549 | Y27: 2.523967878 | Z27: 6.495756442 | AA27: 6.424850644 | AB27: 3.059808809 | AC27: 2.616663243 | AD27: 4.896778959 | AE27: 2.458010837 | AF27: 4.890274446 | AG27: 4.096142239 | AH27: 9.355792874 | AI27: 3.021819854 | AJ27: 3.436926241 | AK27: 4.799502084 | AL27: 3.238404647 | AM27: 3.495685938 | AN27: 2.560171418 | AO27: 1.583966003 | AP27: 10.1361968 | AQ27: 5.648222423 | AR27: 3.953140157 | AS27: 4.087601604 | AT27: 4.091265107 | AU27: 7.032631141 | AV27: 3.884844951 | AW27: 5.438070908 | AX27: 3.743711952 | AY27: 3.785804329 | AZ27: 3.199930047 | BA27: 3.161069909 | BB27: 2.421131136 | BC27: 6.17313068 | BD27: 6.549470725 | BE27: 3.571337913 | BF27: 3.921069179 | BG27: 17.02622331 | BH27: 5.380727127 | BI27: 4.223386538 | BJ27: 6.692049515 | BK27: 3.600982626 | BL27: 2.848596588 | BM27: 8.048615302 | BN27: 4.315371193 | BO27: 6.154699291 | BP27: 4.843974811 | BQ27: 3.622546216 | BR27: 10.53835559 | BS27: 3.723728267 | BT27: 3.459370773 | BU27: 3.126164219 | BV27: 6.007852225 | BW27: 7.754610749 | BX27: 2.665969164 | BY27: 7.99923311 | BZ27: 4.883786777 | CA27: 7.670836873 | CB27: 5.846849405 | CC27: 3.554041286 | CD27: 4.445236616 | CE27: 6.569113855 | CF27: 2.8521733 | CG27: 6.205434309 | CH27: 3.956939431 | CI27: 4.472415275 | CJ27: 2.431320711 | CK27: 2.331123609 | CL27: 6.719184786 | CM27: 13.31477265 | CN27: 1.971693612 | CO27: 5.094783223 | CP27: 9.963853823 | CQ27: 2.697615792 | CR27: 3.777124473 | CS27: 4.233548075 | CT27: 7.903189988 | CU27: 2.922691433 | CV27: 6.585921699 | CW27: 5.070196578 | CX27: 3.141012741 | CY27: 2.256904417 | CZ27: 8.203009925 | DA27: 4.224265455 | DB27: 5.183867246 | DC27: 2.395122846 | DD27: 1.880308208 | DE27: 10.06687386 | DF27: 3.091211423 | DG27: 7.734662769 | DH27: 4.02792428 | DI27: 2.925004476 | DJ27: 3.397264087 | DK27: 3.637040127 | DL27: 1.562468306 | DM27: 0.3482451136 | DN27: -248.4955641 | DO27: 61 | DQ27: Shape | DR27: Count | DS27: Mean | DT27: Min | DU27: Max | ER27: ='GEV Fitting'!B19 -> 13 | ES27: ='GEV Fitting'!C19 -> 0 | ET27: ='GEV Fitting'!$I$4*(EW27-EW26) -> 0.6710707791 | EU27: ='GEV Fitting'!$I$4*(EX27-EX26) -> 0.1675037491 | EV27: ='GEV Fitting'!$I$4*(EY27-EY26) -> 1.274193035 | EW27: 0.982964663 | EX27: 0.9977399637 | EY27: 0.9500849724
A28: 12 | C28: 5.786703902 | D28: 6.994209054 | E28: 3.274009527 | F28: 3.629701296 | G28: 7.233710292 | H28: 7.071342841 | I28: 3.903522062 | J28: 4.738542375 | K28: 3.007601594 | L28: 9.418396066 | M28: 3.284215206 | N28: 1.948032482 | O28: 3.531793173 | P28: 4.763285513 | Q28: 3.754690608 | R28: 5.004972384 | S28: 5.716722774 | T28: 5.470788325 | U28: 2.988146601 | V28: 2.338334585 | W28: 3.235377625 | X28: 3.043512475 | Y28: 11.91626977 | Z28: 2.957058944 | AA28: 5.091080823 | AB28: 8.134937313 | AC28: 3.335707006 | AD28: 3.275922908 | AE28: 5.97919796 | AF28: 5.862384751 | AG28: 3.795838204 | AH28: 2.860985944 | AI28: 4.607555883 | AJ28: 2.698164813 | AK28: 3.335107235 | AL28: 7.044308235 | AM28: 5.174900006 | AN28: 4.112593434 | AO28: 4.583539157 | AP28: 3.180648826 | AQ28: 1.924701247 | AR28: 3.271592418 | AS28: 9.85782086 | AT28: 2.320160638 | AU28: 6.976813969 | AV28: 2.488450936 | AW28: 5.54068395 | AX28: 3.322235486 | AY28: 8.233379158 | AZ28: 2.307330566 | BA28: 4.751666259 | BB28: 4.263707671 | BC28: 7.367825125 | BD28: 4.026421723 | BE28: 6.655472432 | BF28: 6.597977564 | BG28: 2.426820183 | BH28: 4.659955563 | BI28: 4.301570443 | BJ28: 6.19637246 | BK28: 3.965169566 | BL28: 12.06316199 | BM28: 2.800809278 | BN28: 5.198193316 | BO28: 5.335273853 | BP28: 5.64442288 | BQ28: 4.24998712 | BR28: 14.62282415 | BS28: 6.982710557 | BT28: 2.93784387 | BU28: 5.14263136 | BV28: 3.353328499 | BW28: 7.276771681 | BX28: 5.646301994 | BY28: 3.817983657 | BZ28: 2.582290209 | CA28: 4.862361633 | CB28: 2.635149339 | CC28: 5.202986926 | CD28: 3.483072744 | CE28: 2.52492605 | CF28: 4.949435558 | CG28: 4.495986193 | CH28: 4.651669388 | CI28: 6.795901515 | CJ28: 8.950062628 | CK28: 3.095565939 | CL28: 2.830127406 | CM28: 5.508221473 | CN28: 6.4037031 | CO28: 3.52414695 | CP28: 6.920768515 | CQ28: 6.046995112 | CR28: 3.768483567 | CS28: 4.677333148 | CT28: 3.722704719 | CU28: 4.366179846 | CV28: 4.153165008 | CW28: 4.690928818 | CX28: 6.013237588 | CY28: 3.5485262 | CZ28: 3.300182566 | DA28: 7.194146172 | DB28: 3.28604537 | DC28: 2.875505839 | DD28: 2.883086009 | DE28: 3.217150708 | DF28: 2.952213281 | DG28: 4.377014569 | DH28: 10.47651839 | DI28: 3.815796624 | DJ28: 3.436231843 | DK28: 3.747995641 | DL28: 1.344754966 | DM28: 0.2096500491 | DN28: -223.7170205 | DO28: 10 | DQ28: =MIN(DM17:DM1016) -> 0.07829680472 | DR28: =COUNTIFS($DM:$DM,"<="&$DQ28) -> 2 | DS28: =AVERAGEIFS($DN:$DN,$DM:$DM,"<="&$DQ28) -> -105.8419664 | DT28: =_xlfn.MAXIFS($DN:$DN,$DM:$DM,"<="&$DQ28) -> 10.82208198 | DU28: =_xlfn.MINIFS($DN:$DN,$DM:$DM,"<="&$DQ28) -> -222.5060147 | ER28: ='GEV Fitting'!B20 -> 14 | ES28: ='GEV Fitting'!C20 -> 1 | ET28: ='GEV Fitting'!$I$4*(EW28-EW27) -> 0.4717938347 | EU28: ='GEV Fitting'!$I$4*(EX28-EX27) -> 0.09764026059 | EV28: ='GEV Fitting'!$I$4*(EY28-EY27) -> 0.9759923608 | EW28: 0.987177108 | EX28: 0.9986117518 | EY28: 0.95879919
A29: 13 | C29: 5.195103828 | D29: 3.177043442 | E29: 5.33694698 | F29: 3.556052187 | G29: 2.271770086 | H29: 9.446472079 | I29: 3.34136837 | J29: 5.211844063 | K29: 23.86667151 | L29: 3.75792463 | M29: 3.700928585 | N29: 4.080428354 | O29: 5.53257068 | P29: 3.272949162 | Q29: 7.315745341 | R29: 6.080360146 | S29: 4.107774299 | T29: 2.724069616 | U29: 3.046278087 | V29: 3.230857296 | W29: 18.253358 | X29: 1.915066499 | Y29: 3.552646191 | Z29: 5.474613821 | AA29: 3.394044885 | AB29: 3.510558998 | AC29: 2.83317062 | AD29: 3.534119098 | AE29: 4.163983774 | AF29: 8.608573326 | AG29: 2.191298699 | AH29: 5.905997663 | AI29: 2.446161997 | AJ29: 4.931071451 | AK29: 5.295223032 | AL29: 6.046826975 | AM29: 3.860453221 | AN29: 5.875341547 | AO29: 2.940194066 | AP29: 9.067959307 | AQ29: 3.539014294 | AR29: 2.415857839 | AS29: 3.443270422 | AT29: 5.052635165 | AU29: 2.88560793 | AV29: 7.423541668 | AW29: 2.895349583 | AX29: 3.983847857 | AY29: 8.683818988 | AZ29: 4.119380422 | BA29: 14.61601244 | BB29: 3.968289134 | BC29: 5.932607758 | BD29: 5.485725152 | BE29: 3.073462957 | BF29: 2.906455841 | BG29: 5.124174439 | BH29: 13.31507603 | BI29: 6.004054056 | BJ29: 4.593672278 | BK29: 3.773779377 | BL29: 3.356651576 | BM29: 5.914727476 | BN29: 3.203760238 | BO29: 5.376455689 | BP29: 4.815006577 | BQ29: 2.997333442 | BR29: 10.29019705 | BS29: 6.474838671 | BT29: 5.118240187 | BU29: 2.41067068 | BV29: 4.11245973 | BW29: 2.590899643 | BX29: 5.115718514 | BY29: 6.053621185 | BZ29: 4.074033536 | CA29: 1.780342264 | CB29: 4.411683054 | CC29: 4.829018885 | CD29: 7.155171134 | CE29: 3.50372508 | CF29: 3.369151519 | CG29: 4.835736177 | CH29: 3.700043723 | CI29: 4.477662448 | CJ29: 4.971379525 | CK29: 5.091001764 | CL29: 2.84678765 | CM29: 5.30530466 | CN29: 9.398097262 | CO29: 5.983550536 | CP29: 9.385552722 | CQ29: 2.836874571 | CR29: 3.449094243 | CS29: 5.585639354 | CT29: 3.2629329 | CU29: 9.838446129 | CV29: 9.823456993 | CW29: 6.926931406 | CX29: 7.983948293 | CY29: 3.006720688 | CZ29: 8.7017364 | DA29: 2.66563669 | DB29: 6.194140312 | DC29: 5.616127215 | DD29: 8.95045266 | DE29: 4.086199462 | DF29: 8.126685221 | DG29: 2.924017406 | DH29: 4.248566138 | DI29: 3.74201907 | DJ29: 4.751072168 | DK29: 3.823330354 | DL29: 1.501501331 | DM29: 0.294050334 | DN29: -241.1783199 | DO29: 41 | DQ29: =DQ28+($DQ$42-$DQ$28)/14 -> 0.1090094064 | DR29: =COUNTIFS($DM:$DM,"<="&$DQ29,$DM:$DM,">"&$DQ28) -> 101 | DS29: =AVERAGEIFS($DN:$DN,$DM:$DM,"<="&$DQ29,$DM:$DM,">"&$DQ28) -> -223.9550177 | DT29: =_xlfn.MAXIFS($DN:$DN,$DM:$DM,"<="&$DQ29,$DM:$DM,">"&$DQ28) -> -201.211875 | DU29: =_xlfn.MINIFS($DN:$DN,$DM:$DM,"<="&$DQ29,$DM:$DM,">"&$DQ28) -> -244.6415989 | ER29: ='GEV Fitting'!B21 -> 15 | ES29: ='GEV Fitting'!C21 -> 0 | ET29: ='GEV Fitting'!$I$4*(EW29-EW28) -> 0.3381721091 | EU29: ='GEV Fitting'!$I$4*(EX29-EX28) -> 0.05814196429 | EV29: ='GEV Fitting'!$I$4*(EY29-EY28) -> 0.7599809851 | EW29: 0.9901965018 | EX29: 0.9991308765 | EY29: 0.9655847345
A30: 14 | C30: 2.15981827 | D30: 3.628150806 | E30: 5.601477016 | F30: 2.46850088 | G30: 3.203663841 | H30: 2.40322294 | I30: 6.718470253 | J30: 3.059747913 | K30: 6.010905565 | L30: 12.05948422 | M30: 6.267542741 | N30: 4.178645539 | O30: 5.26045469 | P30: 3.356666412 | Q30: 2.48747389 | R30: 3.599867869 | S30: 3.216418325 | T30: 3.995947913 | U30: 3.564739251 | V30: 5.00169566 | W30: 3.960064187 | X30: 6.808052867 | Y30: 4.114385002 | Z30: 4.039877745 | AA30: 4.88884896 | AB30: 5.191493726 | AC30: 21.25371419 | AD30: 2.181281419 | AE30: 4.50015362 | AF30: 2.312668443 | AG30: 4.819352363 | AH30: 2.923202715 | AI30: 4.242598909 | AJ30: 4.037596257 | AK30: 14.81386616 | AL30: 4.759975824 | AM30: 5.800635638 | AN30: 3.390738351 | AO30: 7.890615213 | AP30: 6.89215689 | AQ30: 3.544015085 | AR30: 7.179008161 | AS30: 4.321729838 | AT30: 3.091369812 | AU30: 7.582115573 | AV30: 4.207378502 | AW30: 13.34454853 | AX30: 2.092443933 | AY30: 11.43155319 | AZ30: 6.920810581 | BA30: 3.393613908 | BB30: 3.072797858 | BC30: 4.017750981 | BD30: 5.282352055 | BE30: 3.372353652 | BF30: 10.76284657 | BG30: 2.982335643 | BH30: 5.083440508 | BI30: 2.28057239 | BJ30: 7.369997416 | BK30: 2.316865141 | BL30: 4.203713179 | BM30: 4.142067721 | BN30: 2.645100067 | BO30: 2.589149929 | BP30: 3.697604961 | BQ30: 2.312653914 | BR30: 10.56581936 | BS30: 15.94535835 | BT30: 4.625177967 | BU30: 1.663237327 | BV30: 4.866136621 | BW30: 5.765827721 | BX30: 3.794551571 | BY30: 4.589886551 | BZ30: 2.896314548 | CA30: 5.171214225 | CB30: 3.098377272 | CC30: 4.725851196 | CD30: 6.970972812 | CE30: 4.506135629 | CF30: 10.88753835 | CG30: 3.733894739 | CH30: 4.907930269 | CI30: 2.77786984 | CJ30: 5.688987835 | CK30: 5.506421772 | CL30: 7.339865373 | CM30: 6.502164282 | CN30: 5.146387047 | CO30: 3.337288947 | CP30: 4.057111622 | CQ30: 4.713897865 | CR30: 2.445903024 | CS30: 2.684789683 | CT30: 9.667164064 | CU30: 3.265472062 | CV30: 7.421528364 | CW30: 4.643002582 | CX30: 3.044019139 | CY30: 7.191119019 | CZ30: 3.105687216 | DA30: 3.47705024 | DB30: 2.261934809 | DC30: 4.036783582 | DD30: 3.562150908 | DE30: 4.879690169 | DF30: 3.726394676 | DG30: 9.029019458 | DH30: 5.63823699 | DI30: 2.382305433 | DJ30: 3.605320847 | DK30: 3.637040127 | DL30: 1.471915823 | DM30: 0.3184143759 | DN30: -239.7418284 | DO30: 46 | DQ30: =DQ29+($DQ$42-$DQ$28)/14 -> 0.1397220081 | DR30: 102 | DS30: -225.1204854 | DT30: -193.231935 | DU30: -245.0294704 | ER30: ='GEV Fitting'!B22 -> 16 | ES30: ='GEV Fitting'!C22 -> 0 | ET30: ='GEV Fitting'!$I$4*(EW30-EW29) -> 0.2466840148 | EU30: ='GEV Fitting'!$I$4*(EX30-EX29) -> 0.03531534336 | EV30: ='GEV Fitting'!$I$4*(EY30-EY29) -> 0.6005556717 | EW30: 0.9923990377 | EX30: 0.999446192 | EY30: 0.9709468387
A31: 15 | C31: 3.773326292 | D31: 4.611571822 | E31: 3.243305822 | F31: 8.971716693 | G31: 3.907837295 | H31: 3.382696602 | I31: 8.672150237 | J31: 5.428959715 | K31: 9.000889477 | L31: 4.187242363 | M31: 3.526817613 | N31: 6.28200875 | O31: 2.392206147 | P31: 2.586093067 | Q31: 5.405174444 | R31: 3.130384271 | S31: 3.703416592 | T31: 5.967852965 | U31: 3.119356092 | V31: 3.591142889 | W31: 3.361995699 | X31: 4.197795103 | Y31: 10.73734559 | Z31: 5.147668312 | AA31: 6.666120409 | AB31: 4.13103851 | AC31: 3.558469857 | AD31: 7.208550095 | AE31: 4.727522452 | AF31: 3.565393907 | AG31: 4.513897272 | AH31: 2.06143952 | AI31: 7.396128107 | AJ31: 4.027348398 | AK31: 4.583285395 | AL31: 2.889838839 | AM31: 3.005777058 | AN31: 4.770978113 | AO31: 2.412814616 | AP31: 15.71709887 | AQ31: 9.12942351 | AR31: 7.652062153 | AS31: 6.97085003 | AT31: 9.715750399 | AU31: 3.773722143 | AV31: 6.793933888 | AW31: 3.77210123 | AX31: 4.056510894 | AY31: 6.810536584 | AZ31: 6.529655202 | BA31: 4.919390102 | BB31: 3.885542342 | BC31: 2.777768165 | BD31: 5.177256896 | BE31: 2.753729056 | BF31: 1.526909016 | BG31: 3.466358756 | BH31: 4.702478083 | BI31: 3.632287958 | BJ31: 5.241974654 | BK31: 4.496378979 | BL31: 3.397969039 | BM31: 3.110838217 | BN31: 4.00114656 | BO31: 3.990472137 | BP31: 3.716541171 | BQ31: 13.26904964 | BR31: 3.600607143 | BS31: 3.680064034 | BT31: 11.58519274 | BU31: 3.441459712 | BV31: 3.303137841 | BW31: 3.188825776 | BX31: 5.157719619 | BY31: 4.371231849 | BZ31: 8.922791619 | CA31: 4.055969967 | CB31: 4.667236779 | CC31: 3.509083555 | CD31: 2.961015412 | CE31: 2.526188622 | CF31: 6.429127775 | CG31: 4.118328221 | CH31: 4.052148142 | CI31: 3.62877831 | CJ31: 2.271900784 | CK31: 10.7260209 | CL31: 4.713742111 | CM31: 3.350732252 | CN31: 4.129726675 | CO31: 3.577229 | CP31: 6.792138985 | CQ31: 5.441157037 | CR31: 7.551559519 | CS31: 3.08167758 | CT31: 2.654013171 | CU31: 4.130411849 | CV31: 2.719239876 | CW31: 2.872922954 | CX31: 4.264088482 | CY31: 6.728533297 | CZ31: 5.25025225 | DA31: 6.005280713 | DB31: 2.297004909 | DC31: 3.171899555 | DD31: 4.73622043 | DE31: 14.39873037 | DF31: 6.072756817 | DG31: 2.955925682 | DH31: 4.787110413 | DI31: 5.102848469 | DJ31: 8.775963486 | DK31: 3.785475598 | DL31: 1.414057872 | DM31: 0.2292911711 | DN31: -230.723928 | DO31: 15 | DQ31: 0.1704346097 | DR31: 112 | DS31: -228.450512 | DT31: -204.6167859 | DU31: -253.0296811 | ER31: ='GEV Fitting'!B23 -> 17 | ES31: ='GEV Fitting'!C23 -> 1 | ET31: ='GEV Fitting'!$I$4*(EW31-EW30) -> 0.1828341372 | EU31: ='GEV Fitting'!$I$4*(EX31-EX30) -> 0.02184983614 | EV31: ='GEV Fitting'!$I$4*(EY31-EY30) -> 0.4808844047 | EW31: 0.9940314853 | EX31: 0.9996412798 | EY31: 0.9752404494
A32: 16 | C32: 4.306786712 | D32: 4.389742199 | E32: 3.798363985 | F32: 4.21460204 | G32: 6.458056768 | H32: 7.994344784 | I32: 4.876174261 | J32: 10.52100106 | K32: 2.830424051 | L32: 7.710734375 | M32: 9.359473312 | N32: 3.767025117 | O32: 11.82850901 | P32: 3.849550963 | Q32: 5.295347076 | R32: 4.62141426 | S32: 3.764694768 | T32: 4.230745039 | U32: 5.736267853 | V32: 5.195647459 | W32: 4.372990073 | X32: 1.607820311 | Y32: 5.047938131 | Z32: 7.636314147 | AA32: 3.567920098 | AB32: 4.076164049 | AC32: 8.034956092 | AD32: 4.376159363 | AE32: 4.110838911 | AF32: 3.003479875 | AG32: 4.573328372 | AH32: 3.19486534 | AI32: 4.324582962 | AJ32: 5.730619732 | AK32: 2.308328755 | AL32: 4.524392648 | AM32: 4.037441798 | AN32: 4.338738825 | AO32: 3.269150822 | AP32: 5.035512265 | AQ32: 3.562346312 | AR32: 4.979642112 | AS32: 6.671045711 | AT32: 3.581118582 | AU32: 3.287333574 | AV32: 2.711323584 | AW32: 6.384093295 | AX32: 3.669381717 | AY32: 4.648447772 | AZ32: 3.265241941 | BA32: 3.836294456 | BB32: 7.647979305 | BC32: 3.553091548 | BD32: 3.151541692 | BE32: 2.49228111 | BF32: 3.463015402 | BG32: 9.447646898 | BH32: 2.130987784 | BI32: 8.802542589 | BJ32: 3.026456563 | BK32: 3.138743714 | BL32: 4.84869563 | BM32: 3.015158571 | BN32: 4.930125554 | BO32: 4.289506946 | BP32: 3.231140328 | BQ32: 2.666562504 | BR32: 5.248305484 | BS32: 2.841795996 | BT32: 2.909125744 | BU32: 2.034744208 | BV32: 2.955083417 | BW32: 3.158991849 | BX32: 4.215453483 | BY32: 5.093202936 | BZ32: 5.620299721 | CA32: 4.112816717 | CB32: 3.54973311 | CC32: 5.620456529 | CD32: 17.05474392 | CE32: 4.122839771 | CF32: 3.010572051 | CG32: 6.057434987 | CH32: 2.973416929 | CI32: 2.863845774 | CJ32: 4.903089803 | CK32: 3.159451445 | CL32: 6.660614031 | CM32: 4.161208019 | CN32: 2.615903269 | CO32: 5.52580148 | CP32: 6.549469202 | CQ32: 3.654982563 | CR32: 2.911471805 | CS32: 5.357319978 | CT32: 5.003170538 | CU32: 7.719810416 | CV32: 6.418958352 | CW32: 3.160028375 | CX32: 7.823985656 | CY32: 6.657629045 | CZ32: 2.775168587 | DA32: 2.51072169 | DB32: 2.501821178 | DC32: 3.230588569 | DD32: 3.154059269 | DE32: 2.440925143 | DF32: 4.760593965 | DG32: 4.265545901 | DH32: 3.428805259 | DI32: 4.800471361 | DJ32: 1.898517637 | DK32: 3.637040127 | DL32: 1.291766255 | DM32: 0.1767230819 | DN32: -216.8729554 | DO32: 32 | DQ32: 0.2011472114 | DR32: 148 | DS32: -229.8737413 | DT32: -202.7368951 | DU32: -255.1339154 | ER32: ='GEV Fitting'!B24 -> 18 | ES32: ='GEV Fitting'!C24 -> 0 | ET32: ='GEV Fitting'!$I$4*(EW32-EW31) -> 0.1374865357 | EU32: ='GEV Fitting'!$I$4*(EX32-EX31) -> 0.01375278302 | EV32: ='GEV Fitting'!$I$4*(EY32-EY31) -> 0.3896658212 | EW32: 0.9952590437 | EX32: 0.9997640725 | EY32: 0.9787196086
A33: 17 | C33: 4.066343045 | D33: 2.501844089 | E33: 4.453075444 | F33: 4.656694154 | G33: 8.279409345 | H33: 4.200020255 | I33: 3.218233371 | J33: 30.65644404 | K33: 3.572316785 | L33: 4.053370106 | M33: 8.701870391 | N33: 4.007027675 | O33: 5.942548838 | P33: 2.715037871 | Q33: 3.18596822 | R33: 6.321748665 | S33: 2.486486979 | T33: 3.155952528 | U33: 2.279214185 | V33: 3.194934265 | W33: 3.814460335 | X33: 5.44054733 | Y33: 4.722662345 | Z33: 7.820416358 | AA33: 6.176281849 | AB33: 4.929789781 | AC33: 5.681937113 | AD33: 11.6862072 | AE33: 3.324967184 | AF33: 3.487092285 | AG33: 4.735466197 | AH33: 9.748139566 | AI33: 9.486017672 | AJ33: 5.488134717 | AK33: 3.593915603 | AL33: 2.683947109 | AM33: 4.304435926 | AN33: 2.524588118 | AO33: 3.37640046 | AP33: 3.605069025 | AQ33: 8.442703936 | AR33: 7.04790043 | AS33: 3.100599387 | AT33: 2.480149716 | AU33: 3.713117575 | AV33: 5.942029075 | AW33: 10.43324351 | AX33: 5.03172881 | AY33: 4.158655413 | AZ33: 3.32185864 | BA33: 3.201905806 | BB33: 5.604806859 | BC33: 5.751734436 | BD33: 2.882342163 | BE33: 5.421667465 | BF33: 2.832771127 | BG33: 3.329094684 | BH33: 4.185760402 | BI33: 3.473804094 | BJ33: 7.563171283 | BK33: 5.240498432 | BL33: 5.07258516 | BM33: 6.950560723 | BN33: 3.573973594 | BO33: 3.628979307 | BP33: 7.139910784 | BQ33: 6.646028406 | BR33: 6.558867126 | BS33: 6.860461566 | BT33: 5.473004556 | BU33: 4.286721154 | BV33: 3.786444098 | BW33: 5.011175059 | BX33: 2.605852022 | BY33: 3.17187348 | BZ33: 5.971020243 | CA33: 2.380767968 | CB33: 3.753992002 | CC33: 2.149707133 | CD33: 5.398733465 | CE33: 4.198321848 | CF33: 5.536116417 | CG33: 4.035338642 | CH33: 3.863199266 | CI33: 6.212643728 | CJ33: 6.031303147 | CK33: 4.636691779 | CL33: 3.723910189 | CM33: 2.539103572 | CN33: 4.574228634 | CO33: 3.993840527 | CP33: 3.693952357 | CQ33: 4.967842052 | CR33: 4.784985455 | CS33: 4.410935004 | CT33: 5.33984075 | CU33: 2.390829887 | CV33: 3.491945245 | CW33: 5.192094008 | CX33: 5.616447435 | CY33: 6.654585081 | CZ33: 4.991368882 | DA33: 2.389705422 | DB33: 5.169800102 | DC33: 8.167443785 | DD33: 10.92137809 | DE33: 4.972218785 | DF33: 4.474167756 | DG33: 5.867632156 | DH33: 3.209716866 | DI33: 4.818935301 | DJ33: 4.265312375 | DK33: 3.861177501 | DL33: 1.35833835 | DM33: 0.2362389229 | DN33: -224.9298806 | DO33: 26 | DQ33: 0.2318598131 | DR33: 175 | DS33: -230.9275644 | DT33: -203.7963645 | DU33: -251.710021 | ER33: ='GEV Fitting'!B25 -> 19 | ES33: ='GEV Fitting'!C25 -> 0 | ET33: ='GEV Fitting'!$I$4*(EW33-EW32) -> 0.1047599388 | EU33: ='GEV Fitting'!$I$4*(EX33-EX32) -> 0.00879601491 | EV33: ='GEV Fitting'!$I$4*(EY33-EY32) -> 0.3191608461 | EW33: =IF($ET$7=0,EXP(-EXP(-(ER33-$ET$5)/$ET$6)),IF($ET$7*(ER33-$ET$5)/$ET$6>-1,EXP(-1*(1+$ET$7*(ER33-$ET$5)/$ET$6)^(-1/$ET$7)),IF(AND($ET$7>0,$ET$7*(ER33-$ET$5)/$ET$6<=-1),0,1))) -> 0.9961944003 | EX33: =IF($EX$7=0,EXP(-EXP(-(ER33-$EX$5)/$EX$6)),IF($EX$7*(ER33-$EX$5)/$EX$6>-1,EXP(-1*(1+$EX$7*(ER33-$EX$5)/$EX$6)^(-1/$EX$7)),IF(AND($EX$7>0,$EX$7*(ER33-$EX$5)/$EX$6<=-1),0,1))) -> 0.9998426084 | EY33: =IF($EY$7=0,EXP(-EXP(-(ER33-$EY$5)/$EY$6)),IF($EY$7*(ER33-$EY$5)/$EY$6>-1,EXP(-1*(1+$EY$7*(ER33-$EY$5)/$EY$6)^(-1/$EY$7)),IF(AND($EY$7>0,$EY$7*(ER33-$EY$5)/$EY$6<=-1),0,1))) -> 0.981569259
A34: 18 | C34: 4.328807889 | D34: 3.687566185 | E34: 3.581880169 | F34: 3.442950055 | G34: 4.019348754 | H34: 6.74560891 | I34: 3.698023306 | J34: 2.566841123 | K34: 5.087884541 | L34: 5.10065773 | M34: 6.115784476 | N34: 4.008500594 | O34: 2.254270095 | P34: 4.025903529 | Q34: 6.186687619 | R34: 4.565237739 | S34: 4.294219622 | T34: 6.821131398 | U34: 4.355885495 | V34: 7.234457458 | W34: 3.723266503 | X34: 2.853305468 | Y34: 2.696951308 | Z34: 5.511763694 | AA34: 2.729417406 | AB34: 3.186448837 | AC34: 2.533335943 | AD34: 3.974069285 | AE34: 3.684145061 | AF34: 4.937773318 | AG34: 6.848870066 | AH34: 4.617822921 | AI34: 11.0586029 | AJ34: 11.93475677 | AK34: 4.537313879 | AL34: 4.004895538 | AM34: 4.768938451 | AN34: 4.896774122 | AO34: 3.152995053 | AP34: 6.942580154 | AQ34: 3.735405124 | AR34: 4.468334066 | AS34: 1.671125175 | AT34: 2.830827272 | AU34: 6.472860882 | AV34: 4.077362921 | AW34: 6.154297088 | AX34: 4.141946657 | AY34: 2.4614623 | AZ34: 3.194014102 | BA34: 2.09930311 | BB34: 3.326183595 | BC34: 3.729484072 | BD34: 4.422675786 | BE34: 6.585238699 | BF34: 2.376091322 | BG34: 5.378907007 | BH34: 5.269960984 | BI34: 3.218817426 | BJ34: 4.119894097 | BK34: 6.025886828 | BL34: 6.701361287 | BM34: 7.740511933 | BN34: 4.054194284 | BO34: 3.272414379 | BP34: 3.614878225 | BQ34: 5.963703162 | BR34: 7.085702174 | BS34: 2.939111682 | BT34: 3.911598092 | BU34: 3.502599976 | BV34: 2.926192849 | BW34: 5.061979099 | BX34: 1.497948924 | BY34: 5.833471383 | BZ34: 4.346002994 | CA34: 6.971466827 | CB34: 8.515775378 | CC34: 5.235699715 | CD34: 9.902795552 | CE34: 2.975526456 | CF34: 3.338714084 | CG34: 7.067792785 | CH34: 10.71464194 | CI34: 5.713112624 | CJ34: 2.365043661 | CK34: 3.592451955 | CL34: 3.206355997 | CM34: 2.132661606 | CN34: 2.579220225 | CO34: 5.810697597 | CP34: 5.236605253 | CQ34: 8.150509043 | CR34: 2.746597061 | CS34: 8.247944447 | CT34: 5.16692082 | CU34: 6.07850733 | CV34: 3.232161588 | CW34: 4.923994404 | CX34: 4.700788268 | CY34: 2.394957684 | CZ34: 4.265052081 | DA34: 6.161340286 | DB34: 4.680594412 | DC34: 7.755290098 | DD34: 6.462915474 | DE34: 5.325560258 | DF34: 4.649153323 | DG34: 2.358899582 | DH34: 2.696544232 | DI34: 4.857286398 | DJ34: 4.439541189 | DK34: 3.785475598 | DL34: 1.442768975 | DM34: 0.07908768154 | DN34: -222.6475534 | DO34: 101 | DQ34: 0.2625724147 | DR34: 124 | DS34: -234.8927994 | DT34: -205.5718508 | DU34: -259.6846131
A35: 19 | C35: 3.167966942 | D35: 5.653666879 | E35: 5.129081521 | F35: 13.6048528 | G35: 3.776040559 | H35: 1.954237777 | I35: 6.433747651 | J35: 6.018210751 | K35: 4.430351695 | L35: 3.274098449 | M35: 3.358922956 | N35: 2.5844477 | O35: 5.17108304 | P35: 6.286386385 | Q35: 2.355275179 | R35: 5.806428087 | S35: 9.798969207 | T35: 4.101055973 | U35: 6.178356196 | V35: 5.109120199 | W35: 2.989451695 | X35: 2.844097328 | Y35: 6.333853936 | Z35: 4.907170825 | AA35: 4.300930211 | AB35: 5.925114797 | AC35: 4.129094549 | AD35: 3.696583593 | AE35: 3.628159453 | AF35: 3.573115515 | AG35: 5.886488422 | AH35: 5.830162529 | AI35: 4.897997786 | AJ35: 3.85035694 | AK35: 2.578238196 | AL35: 3.691293806 | AM35: 3.078807883 | AN35: 5.282154786 | AO35: 3.872713769 | AP35: 3.064036219 | AQ35: 4.828576623 | AR35: 9.289066094 | AS35: 4.144587879 | AT35: 5.84747317 | AU35: 10.27548147 | AV35: 2.729196981 | AW35: 4.222601808 | AX35: 3.197546179 | AY35: 2.937364799 | AZ35: 6.038085186 | BA35: 8.222158575 | BB35: 2.603404033 | BC35: 3.994254965 | BD35: 5.077881202 | BE35: 4.348868634 | BF35: 6.567764757 | BG35: 7.877012919 | BH35: 4.945725508 | BI35: 5.745642316 | BJ35: 8.022681613 | BK35: 4.862274494 | BL35: 6.813340797 | BM35: 3.31705275 | BN35: 2.783987636 | BO35: 6.00174125 | BP35: 2.345033959 | BQ35: 6.501505255 | BR35: 2.737858412 | BS35: 2.676095534 | BT35: 3.614539356 | BU35: 3.362937962 | BV35: 2.316406825 | BW35: 5.177594026 | BX35: 9.006244999 | BY35: 17.18699599 | BZ35: 5.293949522 | CA35: 5.296709543 | CB35: 3.796057739 | CC35: 3.681590166 | CD35: 5.062819408 | CE35: 6.957031429 | CF35: 11.17171865 | CG35: 5.046519173 | CH35: 9.584436213 | CI35: 5.611923197 | CJ35: 3.401070121 | CK35: 2.512502776 | CL35: 5.469767273 | CM35: 4.151071985 | CN35: 3.041284168 | CO35: 2.95136773 | CP35: 3.178438065 | CQ35: 6.065684901 | CR35: 8.752454642 | CS35: 3.408649487 | CT35: 3.123557006 | CU35: 2.501358337 | CV35: 4.190155485 | CW35: 4.196373667 | CX35: 3.495926041 | CY35: 1.935582063 | CZ35: 3.346517653 | DA35: 4.661029355 | DB35: 7.096410133 | DC35: 2.667614732 | DD35: 1.94835775 | DE35: 4.258293016 | DF35: 8.414946323 | DG35: 5.869077733 | DH35: 7.267714927 | DI35: 6.600282268 | DJ35: 4.399645917 | DK35: 3.823330354 | DL35: 1.457342399 | DM35: 0.1915189358 | DN35: -231.773682 | DO35: 13 | DQ35: 0.2932850164 | DR35: 97 | DS35: -235.2713255 | DT35: -206.1956046 | DU35: -250.3769382
A36: 20 | C36: 3.813940517 | D36: 6.536229757 | E36: 5.100217271 | F36: 3.16580703 | G36: 10.88554319 | H36: 3.587341583 | I36: 5.128298777 | J36: 6.49250792 | K36: 4.988903345 | L36: 3.222515453 | M36: 3.911550789 | N36: 3.743881859 | O36: 5.69024157 | P36: 7.337118238 | Q36: 14.34295216 | R36: 4.383917653 | S36: 10.30144218 | T36: 4.079613547 | U36: 5.785818135 | V36: 9.60923595 | W36: 6.476412894 | X36: 5.871291077 | Y36: 4.140141628 | Z36: 2.843610523 | AA36: 3.646783456 | AB36: 11.28221334 | AC36: 4.999899682 | AD36: 4.192367429 | AE36: 2.493903416 | AF36: 6.932767095 | AG36: 2.240821351 | AH36: 3.836964887 | AI36: 3.073872971 | AJ36: 2.668854756 | AK36: 4.729702152 | AL36: 11.84692691 | AM36: 2.325067432 | AN36: 2.477382823 | AO36: 3.860205487 | AP36: 5.22294065 | AQ36: 6.292185924 | AR36: 4.497263107 | AS36: 2.727811224 | AT36: 3.717638237 | AU36: 3.844497715 | AV36: 10.26551824 | AW36: 4.339924763 | AX36: 4.718641455 | AY36: 6.376787233 | AZ36: 5.909207901 | BA36: 3.335363486 | BB36: 2.388156116 | BC36: 3.927809896 | BD36: 2.482484351 | BE36: 2.630531705 | BF36: 4.086849985 | BG36: 6.157754131 | BH36: 4.630294475 | BI36: 2.480746901 | BJ36: 3.892907655 | BK36: 4.555658499 | BL36: 4.81991558 | BM36: 2.931592544 | BN36: 6.220753248 | BO36: 5.342349553 | BP36: 4.924991985 | BQ36: 2.671958387 | BR36: 3.131066214 | BS36: 7.972601601 | BT36: 6.249268145 | BU36: 4.136375907 | BV36: 6.479330353 | BW36: 3.700852661 | BX36: 7.83592811 | BY36: 10.21907981 | BZ36: 3.223675695 | CA36: 5.202536123 | CB36: 4.111084269 | CC36: 2.109341192 | CD36: 9.651444489 | CE36: 2.171138742 | CF36: 2.976782845 | CG36: 5.429134518 | CH36: 5.348289248 | CI36: 5.680097859 | CJ36: 4.342002363 | CK36: 5.005427781 | CL36: 3.505968255 | CM36: 6.668225403 | CN36: 4.83267862 | CO36: 4.128891214 | CP36: 5.686729741 | CQ36: 2.608018773 | CR36: 3.97381311 | CS36: 3.691138628 | CT36: 3.234497813 | CU36: 3.305165671 | CV36: 2.821824701 | CW36: 7.382083917 | CX36: 16.2300343 | CY36: 3.897681162 | CZ36: 5.995009101 | DA36: 1.910443703 | DB36: 5.983022507 | DC36: 5.686498089 | DD36: 2.416672641 | DE36: 4.600796983 | DF36: 2.081412066 | DG36: 4.094321223 | DH36: 5.205088077 | DI36: 5.302304975 | DJ36: 2.732249169 | DK36: 3.785475598 | DL36: 1.471915823 | DM36: 0.2181626818 | DN36: -233.804993 | DO36: 8 | DQ36: 0.3239976181 | DR36: 75 | DS36: -237.455937 | DT36: -214.691182 | DU36: -268.4130911
A37: 21 | C37: 2.286917549 | D37: 4.240908023 | E37: 5.448342444 | F37: 7.238623539 | G37: 5.188162661 | H37: 3.644015693 | I37: 3.19040543 | J37: 3.254966604 | K37: 7.591655858 | L37: 7.166808475 | M37: 4.117068796 | N37: 4.22429189 | O37: 4.834248438 | P37: 4.751110492 | Q37: 6.020035147 | R37: 3.384227054 | S37: 3.533642014 | T37: 4.040898314 | U37: 4.424936942 | V37: 3.544110002 | W37: 4.249324326 | X37: 3.39281235 | Y37: 3.029569118 | Z37: 2.42746591 | AA37: 3.548709122 | AB37: 6.868798025 | AC37: 4.855562934 | AD37: 5.834866778 | AE37: 5.188512107 | AF37: 7.195381086 | AG37: 5.018343226 | AH37: 5.105496063 | AI37: 3.274203241 | AJ37: 4.18438671 | AK37: 9.029507217 | AL37: 4.860768101 | AM37: 2.737201389 | AN37: 7.167332546 | AO37: 2.202429809 | AP37: 6.248046107 | AQ37: 3.677683963 | AR37: 2.653695339 | AS37: 5.598094743 | AT37: 5.397412654 | AU37: 25.67573246 | AV37: 3.789243487 | AW37: 4.576523205 | AX37: 4.008401245 | AY37: 3.353275404 | AZ37: 3.509526711 | BA37: 5.742556428 | BB37: 3.247337886 | BC37: 2.320903643 | BD37: 4.872612037 | BE37: 2.906200228 | BF37: 3.236841234 | BG37: 4.434411586 | BH37: 1.764393676 | BI37: 5.83899215 | BJ37: 4.076252443 | BK37: 3.089573776 | BL37: 3.535127115 | BM37: 2.327895818 | BN37: 2.444208342 | BO37: 2.350518808 | BP37: 8.641842136 | BQ37: 2.235934459 | BR37: 11.61795 | BS37: 1.909636785 | BT37: 3.592866761 | BU37: 3.112838476 | BV37: 4.199166568 | BW37: 5.096931536 | BX37: 2.767798 | BY37: 8.134457277 | BZ37: 3.844945466 | CA37: 2.909220799 | CB37: 2.499033743 | CC37: 7.620030201 | CD37: 3.240462732 | CE37: 4.409474767 | CF37: 4.411401907 | CG37: 2.904568348 | CH37: 6.226439501 | CI37: 20.23248564 | CJ37: 2.31174144 | CK37: 2.506276509 | CL37: 6.640058576 | CM37: 5.999116514 | CN37: 3.593773283 | CO37: 5.013350528 | CP37: 2.896986111 | CQ37: 12.96260974 | CR37: 3.547965143 | CS37: 2.48003208 | CT37: 8.001502175 | CU37: 7.2095346 | CV37: 4.798464627 | CW37: 5.317433322 | CX37: 10.97784964 | CY37: 3.205605613 | CZ37: 2.304486218 | DA37: 8.333846032 | DB37: 6.875103051 | DC37: 2.989508532 | DD37: 5.508056429 | DE37: 5.159605936 | DF37: 4.886646847 | DG37: 2.001469676 | DH37: 10.69863552 | DI37: 7.912971133 | DJ37: 3.190422202 | DK37: 3.564663028 | DL37: 1.428341285 | DM37: 0.3215985197 | DN37: -236.6622177 | DO37: 50 | DQ37: 0.3547102198 | DR37: 33 | DS37: -237.1234266 | DT37: -217.4421855 | DU37: -258.2560781
A38: 22 | C38: 4.233047301 | D38: 7.345584404 | E38: 4.05039865 | F38: 17.70081034 | G38: 3.164520324 | H38: 7.270325472 | I38: 2.626586202 | J38: 3.645655033 | K38: 4.021262329 | L38: 4.853556205 | M38: 9.027596202 | N38: 8.064528792 | O38: 7.813632432 | P38: 2.868910586 | Q38: 7.278101896 | R38: 5.254338473 | S38: 2.510295856 | T38: 3.471082251 | U38: 4.403621598 | V38: 4.936658727 | W38: 5.41870607 | X38: 3.409189289 | Y38: 3.439290936 | Z38: 3.886381688 | AA38: 3.64177163 | AB38: 4.971546567 | AC38: 5.098194936 | AD38: 3.819168156 | AE38: 4.135171656 | AF38: 3.501091189 | AG38: 5.867189325 | AH38: 8.969211319 | AI38: 4.593308719 | AJ38: 2.729042978 | AK38: 3.283235991 | AL38: 7.444375458 | AM38: 5.08388665 | AN38: 3.63901665 | AO38: 3.790770947 | AP38: 3.613410338 | AQ38: 10.01323531 | AR38: 4.899684884 | AS38: 3.400818109 | AT38: 5.51417772 | AU38: 7.050281525 | AV38: 2.576331748 | AW38: 4.685205624 | AX38: 9.03308488 | AY38: 2.692872717 | AZ38: 6.354816516 | BA38: 3.127660453 | BB38: 17.29282794 | BC38: 3.517648417 | BD38: 3.571205154 | BE38: 4.353722321 | BF38: 5.480676939 | BG38: 4.546003559 | BH38: 5.2307507 | BI38: 4.436837194 | BJ38: 5.794967672 | BK38: 3.920921567 | BL38: 3.894140422 | BM38: 4.873805909 | BN38: 7.401130107 | BO38: 2.896013675 | BP38: 2.419188459 | BQ38: 3.225835161 | BR38: 4.175578593 | BS38: 2.982262658 | BT38: 6.005823867 | BU38: 2.51987782 | BV38: 3.586032853 | BW38: 5.479343047 | BX38: 2.807970921 | BY38: 3.673360603 | BZ38: 4.91070638 | CA38: 5.985358502 | CB38: 3.94430122 | CC38: 3.764077147 | CD38: 3.048975857 | CE38: 3.744878372 | CF38: 7.623620031 | CG38: 3.898177188 | CH38: 2.538871349 | CI38: 14.26229568 | CJ38: 4.086035761 | CK38: 5.650382039 | CL38: 3.36922519 | CM38: 3.118137518 | CN38: 4.873899297 | CO38: 10.42985832 | CP38: 5.550728454 | CQ38: 6.025792748 | CR38: 4.468507225 | CS38: 4.987208431 | CT38: 4.732756832 | CU38: 5.278077441 | CV38: 4.196404636 | CW38: 2.377970823 | CX38: 6.614427713 | CY38: 5.538548068 | CZ38: 3.936633152 | DA38: 3.668012664 | DB38: 7.121003367 | DC38: 2.708559485 | DD38: 9.993157387 | DE38: 6.297333104 | DF38: 5.153871279 | DG38: 4.481109441 | DH38: 3.945826613 | DI38: 3.893834518 | DJ38: 1.600831886 | DK38: 3.900179294 | DL38: 1.38591812 | DM38: 0.2054780131 | DN38: -226.4806144 | DO38: 13 | DQ38: 0.3854228214 | DR38: 24 | DS38: -240.3879889 | DT38: -205.6820912 | DU38: -258.2860662
A39: 23 | C39: 3.301632376 | D39: 3.569262524 | E39: 5.990625616 | F39: 9.595666903 | G39: 4.86459843 | H39: 9.863759161 | I39: 2.594141543 | J39: 5.030107607 | K39: 5.618593942 | L39: 3.232272341 | M39: 4.691950544 | N39: 3.593123431 | O39: 4.023092243 | P39: 13.37849857 | Q39: 11.56262067 | R39: 4.863081002 | S39: 4.443394491 | T39: 2.849255597 | U39: 3.732556682 | V39: 9.950403481 | W39: 2.929327963 | X39: 4.65919846 | Y39: 3.666307484 | Z39: 4.049957031 | AA39: 4.713425836 | AB39: 6.776641892 | AC39: 3.345838274 | AD39: 7.210572264 | AE39: 2.5156576 | AF39: 3.754018623 | AG39: 6.7603096 | AH39: 7.444427387 | AI39: 2.988453357 | AJ39: 8.445697395 | AK39: 9.641914571 | AL39: 4.763018507 | AM39: 2.678984775 | AN39: 2.561281071 | AO39: 5.990766629 | AP39: 3.607195712 | AQ39: 4.291906033 | AR39: 3.580643457 | AS39: 2.426004084 | AT39: 4.939700696 | AU39: 3.570171266 | AV39: 1.966279785 | AW39: 6.048603521 | AX39: 4.17070833 | AY39: 2.745093736 | AZ39: 7.014943297 | BA39: 6.648342905 | BB39: 7.672970857 | BC39: 4.014577527 | BD39: 4.387368054 | BE39: 3.216039636 | BF39: 4.961547854 | BG39: 4.381185531 | BH39: 4.649229964 | BI39: 3.974467506 | BJ39: 3.291169218 | BK39: 3.435606145 | BL39: 4.578327197 | BM39: 6.42155811 | BN39: 3.670591543 | BO39: 4.495248335 | BP39: 3.971828927 | BQ39: 4.761614441 | BR39: 2.47169211 | BS39: 3.790349521 | BT39: 2.897691129 | BU39: 8.106044481 | BV39: 7.8383293 | BW39: 9.683235719 | BX39: 5.178029122 | BY39: 2.410122998 | BZ39: 4.949012115 | CA39: 3.620426148 | CB39: 8.719107927 | CC39: 3.092549076 | CD39: 5.444518681 | CE39: 7.208473249 | CF39: 3.732686732 | CG39: 2.540944086 | CH39: 5.1644174 | CI39: 4.007291264 | CJ39: 4.459070545 | CK39: 2.912332932 | CL39: 9.469001103 | CM39: 3.562361183 | CN39: 9.972569342 | CO39: 8.939697011 | CP39: 7.41405518 | CQ39: 2.528642751 | CR39: 3.315086498 | CS39: 4.228085135 | CT39: 11.22515603 | CU39: 5.875623917 | CV39: 5.06099202 | CW39: 3.768197424 | CX39: 3.890422622 | CY39: 3.598598026 | CZ39: 4.020554316 | DA39: 5.135262871 | DB39: 6.859567767 | DC39: 4.122261979 | DD39: 2.113356973 | DE39: 3.194868409 | DF39: 3.734787326 | DG39: 3.796155659 | DH39: 15.77522139 | DI39: 3.945169313 | DJ39: 6.733565259 | DK39: 3.861177501 | DL39: 1.414057872 | DM39: 0.27155055 | DN39: -232.9668728 | DO39: 36 | DQ39: 0.4161354231 | DR39: 4 | DS39: -246.670437 | DT39: -229.1631605 | DU39: -254.5568552
A40: 24 | C40: 2.857380903 | D40: 4.214377903 | E40: 6.382322847 | F40: 3.511775282 | G40: 2.43494328 | H40: 8.079065708 | I40: 3.40811454 | J40: 8.253490375 | K40: 3.891669607 | L40: 5.760065949 | M40: 3.972127984 | N40: 5.788148407 | O40: 3.690399751 | P40: 5.911196719 | Q40: 2.128773352 | R40: 3.242356217 | S40: 3.154542882 | T40: 3.671176326 | U40: 9.831353064 | V40: 4.961802316 | W40: 7.400583489 | X40: 3.11381159 | Y40: 3.024785701 | Z40: 5.506567501 | AA40: 4.117535598 | AB40: 3.051860639 | AC40: 3.171471439 | AD40: 7.576469891 | AE40: 3.724676495 | AF40: 4.233480854 | AG40: 4.6606913 | AH40: 3.823133011 | AI40: 3.837444303 | AJ40: 12.83618488 | AK40: 5.012952056 | AL40: 7.272242124 | AM40: 3.221888724 | AN40: 8.022659849 | AO40: 5.944930944 | AP40: 2.420511262 | AQ40: 2.965360947 | AR40: 5.685075373 | AS40: 4.685088034 | AT40: 8.140965752 | AU40: 2.087044658 | AV40: 3.596129831 | AW40: 4.71429769 | AX40: 5.554638472 | AY40: 3.647126297 | AZ40: 3.574656842 | BA40: 10.77457125 | BB40: 6.033770266 | BC40: 8.085730877 | BD40: 5.874345644 | BE40: 5.092345409 | BF40: 2.209251733 | BG40: 3.649743946 | BH40: 10.25528336 | BI40: 5.437043496 | BJ40: 3.049025709 | BK40: 3.040354432 | BL40: 5.475138515 | BM40: 6.677295067 | BN40: 8.389549773 | BO40: 1.759059078 | BP40: 4.95942868 | BQ40: 3.249566948 | BR40: 3.672497767 | BS40: 7.075088437 | BT40: 6.466534836 | BU40: 5.82629908 | BV40: 9.51798551 | BW40: 2.164563401 | BX40: 5.455377218 | BY40: 2.281717428 | BZ40: 3.782030037 | CA40: 15.60303146 | CB40: 3.337465559 | CC40: 3.538648203 | CD40: 8.598764811 | CE40: 4.475078357 | CF40: 3.674318455 | CG40: 2.474860891 | CH40: 7.245368606 | CI40: 3.585473974 | CJ40: 3.672688038 | CK40: 3.079246355 | CL40: 3.647494679 | CM40: 4.412549723 | CN40: 2.526615999 | CO40: 3.53247174 | CP40: 3.627209042 | CQ40: 6.00577787 | CR40: 8.808982336 | CS40: 3.584437289 | CT40: 8.917094937 | CU40: 3.784909683 | CV40: 3.163822123 | CW40: 3.383024232 | CX40: 6.420656854 | CY40: 6.604351754 | CZ40: 8.518387625 | DA40: 3.871761199 | DB40: 2.447586973 | DC40: 3.795786972 | DD40: 4.008819231 | DE40: 4.181591268 | DF40: 3.096288195 | DG40: 2.871981902 | DH40: 6.866064962 | DI40: 3.787344963 | DJ40: 3.779990915 | DK40: 3.785475598 | DL40: 1.442768975 | DM40: 0.2270209615 | DN40: -232.1983522 | DO40: 12 | DQ40: 0.4468480248 | DR40: 3 | DS40: -242.4745308 | DT40: -240.2710542 | DU40: -243.9789644
A41: 25 | C41: 3.091611006 | D41: 3.113165274 | E41: 9.597639752 | F41: 9.33172161 | G41: 2.420364602 | H41: 3.41352787 | I41: 1.503946615 | J41: 2.96522736 | K41: 3.880201507 | L41: 3.710443151 | M41: 5.643698159 | N41: 3.672736429 | O41: 1.716088229 | P41: 3.957665218 | Q41: 3.241242917 | R41: 11.50220585 | S41: 9.25541698 | T41: 4.469819647 | U41: 3.848881269 | V41: 3.30377357 | W41: 2.304461707 | X41: 4.281355606 | Y41: 7.536861982 | Z41: 13.33506303 | AA41: 5.021106421 | AB41: 5.501097084 | AC41: 4.432681958 | AD41: 3.907650452 | AE41: 3.977820484 | AF41: 3.601401943 | AG41: 9.075170866 | AH41: 4.971443057 | AI41: 5.827960127 | AJ41: 5.279393286 | AK41: 3.169625818 | AL41: 2.094684133 | AM41: 1.898674464 | AN41: 6.810019506 | AO41: 3.041791427 | AP41: 2.320709155 | AQ41: 3.81635267 | AR41: 4.660245951 | AS41: 4.737572313 | AT41: 3.311684145 | AU41: 6.30409008 | AV41: 4.218195204 | AW41: 5.570488416 | AX41: 4.594936759 | AY41: 2.468800005 | AZ41: 3.687038997 | BA41: 3.294801254 | BB41: 5.729029457 | BC41: 4.018076921 | BD41: 6.814472247 | BE41: 3.595265753 | BF41: 3.084416582 | BG41: 3.088556197 | BH41: 3.495343961 | BI41: 7.263843154 | BJ41: 2.140575097 | BK41: 5.580989878 | BL41: 2.172233747 | BM41: 2.74207014 | BN41: 3.089477394 | BO41: 4.680870507 | BP41: 4.491126372 | BQ41: 4.653441696 | BR41: 2.882406334 | BS41: 2.465663359 | BT41: 3.404539359 | BU41: 9.739778791 | BV41: 4.312407695 | BW41: 7.679755858 | BX41: 4.304167015 | BY41: 4.579822652 | BZ41: 2.595197586 | CA41: 2.401159568 | CB41: 3.810948225 | CC41: 8.514390356 | CD41: 3.255791844 | CE41: 3.061920733 | CF41: 4.110082306 | CG41: 4.343701913 | CH41: 3.3801824 | CI41: 8.006789638 | CJ41: 3.128087546 | CK41: 8.738646813 | CL41: 3.356874577 | CM41: 4.215668909 | CN41: 1.908048914 | CO41: 2.790434795 | CP41: 2.559038963 | CQ41: 9.188203997 | CR41: 3.121806794 | CS41: 2.70153488 | CT41: 4.962892987 | CU41: 2.630844545 | CV41: 4.685628301 | CW41: 5.08318352 | CX41: 3.705285174 | CY41: 2.89514373 | CZ41: 8.339815662 | DA41: 3.905389612 | DB41: 2.458089894 | DC41: 3.464748483 | DD41: 8.846505058 | DE41: 3.442767087 | DF41: 7.724115529 | DG41: 5.43608285 | DH41: 3.924335614 | DI41: 19.27351438 | DJ41: 4.51517871 | DK41: 3.458788972 | DL41: 1.372058939 | DM41: 0.2583710308 | DN41: -228.7479864 | DO41: 35 | DQ41: 0.4775606264 | DR41: 1 | DS41: -233.6506996 | DT41: -233.6506996 | DU41: -233.6506996
A42: 26 | C42: 5.559094978 | D42: 4.952406812 | E42: 6.586774028 | F42: 8.276153911 | G42: 3.608606043 | H42: 8.326964627 | I42: 6.383346768 | J42: 5.556191061 | K42: 7.661882372 | L42: 4.781550247 | M42: 1.454457972 | N42: 4.912620203 | O42: 12.79827518 | P42: 2.894678801 | Q42: 2.407416125 | R42: 4.024914216 | S42: 5.588603186 | T42: 4.656191096 | U42: 2.652764597 | V42: 5.24444467 | W42: 2.963564111 | X42: 1.562762715 | Y42: 5.797286284 | Z42: 3.380461202 | AA42: 2.233015291 | AB42: 4.934364448 | AC42: 4.060704065 | AD42: 5.211336535 | AE42: 4.919767626 | AF42: 6.998487283 | AG42: 2.619298626 | AH42: 1.593862826 | AI42: 2.231564856 | AJ42: 5.046591871 | AK42: 6.833466611 | AL42: 5.161641595 | AM42: 5.133308706 | AN42: 3.10402417 | AO42: 2.780626448 | AP42: 2.453009785 | AQ42: 6.493671423 | AR42: 7.079775898 | AS42: 2.656292026 | AT42: 5.149660818 | AU42: 5.86199026 | AV42: 2.857711311 | AW42: 2.727442379 | AX42: 2.924631752 | AY42: 6.937745174 | AZ42: 3.492878697 | BA42: 4.78715756 | BB42: 2.747912761 | BC42: 2.115355499 | BD42: 6.663053198 | BE42: 2.658234752 | BF42: 5.140603254 | BG42: 4.327824032 | BH42: 3.789173665 | BI42: 5.273282881 | BJ42: 4.165190839 | BK42: 5.674087746 | BL42: 11.68886239 | BM42: 3.848884171 | BN42: 2.770797273 | BO42: 4.613151422 | BP42: 3.417010176 | BQ42: 3.158522703 | BR42: 4.62226851 | BS42: 5.99580211 | BT42: 3.809529145 | BU42: 2.419987353 | BV42: 7.201752525 | BW42: 5.25113231 | BX42: 4.568495568 | BY42: 2.728669596 | BZ42: 3.211974471 | CA42: 2.952072418 | CB42: 4.147914431 | CC42: 4.057141356 | CD42: 3.606641613 | CE42: 7.550820246 | CF42: 4.567262163 | CG42: 6.188942151 | CH42: 5.791421007 | CI42: 4.907392593 | CJ42: 5.263222537 | CK42: 5.08281891 | CL42: 5.774583713 | CM42: 2.697735936 | CN42: 13.23124234 | CO42: 5.033587819 | CP42: 3.571000091 | CQ42: 9.21487285 | CR42: 2.372029785 | CS42: 2.251737718 | CT42: 4.173768613 | CU42: 5.489958212 | CV42: 3.623821794 | CW42: 4.942459481 | CX42: 5.149558752 | CY42: 4.646655665 | CZ42: 5.661756901 | DA42: 5.892467199 | DB42: 4.918068559 | DC42: 7.517370828 | DD42: 4.252516036 | DE42: 5.402235167 | DF42: 3.769876602 | DG42: 2.797675454 | DH42: 3.843904077 | DI42: 3.062375917 | DJ42: 4.224126339 | DK42: 3.747620842 | DL42: 1.501501331 | DM42: 0.0815085675 | DN42: -225.6581029 | DO42: 101 | DQ42: =MAX(DM17:DM1016) -> 0.5082732281 | DR42: 1 | DS42: -245.7736905 | DT42: -245.7736905 | DU42: -245.7736905
A43: 27 | C43: 3.193260723 | D43: 2.666712065 | E43: 3.557193267 | F43: 4.609572104 | G43: 7.250642881 | H43: 6.745595487 | I43: 4.432020227 | J43: 2.417256436 | K43: 3.328318145 | L43: 3.052688723 | M43: 25.44176649 | N43: 3.330406389 | O43: 2.807105885 | P43: 3.838591756 | Q43: 3.018326966 | R43: 4.586734287 | S43: 7.367383891 | T43: 4.705747731 | U43: 5.497711128 | V43: 11.50858445 | W43: 13.70729856 | X43: 4.371640583 | Y43: 3.720504631 | Z43: 7.670827662 | AA43: 6.668238324 | AB43: 4.01196787 | AC43: 4.241299716 | AD43: 2.717695904 | AE43: 4.549491883 | AF43: 3.126259245 | AG43: 4.422292679 | AH43: 2.833321243 | AI43: 3.481303367 | AJ43: 5.749967989 | AK43: 7.302308426 | AL43: 4.894593799 | AM43: 5.162700389 | AN43: 4.641469356 | AO43: 8.183202438 | AP43: 2.866905979 | AQ43: 3.715637796 | AR43: 6.500372915 | AS43: 3.823382538 | AT43: 3.534753683 | AU43: 3.262663447 | AV43: 3.320058358 | AW43: 19.56146992 | AX43: 8.765291687 | AY43: 4.101922818 | AZ43: 6.339854551 | BA43: 2.755159157 | BB43: 4.394067205 | BC43: 7.935228529 | BD43: 2.164123567 | BE43: 2.292221861 | BF43: 2.989176715 | BG43: 8.920873117 | BH43: 2.962829661 | BI43: 2.883543607 | BJ43: 4.246678071 | BK43: 3.590664806 | BL43: 3.080419793 | BM43: 4.76626801 | BN43: 6.898059098 | BO43: 4.321806495 | BP43: 3.213563014 | BQ43: 2.467532983 | BR43: 9.162442918 | BS43: 8.683084979 | BT43: 2.984714816 | BU43: 9.065797574 | BV43: 4.463528967 | BW43: 6.568000688 | BX43: 4.873209751 | BY43: 4.241742207 | BZ43: 4.364458001 | CA43: 2.948910113 | CB43: 9.575666959 | CC43: 4.849522516 | CD43: 2.578885155 | CE43: 7.514937158 | CF43: 6.010055302 | CG43: 4.452405292 | CH43: 3.683713383 | CI43: 3.176447832 | CJ43: 4.534369829 | CK43: 10.42511975 | CL43: 2.232830187 | CM43: 4.724749014 | CN43: 4.218104593 | CO43: 3.663098096 | CP43: 4.399168795 | CQ43: 3.763242482 | CR43: 5.042631989 | CS43: 4.556572141 | CT43: 2.686874539 | CU43: 3.252809298 | CV43: 3.755092122 | CW43: 4.769676077 | CX43: 4.493624535 | CY43: 4.519328217 | CZ43: 9.144935534 | DA43: 5.961680709 | DB43: 5.846712611 | DC43: 2.208471495 | DD43: 3.77930389 | DE43: 9.766196061 | DF43: 7.82094204 | DG43: 6.479994702 | DH43: 5.538948437 | DI43: 3.074361529 | DJ43: 4.773049341 | DK43: 3.746871355 | DL43: 1.35833835 | DM43: 0.3696692054 | DN43: -234.5129216 | DO43: 72
A44: 28 | C44: 4.4592573 | D44: 3.358369682 | E44: 4.730680983 | F44: 4.285407675 | G44: 7.489872735 | H44: 3.699763174 | I44: 3.273252369 | J44: 21.19364344 | K44: 3.125348873 | L44: 2.858141206 | M44: 5.674538394 | N44: 3.267402733 | O44: 4.745217376 | P44: 6.554307743 | Q44: 4.6031024 | R44: 4.22443395 | S44: 8.826690034 | T44: 9.33250416 | U44: 2.597378481 | V44: 4.190082043 | W44: 4.063218762 | X44: 2.705668727 | Y44: 4.57788706 | Z44: 3.570902442 | AA44: 3.946416813 | AB44: 7.797049159 | AC44: 3.925521265 | AD44: 4.177748523 | AE44: 2.506145901 | AF44: 7.216120271 | AG44: 8.561194124 | AH44: 11.85438291 | AI44: 6.848165766 | AJ44: 2.577255921 | AK44: 9.81139753 | AL44: 14.47960541 | AM44: 5.863688145 | AN44: 5.727903882 | AO44: 2.550827104 | AP44: 4.641576822 | AQ44: 3.111636229 | AR44: 10.06732458 | AS44: 10.36618716 | AT44: 5.414869973 | AU44: 7.693719405 | AV44: 1.860297332 | AW44: 6.112848649 | AX44: 4.255841347 | AY44: 10.23934532 | AZ44: 5.479212726 | BA44: 3.17313819 | BB44: 6.013882827 | BC44: 4.426150172 | BD44: 1.907542727 | BE44: 4.17773089 | BF44: 6.273760175 | BG44: 3.781941915 | BH44: 8.916837193 | BI44: 4.559437098 | BJ44: 3.458663337 | BK44: 7.501049545 | BL44: 5.178181093 | BM44: 8.585654401 | BN44: 5.774920648 | BO44: 3.044817645 | BP44: 1.858721132 | BQ44: 3.322541463 | BR44: 6.860373677 | BS44: 5.959110511 | BT44: 11.46807373 | BU44: 4.904352172 | BV44: 3.503059229 | BW44: 14.68281379 | BX44: 5.209659672 | BY44: 5.259516733 | BZ44: 8.115406962 | CA44: 2.925143113 | CB44: 4.258256571 | CC44: 3.681721865 | CD44: 5.181013297 | CE44: 5.703854576 | CF44: 4.131298031 | CG44: 5.039086215 | CH44: 4.06413453 | CI44: 5.394656965 | CJ44: 7.904221788 | CK44: 5.18837122 | CL44: 5.315503655 | CM44: 3.546722159 | CN44: 3.359814143 | CO44: 2.083215895 | CP44: 3.828278048 | CQ44: 2.688190499 | CR44: 3.875350125 | CS44: 3.69629446 | CT44: 4.058910327 | CU44: 1.806508241 | CV44: 6.35442922 | CW44: 3.052869107 | CX44: 2.623768997 | CY44: 6.497595681 | CZ44: 3.575896921 | DA44: 1.858887701 | DB44: 5.707598001 | DC44: 9.563551734 | DD44: 2.548444087 | DE44: 4.541212199 | DF44: 7.882222464 | DG44: 3.600035436 | DH44: 4.559348385 | DI44: 4.065282811 | DJ44: 4.447749693 | DK44: 3.939181087 | DL44: 1.675177507 | DM44: 0.2096500491 | DN44: -249.2389935 | DO44: 21
A45: 29 | C45: 5.267752632 | D45: 18.67848727 | E45: 1.775128323 | F45: 4.516282398 | G45: 7.093524843 | H45: 2.339959659 | I45: 3.42170335 | J45: 4.427070604 | K45: 5.073883706 | L45: 5.477514328 | M45: 4.165950428 | N45: 6.203794827 | O45: 5.374214849 | P45: 3.703866413 | Q45: 3.841746358 | R45: 4.869332815 | S45: 5.282045064 | T45: 3.29035985 | U45: 3.857230749 | V45: 6.283274178 | W45: 6.437431857 | X45: 2.637476446 | Y45: 3.879130129 | Z45: 3.787029201 | AA45: 4.244673162 | AB45: 14.30364427 | AC45: 3.229698996 | AD45: 5.445248004 | AE45: 3.470931621 | AF45: 4.190458778 | AG45: 3.141111265 | AH45: 4.964122217 | AI45: 3.017991817 | AJ45: 2.43504621 | AK45: 11.1663996 | AL45: 2.605802423 | AM45: 8.388382811 | AN45: 5.963188238 | AO45: 4.287602033 | AP45: 7.175779445 | AQ45: 6.006045711 | AR45: 1.931756459 | AS45: 4.582394389 | AT45: 4.368669975 | AU45: 4.397592663 | AV45: 6.550122713 | AW45: 3.005981769 | AX45: 6.055789138 | AY45: 4.930990449 | AZ45: 2.856761403 | BA45: 4.435433811 | BB45: 10.45514946 | BC45: 5.119292753 | BD45: 4.63963631 | BE45: 11.57366819 | BF45: 6.111037069 | BG45: 2.197370281 | BH45: 2.818152931 | BI45: 3.833506564 | BJ45: 3.700475648 | BK45: 12.01584495 | BL45: 4.476920593 | BM45: 6.523672553 | BN45: 4.225365514 | BO45: 5.207696233 | BP45: 4.174519933 | BQ45: 2.994977886 | BR45: 2.758429105 | BS45: 6.070665656 | BT45: 3.508426828 | BU45: 4.089335572 | BV45: 3.099268391 | BW45: 2.562101106 | BX45: 11.51438796 | BY45: 9.68570701 | BZ45: 4.850333439 | CA45: 4.335266468 | CB45: 2.353677247 | CC45: 7.585308501 | CD45: 4.103140983 | CE45: 3.253052641 | CF45: 3.330621396 | CG45: 3.259942248 | CH45: 4.872832914 | CI45: 3.311243958 | CJ45: 2.008273355 | CK45: 7.083170565 | CL45: 4.10688487 | CM45: 13.94236155 | CN45: 3.623121034 | CO45: 5.218935202 | CP45: 7.972536312 | CQ45: 3.276550812 | CR45: 2.076665763 | CS45: 3.861386581 | CT45: 4.973088358 | CU45: 4.430358571 | CV45: 32.411327 | CW45: 3.506860716 | CX45: 5.223930868 | CY45: 3.656698538 | CZ45: 12.42325687 | DA45: 3.507176664 | DB45: 2.632987674 | DC45: 1.973953926 | DD45: 3.686796126 | DE45: 3.384882044 | DF45: 2.62299475 | DG45: 4.575307127 | DH45: 3.673997984 | DI45: 5.039955851 | DJ45: 3.064871056 | DK45: 3.673777906 | DL45: 1.471915823 | DM45: 0.3215985197 | DN45: -241.1059561 | DO45: 46
A46: 30 | C46: 9.929129348 | D46: 3.797966651 | E46: 3.087096991 | F46: 6.355897186 | G46: 4.428086955 | H46: 5.568784413 | I46: 3.148401415 | J46: 10.178886 | K46: 5.721998854 | L46: 3.715352134 | M46: 5.637267308 | N46: 3.647439409 | O46: 2.299742481 | P46: 3.102739835 | Q46: 2.760056329 | R46: 4.785705645 | S46: 2.975077368 | T46: 3.894199994 | U46: 1.88165654 | V46: 5.916119317 | W46: 4.4799724 | X46: 2.203784981 | Y46: 3.166404343 | Z46: 2.493637665 | AA46: 10.14727233 | AB46: 10.73755335 | AC46: 3.15969192 | AD46: 2.003207318 | AE46: 4.670862479 | AF46: 1.272989946 | AG46: 4.935381307 | AH46: 4.409564907 | AI46: 2.816209675 | AJ46: 3.420067582 | AK46: 2.370757521 | AL46: 4.519621116 | AM46: 3.737304151 | AN46: 10.67848158 | AO46: 3.147646808 | AP46: 6.235227117 | AQ46: 5.488700397 | AR46: 20.50481054 | AS46: 3.151705209 | AT46: 5.728561664 | AU46: 3.329292528 | AV46: 3.765415567 | AW46: 2.880944249 | AX46: 8.610486429 | AY46: 1.981205506 | AZ46: 4.276722794 | BA46: 9.062545104 | BB46: 3.95330695 | BC46: 3.291376791 | BD46: 6.071170056 | BE46: 3.65828589 | BF46: 5.160380888 | BG46: 3.49567575 | BH46: 4.569475955 | BI46: 3.977003509 | BJ46: 3.824009898 | BK46: 4.162160252 | BL46: 3.315380329 | BM46: 15.1435564 | BN46: 12.00446424 | BO46: 3.178238957 | BP46: 5.901466658 | BQ46: 4.126047875 | BR46: 7.696750578 | BS46: 5.324953941 | BT46: 2.035512609 | BU46: 1.905065386 | BV46: 4.314919986 | BW46: 3.468320757 | BX46: 1.834572846 | BY46: 6.388845527 | BZ46: 2.641834185 | CA46: 6.470023757 | CB46: 6.458347219 | CC46: 5.003060866 | CD46: 2.739679659 | CE46: 4.072479225 | CF46: 2.263167949 | CG46: 5.702433402 | CH46: 5.372446599 | CI46: 3.86070921 | CJ46: 4.178789274 | CK46: 6.931445643 | CL46: 3.81464507 | CM46: 4.235428169 | CN46: 9.149846646 | CO46: 4.553055095 | CP46: 3.29115058 | CQ46: 2.846296491 | CR46: 3.996567167 | CS46: 7.533735038 | CT46: 2.435688951 | CU46: 4.868569192 | CV46: 4.650523877 | CW46: 2.50695483 | CX46: 6.955513682 | CY46: 3.802543118 | CZ46: 2.987873485 | DA46: 5.817547789 | DB46: 4.948959809 | DC46: 8.653665228 | DD46: 3.020577018 | DE46: 2.803108655 | DF46: 4.174091412 | DG46: 4.746067675 | DH46: 6.226212315 | DI46: 5.662034039 | DJ46: 5.770607062 | DK46: 3.600669725 | DL46: 1.531681508 | DM46: 0.2096500491 | DN46: -237.5683206 | DO46: 9
A47: 31 | C47: 7.812489119 | D47: 6.650126137 | E47: 2.492599488 | F47: 4.794337183 | G47: 7.588389957 | H47: 3.929795779 | I47: 7.282785161 | J47: 6.21311895 | K47: 8.008574098 | L47: 7.294932019 | M47: 3.302584224 | N47: 5.023437248 | O47: 4.334495334 | P47: 6.241232777 | Q47: 4.118306503 | R47: 3.634585813 | S47: 5.489653657 | T47: 4.375367622 | U47: 4.57740127 | V47: 4.11141402 | W47: 3.758450996 | X47: 5.597965389 | Y47: 4.739949221 | Z47: 5.342771004 | AA47: 12.42415258 | AB47: 3.532981262 | AC47: 7.454095824 | AD47: 7.590866763 | AE47: 4.352368237 | AF47: 4.775380879 | AG47: 4.745202473 | AH47: 3.501156494 | AI47: 5.759331444 | AJ47: 4.943121055 | AK47: 4.853199144 | AL47: 2.980557695 | AM47: 4.816265581 | AN47: 7.590504614 | AO47: 4.621673402 | AP47: 3.833019321 | AQ47: 9.843630884 | AR47: 2.808305203 | AS47: 3.046659602 | AT47: 4.665793002 | AU47: 4.140763584 | AV47: 4.891228244 | AW47: 7.796667716 | AX47: 3.589733613 | AY47: 8.523160688 | AZ47: 3.749286617 | BA47: 4.591208831 | BB47: 5.908724877 | BC47: 4.574554403 | BD47: 8.950176776 | BE47: 5.375626904 | BF47: 3.14998622 | BG47: 7.329035991 | BH47: 2.976572445 | BI47: 5.233877721 | BJ47: 3.683707737 | BK47: 4.209927441 | BL47: 4.35041795 | BM47: 3.768733984 | BN47: 3.672485552 | BO47: 3.897601999 | BP47: 3.185410482 | BQ47: 1.39440168 | BR47: 4.092355119 | BS47: 4.185196137 | BT47: 2.8583049 | BU47: 2.670579385 | BV47: 5.686919067 | BW47: 2.229412687 | BX47: 4.433954548 | BY47: 2.030178173 | BZ47: 2.607270643 | CA47: 8.771707477 | CB47: 3.045268569 | CC47: 3.549627945 | CD47: 4.598119637 | CE47: 5.052400948 | CF47: 8.530999967 | CG47: 5.771390252 | CH47: 6.049195256 | CI47: 6.945376325 | CJ47: 2.50939644 | CK47: 3.119391575 | CL47: 5.844396049 | CM47: 1.876746909 | CN47: 4.515747057 | CO47: 3.022681969 | CP47: 8.981631203 | CQ47: 3.878823996 | CR47: 6.568747088 | CS47: 3.243953348 | CT47: 3.884352309 | CU47: 3.462940212 | CV47: 3.906012545 | CW47: 7.707907908 | CX47: 4.132737693 | CY47: 3.876280311 | CZ47: 4.303087232 | DA47: 5.052420928 | DB47: 3.622117168 | DC47: 4.676464247 | DD47: 6.645910994 | DE47: 3.813166649 | DF47: 3.198813481 | DG47: 6.199825884 | DH47: 6.334476273 | DI47: 8.348749522 | DJ47: 4.632199299 | DK47: 4.018358626 | DL47: 1.457342399 | DM47: 0.08316352158 | DN47: -221.8612991 | DO47: 101
A48: 32 | C48: 3.460589717 | D48: 9.156863158 | E48: 5.90561018 | F48: 4.453925793 | G48: 2.815826115 | H48: 4.093392585 | I48: 3.476665171 | J48: 6.530631273 | K48: 6.349578403 | L48: 3.113724204 | M48: 2.493549764 | N48: 4.980367974 | O48: 3.015640271 | P48: 6.291131383 | Q48: 3.643012618 | R48: 1.626620617 | S48: 6.565315618 | T48: 10.48355176 | U48: 9.447865948 | V48: 3.220383814 | W48: 3.435245298 | X48: 3.16388765 | Y48: 3.584964232 | Z48: 5.788657182 | AA48: 12.58714086 | AB48: 6.357878762 | AC48: 10.72345976 | AD48: 1.940587234 | AE48: 11.12756158 | AF48: 5.560183526 | AG48: 6.524912057 | AH48: 7.627975178 | AI48: 3.407328305 | AJ48: 3.084800204 | AK48: 3.323797821 | AL48: 2.486747037 | AM48: 3.65563703 | AN48: 3.618935272 | AO48: 2.735658211 | AP48: 9.681706399 | AQ48: 5.101714052 | AR48: 9.818205268 | AS48: 35.62425653 | AT48: 4.279984375 | AU48: 5.692398599 | AV48: 5.620327705 | AW48: 6.871466035 | AX48: 5.173658604 | AY48: 3.753466496 | AZ48: 5.059447451 | BA48: 6.474484933 | BB48: 6.379519538 | BC48: 2.305708411 | BD48: 4.738296189 | BE48: 3.557086425 | BF48: 4.197183456 | BG48: 4.984596994 | BH48: 3.24248415 | BI48: 3.813858369 | BJ48: 4.152705815 | BK48: 3.697843709 | BL48: 3.186911211 | BM48: 3.034009281 | BN48: 2.180234485 | BO48: 1.904013205 | BP48: 4.323105844 | BQ48: 8.48710423 | BR48: 3.965833998 | BS48: 3.771686894 | BT48: 1.92914795 | BU48: 6.683931574 | BV48: 5.19814588 | BW48: 11.70668878 | BX48: 4.467311606 | BY48: 4.781748602 | BZ48: 4.555676817 | CA48: 10.27125142 | CB48: 7.743132086 | CC48: 7.673156581 | CD48: 9.058815546 | CE48: 3.739162005 | CF48: 3.310653063 | CG48: 2.895864907 | CH48: 3.053360902 | CI48: 4.667925081 | CJ48: 7.717671261 | CK48: 6.115172392 | CL48: 2.48119391 | CM48: 10.77353254 | CN48: 8.97263411 | CO48: 3.587516417 | CP48: 4.9932298 | CQ48: 7.566456694 | CR48: 4.868805045 | CS48: 3.044026236 | CT48: 4.531807846 | CU48: 7.551277446 | CV48: 4.945440369 | CW48: 3.742707082 | CX48: 4.886385444 | CY48: 2.788774105 | CZ48: 5.857047394 | DA48: 4.649431549 | DB48: 4.367866308 | DC48: 2.89230538 | DD48: 5.967674674 | DE48: 4.499856696 | DF48: 6.815901341 | DG48: 5.848198982 | DH48: 4.609234167 | DI48: 4.990955192 | DJ48: 3.592844867 | DK48: 3.939181087 | DL48: 1.658591591 | DM48: 0.2386013121 | DN48: -249.2270889 | DO48: 33
A49: 33 | C49: 3.129103067 | D49: 4.686043144 | E49: 4.997330595 | F49: 4.043261822 | G49: 6.189738842 | H49: 3.835324068 | I49: 7.095295173 | J49: 2.398599271 | K49: 3.704788552 | L49: 5.036127056 | M49: 4.04452417 | N49: 4.479661083 | O49: 3.993541099 | P49: 2.881162727 | Q49: 13.32224761 | R49: 11.61575059 | S49: 3.465475877 | T49: 3.636193505 | U49: 3.407621235 | V49: 5.287311906 | W49: 4.397830513 | X49: 6.938936005 | Y49: 4.37046784 | Z49: 2.091856906 | AA49: 4.920402788 | AB49: 3.896909864 | AC49: 4.237324414 | AD49: 3.754080898 | AE49: 2.197821991 | AF49: 2.244092606 | AG49: 3.254867654 | AH49: 3.858330434 | AI49: 3.514566491 | AJ49: 3.815310553 | AK49: 8.052880935 | AL49: 4.685186342 | AM49: 4.693551808 | AN49: 3.828174481 | AO49: 5.469746175 | AP49: 11.94480347 | AQ49: 3.243191023 | AR49: 2.916989398 | AS49: 3.794761002 | AT49: 3.136836982 | AU49: 8.709510648 | AV49: 2.780171016 | AW49: 5.460276033 | AX49: 6.545528243 | AY49: 5.268347076 | AZ49: 4.020444589 | BA49: 3.523369929 | BB49: 5.071760192 | BC49: 4.075789292 | BD49: 4.627726889 | BE49: 6.516629039 | BF49: 5.574142664 | BG49: 6.041391686 | BH49: 3.277641548 | BI49: 2.554357589 | BJ49: 3.057924428 | BK49: 5.487318396 | BL49: 4.743426701 | BM49: 7.460123374 | BN49: 5.167712791 | BO49: 2.463422683 | BP49: 4.136891885 | BQ49: 4.843238337 | BR49: 5.00063099 | BS49: 7.366151664 | BT49: 2.917251215 | BU49: 4.238756611 | BV49: 3.602927839 | BW49: 1.933642496 | BX49: 3.360296224 | BY49: 6.406399668 | BZ49: 5.381743907 | CA49: 3.2947775 | CB49: 6.686000578 | CC49: 4.41189564 | CD49: 4.950631376 | CE49: 3.939372385 | CF49: 5.374425525 | CG49: 2.705234639 | CH49: 4.52732817 | CI49: 6.657397697 | CJ49: 3.101759453 | CK49: 4.917276834 | CL49: 2.793155417 | CM49: 1.936126362 | CN49: 2.479662725 | CO49: 1.488021072 | CP49: 3.610380012 | CQ49: 5.276042278 | CR49: 4.296244937 | CS49: 5.269333005 | CT49: 5.110303236 | CU49: 7.954934687 | CV49: 4.750877959 | CW49: 3.933811913 | CX49: 5.038256256 | CY49: 4.56175555 | CZ49: 16.43936662 | DA49: 3.699422522 | DB49: 5.318524409 | DC49: 2.475600534 | DD49: 5.860455885 | DE49: 3.727212866 | DF49: 1.812658179 | DG49: 3.622249594 | DH49: 4.394895893 | DI49: 4.78994323 | DJ49: 9.09947459 | DK49: 3.710886773 | DL49: 1.38591812 | DM49: 0.1158701181 | DN49: -220.7826767 | DO49: 65
A50: 34 | C50: 9.02713839 | D50: 7.737979279 | E50: 3.644669098 | F50: 3.933906261 | G50: 4.535483106 | H50: 2.241434119 | I50: 2.601713132 | J50: 6.359579397 | K50: 5.810103975 | L50: 5.134111278 | M50: 7.427629179 | N50: 6.671006087 | O50: 7.065209616 | P50: 2.331204628 | Q50: 6.473859805 | R50: 8.141708585 | S50: 3.053087312 | T50: 4.53344906 | U50: 14.2065354 | V50: 4.964476598 | W50: 4.519460891 | X50: 2.851610674 | Y50: 4.178303602 | Z50: 4.536828191 | AA50: 6.785104369 | AB50: 3.800287352 | AC50: 5.602636281 | AD50: 2.992602157 | AE50: 2.51872371 | AF50: 4.280204622 | AG50: 2.52563543 | AH50: 3.314147774 | AI50: 4.890295461 | AJ50: 6.394546199 | AK50: 5.147290188 | AL50: 3.400908593 | AM50: 4.456031284 | AN50: 3.652278732 | AO50: 3.828635733 | AP50: 3.27555982 | AQ50: 3.803921048 | AR50: 6.154889144 | AS50: 3.752130471 | AT50: 5.398544231 | AU50: 2.801323121 | AV50: 4.394185413 | AW50: 3.989944227 | AX50: 9.696550512 | AY50: 3.751542635 | AZ50: 2.731691852 | BA50: 10.71328156 | BB50: 4.969138498 | BC50: 5.840526075 | BD50: 8.795717569 | BE50: 19.42059642 | BF50: 4.139933208 | BG50: 5.439993566 | BH50: 10.01820863 | BI50: 4.433035253 | BJ50: 3.27949142 | BK50: 3.796714961 | BL50: 2.201822324 | BM50: 2.764925904 | BN50: 2.841977341 | BO50: 7.719379448 | BP50: 3.172096533 | BQ50: 5.530842353 | BR50: 2.978119499 | BS50: 5.307504163 | BT50: 3.914045746 | BU50: 5.196072746 | BV50: 1.972519353 | BW50: 3.595221491 | BX50: 3.202293618 | BY50: 2.87153665 | BZ50: 12.95157882 | CA50: 4.01101101 | CB50: 3.055231256 | CC50: 5.383475965 | CD50: 3.490576139 | CE50: 6.800402673 | CF50: 2.550690033 | CG50: 1.810472036 | CH50: 5.255820535 | CI50: 2.461585678 | CJ50: 4.783797254 | CK50: 2.418161903 | CL50: 10.81030798 | CM50: 2.51933877 | CN50: 3.187613681 | CO50: 4.050867468 | CP50: 3.273226927 | CQ50: 2.889662862 | CR50: 3.922566218 | CS50: 7.949229431 | CT50: 2.711746837 | CU50: 2.838882472 | CV50: 8.985527163 | CW50: 2.925271511 | CX50: 2.77493998 | CY50: 8.09222257 | CZ50: 4.367002925 | DA50: 2.49692114 | DB50: 4.916596189 | DC50: 1.369528557 | DD50: 6.187920932 | DE50: 7.32043057 | DF50: 5.432395012 | DG50: 5.137331032 | DH50: 3.672565888 | DI50: 5.886962917 | DJ50: 4.388140589 | DK50: 3.673777906 | DL50: 1.501501331 | DM50: 0.2247732292 | DN50: -236.6411891 | DO50: 12
A51: 35 | C51: 18.52022846 | D51: 3.177263196 | E51: 6.073397768 | F51: 6.297348566 | G51: 3.921886419 | H51: 4.077217768 | I51: 7.019544561 | J51: 4.60545492 | K51: 3.772557558 | L51: 1.763157259 | M51: 2.746378043 | N51: 3.101157909 | O51: 3.482057859 | P51: 8.618806771 | Q51: 4.487394627 | R51: 5.486377507 | S51: 6.314078919 | T51: 5.422714197 | U51: 5.207112668 | V51: 2.972361402 | W51: 2.611255151 | X51: 9.453820821 | Y51: 6.102754379 | Z51: 4.826069917 | AA51: 6.113611064 | AB51: 3.177875051 | AC51: 2.967875909 | AD51: 7.99103087 | AE51: 5.487289425 | AF51: 3.368605701 | AG51: 6.052021903 | AH51: 2.722325695 | AI51: 3.243713929 | AJ51: 3.551858836 | AK51: 8.887534321 | AL51: 2.088923999 | AM51: 5.344719553 | AN51: 5.974696982 | AO51: 4.315937225 | AP51: 6.478941998 | AQ51: 1.663570556 | AR51: 2.349529782 | AS51: 3.169733956 | AT51: 2.875418156 | AU51: 5.687488644 | AV51: 6.709652501 | AW51: 3.153427144 | AX51: 4.060594936 | AY51: 3.277723902 | AZ51: 3.530419186 | BA51: 7.60564047 | BB51: 3.633546599 | BC51: 2.974196009 | BD51: 11.11199135 | BE51: 8.891765489 | BF51: 4.280688134 | BG51: 2.573316885 | BH51: 3.596039437 | BI51: 5.662685927 | BJ51: 4.796176601 | BK51: 4.257425465 | BL51: 3.244205643 | BM51: 8.087848771 | BN51: 4.986891809 | BO51: 1.654636865 | BP51: 2.885748308 | BQ51: 2.702303526 | BR51: 3.81409833 | BS51: 6.323932042 | BT51: 6.58617294 | BU51: 3.017780047 | BV51: 3.198050113 | BW51: 3.669940346 | BX51: 2.91600346 | BY51: 3.860671878 | BZ51: 2.723877859 | CA51: 3.66154079 | CB51: 3.968118756 | CC51: 2.560910554 | CD51: 7.346167308 | CE51: 8.397062463 | CF51: 4.588425351 | CG51: 4.114210426 | CH51: 5.17432946 | CI51: 2.278058199 | CJ51: 7.362907513 | CK51: 5.280023387 | CL51: 6.695264897 | CM51: 3.604916768 | CN51: 7.765912904 | CO51: 3.032680256 | CP51: 6.86069329 | CQ51: 8.582295836 | CR51: 4.472354463 | CS51: 3.460467104 | CT51: 4.760741351 | CU51: 5.193689523 | CV51: 4.32667008 | CW51: 1.590733347 | CX51: 8.731899041 | CY51: 5.092808794 | CZ51: 7.977403565 | DA51: 2.319650474 | DB51: 3.682092281 | DC51: 6.886526218 | DD51: 2.676373782 | DE51: 3.498502939 | DF51: 2.812089061 | DG51: 2.397806162 | DH51: 18.91162064 | DI51: 3.475263767 | DJ51: 4.299227886 | DK51: 3.637040127 | DL51: 1.516516344 | DM51: 0.2117465496 | DN51: -237.6205999 | DO51: 8
A52: 36 | C52: 3.020182684 | D52: 3.139135846 | E52: 2.396955372 | F52: 2.944551956 | G52: 4.833702296 | H52: 9.426910914 | I52: 3.039404082 | J52: 2.764384069 | K52: 8.668229651 | L52: 5.245691243 | M52: 3.117485643 | N52: 5.064454106 | O52: 7.813857789 | P52: 4.038303163 | Q52: 2.719471586 | R52: 4.444513095 | S52: 5.088465067 | T52: 2.906200486 | U52: 3.194685236 | V52: 5.132951462 | W52: 2.870473203 | X52: 3.385615736 | Y52: 3.274525777 | Z52: 5.53948393 | AA52: 7.449128803 | AB52: 5.274542558 | AC52: 4.822888315 | AD52: 3.237033513 | AE52: 6.040806366 | AF52: 6.394588522 | AG52: 2.033936858 | AH52: 7.534956403 | AI52: 4.20732671 | AJ52: 2.404005576 | AK52: 3.618634322 | AL52: 7.808283072 | AM52: 6.048883013 | AN52: 4.082754106 | AO52: 4.908781991 | AP52: 9.026363277 | AQ52: 3.281039849 | AR52: 4.159140812 | AS52: 4.06498431 | AT52: 2.336740661 | AU52: 3.532691132 | AV52: 3.219718563 | AW52: 4.384233534 | AX52: 13.62677635 | AY52: 3.688611492 | AZ52: 7.883430412 | BA52: 4.151037004 | BB52: 4.926266077 | BC52: 3.105350669 | BD52: 3.255884936 | BE52: 9.804005788 | BF52: 6.881838539 | BG52: 7.120764318 | BH52: 5.076499905 | BI52: 9.917559008 | BJ52: 4.103041105 | BK52: 3.818972684 | BL52: 2.857605671 | BM52: 3.834225096 | BN52: 4.428904945 | BO52: 3.080798749 | BP52: 7.550193002 | BQ52: 10.14470059 | BR52: 7.180471776 | BS52: 4.052900208 | BT52: 5.375429847 | BU52: 2.732629606 | BV52: 5.965685951 | BW52: 5.715570556 | BX52: 2.387221623 | BY52: 4.580021506 | BZ52: 2.557590988 | CA52: 2.638082876 | CB52: 3.080667753 | CC52: 5.13592361 | CD52: 4.146748811 | CE52: 3.04267545 | CF52: 4.245644938 | CG52: 3.739060041 | CH52: 7.065607192 | CI52: 5.622305335 | CJ52: 2.509941767 | CK52: 3.436500396 | CL52: 3.333317756 | CM52: 3.048165171 | CN52: 6.352565705 | CO52: 20.8978811 | CP52: 6.587797451 | CQ52: 6.583842407 | CR52: 3.487244131 | CS52: 4.698111457 | CT52: 15.83758244 | CU52: 5.875685093 | CV52: 4.067739246 | CW52: 4.552750324 | CX52: 2.660514996 | CY52: 4.449200666 | CZ52: 9.460478566 | DA52: 7.049636554 | DB52: 2.914118187 | DC52: 6.116717705 | DD52: 3.158731139 | DE52: 3.076060045 | DF52: 6.170212314 | DG52: 2.880438292 | DH52: 4.902588235 | DI52: 5.341206096 | DJ52: 4.417177961 | DK52: 3.709773619 | DL52: 1.317994343 | DM52: 0.3517275647 | DN52: -229.5802637 | DO52: 69
A53: 37 | C53: 4.598946213 | D53: 5.66245597 | E53: 4.73143856 | F53: 3.766074291 | G53: 4.846926068 | H53: 2.392193123 | I53: 4.049531188 | J53: 4.381693678 | K53: 3.442030126 | L53: 8.566725536 | M53: 3.835177187 | N53: 3.699438316 | O53: 11.73309199 | P53: 4.552395504 | Q53: 5.773091566 | R53: 6.130215074 | S53: 4.508630846 | T53: 4.551523507 | U53: 6.392895556 | V53: 5.179904435 | W53: 9.569272309 | X53: 4.178170153 | Y53: 11.4642645 | Z53: 5.117286793 | AA53: 6.201689786 | AB53: 5.729858526 | AC53: 2.130917546 | AD53: 2.966005134 | AE53: 3.77242881 | AF53: 6.029195903 | AG53: 5.997467914 | AH53: 5.348124798 | AI53: 7.499037152 | AJ53: 3.841810354 | AK53: 6.155954028 | AL53: 3.17449144 | AM53: 6.003296785 | AN53: 4.155611971 | AO53: 4.586897507 | AP53: 2.789652387 | AQ53: 4.588046117 | AR53: 6.122160257 | AS53: 6.447710776 | AT53: 2.661126766 | AU53: 5.778575893 | AV53: 2.982654304 | AW53: 2.164629824 | AX53: 4.041361381 | AY53: 14.07557504 | AZ53: 12.57897022 | BA53: 3.690073425 | BB53: 4.593923417 | BC53: 4.666905721 | BD53: 4.682227451 | BE53: 4.924348211 | BF53: 6.058889722 | BG53: 2.935085915 | BH53: 3.824658274 | BI53: 5.396913443 | BJ53: 3.41877625 | BK53: 5.28467502 | BL53: 9.3227835 | BM53: 2.33959504 | BN53: 4.223143892 | BO53: 4.466749709 | BP53: 3.336590138 | BQ53: 4.839675731 | BR53: 3.988818469 | BS53: 2.656632068 | BT53: 4.736498042 | BU53: 6.305975606 | BV53: 5.026862859 | BW53: 3.877927614 | BX53: 2.942858286 | BY53: 7.90374992 | BZ53: 2.594812187 | CA53: 2.321846157 | CB53: 4.100626876 | CC53: 4.801728961 | CD53: 4.316564473 | CE53: 4.151186852 | CF53: 4.25650015 | CG53: 7.354093344 | CH53: 6.7688348 | CI53: 3.641598439 | CJ53: 4.457449645 | CK53: 12.95526657 | CL53: 2.324368708 | CM53: 3.559424586 | CN53: 10.86572612 | CO53: 7.233580285 | CP53: 2.889479072 | CQ53: 11.43120725 | CR53: 3.858072147 | CS53: 5.417715189 | CT53: 4.054320238 | CU53: 10.18138543 | CV53: 2.749765205 | CW53: 5.590452378 | CX53: 2.101498424 | CY53: 4.43514507 | CZ53: 5.437949308 | DA53: 3.498016671 | DB53: 4.62965326 | DC53: 3.182091956 | DD53: 7.282323556 | DE53: 3.492775673 | DF53: 3.670849875 | DG53: 6.269081553 | DH53: 5.237143686 | DI53: 4.86225339 | DJ53: 4.285240977 | DK53: 4.018358626 | DL53: 1.471915823 | DM53: 0.1714742296 | DN53: -230.4895592 | DO53: 30
A54: 38 | C54: 3.915027982 | D54: 7.748352186 | E54: 1.504670486 | F54: 4.326226522 | G54: 2.871618995 | H54: 4.923516572 | I54: 3.009732393 | J54: 1.992457911 | K54: 5.18183982 | L54: 3.191269255 | M54: 3.007233509 | N54: 6.476111024 | O54: 2.835720724 | P54: 4.022340583 | Q54: 7.236980216 | R54: 2.645940373 | S54: 4.419095622 | T54: 5.86251717 | U54: 6.097248472 | V54: 2.222397768 | W54: 9.891742684 | X54: 2.546995769 | Y54: 3.276519546 | Z54: 4.084604018 | AA54: 4.015680298 | AB54: 5.093874194 | AC54: 5.438628148 | AD54: 8.388362538 | AE54: 7.600659733 | AF54: 2.659147042 | AG54: 3.150274071 | AH54: 10.31908572 | AI54: 3.157156835 | AJ54: 9.641673201 | AK54: 3.844595816 | AL54: 4.88668262 | AM54: 8.179287873 | AN54: 2.74349345 | AO54: 3.870416262 | AP54: 3.074906529 | AQ54: 4.767824915 | AR54: 13.09683598 | AS54: 3.529455252 | AT54: 3.404405612 | AU54: 2.718078461 | AV54: 3.611296856 | AW54: 5.435645534 | AX54: 18.12530653 | AY54: 5.212516839 | AZ54: 9.05880057 | BA54: 4.000558884 | BB54: 4.292393343 | BC54: 3.323385708 | BD54: 2.094576893 | BE54: 6.146958691 | BF54: 6.622562638 | BG54: 4.029644632 | BH54: 3.494436365 | BI54: 5.704591159 | BJ54: 6.404572019 | BK54: 3.15156478 | BL54: 2.245634464 | BM54: 4.673323252 | BN54: 3.873166549 | BO54: 3.460730374 | BP54: 4.022909666 | BQ54: 5.604876298 | BR54: 3.039716567 | BS54: 4.336297181 | BT54: 3.543321447 | BU54: 6.186295562 | BV54: 2.802597798 | BW54: 4.397455625 | BX54: 16.0879031 | BY54: 8.487613443 | BZ54: 4.822620224 | CA54: 6.304791717 | CB54: 3.762223473 | CC54: 3.739442294 | CD54: 4.991715301 | CE54: 6.166180027 | CF54: 4.02723545 | CG54: 3.645676809 | CH54: 4.049391957 | CI54: 3.795196166 | CJ54: 6.308605725 | CK54: 2.378332583 | CL54: 3.109371261 | CM54: 5.045494274 | CN54: 4.875914378 | CO54: 2.41819399 | CP54: 2.412680402 | CQ54: 5.534021765 | CR54: 5.866226202 | CS54: 6.946303987 | CT54: 3.765863758 | CU54: 2.33821873 | CV54: 2.890971286 | CW54: 4.990991193 | CX54: 3.327933806 | CY54: 7.420553947 | CZ54: 4.250730577 | DA54: 4.25618476 | DB54: 3.68400791 | DC54: 7.063557315 | DD54: 2.233481539 | DE54: 5.012001242 | DF54: 6.425126338 | DG54: 2.5405952 | DH54: 6.786976115 | DI54: 2.105475002 | DJ54: 4.628523339 | DK54: 3.673777906 | DL54: 1.442768975 | DM54: 0.2117465496 | DN54: -231.3328645 | DO54: 4
A55: 39 | C55: 3.381653021 | D55: 2.403028329 | E55: 2.950641078 | F55: 8.12072612 | G55: 3.134539086 | H55: 5.333755687 | I55: 3.2095066 | J55: 2.831738946 | K55: 4.077564561 | L55: 3.683182229 | M55: 3.638877905 | N55: 5.553372939 | O55: 3.355310965 | P55: 4.426520654 | Q55: 2.979672406 | R55: 3.88427045 | S55: 7.745046525 | T55: 7.518367353 | U55: 6.189054306 | V55: 7.281854419 | W55: 8.031971779 | X55: 8.632630343 | Y55: 5.267813866 | Z55: 3.813734189 | AA55: 19.96832812 | AB55: 8.425910869 | AC55: 2.816648774 | AD55: 8.648080933 | AE55: 7.744648505 | AF55: 1.489671809 | AG55: 6.622127644 | AH55: 3.567634893 | AI55: 4.567013925 | AJ55: 4.667875798 | AK55: 4.59891262 | AL55: 8.176073496 | AM55: 5.17931612 | AN55: 12.50360765 | AO55: 4.144065773 | AP55: 2.892001342 | AQ55: 3.358896533 | AR55: 3.505959453 | AS55: 3.201617229 | AT55: 6.306344954 | AU55: 6.313891835 | AV55: 5.070632608 | AW55: 5.664926757 | AX55: 2.07560851 | AY55: 3.123101675 | AZ55: 3.791969148 | BA55: 6.789703376 | BB55: 2.119300984 | BC55: 4.278682527 | BD55: 7.713176592 | BE55: 4.279983559 | BF55: 5.980242397 | BG55: 3.642719091 | BH55: 3.833716085 | BI55: 2.5023171 | BJ55: 12.72604327 | BK55: 2.692726387 | BL55: 2.825373943 | BM55: 8.635573509 | BN55: 4.007209251 | BO55: 2.143268225 | BP55: 5.997278312 | BQ55: 2.998089028 | BR55: 4.211592142 | BS55: 5.00710307 | BT55: 9.526318673 | BU55: 8.424394385 | BV55: 6.134394078 | BW55: 4.341206398 | BX55: 3.311845519 | BY55: 3.79646164 | BZ55: 3.605368414 | CA55: 3.069525866 | CB55: 3.821167527 | CC55: 5.15469768 | CD55: 5.897226092 | CE55: 3.991802962 | CF55: 4.085874885 | CG55: 4.012454802 | CH55: 6.102184677 | CI55: 4.640458593 | CJ55: 5.237275699 | CK55: 2.67006977 | CL55: 2.045353991 | CM55: 3.545418697 | CN55: 3.306669262 | CO55: 2.663082754 | CP55: 1.823488182 | CQ55: 5.200901656 | CR55: 4.54007797 | CS55: 4.165934694 | CT55: 3.979131424 | CU55: 2.610743893 | CV55: 3.919788725 | CW55: 5.291746123 | CX55: 5.1943717 | CY55: 2.244155785 | CZ55: 7.326576341 | DA55: 5.653580098 | DB55: 4.515431819 | DC55: 4.652190561 | DD55: 16.00355343 | DE55: 4.095121943 | DF55: 3.716311004 | DG55: 3.789479024 | DH55: 2.231542353 | DI55: 2.743738303 | DJ55: 2.823712084 | DK55: 3.673777906 | DL55: 1.486634981 | DM55: 0.2225477517 | DN55: -235.2426301 | DO55: 10
A56: 40 | C56: 10.15739485 | D56: 7.40101222 | E56: 3.261528049 | F56: 2.871412601 | G56: 2.150959583 | H56: 4.581254075 | I56: 5.203047145 | J56: 5.289634883 | K56: 3.555916323 | L56: 3.434711198 | M56: 7.695334952 | N56: 2.246051544 | O56: 4.096417142 | P56: 4.330224286 | Q56: 5.00117375 | R56: 6.822056363 | S56: 2.950442173 | T56: 3.461005906 | U56: 5.561075687 | V56: 4.23937341 | W56: 6.108741944 | X56: 2.2113041 | Y56: 2.457588832 | Z56: 15.76040652 | AA56: 7.329339607 | AB56: 3.35536359 | AC56: 2.646298724 | AD56: 8.404404427 | AE56: 3.283585256 | AF56: 7.431858501 | AG56: 3.379210973 | AH56: 5.479467965 | AI56: 2.987507541 | AJ56: 3.933966861 | AK56: 8.771299224 | AL56: 2.990300395 | AM56: 6.082772123 | AN56: 6.715284831 | AO56: 3.58551913 | AP56: 3.391348064 | AQ56: 5.921094594 | AR56: 3.362547019 | AS56: 2.446732863 | AT56: 2.680083447 | AU56: 3.803572937 | AV56: 3.436991933 | AW56: 4.620064137 | AX56: 3.041318951 | AY56: 5.112213151 | AZ56: 3.079754286 | BA56: 9.893454101 | BB56: 13.58395809 | BC56: 5.92515341 | BD56: 5.634957565 | BE56: 2.589350638 | BF56: 4.963635568 | BG56: 6.325777529 | BH56: 7.911485069 | BI56: 15.31411497 | BJ56: 1.969519372 | BK56: 5.562626509 | BL56: 2.974540717 | BM56: 3.376343024 | BN56: 14.97820269 | BO56: 4.38521268 | BP56: 7.430887419 | BQ56: 2.731640322 | BR56: 7.851474518 | BS56: 5.568540156 | BT56: 5.947620795 | BU56: 3.284687991 | BV56: 3.66372387 | BW56: 2.213484842 | BX56: 14.90901633 | BY56: 3.513137827 | BZ56: 3.270840189 | CA56: 3.710212006 | CB56: 3.010626486 | CC56: 3.958853254 | CD56: 2.109340565 | CE56: 10.31561166 | CF56: 8.170238762 | CG56: 2.134502279 | CH56: 2.955280434 | CI56: 7.789891518 | CJ56: 3.15973778 | CK56: 10.35628472 | CL56: 1.894279112 | CM56: 6.048371632 | CN56: 5.0186468 | CO56: 5.882536386 | CP56: 5.412177527 | CQ56: 5.303738289 | CR56: 3.187130565 | CS56: 3.382011923 | CT56: 4.316309044 | CU56: 3.785093189 | CV56: 2.043454487 | CW56: 4.279969421 | CX56: 3.548841209 | CY56: 5.950515911 | CZ56: 5.022374661 | DA56: 4.748841655 | DB56: 3.950335376 | DC56: 4.575141315 | DD56: 3.099309351 | DE56: 3.35989086 | DF56: 4.232861205 | DG56: 3.436561 | DH56: 4.144060824 | DI56: 3.700522096 | DJ56: 7.31494592 | DK56: 3.637040127 | DL56: 1.471915823 | DM56: 0.3280626499 | DN56: -240.5203619 | DO56: 49
A57: 41 | C57: 4.187690304 | D57: 3.029050045 | E57: 4.869159723 | F57: 2.598071213 | G57: 2.485211381 | H57: 6.359250801 | I57: 6.463259167 | J57: 5.118378162 | K57: 3.057249509 | L57: 3.406724621 | M57: 2.459122815 | N57: 1.499599647 | O57: 2.353115833 | P57: 3.510118834 | Q57: 4.019278813 | R57: 6.355208036 | S57: 2.939415755 | T57: 5.008978827 | U57: 5.486517324 | V57: 4.27759043 | W57: 6.51992707 | X57: 5.769120393 | Y57: 4.307236129 | Z57: 2.110057097 | AA57: 5.70036516 | AB57: 5.587667808 | AC57: 4.827385815 | AD57: 7.099494129 | AE57: 2.525883965 | AF57: 3.946332565 | AG57: 4.443849939 | AH57: 3.26939158 | AI57: 4.960073885 | AJ57: 6.809600397 | AK57: 3.709624145 | AL57: 6.136735207 | AM57: 3.157294723 | AN57: 5.816395478 | AO57: 6.541659426 | AP57: 2.618848944 | AQ57: 4.179879603 | AR57: 4.865343711 | AS57: 4.721338954 | AT57: 9.526655564 | AU57: 5.732781239 | AV57: 5.470463187 | AW57: 8.402988226 | AX57: 3.872871009 | AY57: 3.416094272 | AZ57: 4.330592667 | BA57: 3.896453303 | BB57: 4.07674095 | BC57: 6.137134562 | BD57: 3.672887241 | BE57: 2.834012668 | BF57: 5.373347052 | BG57: 11.7130798 | BH57: 3.500501129 | BI57: 11.80042579 | BJ57: 3.796499709 | BK57: 5.008516182 | BL57: 3.569886478 | BM57: 2.61435846 | BN57: 5.45046709 | BO57: 6.545104933 | BP57: 4.947140437 | BQ57: 8.986636358 | BR57: 3.318399588 | BS57: 3.210979013 | BT57: 3.631139827 | BU57: 2.769853771 | BV57: 7.415260436 | BW57: 2.007719649 | BX57: 3.884337204 | BY57: 10.89652265 | BZ57: 4.592409643 | CA57: 5.035362082 | CB57: 5.378698466 | CC57: 7.156945277 | CD57: 6.887365373 | CE57: 2.837721335 | CF57: 3.920028383 | CG57: 3.295553915 | CH57: 3.137381367 | CI57: 4.623221408 | CJ57: 5.845974945 | CK57: 5.210133022 | CL57: 10.37028431 | CM57: 5.20690548 | CN57: 5.845856513 | CO57: 2.038043599 | CP57: 2.652843971 | CQ57: 7.274252943 | CR57: 4.139287472 | CS57: 3.124438546 | CT57: 5.922026959 | CU57: 4.052956055 | CV57: 3.633967041 | CW57: 11.9818706 | CX57: 4.619838417 | CY57: 2.071202664 | CZ57: 7.282773156 | DA57: 8.20427376 | DB57: 4.320025964 | DC57: 3.176804969 | DD57: 4.042264906 | DE57: 7.010369581 | DF57: 7.843174177 | DG57: 5.218163484 | DH57: 4.555016859 | DI57: 3.98943686 | DJ57: 5.078840234 | DK57: 3.939181087 | DL57: 1.516516344 | DM57: 0.08485207793 | DN57: -228.774547 | DO57: 101
A58: 42 | C58: 2.848391994 | D58: 2.797202286 | E58: 8.215343305 | F58: 6.603460708 | G58: 2.528802092 | H58: 3.151248444 | I58: 3.214812621 | J58: 3.635515686 | K58: 3.230047797 | L58: 6.719073822 | M58: 3.902595426 | N58: 2.331330639 | O58: 5.222591621 | P58: 2.726269277 | Q58: 2.182740854 | R58: 10.0511592 | S58: 8.755618798 | T58: 5.974125959 | U58: 2.835363206 | V58: 5.66555145 | W58: 4.240031123 | X58: 4.784745659 | Y58: 3.473270034 | Z58: 4.442037521 | AA58: 4.335358441 | AB58: 4.328069136 | AC58: 8.253886937 | AD58: 10.90352422 | AE58: 5.663009977 | AF58: 4.643858304 | AG58: 6.198833102 | AH58: 3.68332854 | AI58: 5.430670055 | AJ58: 4.086604519 | AK58: 2.002262791 | AL58: 3.462944145 | AM58: 3.190609056 | AN58: 2.232250056 | AO58: 1.653476016 | AP58: 3.818186303 | AQ58: 2.55856669 | AR58: 3.566672168 | AS58: 6.33599355 | AT58: 3.279129406 | AU58: 10.9061406 | AV58: 4.636710689 | AW58: 5.535059798 | AX58: 6.411790097 | AY58: 5.115365633 | AZ58: 5.249292004 | BA58: 2.646927182 | BB58: 6.133637451 | BC58: 4.490516112 | BD58: 6.631746922 | BE58: 4.16976544 | BF58: 4.205556463 | BG58: 3.366423449 | BH58: 3.782749872 | BI58: 6.256327994 | BJ58: 6.356467504 | BK58: 5.644261321 | BL58: 2.123676814 | BM58: 2.532987764 | BN58: 4.259827623 | BO58: 3.117878507 | BP58: 2.863362095 | BQ58: 3.237474565 | BR58: 5.287219633 | BS58: 8.49378358 | BT58: 4.242305348 | BU58: 2.710030226 | BV58: 4.928973335 | BW58: 4.905140507 | BX58: 2.052194967 | BY58: 6.918546612 | BZ58: 5.736173446 | CA58: 5.042440809 | CB58: 2.619141304 | CC58: 3.916774227 | CD58: 7.159425904 | CE58: 2.294314829 | CF58: 7.072993566 | CG58: 4.329418821 | CH58: 5.841271984 | CI58: 2.559655776 | CJ58: 6.598743686 | CK58: 4.663755512 | CL58: 7.664542398 | CM58: 8.84957886 | CN58: 6.894620082 | CO58: 2.90498753 | CP58: 4.041157928 | CQ58: 4.629017463 | CR58: 3.067544972 | CS58: 4.178179365 | CT58: 4.753869475 | CU58: 2.545357147 | CV58: 1.842291703 | CW58: 3.225076033 | CX58: 1.485786267 | CY58: 2.303862467 | CZ58: 7.078791499 | DA58: 5.788431568 | DB58: 4.676599382 | DC58: 3.241687695 | DD58: 5.384448795 | DE58: 3.066496609 | DF58: 4.497331829 | DG58: 4.913662278 | DH58: 15.42424869 | DI58: 3.415853206 | DJ58: 5.016268142 | DK58: 3.636676423 | DL58: 1.486634981 | DM58: 0.1158701181 | DN58: -229.5106671 | DO58: 66
A59: 43 | C59: 4.311219118 | D59: 2.525833518 | E59: 1.947065048 | F59: 5.223905267 | G59: 2.179677969 | H59: 7.416813411 | I59: 5.998196335 | J59: 3.362811665 | K59: 7.37740536 | L59: 5.243216574 | M59: 5.191680927 | N59: 8.590491619 | O59: 2.912178072 | P59: 3.74105242 | Q59: 2.71894322 | R59: 3.016936518 | S59: 5.656002505 | T59: 6.373326951 | U59: 5.169786445 | V59: 3.383420393 | W59: 4.436362237 | X59: 3.91277468 | Y59: 2.236825394 | Z59: 6.170613901 | AA59: 3.704799876 | AB59: 2.766974834 | AC59: 4.385111762 | AD59: 5.406210428 | AE59: 6.379751306 | AF59: 4.346793327 | AG59: 4.248306454 | AH59: 5.269685582 | AI59: 4.008968021 | AJ59: 2.824635409 | AK59: 3.358283224 | AL59: 4.646435633 | AM59: 3.395584509 | AN59: 3.307647198 | AO59: 3.086409482 | AP59: 2.986267156 | AQ59: 4.358321156 | AR59: 5.134215699 | AS59: 11.55109009 | AT59: 3.304114224 | AU59: 3.902325886 | AV59: 6.611524901 | AW59: 2.954596617 | AX59: 6.391122318 | AY59: 4.526035459 | AZ59: 3.549158313 | BA59: 2.956541226 | BB59: 4.569819541 | BC59: 3.360564377 | BD59: 4.058145083 | BE59: 2.885439671 | BF59: 6.05089232 | BG59: 3.789455111 | BH59: 2.656832741 | BI59: 4.136414375 | BJ59: 3.196310693 | BK59: 2.597275373 | BL59: 10.75997126 | BM59: 2.994503152 | BN59: 4.32425977 | BO59: 3.256544731 | BP59: 6.510309731 | BQ59: 9.704857549 | BR59: 4.235357692 | BS59: 5.765494344 | BT59: 3.319796242 | BU59: 2.24331776 | BV59: 2.784077914 | BW59: 3.328570803 | BX59: 4.650651061 | BY59: 5.585273086 | BZ59: 4.26190163 | CA59: 3.15833874 | CB59: 6.800184617 | CC59: 6.214322012 | CD59: 13.17738476 | CE59: 10.14526566 | CF59: 3.633716364 | CG59: 3.949610613 | CH59: 7.295865395 | CI59: 2.984964779 | CJ59: 3.22920346 | CK59: 3.274649 | CL59: 2.486206373 | CM59: 5.520172116 | CN59: 3.89057436 | CO59: 5.355983832 | CP59: 2.972941393 | CQ59: 3.870748088 | CR59: 4.846785061 | CS59: 4.355969199 | CT59: 5.139996534 | CU59: 3.629547731 | CV59: 7.575843676 | CW59: 5.321407542 | CX59: 4.056166358 | CY59: 3.545246952 | CZ59: 2.91859781 | DA59: 3.997368389 | DB59: 5.190109331 | DC59: 4.413852655 | DD59: 3.090065314 | DE59: 4.689568021 | DF59: 5.126052805 | DG59: 4.297166089 | DH59: 5.371775366 | DI59: 2.756032268 | DJ59: 3.229399237 | DK59: 3.637040127 | DL59: 1.156567744 | DM59: 0.2013890006 | DN59: -205.7403812 | DO59: 30
A60: 44 | C60: 3.631960174 | D60: 5.080456028 | E60: 2.442015635 | F60: 3.208800876 | G60: 2.884676346 | H60: 2.451304138 | I60: 4.2047626 | J60: 3.161766121 | K60: 5.901759302 | L60: 6.492077053 | M60: 7.029092674 | N60: 4.597605567 | O60: 4.975289312 | P60: 5.775872478 | Q60: 5.063765646 | R60: 5.164683651 | S60: 2.767558047 | T60: 2.731126918 | U60: 2.865992333 | V60: 4.206286003 | W60: 8.709288695 | X60: 3.243862688 | Y60: 4.476525118 | Z60: 3.504322855 | AA60: 5.475327995 | AB60: 3.583450728 | AC60: 3.095709677 | AD60: 6.090297204 | AE60: 2.891699857 | AF60: 5.23907639 | AG60: 3.630680474 | AH60: 2.71684592 | AI60: 2.761875265 | AJ60: 2.05969023 | AK60: 5.992262894 | AL60: 5.375349998 | AM60: 2.667804436 | AN60: 3.14935903 | AO60: 1.753894048 | AP60: 5.792387862 | AQ60: 8.783884195 | AR60: 2.64525615 | AS60: 4.809415068 | AT60: 3.964525589 | AU60: 5.353060004 | AV60: 5.037286583 | AW60: 5.693319017 | AX60: 2.322555238 | AY60: 1.981766687 | AZ60: 3.540688252 | BA60: 1.578325777 | BB60: 4.919780537 | BC60: 4.084763556 | BD60: 6.151891173 | BE60: 4.36051966 | BF60: 4.766134337 | BG60: 3.117124406 | BH60: 5.68224978 | BI60: 3.273014286 | BJ60: 7.723813223 | BK60: 2.591363987 | BL60: 2.390856376 | BM60: 4.741933706 | BN60: 2.851183031 | BO60: 5.538642702 | BP60: 3.230194026 | BQ60: 2.971394047 | BR60: 3.365847209 | BS60: 9.738376479 | BT60: 11.77362812 | BU60: 12.04501581 | BV60: 2.974039811 | BW60: 4.894193111 | BX60: 2.410809855 | BY60: 4.813988318 | BZ60: 6.248038234 | CA60: 4.210522922 | CB60: 4.719417726 | CC60: 9.142123968 | CD60: 3.673673296 | CE60: 3.877925667 | CF60: 3.288320531 | CG60: 7.611791698 | CH60: 8.080480455 | CI60: 6.602437154 | CJ60: 2.419928273 | CK60: 4.367082193 | CL60: 2.351708111 | CM60: 4.053339895 | CN60: 3.043411623 | CO60: 3.746008687 | CP60: 2.027515866 | CQ60: 3.147282323 | CR60: 2.785037093 | CS60: 2.151537963 | CT60: 7.145380978 | CU60: 4.330134963 | CV60: 2.550134956 | CW60: 10.00148986 | CX60: 1.891929161 | CY60: 4.634683184 | CZ60: 4.803809511 | DA60: 4.501337531 | DB60: 2.289834806 | DC60: 3.256333303 | DD60: 4.156445456 | DE60: 4.333746002 | DF60: 5.389632955 | DG60: 8.495347235 | DH60: 7.16623504 | DI60: 3.860649575 | DJ60: 2.638068521 | DK60: 3.424201082 | DL60: 1.331307417 | DM60: 0.1821326023 | DN60: -221.5865878 | DO60: 32
A61: 45 | C61: 5.456769152 | D61: 5.487917363 | E61: 4.111752835 | F61: 3.661046539 | G61: 9.08183308 | H61: 3.734336634 | I61: 5.425693967 | J61: 3.141777021 | K61: 6.564486854 | L61: 4.255203182 | M61: 3.17357233 | N61: 3.076998443 | O61: 4.014985626 | P61: 2.966442214 | Q61: 6.506339134 | R61: 6.120019423 | S61: 8.506160869 | T61: 3.63195807 | U61: 5.790130305 | V61: 8.956821684 | W61: 7.837735157 | X61: 3.853714817 | Y61: 7.511040918 | Z61: 7.677195211 | AA61: 3.129606314 | AB61: 2.659659823 | AC61: 12.66337862 | AD61: 2.929129063 | AE61: 7.94016334 | AF61: 5.742122909 | AG61: 3.430835993 | AH61: 6.722028851 | AI61: 3.54604442 | AJ61: 4.121429373 | AK61: 3.810429468 | AL61: 1.617289107 | AM61: 5.357744827 | AN61: 12.84499472 | AO61: 3.15814336 | AP61: 4.880577526 | AQ61: 5.693068135 | AR61: 3.910332625 | AS61: 4.146180751 | AT61: 4.14419994 | AU61: 5.12533805 | AV61: 4.133668891 | AW61: 2.626179086 | AX61: 4.049630353 | AY61: 3.634781088 | AZ61: 6.222054776 | BA61: 3.148488111 | BB61: 2.419167856 | BC61: 6.522113721 | BD61: 5.016587821 | BE61: 2.753486649 | BF61: 3.175951638 | BG61: 8.954397225 | BH61: 5.878028099 | BI61: 5.142380104 | BJ61: 3.213314992 | BK61: 3.58335694 | BL61: 4.337764915 | BM61: 5.945459926 | BN61: 2.434916704 | BO61: 5.150220328 | BP61: 3.455816529 | BQ61: 3.548730015 | BR61: 7.548675977 | BS61: 1.797356069 | BT61: 2.947361637 | BU61: 3.220791159 | BV61: 6.1349698 | BW61: 4.784454841 | BX61: 5.689452721 | BY61: 5.883606477 | BZ61: 6.986278051 | CA61: 6.1374874 | CB61: 3.411664022 | CC61: 2.289146046 | CD61: 3.802744704 | CE61: 3.058163993 | CF61: 3.106278931 | CG61: 2.124396753 | CH61: 4.057357634 | CI61: 3.256987214 | CJ61: 4.819875465 | CK61: 4.060491405 | CL61: 4.785038819 | CM61: 6.288005851 | CN61: 3.052637951 | CO61: 3.134108561 | CP61: 9.224640617 | CQ61: 2.740580676 | CR61: 4.078148077 | CS61: 11.83434736 | CT61: 3.63554001 | CU61: 2.763834243 | CV61: 1.284084387 | CW61: 8.547962765 | CX61: 2.078710348 | CY61: 6.11447327 | CZ61: 3.191408135 | DA61: 8.130496591 | DB61: 3.251485046 | DC61: 6.575885987 | DD61: 3.223256077 | DE61: 5.786776077 | DF61: 3.758406516 | DG61: 5.577319349 | DH61: 8.596245519 | DI61: 6.401991162 | DJ61: 2.77848666 | DK61: 3.785475598 | DL61: 1.531681508 | DM61: 0.1113043731 | DN61: -232.6047586 | DO61: 71
A62: 46 | C62: 7.609579971 | D62: 3.781742988 | E62: 6.651697866 | F62: 2.668170937 | G62: 2.579766983 | H62: 4.675427195 | I62: 1.598527336 | J62: 4.458526857 | K62: 3.158041151 | L62: 3.108073744 | M62: 3.471108861 | N62: 3.450383617 | O62: 3.002497709 | P62: 6.957719487 | Q62: 2.460171596 | R62: 3.038715526 | S62: 2.782322922 | T62: 3.609088169 | U62: 6.747172512 | V62: 4.112343066 | W62: 8.699680772 | X62: 4.014486817 | Y62: 3.767592302 | Z62: 4.468665867 | AA62: 6.361790142 | AB62: 5.471927604 | AC62: 2.579691784 | AD62: 2.503115787 | AE62: 3.76758992 | AF62: 5.052656627 | AG62: 4.460072225 | AH62: 3.132992872 | AI62: 6.410096891 | AJ62: 2.553060282 | AK62: 3.35039323 | AL62: 2.515308904 | AM62: 3.301730124 | AN62: 6.867853331 | AO62: 9.170371587 | AP62: 4.617746617 | AQ62: 4.859448297 | AR62: 4.667963692 | AS62: 4.646637614 | AT62: 3.659806233 | AU62: 3.920241777 | AV62: 12.40536509 | AW62: 3.155349192 | AX62: 2.829164518 | AY62: 2.50403294 | AZ62: 2.640810056 | BA62: 5.592492674 | BB62: 3.165020947 | BC62: 3.613604255 | BD62: 2.47660112 | BE62: 6.498856439 | BF62: 3.036951906 | BG62: 10.20885101 | BH62: 8.630166641 | BI62: 4.07999075 | BJ62: 17.89336028 | BK62: 5.145249673 | BL62: 5.785893938 | BM62: 3.836378406 | BN62: 2.933607487 | BO62: 3.759489114 | BP62: 2.669121746 | BQ62: 2.029111923 | BR62: 3.830746936 | BS62: 5.089573904 | BT62: 5.227714341 | BU62: 3.902934942 | BV62: 3.17525428 | BW62: 3.757641368 | BX62: 2.52336829 | BY62: 5.332617245 | BZ62: 2.75751369 | CA62: 5.614496546 | CB62: 2.707567033 | CC62: 4.660095433 | CD62: 5.643605939 | CE62: 3.74709647 | CF62: 2.493005017 | CG62: 3.241168863 | CH62: 3.632435489 | CI62: 9.181975437 | CJ62: 3.943607861 | CK62: 3.736887417 | CL62: 5.716676774 | CM62: 5.269677002 | CN62: 5.150937807 | CO62: 4.215516059 | CP62: 2.820851438 | CQ62: 4.169519194 | CR62: 4.291747435 | CS62: 4.456459925 | CT62: 4.373778625 | CU62: 47.65292503 | CV62: 3.18490731 | CW62: 5.62447677 | CX62: 2.498893771 | CY62: 2.974773588 | CZ62: 3.676639211 | DA62: 4.706364625 | DB62: 2.253842645 | DC62: 8.444004441 | DD62: 4.304610005 | DE62: 3.46263159 | DF62: 5.149759794 | DG62: 2.035818859 | DH62: 4.55687646 | DI62: 3.436387516 | DJ62: 4.192482692 | DK62: 3.458788972 | DL62: 1.240865511 | DM62: 0.3059899567 | DN62: -219.4521945 | DO62: 62
A63: 47 | C63: 3.940449918 | D63: 2.21790636 | E63: 2.324104178 | F63: 7.021967769 | G63: 4.882504673 | H63: 5.907860162 | I63: 3.074949456 | J63: 5.46511103 | K63: 3.795691213 | L63: 5.488834027 | M63: 6.87532214 | N63: 4.594233108 | O63: 5.617693632 | P63: 3.042684019 | Q63: 2.705553622 | R63: 6.34243082 | S63: 2.465800594 | T63: 3.1738863 | U63: 2.310084757 | V63: 2.929037139 | W63: 5.758194331 | X63: 2.940130276 | Y63: 4.860372524 | Z63: 4.50551013 | AA63: 5.010681092 | AB63: 4.923618632 | AC63: 2.429067659 | AD63: 13.3380929 | AE63: 3.089341874 | AF63: 4.640055954 | AG63: 4.415700474 | AH63: 8.826755289 | AI63: 4.948567903 | AJ63: 5.982102671 | AK63: 6.36133073 | AL63: 6.091710699 | AM63: 3.430456172 | AN63: 3.736338687 | AO63: 4.129525119 | AP63: 4.95155678 | AQ63: 4.185623481 | AR63: 6.947535042 | AS63: 2.993809317 | AT63: 3.415448574 | AU63: 3.545226528 | AV63: 2.639623405 | AW63: 3.440262443 | AX63: 4.502219779 | AY63: 1.947558625 | AZ63: 7.607157433 | BA63: 5.041765363 | BB63: 5.345056828 | BC63: 3.280408287 | BD63: 3.84387122 | BE63: 5.087510889 | BF63: 3.347703774 | BG63: 10.13082249 | BH63: 3.165214156 | BI63: 5.044303207 | BJ63: 2.702445056 | BK63: 3.017520867 | BL63: 4.05523607 | BM63: 4.00728976 | BN63: 4.79082507 | BO63: 3.869851288 | BP63: 2.287659854 | BQ63: 2.875897882 | BR63: 2.880310086 | BS63: 7.258635286 | BT63: 4.448893448 | BU63: 3.526204626 | BV63: 2.214431356 | BW63: 3.712032095 | BX63: 7.070260154 | BY63: 2.90443411 | BZ63: 3.638342366 | CA63: 2.931718545 | CB63: 4.349353245 | CC63: 3.163155167 | CD63: 3.398012085 | CE63: 3.164006594 | CF63: 13.38330191 | CG63: 2.927962637 | CH63: 5.269602233 | CI63: 4.874656458 | CJ63: 3.53595658 | CK63: 7.088342146 | CL63: 5.787761153 | CM63: 3.316857975 | CN63: 2.536531437 | CO63: 5.338495686 | CP63: 2.630203103 | CQ63: 7.414449486 | CR63: 4.118746322 | CS63: 2.965966151 | CT63: 2.190525585 | CU63: 2.860366533 | CV63: 5.12450427 | CW63: 5.93306501 | CX63: 1.961502678 | CY63: 3.241866723 | CZ63: 4.44860732 | DA63: 8.356915552 | DB63: 4.119272316 | DC63: 4.062637393 | DD63: 4.348123088 | DE63: 4.001490393 | DF63: 5.980897958 | DG63: 2.941793105 | DH63: 5.448833514 | DI63: 2.392743507 | DJ63: 4.503594777 | DK63: 3.493726234 | DL63: 1.191970458 | DM63: 0.1953489295 | DN63: -209.3233142 | DO63: 40
A64: 48 | C64: 2.670201361 | D64: 3.460084231 | E64: 3.357619363 | F64: 2.923891753 | G64: 5.705513013 | H64: 3.137005557 | I64: 3.784299473 | J64: 4.303155734 | K64: 12.43620064 | L64: 15.97623078 | M64: 7.109340702 | N64: 11.45890056 | O64: 2.938885891 | P64: 7.969177399 | Q64: 8.029365881 | R64: 5.902771433 | S64: 3.37525032 | T64: 3.776972717 | U64: 3.391702915 | V64: 3.800924231 | W64: 3.590197221 | X64: 5.086767156 | Y64: 3.893047515 | Z64: 4.005446011 | AA64: 2.815291154 | AB64: 4.817241412 | AC64: 5.147460123 | AD64: 4.701080959 | AE64: 3.207394131 | AF64: 10.36852941 | AG64: 10.99690641 | AH64: 7.243187735 | AI64: 2.502263668 | AJ64: 4.909832753 | AK64: 4.900433217 | AL64: 2.987715339 | AM64: 4.384460674 | AN64: 3.744622761 | AO64: 3.80609221 | AP64: 2.482039749 | AQ64: 4.270783971 | AR64: 5.528350403 | AS64: 6.373909887 | AT64: 5.780342088 | AU64: 13.38726115 | AV64: 2.208793387 | AW64: 6.001238107 | AX64: 3.478606985 | AY64: 3.026438596 | AZ64: 1.44947034 | BA64: 3.737762637 | BB64: 3.47083282 | BC64: 2.234901982 | BD64: 2.922927758 | BE64: 10.88194408 | BF64: 4.234201345 | BG64: 6.907699562 | BH64: 8.343516924 | BI64: 4.257360153 | BJ64: 6.689684577 | BK64: 3.340979966 | BL64: 4.528322266 | BM64: 2.547352076 | BN64: 6.009181483 | BO64: 4.45547953 | BP64: 5.641894044 | BQ64: 7.240916134 | BR64: 5.872035752 | BS64: 7.479091778 | BT64: 2.420873039 | BU64: 2.125730456 | BV64: 19.24711236 | BW64: 3.202009068 | BX64: 2.282545855 | BY64: 3.015347308 | BZ64: 4.128758172 | CA64: 3.123644905 | CB64: 2.894803276 | CC64: 9.247108111 | CD64: 3.078771301 | CE64: 3.43740945 | CF64: 3.42024895 | CG64: 5.303016948 | CH64: 6.257471329 | CI64: 3.347065265 | CJ64: 3.689695084 | CK64: 5.642611307 | CL64: 2.865315568 | CM64: 11.18891713 | CN64: 3.123074608 | CO64: 4.73602257 | CP64: 4.434030859 | CQ64: 2.977929984 | CR64: 6.012238573 | CS64: 4.71642266 | CT64: 6.258112142 | CU64: 7.721880298 | CV64: 3.861885335 | CW64: 5.150740912 | CX64: 8.647533034 | CY64: 5.486344477 | CZ64: 4.669731017 | DA64: 4.10609357 | DB64: 6.161339657 | DC64: 4.737799046 | DD64: 5.943101478 | DE64: 5.158568436 | DF64: 2.893592967 | DG64: 6.065032593 | DH64: 4.501543725 | DI64: 4.569234144 | DJ64: 14.70557547 | DK64: 3.823330354 | DL64: 1.546998323 | DM64: 0.2661999314 | DN64: -243.760127 | DO64: 34
A65: 49 | C65: 33.19838596 | D65: 2.215658445 | E65: 7.509671529 | F65: 7.81010452 | G65: 9.008638285 | H65: 4.33861901 | I65: 7.250730989 | J65: 10.45292609 | K65: 8.328392938 | L65: 3.430147827 | M65: 4.831569385 | N65: 5.602919022 | O65: 7.328647606 | P65: 7.881911129 | Q65: 4.906002645 | R65: 4.140010225 | S65: 4.479961896 | T65: 3.941659754 | U65: 5.190877061 | V65: 5.490654956 | W65: 8.754512027 | X65: 3.037000473 | Y65: 6.829507132 | Z65: 14.76686501 | AA65: 12.69154941 | AB65: 5.064140907 | AC65: 7.669592505 | AD65: 7.117846536 | AE65: 4.635121826 | AF65: 4.188886613 | AG65: 6.252792031 | AH65: 2.99652469 | AI65: 5.428337677 | AJ65: 2.077719296 | AK65: 4.841974612 | AL65: 4.946115867 | AM65: 8.876761227 | AN65: 8.177346636 | AO65: 4.408252897 | AP65: 4.00265534 | AQ65: 2.554304267 | AR65: 8.887712387 | AS65: 3.076226846 | AT65: 4.009411916 | AU65: 3.258003056 | AV65: 3.094500031 | AW65: 3.636981081 | AX65: 3.547295242 | AY65: 8.047133467 | AZ65: 4.616452883 | BA65: 4.468683592 | BB65: 2.862741063 | BC65: 3.9758433 | BD65: 3.020134098 | BE65: 3.546725408 | BF65: 2.737972943 | BG65: 6.283919878 | BH65: 4.197533484 | BI65: 4.349239392 | BJ65: 4.742983205 | BK65: 4.327931245 | BL65: 3.223914861 | BM65: 6.275755313 | BN65: 3.566236616 | BO65: 6.53918029 | BP65: 2.127513542 | BQ65: 4.452576281 | BR65: 2.178790868 | BS65: 2.929250345 | BT65: 6.618617168 | BU65: 7.34277684 | BV65: 2.708100249 | BW65: 8.053571674 | BX65: 8.089440977 | BY65: 2.130100402 | BZ65: 5.433404278 | CA65: 3.149515478 | CB65: 15.09907267 | CC65: 8.420694783 | CD65: 7.732386468 | CE65: 3.757228508 | CF65: 4.930078585 | CG65: 9.062345105 | CH65: 3.376773561 | CI65: 2.761487864 | CJ65: 6.961559743 | CK65: 2.415842132 | CL65: 5.677684275 | CM65: 4.088667417 | CN65: 2.262479895 | CO65: 3.078859728 | CP65: 3.836280706 | CQ65: 4.256544669 | CR65: 2.658767427 | CS65: 5.583787798 | CT65: 9.890515378 | CU65: 5.82765278 | CV65: 6.743257804 | CW65: 3.504118345 | CX65: 2.807915021 | CY65: 4.546007149 | CZ65: 4.499052815 | DA65: 2.3242791 | DB65: 4.455208031 | DC65: 5.901024728 | DD65: 1.557782516 | DE65: 5.767419772 | DF65: 4.524580176 | DG65: 5.368031758 | DH65: 4.353989143 | DI65: 4.223139888 | DJ65: 5.409329715 | DK65: 3.978572897 | DL65: 1.708848575 | DM65: 0.2315840828 | DN65: -251.710021 | DO65: 34
A66: 50 | C66: 3.731748957 | D66: 3.748443048 | E66: 4.301484998 | F66: 2.721716974 | G66: 9.016894034 | H66: 4.070587845 | I66: 3.164820846 | J66: 3.630697071 | K66: 3.701841147 | L66: 2.703195188 | M66: 4.832746851 | N66: 3.448710717 | O66: 3.986265781 | P66: 3.723652329 | Q66: 5.635845473 | R66: 4.676108016 | S66: 8.17896003 | T66: 3.144215468 | U66: 4.742908434 | V66: 12.66059803 | W66: 1.45063331 | X66: 3.663500022 | Y66: 3.17791838 | Z66: 3.153257501 | AA66: 2.416155444 | AB66: 0.957724551 | AC66: 1.766118129 | AD66: 1.940794782 | AE66: 4.636961491 | AF66: 2.474146039 | AG66: 3.134659969 | AH66: 3.397664009 | AI66: 3.41747865 | AJ66: 4.745578652 | AK66: 8.257173062 | AL66: 5.499552989 | AM66: 5.74567205 | AN66: 3.388353088 | AO66: 10.35121854 | AP66: 4.22183515 | AQ66: 8.591945878 | AR66: 4.208014948 | AS66: 3.806580566 | AT66: 3.572060318 | AU66: 3.184053373 | AV66: 3.450041726 | AW66: 11.82246731 | AX66: 5.832711194 | AY66: 5.355952354 | AZ66: 11.38758422 | BA66: 2.201948082 | BB66: 4.661628891 | BC66: 3.861275538 | BD66: 4.400384425 | BE66: 4.542979462 | BF66: 5.450200225 | BG66: 3.176001615 | BH66: 5.248104027 | BI66: 4.133741351 | BJ66: 2.725232776 | BK66: 5.955758302 | BL66: 9.688886816 | BM66: 3.311893652 | BN66: 2.96057992 | BO66: 4.476313562 | BP66: 2.420774043 | BQ66: 6.386477851 | BR66: 2.504637075 | BS66: 4.131517341 | BT66: 4.885668114 | BU66: 3.92319206 | BV66: 5.363270045 | BW66: 4.459185492 | BX66: 8.680713777 | BY66: 3.05301946 | BZ66: 4.38484539 | CA66: 6.239230869 | CB66: 2.98289821 | CC66: 4.823993133 | CD66: 22.62300976 | CE66: 4.339268345 | CF66: 7.162579551 | CG66: 3.455585892 | CH66: 11.89280206 | CI66: 5.225654432 | CJ66: 3.639042855 | CK66: 3.016271055 | CL66: 4.362585892 | CM66: 5.084572735 | CN66: 6.569716051 | CO66: 6.168395436 | CP66: 8.197681916 | CQ66: 2.966263418 | CR66: 3.894913939 | CS66: 6.082371842 | CT66: 8.057469552 | CU66: 4.429913952 | CV66: 4.639436445 | CW66: 6.965914875 | CX66: 3.297651156 | CY66: 1.898391918 | CZ66: 5.760146487 | DA66: 5.931252332 | DB66: 4.256607536 | DC66: 4.893994346 | DD66: 3.13458376 | DE66: 5.352134976 | DF66: 8.20181614 | DG66: 2.121436169 | DH66: 3.444371703 | DI66: 6.236318146 | DJ66: 6.838795713 | DK66: 3.747620842 | DL66: 1.609812658 | DM66: 0.1445430347 | DN66: -239.4658524 | DO66: 51
A67: 51 | C67: 6.046978476 | D67: 5.257570939 | E67: 2.198062544 | F67: 3.033809669 | G67: 5.551719276 | H67: 2.592309566 | I67: 3.399854479 | J67: 3.026006626 | K67: 5.761285197 | L67: 3.106423239 | M67: 4.892857985 | N67: 3.859682668 | O67: 5.506811927 | P67: 5.803366623 | Q67: 8.61182741 | R67: 1.522443094 | S67: 5.182954376 | T67: 7.899680931 | U67: 5.372090382 | V67: 3.373430968 | W67: 3.392514452 | X67: 9.294586641 | Y67: 2.850048811 | Z67: 3.943788103 | AA67: 4.639660208 | AB67: 2.841313122 | AC67: 4.412778034 | AD67: 4.362868924 | AE67: 6.865602985 | AF67: 8.832861742 | AG67: 5.291315207 | AH67: 6.558864066 | AI67: 7.622561591 | AJ67: 3.071855684 | AK67: 8.111139428 | AL67: 3.338983733 | AM67: 4.032627653 | AN67: 2.350476669 | AO67: 1.627997788 | AP67: 3.285526964 | AQ67: 8.272669269 | AR67: 4.931040593 | AS67: 4.913934443 | AT67: 4.981371522 | AU67: 3.382407867 | AV67: 3.234660602 | AW67: 6.949981759 | AX67: 22.83829312 | AY67: 3.666035684 | AZ67: 6.513455321 | BA67: 1.551502316 | BB67: 2.938879025 | BC67: 3.014144027 | BD67: 4.208379447 | BE67: 5.675384491 | BF67: 1.818082478 | BG67: 6.374187801 | BH67: 4.257953147 | BI67: 3.704705981 | BJ67: 3.781892481 | BK67: 2.810052892 | BL67: 3.671077685 | BM67: 3.99669398 | BN67: 4.125093107 | BO67: 3.258550211 | BP67: 3.117442709 | BQ67: 4.571375913 | BR67: 3.200404063 | BS67: 5.85563247 | BT67: 4.314657547 | BU67: 4.247309899 | BV67: 3.238443095 | BW67: 4.558267529 | BX67: 6.99259424 | BY67: 4.076146421 | BZ67: 5.005649172 | CA67: 6.162953926 | CB67: 2.953202888 | CC67: 5.516859415 | CD67: 3.941605954 | CE67: 1.000436187 | CF67: 2.686567031 | CG67: 3.934288848 | CH67: 11.06580215 | CI67: 4.962940991 | CJ67: 5.146589343 | CK67: 5.214908056 | CL67: 6.110997825 | CM67: 5.564126829 | CN67: 2.234963146 | CO67: 7.023145355 | CP67: 4.438206528 | CQ67: 6.688799251 | CR67: 7.133498916 | CS67: 3.082715442 | CT67: 3.483198651 | CU67: 3.354139734 | CV67: 4.250096163 | CW67: 5.135648534 | CX67: 2.702679843 | CY67: 4.559396801 | CZ67: 5.655583851 | DA67: 8.441672402 | DB67: 5.311140453 | DC67: 2.571489453 | DD67: 5.160291531 | DE67: 5.965487871 | DF67: 4.039344548 | DG67: 2.786715549 | DH67: 6.583525624 | DI67: 5.243778053 | DJ67: 6.441084531 | DK67: 3.747620842 | DL67: 1.562468306 | DM67: 0.08485207793 | DN67: -231.4590718 | DO67: 101
A68: 52 | C68: 1.72970371 | D68: 4.629960553 | E68: 4.847634274 | F68: 5.378470599 | G68: 4.380864642 | H68: 5.835596166 | I68: 2.712959017 | J68: 3.360167825 | K68: 5.604994109 | L68: 4.60155167 | M68: 5.089491888 | N68: 1.680752596 | O68: 6.510325417 | P68: 5.58125075 | Q68: 2.844493861 | R68: 7.437678104 | S68: 3.709755878 | T68: 6.600989112 | U68: 7.13067443 | V68: 10.03372662 | W68: 5.909117395 | X68: 1.862931109 | Y68: 3.966816323 | Z68: 2.683439127 | AA68: 8.560097093 | AB68: 6.938098385 | AC68: 3.1368334 | AD68: 2.527441802 | AE68: 3.20575075 | AF68: 4.146658603 | AG68: 7.752998176 | AH68: 5.360863974 | AI68: 6.106682528 | AJ68: 11.57468696 | AK68: 3.193586074 | AL68: 3.818823862 | AM68: 5.933326825 | AN68: 2.209354577 | AO68: 3.201457846 | AP68: 2.0214487 | AQ68: 3.17151648 | AR68: 7.033082335 | AS68: 3.933415821 | AT68: 6.556707666 | AU68: 1.788510006 | AV68: 3.165974579 | AW68: 3.944201209 | AX68: 5.440781982 | AY68: 8.8692165 | AZ68: 14.30437887 | BA68: 6.483852676 | BB68: 5.981592854 | BC68: 3.332221768 | BD68: 4.908383694 | BE68: 2.997354323 | BF68: 2.368820856 | BG68: 4.04664365 | BH68: 2.990144384 | BI68: 4.124139124 | BJ68: 4.715038339 | BK68: 17.70947993 | BL68: 3.846204605 | BM68: 4.342185353 | BN68: 4.779834497 | BO68: 5.672228749 | BP68: 2.559682956 | BQ68: 9.210614437 | BR68: 2.532396991 | BS68: 3.312315446 | BT68: 6.306195046 | BU68: 2.943603252 | BV68: 4.504407396 | BW68: 4.95592674 | BX68: 5.282754868 | BY68: 6.435684658 | BZ68: 1.994459391 | CA68: 3.478943705 | CB68: 5.070232755 | CC68: 2.993738629 | CD68: 3.545568395 | CE68: 3.738418419 | CF68: 5.89336674 | CG68: 2.988577545 | CH68: 4.763175182 | CI68: 14.69803938 | CJ68: 7.021992756 | CK68: 3.615811575 | CL68: 2.318477538 | CM68: 2.499536705 | CN68: 4.060501835 | CO68: 2.909005954 | CP68: 15.334796 | CQ68: 3.49928886 | CR68: 7.710889947 | CS68: 5.417526002 | CT68: 2.397135409 | CU68: 3.335979494 | CV68: 5.511281039 | CW68: 3.777899298 | CX68: 6.40067968 | CY68: 8.789426759 | CZ68: 3.52611676 | DA68: 2.540609211 | DB68: 3.80525544 | DC68: 3.628192171 | DD68: 6.748271867 | DE68: 4.191809411 | DF68: 4.932452783 | DG68: 4.896254926 | DH68: 3.365269331 | DI68: 4.70599989 | DJ68: 3.312700721 | DK68: 3.673777906 | DL68: 1.546998323 | DM68: 0.2225477517 | DN68: -239.5510981 | DO68: 14
A69: 53 | C69: 2.613680848 | D69: 8.796418883 | E69: 4.880746666 | F69: 4.147075248 | G69: 6.580171084 | H69: 13.05733232 | I69: 2.336569246 | J69: 4.914762622 | K69: 3.161284175 | L69: 3.984570463 | M69: 11.43812138 | N69: 3.512989313 | O69: 2.605499446 | P69: 3.152487962 | Q69: 4.831447102 | R69: 4.852481456 | S69: 6.229016275 | T69: 4.898132944 | U69: 3.157008958 | V69: 4.720987048 | W69: 5.141058789 | X69: 7.408612358 | Y69: 2.794460326 | Z69: 2.469527059 | AA69: 6.016535484 | AB69: 2.565974963 | AC69: 2.537033402 | AD69: 5.2598612 | AE69: 7.11400182 | AF69: 3.797325804 | AG69: 6.193522623 | AH69: 2.346461007 | AI69: 4.375401613 | AJ69: 3.338780917 | AK69: 6.089487074 | AL69: 3.928671211 | AM69: 5.278315357 | AN69: 3.404072861 | AO69: 4.194169024 | AP69: 3.483696732 | AQ69: 3.407659645 | AR69: 8.238928917 | AS69: 4.46280201 | AT69: 4.773855776 | AU69: 3.309857948 | AV69: 5.26605635 | AW69: 3.831872157 | AX69: 6.115078384 | AY69: 5.490669011 | AZ69: 4.748182732 | BA69: 2.701675618 | BB69: 4.112718884 | BC69: 3.739284363 | BD69: 5.818748559 | BE69: 4.186851488 | BF69: 2.792147788 | BG69: 3.539597087 | BH69: 3.201584457 | BI69: 3.395434067 | BJ69: 3.080979132 | BK69: 8.693756318 | BL69: 3.308240804 | BM69: 9.714863692 | BN69: 3.193947527 | BO69: 2.215432867 | BP69: 4.611483431 | BQ69: 3.540026305 | BR69: 4.163553217 | BS69: 4.149609344 | BT69: 2.326252574 | BU69: 6.068004451 | BV69: 4.958882689 | BW69: 5.231422145 | BX69: 5.159172937 | BY69: 4.414368189 | BZ69: 7.388772369 | CA69: 5.460496804 | CB69: 4.481443115 | CC69: 3.120662992 | CD69: 2.610567901 | CE69: 3.976140911 | CF69: 3.91156574 | CG69: 5.574465919 | CH69: 4.092367438 | CI69: 11.13670849 | CJ69: 3.175145784 | CK69: 3.335579812 | CL69: 2.646569013 | CM69: 3.843998059 | CN69: 2.265121561 | CO69: 5.643612282 | CP69: 3.204068507 | CQ69: 5.595081135 | CR69: 2.992692295 | CS69: 3.129355176 | CT69: 3.553442874 | CU69: 2.383380063 | CV69: 4.807811793 | CW69: 7.997499486 | CX69: 5.18239585 | CY69: 2.592866367 | CZ69: 4.571804057 | DA69: 2.605090535 | DB69: 2.756253829 | DC69: 6.231216955 | DD69: 4.170057652 | DE69: 4.752375852 | DF69: 2.931436181 | DG69: 3.610283667 | DH69: 2.571684705 | DI69: 3.155840048 | DJ69: 2.605524881 | DK69: 3.529016398 | DL69: 1.133552046 | DM69: 0.2609547411 | DN69: -206.1649505 | DO69: 53
A70: 54 | C70: 3.679604137 | D70: 7.198316071 | E70: 5.34421099 | F70: 4.814876476 | G70: 3.651287361 | H70: 4.70816774 | I70: 5.147137257 | J70: 4.350365039 | K70: 3.887774841 | L70: 3.470961932 | M70: 2.506471352 | N70: 6.339273798 | O70: 2.918429786 | P70: 3.981751591 | Q70: 5.844504176 | R70: 7.205457501 | S70: 19.85648508 | T70: 2.898120967 | U70: 2.954662304 | V70: 2.129719621 | W70: 4.121751573 | X70: 2.566416266 | Y70: 4.791631261 | Z70: 3.579140953 | AA70: 2.287404282 | AB70: 2.743282172 | AC70: 3.828359217 | AD70: 4.35120838 | AE70: 2.414482535 | AF70: 4.836296595 | AG70: 4.658819056 | AH70: 3.496210371 | AI70: 7.906417876 | AJ70: 5.568631926 | AK70: 5.281211025 | AL70: 9.365334902 | AM70: 3.970281288 | AN70: 2.660647571 | AO70: 6.490827169 | AP70: 7.824127195 | AQ70: 5.90041426 | AR70: 6.224860113 | AS70: 18.18286215 | AT70: 9.217604672 | AU70: 2.867572216 | AV70: 3.414140502 | AW70: 5.521852984 | AX70: 3.77094531 | AY70: 3.235425471 | AZ70: 1.970960467 | BA70: 6.277919545 | BB70: 4.736809909 | BC70: 4.195070067 | BD70: 8.77803622 | BE70: 4.034313015 | BF70: 5.988954431 | BG70: 6.916353594 | BH70: 3.842832469 | BI70: 4.682454471 | BJ70: 9.648796076 | BK70: 6.230126721 | BL70: 3.760818423 | BM70: 3.994521448 | BN70: 3.319852476 | BO70: 4.090306492 | BP70: 5.992173249 | BQ70: 3.655524042 | BR70: 4.234144557 | BS70: 2.661566518 | BT70: 2.481661632 | BU70: 7.610610114 | BV70: 6.032667893 | BW70: 7.092478101 | BX70: 3.424311128 | BY70: 2.716292698 | BZ70: 5.205128526 | CA70: 4.753536214 | CB70: 2.191875827 | CC70: 3.288090988 | CD70: 3.874010493 | CE70: 3.125151596 | CF70: 10.07872496 | CG70: 3.958009825 | CH70: 3.798463383 | CI70: 2.325987032 | CJ70: 3.636752076 | CK70: 6.099991019 | CL70: 11.99569051 | CM70: 4.743329902 | CN70: 2.44591337 | CO70: 6.495570311 | CP70: 4.236946628 | CQ70: 3.957330548 | CR70: 5.234608023 | CS70: 9.891606683 | CT70: 4.252118879 | CU70: 4.030696244 | CV70: 6.200632638 | CW70: 3.668113146 | CX70: 3.406654743 | CY70: 3.452103496 | CZ70: 5.994249399 | DA70: 2.094945672 | DB70: 5.307710846 | DC70: 2.645938855 | DD70: 4.687953843 | DE70: 2.724931062 | DF70: 2.17641235 | DG70: 3.838416303 | DH70: 10.1721718 | DI70: 4.442523535 | DJ70: 4.151557846 | DK70: 3.710515685 | DL70: 1.399917293 | DM70: 0.2583710308 | DN70: -230.8879155 | DO70: 28
A71: 55 | C71: 3.522130744 | D71: 5.833461217 | E71: 5.540589223 | F71: 4.035015008 | G71: 2.533581209 | H71: 4.964269513 | I71: 5.96874866 | J71: 4.173203002 | K71: 5.387731776 | L71: 8.791824426 | M71: 5.811019346 | N71: 2.984950046 | O71: 7.356003566 | P71: 6.143604119 | Q71: 3.379951994 | R71: 4.415531481 | S71: 3.307726518 | T71: 4.584729689 | U71: 3.643245761 | V71: 3.701801765 | W71: 8.026781861 | X71: 4.144108758 | Y71: 3.839044292 | Z71: 2.901977899 | AA71: 8.406631753 | AB71: 4.052829894 | AC71: 5.097004768 | AD71: 2.373075347 | AE71: 4.119323782 | AF71: 3.555015932 | AG71: 5.452204766 | AH71: 2.656114745 | AI71: 10.11018182 | AJ71: 3.044764548 | AK71: 3.563430497 | AL71: 6.266922113 | AM71: 4.215991677 | AN71: 2.418426587 | AO71: 4.57048299 | AP71: 6.40913394 | AQ71: 4.579293461 | AR71: 5.781413281 | AS71: 2.243092129 | AT71: 2.294984645 | AU71: 2.19693095 | AV71: 14.92519736 | AW71: 4.676697982 | AX71: 8.013430279 | AY71: 3.528595939 | AZ71: 7.35037856 | BA71: 15.46254512 | BB71: 5.794652631 | BC71: 6.62952181 | BD71: 4.093540452 | BE71: 2.862388321 | BF71: 5.662313183 | BG71: 5.330469958 | BH71: 5.190188888 | BI71: 3.735621735 | BJ71: 6.070418611 | BK71: 5.433560917 | BL71: 3.973124753 | BM71: 8.763368599 | BN71: 6.961606392 | BO71: 4.429203627 | BP71: 2.400957813 | BQ71: 8.312977024 | BR71: 4.158584507 | BS71: 2.894147886 | BT71: 8.898757059 | BU71: 3.524631908 | BV71: 4.283426417 | BW71: 4.756116369 | BX71: 3.502942968 | BY71: 3.645004364 | BZ71: 2.733426867 | CA71: 6.644477829 | CB71: 4.585165839 | CC71: 1.85599658 | CD71: 2.815837191 | CE71: 2.021784726 | CF71: 4.257458662 | CG71: 8.983196982 | CH71: 4.165528529 | CI71: 12.40644644 | CJ71: 1.965981276 | CK71: 4.057293842 | CL71: 8.906491111 | CM71: 6.742025485 | CN71: 2.073733974 | CO71: 8.933645541 | CP71: 3.139605978 | CQ71: 2.033061534 | CR71: 4.511426903 | CS71: 3.656978471 | CT71: 3.155676197 | CU71: 4.094959114 | CV71: 2.797835695 | CW71: 2.751113297 | CX71: 4.310243605 | CY71: 1.932383033 | CZ71: 4.291500684 | DA71: 3.036512564 | DB71: 2.531359181 | DC71: 3.079177075 | DD71: 3.866549004 | DE71: 3.552260751 | DF71: 4.015833374 | DG71: 2.844595441 | DH71: 6.26461481 | DI71: 5.569508879 | DJ71: 6.124241632 | DK71: 3.673777906 | DL71: 1.471915823 | DM71: 0.2054780131 | DN71: -232.9561287 | DO71: 5
A72: 56 | C72: 6.023829832 | D72: 3.126700597 | E72: 6.744178972 | F72: 4.635708352 | G72: 3.301804599 | H72: 3.952723452 | I72: 4.033662417 | J72: 3.39572546 | K72: 5.871708083 | L72: 3.447442637 | M72: 15.29193174 | N72: 3.915775903 | O72: 3.547250444 | P72: 10.94110604 | Q72: 2.79779393 | R72: 5.925498727 | S72: 2.800413028 | T72: 3.064149586 | U72: 4.958807794 | V72: 8.85787177 | W72: 10.12385418 | X72: 2.42353081 | Y72: 3.633723613 | Z72: 2.573000349 | AA72: 6.232049988 | AB72: 6.352654141 | AC72: 4.933227998 | AD72: 2.089827949 | AE72: 8.191406303 | AF72: 10.97803922 | AG72: 7.368473501 | AH72: 3.667394542 | AI72: 13.62752462 | AJ72: 6.48533138 | AK72: 3.660911663 | AL72: 2.475706607 | AM72: 4.686684834 | AN72: 11.06004804 | AO72: 3.42668891 | AP72: 3.563929398 | AQ72: 7.197965201 | AR72: 3.337316101 | AS72: 3.062036117 | AT72: 3.84690609 | AU72: 4.355151797 | AV72: 10.35245376 | AW72: 4.029722837 | AX72: 1.441433284 | AY72: 12.99590188 | AZ72: 2.145004312 | BA72: 2.491937364 | BB72: 5.990412381 | BC72: 7.650712915 | BD72: 8.09637521 | BE72: 8.882554239 | BF72: 2.339028472 | BG72: 5.982830792 | BH72: 3.427260968 | BI72: 8.322924949 | BJ72: 8.362100549 | BK72: 1.89500898 | BL72: 3.658352721 | BM72: 4.889567276 | BN72: 3.800459383 | BO72: 2.348439829 | BP72: 2.457822454 | BQ72: 2.815280886 | BR72: 1.919083388 | BS72: 7.005095902 | BT72: 8.547568167 | BU72: 2.852550146 | BV72: 4.727937069 | BW72: 4.565429138 | BX72: 5.565746188 | BY72: 3.153989566 | BZ72: 3.061486669 | CA72: 4.309991744 | CB72: 6.411805749 | CC72: 3.941317964 | CD72: 4.111607035 | CE72: 3.79995792 | CF72: 3.900556174 | CG72: 2.737010211 | CH72: 2.37966679 | CI72: 5.540813046 | CJ72: 3.441116676 | CK72: 2.615676394 | CL72: 4.289320655 | CM72: 4.455292167 | CN72: 5.081376439 | CO72: 6.782083435 | CP72: 2.783585726 | CQ72: 3.711802551 | CR72: 3.214597351 | CS72: 2.708167683 | CT72: 3.909646129 | CU72: 3.848281065 | CV72: 6.0137554 | CW72: 7.142334177 | CX72: 3.917414951 | CY72: 11.7682464 | CZ72: 4.610252408 | DA72: 2.958524683 | DB72: 4.807396097 | DC72: 3.272259377 | DD72: 3.98716873 | DE72: 5.502363727 | DF72: 6.968810677 | DG72: 3.064100201 | DH72: 6.31093806 | DI72: 3.188006713 | DJ72: 5.30235766 | DK72: 3.673777906 | DL72: 1.546998323 | DM72: 0.2609547411 | DN72: -242.2497739 | DO72: 30
A73: 57 | C73: 5.975415576 | D73: 2.732265675 | E73: 3.966962314 | F73: 6.735424268 | G73: 3.665668603 | H73: 4.383520386 | I73: 1.981638152 | J73: 11.15271706 | K73: 4.306038383 | L73: 5.150591222 | M73: 2.350409493 | N73: 5.568843716 | O73: 7.424992132 | P73: 8.096285094 | Q73: 4.406164055 | R73: 11.08599215 | S73: 3.926966705 | T73: 5.354989076 | U73: 2.903080941 | V73: 3.521889916 | W73: 6.98500451 | X73: 3.034204953 | Y73: 4.380860702 | Z73: 8.032348103 | AA73: 3.644082412 | AB73: 3.011694188 | AC73: 3.556262373 | AD73: 3.767147077 | AE73: 4.295770664 | AF73: 3.11282623 | AG73: 2.101578032 | AH73: 3.05498392 | AI73: 4.406696345 | AJ73: 9.826129018 | AK73: 5.030299935 | AL73: 2.709459868 | AM73: 5.414993751 | AN73: 7.238206978 | AO73: 6.739599895 | AP73: 12.83259279 | AQ73: 2.500427104 | AR73: 2.642819731 | AS73: 3.172229982 | AT73: 5.428031787 | AU73: 4.051761127 | AV73: 4.968329246 | AW73: 1.553429494 | AX73: 4.635062655 | AY73: 4.37202805 | AZ73: 4.870674968 | BA73: 5.442116454 | BB73: 5.775105779 | BC73: 3.823207844 | BD73: 2.469339326 | BE73: 3.642486429 | BF73: 1.918678754 | BG73: 3.271377869 | BH73: 5.955823633 | BI73: 5.547103806 | BJ73: 6.55675658 | BK73: 3.545178255 | BL73: 3.562687173 | BM73: 11.05776269 | BN73: 4.432476369 | BO73: 2.454899666 | BP73: 5.18403769 | BQ73: 3.963102744 | BR73: 9.864233171 | BS73: 5.170505293 | BT73: 4.811775544 | BU73: 5.465627533 | BV73: 2.444637694 | BW73: 5.173900573 | BX73: 5.939175847 | BY73: 1.773338324 | BZ73: 2.668006338 | CA73: 16.48163075 | CB73: 5.443861443 | CC73: 5.36194253 | CD73: 5.976598107 | CE73: 2.662653407 | CF73: 3.553571518 | CG73: 2.822357427 | CH73: 5.680795708 | CI73: 4.308328954 | CJ73: 4.255163268 | CK73: 6.40980547 | CL73: 4.13911318 | CM73: 3.737726128 | CN73: 9.797974877 | CO73: 4.500562312 | CP73: 3.079173442 | CQ73: 4.587259243 | CR73: 3.956924075 | CS73: 3.075777823 | CT73: 3.14396515 | CU73: 6.416898209 | CV73: 2.383274265 | CW73: 3.999437361 | CX73: 3.672381257 | CY73: 2.867750893 | CZ73: 2.087998684 | DA73: 6.250294517 | DB73: 6.026776682 | DC73: 5.202166993 | DD73: 3.921228833 | DE73: 2.290784026 | DF73: 12.65431254 | DG73: 3.881203499 | DH73: 3.853286849 | DI73: 5.942233917 | DJ73: 2.505831055 | DK73: 3.673777906 | DL73: 1.486634981 | DM73: 0.1877077089 | DN73: -233.7489143 | DO73: 15
A74: 58 | C74: 4.749930196 | D74: 4.772386694 | E74: 2.786831507 | F74: 3.51437765 | G74: 2.592058232 | H74: 5.676124366 | I74: 2.378197546 | J74: 6.317164917 | K74: 2.674730402 | L74: 4.359502886 | M74: 4.13314717 | N74: 4.575596718 | O74: 2.77616041 | P74: 6.192575696 | Q74: 7.879438083 | R74: 6.218424243 | S74: 2.821521253 | T74: 8.275828463 | U74: 3.556784484 | V74: 3.7208326 | W74: 2.45405242 | X74: 3.873691079 | Y74: 3.264909013 | Z74: 4.874842964 | AA74: 4.274920136 | AB74: 6.930703909 | AC74: 1.881700124 | AD74: 3.590045632 | AE74: 4.811392127 | AF74: 1.649447037 | AG74: 3.724907895 | AH74: 2.254363063 | AI74: 3.773490352 | AJ74: 3.143395325 | AK74: 3.602218478 | AL74: 4.358493455 | AM74: 2.437526539 | AN74: 2.469005482 | AO74: 3.3009523 | AP74: 4.466569984 | AQ74: 7.533944505 | AR74: 3.275543485 | AS74: 2.787150212 | AT74: 8.711349018 | AU74: 9.250794186 | AV74: 5.399639069 | AW74: 3.06578569 | AX74: 6.079171831 | AY74: 4.199207631 | AZ74: 1.440359609 | BA74: 5.837005874 | BB74: 1.990041253 | BC74: 3.56057592 | BD74: 2.099963578 | BE74: 3.193481246 | BF74: 2.78030399 | BG74: 4.559422062 | BH74: 6.748581036 | BI74: 4.515967983 | BJ74: 3.108564629 | BK74: 4.244829056 | BL74: 6.200794156 | BM74: 5.15065891 | BN74: 3.009643042 | BO74: 7.394560618 | BP74: 11.4324515 | BQ74: 3.868616156 | BR74: 3.742824527 | BS74: 3.581128587 | BT74: 6.279854805 | BU74: 4.583170056 | BV74: 3.134776311 | BW74: 2.517783321 | BX74: 9.255501365 | BY74: 3.100526164 | BZ74: 3.548664784 | CA74: 7.579171815 | CB74: 3.998244341 | CC74: 3.352507025 | CD74: 5.495061088 | CE74: 3.188506295 | CF74: 2.635444452 | CG74: 3.745201637 | CH74: 3.601077024 | CI74: 6.600162012 | CJ74: 2.94098 | CK74: 7.882287937 | CL74: 7.078374557 | CM74: 3.281461488 | CN74: 2.900176787 | CO74: 3.540391962 | CP74: 5.01179158 | CQ74: 11.8733111 | CR74: 2.27409663 | CS74: 6.339024661 | CT74: 2.248695865 | CU74: 4.191413491 | CV74: 4.936188441 | CW74: 18.67289634 | CX74: 8.35618 | CY74: 6.201122999 | CZ74: 2.992228127 | DA74: 2.742701005 | DB74: 3.71434804 | DC74: 2.736630618 | DD74: 3.660554429 | DE74: 3.626005449 | DF74: 6.206189316 | DG74: 7.421123371 | DH74: 3.383924675 | DI74: 3.338708283 | DJ74: 2.723892743 | DK74: 3.424201082 | DL74: 1.331307417 | DM74: 0.2247732292 | DN74: -224.1625352 | DO74: 25
A75: 59 | C75: 6.279015854 | D75: 1.885200577 | E75: 6.88987591 | F75: 3.678908466 | G75: 4.141994301 | H75: 2.705483162 | I75: 3.843924129 | J75: 3.50874048 | K75: 21.07563742 | L75: 4.824840176 | M75: 13.5039814 | N75: 5.08815561 | O75: 10.09814736 | P75: 2.314876886 | Q75: 9.572000458 | R75: 2.814557344 | S75: 4.816200162 | T75: 12.50055603 | U75: 5.898015074 | V75: 2.939684456 | W75: 3.650762551 | X75: 4.340638779 | Y75: 2.642213218 | Z75: 4.348957422 | AA75: 3.907493491 | AB75: 3.369442493 | AC75: 3.040546036 | AD75: 3.67570998 | AE75: 6.563336355 | AF75: 4.35642152 | AG75: 3.637523793 | AH75: 4.480367216 | AI75: 4.700477482 | AJ75: 4.272736065 | AK75: 6.565304872 | AL75: 2.654303793 | AM75: 2.936641048 | AN75: 2.858853967 | AO75: 7.837783594 | AP75: 2.203000938 | AQ75: 2.99523811 | AR75: 10.35458759 | AS75: 3.012875973 | AT75: 3.377246009 | AU75: 3.61469642 | AV75: 2.542298796 | AW75: 3.242382694 | AX75: 1.963027447 | AY75: 5.130343536 | AZ75: 6.29226036 | BA75: 3.692793716 | BB75: 2.957005435 | BC75: 8.477440191 | BD75: 2.437541092 | BE75: 5.122450031 | BF75: 3.04968544 | BG75: 3.671274264 | BH75: 4.256536845 | BI75: 3.929169479 | BJ75: 2.318332581 | BK75: 4.925833254 | BL75: 3.946838577 | BM75: 5.132974867 | BN75: 4.292706793 | BO75: 1.709197801 | BP75: 3.646652084 | BQ75: 10.572188 | BR75: 4.907452637 | BS75: 6.706003644 | BT75: 4.52416775 | BU75: 4.474418454 | BV75: 4.565076191 | BW75: 3.177214178 | BX75: 15.68867116 | BY75: 4.751086783 | BZ75: 4.527183217 | CA75: 2.228570946 | CB75: 3.995326756 | CC75: 7.146558274 | CD75: 3.044198288 | CE75: 2.258251867 | CF75: 7.371234218 | CG75: 4.066441391 | CH75: 10.35897389 | CI75: 3.850197524 | CJ75: 2.772527383 | CK75: 9.299052095 | CL75: 9.461175172 | CM75: 3.671311842 | CN75: 6.158923487 | CO75: 5.220429938 | CP75: 8.217833484 | CQ75: 3.050761984 | CR75: 3.388214189 | CS75: 3.714493802 | CT75: 4.442550874 | CU75: 4.087652349 | CV75: 3.622831402 | CW75: 8.479803173 | CX75: 8.978257278 | CY75: 3.693732581 | CZ75: 4.771271554 | DA75: 4.25732021 | DB75: 3.896657272 | DC75: 4.444571557 | DD75: 4.209047982 | DE75: 7.142326023 | DF75: 4.286783014 | DG75: 10.51568963 | DH75: 3.753170606 | DI75: 9.675719911 | DJ75: 3.112755632 | DK75: 3.673777906 | DL75: 1.457342399 | DM75: 0.3090498562 | DN75: -239.4708516 | DO75: 41
A76: 60 | C76: 2.925921575 | D76: 13.33998152 | E76: 5.335793772 | F76: 4.515151508 | G76: 5.427227003 | H76: 14.11390195 | I76: 2.635561681 | J76: 3.389548057 | K76: 6.554067296 | L76: 8.986783809 | M76: 4.849748666 | N76: 10.48034314 | O76: 4.017805303 | P76: 3.750619652 | Q76: 4.897455161 | R76: 2.935396871 | S76: 3.657811763 | T76: 3.307556945 | U76: 3.652505327 | V76: 2.412394211 | W76: 5.157318031 | X76: 4.644204033 | Y76: 8.307210533 | Z76: 2.727353009 | AA76: 4.326250549 | AB76: 3.165369858 | AC76: 5.001704704 | AD76: 2.892226713 | AE76: 1.705798134 | AF76: 3.023933791 | AG76: 5.133079234 | AH76: 4.764934557 | AI76: 3.9967305 | AJ76: 8.129504295 | AK76: 5.647922193 | AL76: 13.76398494 | AM76: 5.657285007 | AN76: 8.12360906 | AO76: 3.502674086 | AP76: 5.805182266 | AQ76: 2.879237907 | AR76: 5.509673604 | AS76: 7.841896252 | AT76: 3.19319107 | AU76: 3.30856667 | AV76: 13.60185462 | AW76: 4.679234581 | AX76: 9.265491723 | AY76: 2.580659977 | AZ76: 7.663684632 | BA76: 8.358856426 | BB76: 2.350412414 | BC76: 5.047907853 | BD76: 5.916098146 | BE76: 9.790361011 | BF76: 3.172255343 | BG76: 4.56530857 | BH76: 18.93604151 | BI76: 4.710920751 | BJ76: 4.550814251 | BK76: 2.494810391 | BL76: 2.898993844 | BM76: 2.879502804 | BN76: 7.570487048 | BO76: 3.27909745 | BP76: 3.963258774 | BQ76: 3.187727836 | BR76: 3.414147443 | BS76: 3.829178689 | BT76: 2.970255595 | BU76: 5.532760337 | BV76: 7.386507963 | BW76: 6.002238706 | BX76: 8.315194213 | BY76: 2.957859668 | BZ76: 5.91413683 | CA76: 4.608064615 | CB76: 3.795563617 | CC76: 3.866820609 | CD76: 3.739343409 | CE76: 2.563811675 | CF76: 1.542280497 | CG76: 3.319972613 | CH76: 9.126934646 | CI76: 3.124221591 | CJ76: 4.014125 | CK76: 5.905417297 | CL76: 3.278908272 | CM76: 2.556408755 | CN76: 4.611338573 | CO76: 3.70306421 | CP76: 5.599507653 | CQ76: 2.570127205 | CR76: 4.609091891 | CS76: 4.740163891 | CT76: 4.769140343 | CU76: 2.139437345 | CV76: 3.561145349 | CW76: 6.930059821 | CX76: 4.272005408 | CY76: 4.75850121 | CZ76: 2.511223986 | DA76: 4.166259872 | DB76: 3.005951782 | DC76: 2.430290374 | DD76: 3.494840149 | DE76: 2.659418169 | DF76: 4.651656914 | DG76: 3.321257567 | DH76: 7.27214006 | DI76: 3.237818759 | DJ76: 1.680965775 | DK76: 3.637040127 | DL76: 1.486634981 | DM76: 0.2661999314 | DN76: -238.5926819 | DO76: 29
A77: 61 | C77: 5.797872 | D77: 3.775972567 | E77: 2.371244456 | F77: 5.665330542 | G77: 3.365870147 | H77: 7.734400984 | I77: 4.298394187 | J77: 5.687923781 | K77: 4.311150978 | L77: 5.66845601 | M77: 4.896823526 | N77: 5.372504902 | O77: 9.864555128 | P77: 5.362087999 | Q77: 2.738252147 | R77: 3.365104816 | S77: 2.939659799 | T77: 3.794021205 | U77: 3.200494853 | V77: 5.025533225 | W77: 3.238150276 | X77: 7.955336768 | Y77: 5.751250144 | Z77: 3.139551569 | AA77: 4.086108772 | AB77: 5.315815057 | AC77: 3.670917748 | AD77: 5.477987469 | AE77: 3.298551443 | AF77: 5.461136455 | AG77: 3.292825259 | AH77: 3.694948384 | AI77: 4.155973 | AJ77: 6.46563158 | AK77: 10.12296287 | AL77: 4.195124307 | AM77: 5.69601868 | AN77: 3.829423207 | AO77: 3.597468829 | AP77: 3.073575291 | AQ77: 3.132624577 | AR77: 3.333821497 | AS77: 1.993838415 | AT77: 4.271447905 | AU77: 4.553151693 | AV77: 6.528011883 | AW77: 8.251539804 | AX77: 4.049565427 | AY77: 2.501263866 | AZ77: 3.792681157 | BA77: 2.302947416 | BB77: 5.837245476 | BC77: 3.235186238 | BD77: 8.283154176 | BE77: 5.252272508 | BF77: 4.293132788 | BG77: 3.614964345 | BH77: 6.619894147 | BI77: 4.604457273 | BJ77: 3.025460114 | BK77: 4.088328003 | BL77: 3.007655836 | BM77: 4.790096398 | BN77: 12.71545698 | BO77: 5.195331212 | BP77: 2.476942129 | BQ77: 4.802048773 | BR77: 3.108631935 | BS77: 4.286724969 | BT77: 3.200764856 | BU77: 3.902203106 | BV77: 3.007145073 | BW77: 4.932244723 | BX77: 10.20072102 | BY77: 3.103550295 | BZ77: 2.92098881 | CA77: 6.570476935 | CB77: 3.155639574 | CC77: 2.628279787 | CD77: 5.033078263 | CE77: 2.919350044 | CF77: 2.647631997 | CG77: 9.852604924 | CH77: 7.15169912 | CI77: 4.281240542 | CJ77: 3.84772276 | CK77: 3.995099473 | CL77: 4.615601214 | CM77: 2.74750465 | CN77: 4.304504734 | CO77: 3.863942723 | CP77: 2.324675108 | CQ77: 5.939778301 | CR77: 4.709549125 | CS77: 3.987643615 | CT77: 3.794256226 | CU77: 5.769778524 | CV77: 9.975088659 | CW77: 5.181850021 | CX77: 10.1556715 | CY77: 4.179680521 | CZ77: 5.341745633 | DA77: 7.721651109 | DB77: 3.137279181 | DC77: 2.81736525 | DD77: 4.641092951 | DE77: 7.036404145 | DF77: 5.638574758 | DG77: 5.059781893 | DH77: 3.020952807 | DI77: 7.162570287 | DJ77: 3.834263437 | DK77: 3.785475598 | DL77: 1.253399506 | DM77: 0.2013890006 | DN77: -214.3309981 | DO77: 22
A78: 62 | C78: 6.736051275 | D78: 3.580697437 | E78: 4.72157765 | F78: 31.59333365 | G78: 8.625701528 | H78: 5.03448652 | I78: 2.94097873 | J78: 9.867362607 | K78: 3.156276163 | L78: 4.322393075 | M78: 4.364637387 | N78: 3.557551658 | O78: 2.540990106 | P78: 3.023858908 | Q78: 8.156700714 | R78: 2.687401196 | S78: 2.645494487 | T78: 3.146732206 | U78: 6.297768791 | V78: 5.736798144 | W78: 4.625407869 | X78: 2.262759389 | Y78: 8.671143218 | Z78: 6.68191346 | AA78: 2.937957072 | AB78: 8.189259121 | AC78: 4.804441438 | AD78: 3.144631683 | AE78: 9.548476686 | AF78: 1.539343578 | AG78: 3.612049755 | AH78: 3.202904164 | AI78: 4.234427169 | AJ78: 6.842264719 | AK78: 4.928921835 | AL78: 3.032391145 | AM78: 3.90924413 | AN78: 8.816370096 | AO78: 2.239215869 | AP78: 2.95844371 | AQ78: 2.171792344 | AR78: 4.879362684 | AS78: 4.615833934 | AT78: 2.239485884 | AU78: 3.582098439 | AV78: 3.368835521 | AW78: 2.978611372 | AX78: 5.386994832 | AY78: 2.893304165 | AZ78: 5.168421598 | BA78: 5.103249703 | BB78: 4.800419307 | BC78: 5.32803511 | BD78: 4.657052293 | BE78: 5.202495721 | BF78: 4.524901854 | BG78: 2.69101022 | BH78: 5.698844655 | BI78: 2.711029888 | BJ78: 5.194387484 | BK78: 4.86236708 | BL78: 9.070923472 | BM78: 5.37878575 | BN78: 5.354814755 | BO78: 4.474095259 | BP78: 3.916203273 | BQ78: 5.532647466 | BR78: 4.187821504 | BS78: 7.583881806 | BT78: 4.420286021 | BU78: 3.078397464 | BV78: 6.059348762 | BW78: 11.11602072 | BX78: 4.848504774 | BY78: 3.11423769 | BZ78: 3.188897846 | CA78: 3.8745587 | CB78: 2.754742322 | CC78: 3.883089754 | CD78: 5.153662113 | CE78: 3.498222755 | CF78: 2.414148996 | CG78: 7.791672027 | CH78: 4.635346443 | CI78: 5.690022 | CJ78: 4.621157302 | CK78: 3.405341605 | CL78: 8.406120696 | CM78: 3.794366081 | CN78: 6.864509434 | CO78: 2.341866953 | CP78: 2.649570667 | CQ78: 4.605687322 | CR78: 3.353302067 | CS78: 2.530693995 | CT78: 3.455555125 | CU78: 3.82512836 | CV78: 6.793360033 | CW78: 4.350769689 | CX78: 7.710822889 | CY78: 3.203957975 | CZ78: 5.672843775 | DA78: 6.47211751 | DB78: 3.399221072 | DC78: 3.957432605 | DD78: 3.357555618 | DE78: 2.632645631 | DF78: 8.774582739 | DG78: 3.118936513 | DH78: 2.100530619 | DI78: 5.789658874 | DJ78: 4.488045148 | DK78: 3.673777906 | DL78: 1.399917293 | DM78: 0.2315840828 | DN78: -228.8621647 | DO78: 16
A79: 63 | C79: 11.07903741 | D79: 3.079250473 | E79: 2.926192082 | F79: 5.271400675 | G79: 4.886991875 | H79: 3.476814431 | I79: 8.870404869 | J79: 4.068244446 | K79: 3.797836608 | L79: 1.779007589 | M79: 2.420354696 | N79: 4.600405514 | O79: 5.467674186 | P79: 3.455700864 | Q79: 5.162772731 | R79: 4.711611805 | S79: 4.072148488 | T79: 7.680600409 | U79: 5.268040852 | V79: 4.067170915 | W79: 3.756867993 | X79: 6.548423111 | Y79: 2.101695192 | Z79: 3.194217599 | AA79: 6.546047433 | AB79: 3.789728441 | AC79: 7.977816015 | AD79: 2.883222126 | AE79: 5.153519194 | AF79: 3.270315785 | AG79: 3.671771722 | AH79: 7.358466855 | AI79: 4.425457976 | AJ79: 7.161920855 | AK79: 2.78599159 | AL79: 10.34240821 | AM79: 3.243171343 | AN79: 2.391738318 | AO79: 5.835216445 | AP79: 5.360874206 | AQ79: 4.393693669 | AR79: 1.836910709 | AS79: 6.443243177 | AT79: 2.486958698 | AU79: 9.457292936 | AV79: 3.433916407 | AW79: 4.720103498 | AX79: 2.546503032 | AY79: 2.741007358 | AZ79: 3.640101412 | BA79: 7.255339394 | BB79: 3.061219825 | BC79: 3.117161826 | BD79: 2.43234264 | BE79: 1.583608841 | BF79: 2.851931211 | BG79: 4.532230105 | BH79: 5.599097863 | BI79: 3.289257057 | BJ79: 10.28867628 | BK79: 5.128540004 | BL79: 2.534751943 | BM79: 3.797474035 | BN79: 2.96941631 | BO79: 3.905991249 | BP79: 6.529667268 | BQ79: 4.076103503 | BR79: 3.990632222 | BS79: 4.370386515 | BT79: 2.729185574 | BU79: 8.386588427 | BV79: 2.93802143 | BW79: 3.085674935 | BX79: 4.957710918 | BY79: 9.572137886 | BZ79: 5.213513855 | CA79: 2.966142704 | CB79: 4.45677147 | CC79: 1.974910853 | CD79: 3.580147876 | CE79: 6.539750146 | CF79: 66.63664078 | CG79: 5.646358178 | CH79: 2.909424032 | CI79: 5.084715384 | CJ79: 5.924306877 | CK79: 7.736044125 | CL79: 4.613388831 | CM79: 2.163066152 | CN79: 2.476299955 | CO79: 6.695570182 | CP79: 3.667172001 | CQ79: 2.65496287 | CR79: 6.425534578 | CS79: 1.456489834 | CT79: 17.84690009 | CU79: 2.000657517 | CV79: 7.084439446 | CW79: 6.080208548 | CX79: 2.816309332 | CY79: 3.648322598 | CZ79: 5.997800195 | DA79: 4.623981889 | DB79: 3.907159752 | DC79: 6.77135424 | DD79: 5.108518294 | DE79: 2.725457233 | DF79: 3.774068654 | DG79: 3.525764605 | DH79: 3.503121761 | DI79: 2.622986398 | DJ79: 6.97964435 | DK79: 3.493726234 | DL79: 1.516516344 | DM79: 0.3029603531 | DN79: -242.3007749 | DO79: 48
A80: 64 | C80: 9.247764545 | D80: 4.885490706 | E80: 8.885943922 | F80: 3.748863393 | G80: 4.771955842 | H80: 2.9877777 | I80: 7.016091922 | J80: 2.02495532 | K80: 5.171506297 | L80: 3.14006938 | M80: 3.370783104 | N80: 3.777584058 | O80: 8.479484117 | P80: 5.443045723 | Q80: 3.64049618 | R80: 6.931672721 | S80: 5.835213232 | T80: 5.878329983 | U80: 5.949907442 | V80: 2.681569352 | W80: 5.008008288 | X80: 3.390608721 | Y80: 7.481015249 | Z80: 10.23156602 | AA80: 6.583802128 | AB80: 7.200051401 | AC80: 1.682658573 | AD80: 3.204916874 | AE80: 3.346228416 | AF80: 7.920479361 | AG80: 1.681478816 | AH80: 2.955800686 | AI80: 7.708719675 | AJ80: 20.44762622 | AK80: 2.702698729 | AL80: 7.216709928 | AM80: 10.56908923 | AN80: 4.825026438 | AO80: 2.252391356 | AP80: 2.183815109 | AQ80: 7.093815478 | AR80: 9.164319841 | AS80: 3.279760355 | AT80: 2.44621851 | AU80: 18.37627471 | AV80: 2.31849762 | AW80: 4.715239617 | AX80: 3.353411965 | AY80: 2.048706228 | AZ80: 3.465070303 | BA80: 2.442983126 | BB80: 3.768757573 | BC80: 3.448309844 | BD80: 9.525436863 | BE80: 17.90003801 | BF80: 3.559650618 | BG80: 4.620904991 | BH80: 2.178684473 | BI80: 3.223728557 | BJ80: 3.32882369 | BK80: 9.565158055 | BL80: 4.653566844 | BM80: 7.398137612 | BN80: 6.764491085 | BO80: 2.492228504 | BP80: 8.073295086 | BQ80: 10.12769927 | BR80: 5.158732648 | BS80: 5.019173505 | BT80: 3.547562178 | BU80: 4.886739377 | BV80: 2.829316812 | BW80: 1.929221503 | BX80: 1.813652593 | BY80: 3.920437746 | BZ80: 4.07075467 | CA80: 3.221905645 | CB80: 2.772502989 | CC80: 7.494232275 | CD80: 6.341584068 | CE80: 3.197278858 | CF80: 3.347630021 | CG80: 3.654065175 | CH80: 11.60313245 | CI80: 3.181534531 | CJ80: 2.16301365 | CK80: 2.435638463 | CL80: 2.362582958 | CM80: 4.220261058 | CN80: 9.981056723 | CO80: 4.241415703 | CP80: 4.310957832 | CQ80: 3.231963778 | CR80: 4.94972261 | CS80: 7.369857383 | CT80: 3.712826822 | CU80: 8.33346146 | CV80: 2.754855582 | CW80: 2.571394243 | CX80: 6.361085799 | CY80: 4.516898617 | CZ80: 4.821619753 | DA80: 5.69505904 | DB80: 7.546755833 | DC80: 4.474591422 | DD80: 3.123078441 | DE80: 3.938936811 | DF80: 4.559148114 | DG80: 4.593619555 | DH80: 3.177959341 | DI80: 3.749010877 | DJ80: 11.08143486 | DK80: 3.637040127 | DL80: 1.675177507 | DM80: 0.3380032763 | DN80: -254.8515722 | DO80: 65
A81: 65 | C81: 6.230670464 | D81: 4.050249747 | E81: 3.308568066 | F81: 8.504886923 | G81: 3.617346106 | H81: 6.724363765 | I81: 3.3235237 | J81: 5.278519248 | K81: 12.62896857 | L81: 3.83113588 | M81: 3.905277028 | N81: 14.68981421 | O81: 2.451721508 | P81: 3.607814676 | Q81: 2.870522007 | R81: 3.437138585 | S81: 6.294327537 | T81: 4.064241983 | U81: 3.023641885 | V81: 3.523284394 | W81: 4.731578377 | X81: 5.751474796 | Y81: 4.523217044 | Z81: 6.046857868 | AA81: 6.92981547 | AB81: 3.611139144 | AC81: 8.700679649 | AD81: 3.930118192 | AE81: 7.424038288 | AF81: 4.89447852 | AG81: 3.190736142 | AH81: 3.434684828 | AI81: 2.641982463 | AJ81: 4.842548672 | AK81: 4.104056752 | AL81: 3.278549035 | AM81: 4.463208525 | AN81: 4.914224394 | AO81: 5.705771447 | AP81: 5.626180622 | AQ81: 4.056265701 | AR81: 2.834288898 | AS81: 5.142867227 | AT81: 5.693820373 | AU81: 3.608910197 | AV81: 14.06936156 | AW81: 7.440787254 | AX81: 2.873986417 | AY81: 2.810730344 | AZ81: 5.081163541 | BA81: 8.075937751 | BB81: 3.197358372 | BC81: 5.215347091 | BD81: 1.877297952 | BE81: 3.142635848 | BF81: 3.680914539 | BG81: 3.597338813 | BH81: 2.906916436 | BI81: 4.678138683 | BJ81: 2.418193608 | BK81: 2.478910395 | BL81: 4.723452422 | BM81: 4.816845756 | BN81: 3.531945535 | BO81: 4.668581861 | BP81: 4.487041487 | BQ81: 4.793126128 | BR81: 1.849491037 | BS81: 5.635840612 | BT81: 5.322536674 | BU81: 5.020422781 | BV81: 5.633765538 | BW81: 3.487430469 | BX81: 14.87460561 | BY81: 7.777857647 | BZ81: 6.185472869 | CA81: 9.902907024 | CB81: 6.94502 | CC81: 3.037307308 | CD81: 4.179762944 | CE81: 3.641511377 | CF81: 4.331486711 | CG81: 7.711532479 | CH81: 4.695622315 | CI81: 5.399090711 | CJ81: 5.346259942 | CK81: 7.931582605 | CL81: 2.893334526 | CM81: 3.914417769 | CN81: 4.127063045 | CO81: 2.301491473 | CP81: 4.425666475 | CQ81: 2.467415481 | CR81: 3.924803641 | CS81: 5.110279311 | CT81: 4.629294696 | CU81: 4.891094868 | CV81: 2.095751352 | CW81: 3.631444439 | CX81: 3.121342409 | CY81: 6.532079651 | CZ81: 3.479258211 | DA81: 2.777521135 | DB81: 3.126003125 | DC81: 10.54303197 | DD81: 5.391420348 | DE81: 5.916347204 | DF81: 2.954005105 | DG81: 6.451028795 | DH81: 3.105800755 | DI81: 3.315449833 | DJ81: 6.242558013 | DK81: 3.785475598 | DL81: 1.372058939 | DM81: 0.2075535486 | DN81: -226.0439944 | DO81: 10
A82: 66 | C82: 6.59741213 | D82: 6.450920718 | E82: 6.336689892 | F82: 3.859731142 | G82: 4.653327476 | H82: 2.418884712 | I82: 5.750937625 | J82: 5.508534682 | K82: 4.239216448 | L82: 2.130478494 | M82: 14.1978663 | N82: 6.901850007 | O82: 6.054853086 | P82: 3.794238515 | Q82: 4.446753696 | R82: 4.691555938 | S82: 4.969035454 | T82: 6.829396091 | U82: 3.62436258 | V82: 8.013807982 | W82: 5.500618248 | X82: 5.891500897 | Y82: 3.732428765 | Z82: 5.553087039 | AA82: 6.439257009 | AB82: 2.375327563 | AC82: 8.776907198 | AD82: 8.684141776 | AE82: 6.682660766 | AF82: 3.667256979 | AG82: 3.230315841 | AH82: 4.975415524 | AI82: 12.25028112 | AJ82: 3.589747118 | AK82: 3.454790117 | AL82: 5.535172336 | AM82: 3.115334544 | AN82: 3.923716244 | AO82: 8.256874747 | AP82: 4.5133178 | AQ82: 11.46427797 | AR82: 4.984771834 | AS82: 2.251395152 | AT82: 2.215215428 | AU82: 2.540253535 | AV82: 6.045659306 | AW82: 3.858408214 | AX82: 7.648015747 | AY82: 2.087939072 | AZ82: 5.963094733 | BA82: 3.276134081 | BB82: 2.619086065 | BC82: 3.524071379 | BD82: 3.567113776 | BE82: 4.313903647 | BF82: 6.001892915 | BG82: 3.331542915 | BH82: 7.063281735 | BI82: 2.245520621 | BJ82: 2.43627365 | BK82: 8.260773446 | BL82: 4.562000876 | BM82: 3.398027129 | BN82: 4.423494745 | BO82: 3.102407852 | BP82: 7.138461582 | BQ82: 2.201653375 | BR82: 4.566507567 | BS82: 4.34149844 | BT82: 2.09064291 | BU82: 4.5490156 | BV82: 3.058687663 | BW82: 3.28785841 | BX82: 2.41235035 | BY82: 7.541353468 | BZ82: 2.823964876 | CA82: 8.360591601 | CB82: 7.255116481 | CC82: 3.894748627 | CD82: 1.863815979 | CE82: 3.076949723 | CF82: 4.705120476 | CG82: 5.663320287 | CH82: 6.912671317 | CI82: 4.466857723 | CJ82: 3.439717705 | CK82: 5.42069186 | CL82: 8.007581346 | CM82: 5.695996661 | CN82: 7.22356786 | CO82: 5.961473333 | CP82: 5.021439561 | CQ82: 10.59157934 | CR82: 2.647756851 | CS82: 4.510745249 | CT82: 1.944045182 | CU82: 9.024540966 | CV82: 2.936271198 | CW82: 5.212441236 | CX82: 10.81504959 | CY82: 3.788983571 | CZ82: 2.948225034 | DA82: 6.790653594 | DB82: 3.036979378 | DC82: 5.89074194 | DD82: 2.610868603 | DE82: 2.872316957 | DF82: 3.029451836 | DG82: 2.907245705 | DH82: 9.420185436 | DI82: 5.550260509 | DJ82: 4.217400574 | DK82: 3.823330354 | DL82: 1.609812658 | DM82: 0.1566446662 | DN82: -240.7596716 | DO82: 43
A83: 67 | C83: 4.633393721 | D83: 2.510678015 | E83: 4.002770827 | F83: 2.917712658 | G83: 3.402568046 | H83: 9.437118578 | I83: 2.655982597 | J83: 5.026102136 | K83: 4.912558633 | L83: 7.309527785 | M83: 5.847689216 | N83: 5.218973116 | O83: 7.627252126 | P83: 3.377140867 | Q83: 3.021073869 | R83: 4.871223663 | S83: 4.518133265 | T83: 2.268607819 | U83: 7.132572542 | V83: 10.34261546 | W83: 5.661186498 | X83: 2.799220724 | Y83: 8.240454989 | Z83: 2.406420967 | AA83: 7.565530702 | AB83: 4.373554585 | AC83: 4.375350486 | AD83: 3.117865316 | AE83: 5.72751409 | AF83: 3.384613706 | AG83: 4.198045885 | AH83: 6.928938437 | AI83: 4.469203752 | AJ83: 2.163913942 | AK83: 2.043346957 | AL83: 2.566511922 | AM83: 4.11121663 | AN83: 4.507765921 | AO83: 7.62879133 | AP83: 4.40015146 | AQ83: 3.594121982 | AR83: 5.075494776 | AS83: 5.147546641 | AT83: 3.034777903 | AU83: 4.732555387 | AV83: 3.680759809 | AW83: 3.708694055 | AX83: 7.290700897 | AY83: 4.140577245 | AZ83: 3.332077596 | BA83: 3.286145365 | BB83: 4.635470379 | BC83: 4.11659172 | BD83: 3.085373869 | BE83: 8.9048522 | BF83: 3.624512791 | BG83: 2.166541295 | BH83: 2.652087451 | BI83: 4.978253735 | BJ83: 3.224668013 | BK83: 4.52887652 | BL83: 2.926977601 | BM83: 7.089748347 | BN83: 4.905741473 | BO83: 4.333654633 | BP83: 3.152119568 | BQ83: 2.824978107 | BR83: 5.108701201 | BS83: 12.10275999 | BT83: 3.835023075 | BU83: 3.011074543 | BV83: 2.514154128 | BW83: 3.36968551 | BX83: 16.28752657 | BY83: 2.834099312 | BZ83: 3.200421042 | CA83: 14.55538707 | CB83: 4.902538361 | CC83: 3.178071805 | CD83: 3.460477977 | CE83: 2.58361 | CF83: 4.882994695 | CG83: 4.36417845 | CH83: 6.875915142 | CI83: 4.20552222 | CJ83: 5.100329552 | CK83: 2.328319476 | CL83: 4.567860086 | CM83: 4.881737054 | CN83: 5.034452753 | CO83: 2.865922905 | CP83: 3.471082714 | CQ83: 4.30369696 | CR83: 7.53847785 | CS83: 1.529979527 | CT83: 3.631626556 | CU83: 7.819934598 | CV83: 3.97446278 | CW83: 4.103438833 | CX83: 7.719316157 | CY83: 5.634472219 | CZ83: 5.963899928 | DA83: 2.944118882 | DB83: 6.871700802 | DC83: 7.089186148 | DD83: 5.188217356 | DE83: 7.200952129 | DF83: 6.650883426 | DG83: 12.04801913 | DH83: 3.670187151 | DI83: 9.29814222 | DJ83: 4.040867445 | DK83: 3.747995641 | DL83: 1.442768975 | DM83: 0.2075535486 | DN83: -231.5451644 | DO83: 4
A84: 68 | C84: 6.744861526 | D84: 7.493044269 | E84: 3.465790991 | F84: 6.290293773 | G84: 5.404988987 | H84: 5.968001554 | I84: 4.003284922 | J84: 3.251436368 | K84: 2.253797811 | L84: 8.243088156 | M84: 5.664861686 | N84: 3.993556344 | O84: 4.303881136 | P84: 5.432378254 | Q84: 2.41696 | R84: 4.491962741 | S84: 2.569827562 | T84: 4.007336159 | U84: 4.92742569 | V84: 6.595454998 | W84: 4.965029984 | X84: 9.401564697 | Y84: 19.66796683 | Z84: 3.60986027 | AA84: 4.186003391 | AB84: 4.131715382 | AC84: 4.142045851 | AD84: 1.719555803 | AE84: 4.112804326 | AF84: 6.777967878 | AG84: 5.079271971 | AH84: 6.740060851 | AI84: 2.576475195 | AJ84: 6.680536667 | AK84: 3.317894105 | AL84: 4.140485902 | AM84: 1.98110187 | AN84: 6.604181964 | AO84: 3.209841891 | AP84: 9.149321802 | AQ84: 5.520849085 | AR84: 5.314225964 | AS84: 2.126770193 | AT84: 5.162304108 | AU84: 4.096672025 | AV84: 8.401632286 | AW84: 3.116899396 | AX84: 5.847949472 | AY84: 4.342590247 | AZ84: 2.101512436 | BA84: 3.450182137 | BB84: 4.228770423 | BC84: 4.728791292 | BD84: 3.065784961 | BE84: 6.432850292 | BF84: 2.623834525 | BG84: 4.522567617 | BH84: 2.925475347 | BI84: 4.89278073 | BJ84: 6.252904492 | BK84: 3.681134411 | BL84: 3.64810876 | BM84: 4.381912449 | BN84: 34.72183268 | BO84: 3.374342398 | BP84: 3.271568138 | BQ84: 2.378382412 | BR84: 7.666826242 | BS84: 3.623133414 | BT84: 2.645682392 | BU84: 4.828538374 | BV84: 2.878618373 | BW84: 2.215231366 | BX84: 5.863537732 | BY84: 5.402819565 | BZ84: 2.070031532 | CA84: 3.34733802 | CB84: 6.293878496 | CC84: 4.76175406 | CD84: 4.295224319 | CE84: 4.589065645 | CF84: 12.78082816 | CG84: 2.771775163 | CH84: 8.469645168 | CI84: 4.327579777 | CJ84: 6.643864154 | CK84: 6.071715478 | CL84: 5.158665875 | CM84: 4.183927096 | CN84: 4.518412414 | CO84: 11.87833406 | CP84: 3.188606725 | CQ84: 4.593107611 | CR84: 2.951616898 | CS84: 5.465946547 | CT84: 4.126025849 | CU84: 6.270431793 | CV84: 8.853945815 | CW84: 3.640250004 | CX84: 2.522195198 | CY84: 4.684378186 | CZ84: 7.888309975 | DA84: 5.485122288 | DB84: 4.020206524 | DC84: 3.940037423 | DD84: 7.932525531 | DE84: 3.844891579 | DF84: 4.493753581 | DG84: 6.990273762 | DH84: 4.97299335 | DI84: 3.744801949 | DJ84: 3.551756211 | DK84: 3.823330354 | DL84: 1.516516344 | DM84: 0.2292911711 | DN84: -238.3264875 | DO84: 17
A85: 69 | C85: 5.073486256 | D85: 2.465849343 | E85: 6.155372315 | F85: 2.805786189 | G85: 3.447007069 | H85: 2.615164907 | I85: 2.316575392 | J85: 4.538145036 | K85: 5.189266282 | L85: 3.841371816 | M85: 2.992502803 | N85: 3.632018389 | O85: 17.61014038 | P85: 4.726377398 | Q85: 3.707591327 | R85: 6.011721148 | S85: 2.321757525 | T85: 5.001582081 | U85: 6.101355141 | V85: 2.55867978 | W85: 5.029087627 | X85: 4.166198243 | Y85: 5.382507458 | Z85: 3.535795601 | AA85: 3.338669761 | AB85: 7.865744187 | AC85: 6.133305741 | AD85: 3.298085128 | AE85: 2.620062286 | AF85: 5.432434703 | AG85: 5.402382991 | AH85: 5.795028585 | AI85: 2.971586292 | AJ85: 2.582761402 | AK85: 8.348814671 | AL85: 3.014135377 | AM85: 7.111470125 | AN85: 3.470816623 | AO85: 6.189505539 | AP85: 3.477949753 | AQ85: 4.401023055 | AR85: 4.23487699 | AS85: 8.162900367 | AT85: 2.924159941 | AU85: 4.48593848 | AV85: 7.559667726 | AW85: 5.057758191 | AX85: 4.041231818 | AY85: 4.072524143 | AZ85: 2.915002701 | BA85: 1.977634832 | BB85: 9.249591077 | BC85: 3.976846705 | BD85: 2.723814316 | BE85: 5.590439062 | BF85: 3.557966966 | BG85: 15.73968988 | BH85: 4.414164527 | BI85: 4.328346319 | BJ85: 3.05003822 | BK85: 8.962771164 | BL85: 3.407425254 | BM85: 5.640641989 | BN85: 3.479747446 | BO85: 4.534652497 | BP85: 6.572715084 | BQ85: 2.947910669 | BR85: 2.573898951 | BS85: 2.60422009 | BT85: 5.534524975 | BU85: 2.83038493 | BV85: 4.052478088 | BW85: 4.095068008 | BX85: 4.830560741 | BY85: 6.327448642 | BZ85: 5.626693551 | CA85: 2.745873362 | CB85: 3.569786048 | CC85: 5.521610016 | CD85: 2.018298698 | CE85: 3.871619788 | CF85: 3.409006965 | CG85: 5.501689062 | CH85: 5.120139821 | CI85: 6.993599558 | CJ85: 2.717066229 | CK85: 9.804281698 | CL85: 15.91561826 | CM85: 14.48721587 | CN85: 4.667180292 | CO85: 3.207472802 | CP85: 3.809839717 | CQ85: 3.24300453 | CR85: 5.18380991 | CS85: 4.904831936 | CT85: 4.414359928 | CU85: 2.993675407 | CV85: 2.189163464 | CW85: 3.138290678 | CX85: 7.640122691 | CY85: 8.746892951 | CZ85: 4.897354599 | DA85: 3.370411531 | DB85: 4.34654914 | DC85: 7.34799924 | DD85: 4.450805971 | DE85: 4.381357249 | DF85: 2.378128009 | DG85: 5.060684877 | DH85: 3.114765993 | DI85: 5.575015332 | DJ85: 2.077048043 | DK85: 3.637040127 | DL85: 1.344754966 | DM85: 0.2911389445 | DN85: -227.8365968 | DO85: 44
A86: 70 | C86: 3.511737981 | D86: 6.188955533 | E86: 4.388132969 | F86: 3.383761213 | G86: 6.436578955 | H86: 5.827368418 | I86: 4.406566246 | J86: 6.842755746 | K86: 5.17602198 | L86: 6.663920091 | M86: 4.868272276 | N86: 7.303409396 | O86: 9.883368137 | P86: 2.736492998 | Q86: 4.43223811 | R86: 9.797032542 | S86: 4.160217316 | T86: 4.367615838 | U86: 5.47300051 | V86: 4.765735651 | W86: 3.241191829 | X86: 3.450228633 | Y86: 3.619942785 | Z86: 2.181453895 | AA86: 2.943258591 | AB86: 2.324636167 | AC86: 5.60321807 | AD86: 3.040255685 | AE86: 1.927356235 | AF86: 6.485989585 | AG86: 6.612714912 | AH86: 17.57793176 | AI86: 4.706352509 | AJ86: 4.05631423 | AK86: 2.643229482 | AL86: 6.819037411 | AM86: 3.126914316 | AN86: 3.440520818 | AO86: 4.867839597 | AP86: 3.903983739 | AQ86: 4.004392008 | AR86: 2.355951721 | AS86: 3.483320162 | AT86: 5.172869166 | AU86: 10.00572899 | AV86: 9.421308888 | AW86: 4.873734759 | AX86: 2.589225438 | AY86: 6.687562891 | AZ86: 2.321649326 | BA86: 3.450381998 | BB86: 3.301945401 | BC86: 10.78216382 | BD86: 2.12751596 | BE86: 4.252772303 | BF86: 4.473104663 | BG86: 5.944091411 | BH86: 9.317798725 | BI86: 2.425240955 | BJ86: 2.902867818 | BK86: 2.753928228 | BL86: 3.915503605 | BM86: 2.97805466 | BN86: 4.068572788 | BO86: 4.944856439 | BP86: 2.308968754 | BQ86: 2.697015495 | BR86: 3.706194992 | BS86: 11.89105163 | BT86: 2.175381457 | BU86: 3.734502263 | BV86: 3.207090977 | BW86: 5.440113957 | BX86: 2.280611669 | BY86: 10.97077281 | BZ86: 6.448521297 | CA86: 2.882960054 | CB86: 3.841623922 | CC86: 2.149771968 | CD86: 4.289623963 | CE86: 5.133552786 | CF86: 3.920134465 | CG86: 5.035217416 | CH86: 8.085546742 | CI86: 14.38048965 | CJ86: 2.588776133 | CK86: 7.752374286 | CL86: 4.587383582 | CM86: 2.355537916 | CN86: 12.5753058 | CO86: 3.083039714 | CP86: 19.80074493 | CQ86: 7.993242127 | CR86: 3.446425773 | CS86: 9.49696832 | CT86: 9.228737047 | CU86: 6.942753012 | CV86: 3.745715526 | CW86: 3.11130042 | CX86: 7.632481527 | CY86: 15.37813102 | CZ86: 3.257505207 | DA86: 9.78888025 | DB86: 6.84983689 | DC86: 7.395897519 | DD86: 4.664009049 | DE86: 3.245380329 | DF86: 3.602634112 | DG86: 4.155557859 | DH86: 6.045963334 | DI86: 9.036880802 | DJ86: 5.401381036 | DK86: 3.747620842 | DL86: 1.609812658 | DM86: 0.3885260501 | DN86: -254.1575851 | DO86: 76
A87: 71 | C87: 3.725321027 | D87: 3.826670821 | E87: 3.86095697 | F87: 4.573498602 | G87: 3.140772983 | H87: 6.082553833 | I87: 5.323948824 | J87: 4.979386361 | K87: 4.08214732 | L87: 9.79692939 | M87: 6.243299504 | N87: 5.572355991 | O87: 3.204619724 | P87: 5.73027573 | Q87: 3.344532785 | R87: 12.73658338 | S87: 5.06134601 | T87: 3.063001149 | U87: 2.285246907 | V87: 3.998363952 | W87: 2.926777476 | X87: 3.144708437 | Y87: 4.300263837 | Z87: 5.909775461 | AA87: 3.661277123 | AB87: 3.992426314 | AC87: 6.385741681 | AD87: 3.358603788 | AE87: 6.348665213 | AF87: 3.670153335 | AG87: 4.176070174 | AH87: 3.132040644 | AI87: 3.702378835 | AJ87: 5.947410319 | AK87: 3.180155862 | AL87: 3.311079552 | AM87: 4.62193411 | AN87: 3.687638676 | AO87: 2.24427429 | AP87: 3.400002358 | AQ87: 3.713717544 | AR87: 4.971318137 | AS87: 4.235467294 | AT87: 3.755126831 | AU87: 2.216564499 | AV87: 2.102761704 | AW87: 3.535125955 | AX87: 2.645090349 | AY87: 4.00675658 | AZ87: 3.498846806 | BA87: 3.377859483 | BB87: 2.271573753 | BC87: 3.922558601 | BD87: 3.183856364 | BE87: 3.045515902 | BF87: 4.395824428 | BG87: 4.497228159 | BH87: 3.82865717 | BI87: 3.46759194 | BJ87: 5.100117094 | BK87: 2.349013649 | BL87: 3.924960972 | BM87: 6.554878059 | BN87: 4.713509298 | BO87: 2.294676732 | BP87: 3.498554114 | BQ87: 6.105704975 | BR87: 2.217911478 | BS87: 9.647489126 | BT87: 2.704703516 | BU87: 2.660444503 | BV87: 2.276304501 | BW87: 3.038906493 | BX87: 6.480185292 | BY87: 9.928584023 | BZ87: 15.82798478 | CA87: 3.134992024 | CB87: 4.006945918 | CC87: 3.248131396 | CD87: 7.029990706 | CE87: 4.9007149 | CF87: 4.221669195 | CG87: 4.591608328 | CH87: 5.783142763 | CI87: 5.03543552 | CJ87: 4.564682611 | CK87: 2.972723911 | CL87: 5.170605607 | CM87: 7.160177361 | CN87: 3.22519935 | CO87: 3.815791819 | CP87: 4.317475171 | CQ87: 2.79404617 | CR87: 3.247555647 | CS87: 2.704778657 | CT87: 3.624910873 | CU87: 6.719352899 | CV87: 6.465374416 | CW87: 5.511300728 | CX87: 8.641995303 | CY87: 3.265615038 | CZ87: 3.605633768 | DA87: 2.276424044 | DB87: 4.055143105 | DC87: 3.640618335 | DD87: 3.345382942 | DE87: 6.703614161 | DF87: 4.731188263 | DG87: 5.255623653 | DH87: 3.277355053 | DI87: 3.0876413 | DJ87: 5.806444985 | DK87: 3.529016398 | DL87: 1.133552046 | DM87: 0.2203443086 | DN87: -203.7963645 | DO87: 36
A88: 72 | C88: 4.815527382 | D88: 4.328000604 | E88: 4.563204963 | F88: 4.619183235 | G88: 5.847849784 | H88: 4.233028825 | I88: 4.824033318 | J88: 5.509895971 | K88: 5.435035211 | L88: 5.847131638 | M88: 5.624712701 | N88: 7.27034066 | O88: 10.09958394 | P88: 2.714895017 | Q88: 4.412738178 | R88: 1.927418625 | S88: 2.713450978 | T88: 2.32484037 | U88: 5.293397944 | V88: 9.539407586 | W88: 3.819216965 | X88: 3.454307335 | Y88: 1.840247229 | Z88: 2.079993866 | AA88: 3.186632515 | AB88: 6.16221109 | AC88: 6.183611751 | AD88: 3.121712388 | AE88: 3.559276843 | AF88: 5.872726155 | AG88: 3.673587075 | AH88: 3.560254625 | AI88: 6.30183839 | AJ88: 2.903743427 | AK88: 8.527906861 | AL88: 4.502946037 | AM88: 5.091525116 | AN88: 3.464971281 | AO88: 5.021841365 | AP88: 3.063082428 | AQ88: 4.188913285 | AR88: 5.528645864 | AS88: 11.44785083 | AT88: 5.92501295 | AU88: 3.893095844 | AV88: 3.544051056 | AW88: 3.088967418 | AX88: 2.760717523 | AY88: 3.529378733 | AZ88: 6.445323115 | BA88: 3.641826397 | BB88: 2.779252041 | BC88: 3.362607503 | BD88: 3.391534633 | BE88: 2.863311272 | BF88: 3.477024091 | BG88: 3.267959311 | BH88: 2.807332568 | BI88: 4.180415291 | BJ88: 7.72735727 | BK88: 2.430821689 | BL88: 3.174400934 | BM88: 6.993245129 | BN88: 2.691836654 | BO88: 4.805405426 | BP88: 3.155724235 | BQ88: 3.459749942 | BR88: 5.47587943 | BS88: 3.254038106 | BT88: 3.370434928 | BU88: 3.998797635 | BV88: 5.113729873 | BW88: 4.758049068 | BX88: 8.174493983 | BY88: 6.010673268 | BZ88: 3.164730407 | CA88: 3.909285284 | CB88: 2.772751345 | CC88: 3.489354086 | CD88: 3.163120736 | CE88: 6.735931035 | CF88: 7.321298838 | CG88: 3.695300135 | CH88: 4.39647985 | CI88: 6.406009461 | CJ88: 4.623080501 | CK88: 4.980682252 | CL88: 6.566547881 | CM88: 6.49434717 | CN88: 2.686508226 | CO88: 4.549591943 | CP88: 5.059656054 | CQ88: 6.438994524 | CR88: 9.765575088 | CS88: 6.954707344 | CT88: 5.062938363 | CU88: 3.977024915 | CV88: 4.16591188 | CW88: 3.692575151 | CX88: 2.539763859 | CY88: 4.035355317 | CZ88: 5.394403554 | DA88: 2.831734929 | DB88: 4.859643109 | DC88: 4.098303508 | DD88: 2.66289265 | DE88: 6.207187641 | DF88: 3.406663998 | DG88: 7.350817304 | DH88: 6.729677532 | DI88: 16.74282945 | DJ88: 6.666150257 | DK88: 3.747995641 | DL88: 1.317994343 | DM88: 0.1647174608 | DN88: -219.111364 | DO88: 36
A89: 73 | C89: 2.449806623 | D89: 1.864762644 | E89: 3.773536614 | F89: 2.840755251 | G89: 7.858234759 | H89: 4.033300041 | I89: 4.844931121 | J89: 2.630305167 | K89: 3.568180437 | L89: 4.238145299 | M89: 5.26960591 | N89: 4.376869815 | O89: 4.100443985 | P89: 3.057404297 | Q89: 4.299631002 | R89: 4.084933857 | S89: 5.282913136 | T89: 5.396204513 | U89: 5.848797282 | V89: 5.498853738 | W89: 2.846137082 | X89: 6.887046939 | Y89: 8.853251172 | Z89: 4.805024368 | AA89: 4.165329004 | AB89: 2.63672448 | AC89: 5.287757265 | AD89: 12.84031807 | AE89: 5.326379856 | AF89: 5.44349965 | AG89: 3.889711569 | AH89: 4.156373812 | AI89: 4.010357337 | AJ89: 1.909285085 | AK89: 2.393943141 | AL89: 2.165630233 | AM89: 4.032506469 | AN89: 2.994159989 | AO89: 3.220287204 | AP89: 5.29842192 | AQ89: 3.053167366 | AR89: 2.303417595 | AS89: 4.304244588 | AT89: 4.466297081 | AU89: 8.598438073 | AV89: 3.306018808 | AW89: 12.20350116 | AX89: 2.43641864 | AY89: 5.960191945 | AZ89: 5.233246491 | BA89: 2.798589743 | BB89: 4.866375297 | BC89: 3.332039753 | BD89: 1.098425184 | BE89: 9.331960851 | BF89: 2.889769178 | BG89: 2.295338501 | BH89: 5.222068384 | BI89: 2.636419587 | BJ89: 3.582131249 | BK89: 6.009591512 | BL89: 2.117963621 | BM89: 5.56938082 | BN89: 5.322979782 | BO89: 3.616213509 | BP89: 5.125996963 | BQ89: 2.398128202 | BR89: 3.115717774 | BS89: 3.689753706 | BT89: 2.443840258 | BU89: 5.224240105 | BV89: 2.582283797 | BW89: 6.66732115 | BX89: 4.633086317 | BY89: 5.325043662 | BZ89: 5.685470667 | CA89: 2.620593019 | CB89: 3.919610954 | CC89: 3.919872947 | CD89: 2.018249773 | CE89: 2.549725394 | CF89: 3.005369328 | CG89: 2.935528524 | CH89: 6.675792523 | CI89: 5.463348349 | CJ89: 4.010890258 | CK89: 3.596495844 | CL89: 6.404149562 | CM89: 4.713313279 | CN89: 4.757994021 | CO89: 5.503750209 | CP89: 3.763077991 | CQ89: 2.093407981 | CR89: 2.535138417 | CS89: 2.511142523 | CT89: 1.785922695 | CU89: 3.000850659 | CV89: 5.64065417 | CW89: 2.215425672 | CX89: 5.547159235 | CY89: 4.512863707 | CZ89: 3.797297068 | DA89: 2.446672324 | DB89: 7.235929135 | DC89: 4.936818674 | DD89: 6.846118682 | DE89: 7.623171126 | DF89: 2.802333192 | DG89: 8.1788463 | DH89: 9.684058101 | DI89: 14.47581688 | DJ89: 6.807680874 | DK89: 3.458443093 | DL89: 1.457342399 | DM89: 0.1416666283 | DN89: -228.1551589 | DO89: 49
A90: 74 | C90: 2.346952134 | D90: 1.918287448 | E90: 4.295356865 | F90: 3.786271064 | G90: 3.744932486 | H90: 4.057713973 | I90: 3.35371453 | J90: 2.518819541 | K90: 4.273578411 | L90: 5.105357375 | M90: 2.90511554 | N90: 2.841042999 | O90: 3.689156682 | P90: 2.887563262 | Q90: 5.057740389 | R90: 10.45780929 | S90: 3.758533772 | T90: 1.817112526 | U90: 5.043079613 | V90: 4.670894221 | W90: 8.512715438 | X90: 3.904094822 | Y90: 4.711609568 | Z90: 4.409089499 | AA90: 1.637106383 | AB90: 4.987203039 | AC90: 5.828554675 | AD90: 6.124792252 | AE90: 3.242445958 | AF90: 2.767825802 | AG90: 6.796777202 | AH90: 2.356348324 | AI90: 2.465742813 | AJ90: 9.196239216 | AK90: 6.27569412 | AL90: 3.498849121 | AM90: 2.949754737 | AN90: 3.50176 | AO90: 8.203163846 | AP90: 4.352352911 | AQ90: 3.009138818 | AR90: 4.95949969 | AS90: 2.664968494 | AT90: 5.21853255 | AU90: 5.249844538 | AV90: 4.404738961 | AW90: 4.646325157 | AX90: 2.477685765 | AY90: 3.546504908 | AZ90: 3.350969471 | BA90: 4.464832297 | BB90: 6.684487498 | BC90: 3.748088982 | BD90: 3.977633028 | BE90: 3.771428008 | BF90: 4.853574517 | BG90: 3.675051783 | BH90: 5.717563592 | BI90: 9.615518736 | BJ90: 5.386475195 | BK90: 2.02116253 | BL90: 3.277422245 | BM90: 2.758889127 | BN90: 3.089659045 | BO90: 4.515122828 | BP90: 5.712137433 | BQ90: 5.449558552 | BR90: 5.017580646 | BS90: 1.893537207 | BT90: 3.478299195 | BU90: 3.840434739 | BV90: 4.992819013 | BW90: 2.369245196 | BX90: 3.48192154 | BY90: 3.115973321 | BZ90: 13.99076913 | CA90: 7.648326831 | CB90: 4.157877615 | CC90: 2.031582945 | CD90: 7.738096124 | CE90: 3.97295293 | CF90: 3.482871385 | CG90: 3.758522831 | CH90: 4.274336315 | CI90: 6.584827925 | CJ90: 5.570178022 | CK90: 4.802904916 | CL90: 5.09322517 | CM90: 2.596565376 | CN90: 8.965496811 | CO90: 2.717659396 | CP90: 8.336153104 | CQ90: 2.801423365 | CR90: 4.745090052 | CS90: 1.992218022 | CT90: 6.530625237 | CU90: 7.704308313 | CV90: 3.062230118 | CW90: 7.642614954 | CX90: 3.878186729 | CY90: 6.26294389 | CZ90: 5.505138066 | DA90: 7.878868573 | DB90: 12.77940554 | DC90: 4.377764596 | DD90: 4.106157723 | DE90: 2.743104484 | DF90: 2.67691233 | DG90: 7.781297198 | DH90: 3.369161713 | DI90: 2.807219366 | DJ90: 9.00234217 | DK90: 3.564663028 | DL90: 1.414057872 | DM90: 0.174955851 | DN90: -227.6285741 | DO90: 26
A91: 75 | C91: 2.625444073 | D91: 7.750166165 | E91: 6.482414098 | F91: 4.881366725 | G91: 2.934318665 | H91: 4.595526536 | I91: 3.920421047 | J91: 2.976080945 | K91: 4.960201741 | L91: 19.40222464 | M91: 9.174329261 | N91: 4.112667258 | O91: 4.317828459 | P91: 3.988595302 | Q91: 5.121762784 | R91: 3.946425955 | S91: 4.268085266 | T91: 2.620953421 | U91: 20.65988107 | V91: 4.997364893 | W91: 3.981213618 | X91: 6.486491499 | Y91: 4.57341787 | Z91: 2.448153204 | AA91: 12.99165421 | AB91: 7.44660249 | AC91: 4.311450475 | AD91: 2.561102533 | AE91: 4.785457541 | AF91: 3.151006595 | AG91: 2.558400803 | AH91: 5.665770408 | AI91: 5.801004264 | AJ91: 6.382113218 | AK91: 4.315385776 | AL91: 3.141363887 | AM91: 3.538163341 | AN91: 3.24348036 | AO91: 12.00176476 | AP91: 5.57279167 | AQ91: 3.714246694 | AR91: 5.464664064 | AS91: 2.27559935 | AT91: 3.756328924 | AU91: 2.173586813 | AV91: 2.32813222 | AW91: 3.089342357 | AX91: 4.531169973 | AY91: 6.12155919 | AZ91: 3.166746277 | BA91: 5.316010019 | BB91: 3.717628783 | BC91: 6.626228665 | BD91: 7.788676121 | BE91: 4.511286071 | BF91: 4.043331702 | BG91: 6.839325439 | BH91: 3.589927809 | BI91: 1.881229133 | BJ91: 9.80043222 | BK91: 8.564256749 | BL91: 4.710039565 | BM91: 2.097649597 | BN91: 6.607955139 | BO91: 6.036926668 | BP91: 6.739667651 | BQ91: 2.680969817 | BR91: 3.587264759 | BS91: 2.995981329 | BT91: 2.236145406 | BU91: 3.979627775 | BV91: 6.453985386 | BW91: 5.450215791 | BX91: 7.04827421 | BY91: 2.650756541 | BZ91: 5.309716333 | CA91: 4.906773501 | CB91: 5.681106712 | CC91: 6.551082034 | CD91: 5.711172282 | CE91: 2.848510879 | CF91: 3.663337654 | CG91: 4.89159188 | CH91: 4.913730838 | CI91: 7.599692989 | CJ91: 3.172089897 | CK91: 1.955005382 | CL91: 4.979988175 | CM91: 4.328801255 | CN91: 4.864651243 | CO91: 3.433740378 | CP91: 5.544012797 | CQ91: 5.856182091 | CR91: 5.105856087 | CS91: 2.641094961 | CT91: 5.69863519 | CU91: 4.694966862 | CV91: 5.861475419 | CW91: 3.410993754 | CX91: 17.58675452 | CY91: 5.161729841 | CZ91: 3.20355613 | DA91: 9.630677121 | DB91: 13.45900284 | DC91: 2.356730235 | DD91: 3.124415797 | DE91: 6.064983439 | DF91: 3.944583238 | DG91: 2.981092629 | DH91: 5.897679899 | DI91: 5.096776776 | DJ91: 4.330603177 | DK91: 3.823330354 | DL91: 1.546998323 | DM91: 0.2635642885 | DN91: -242.190638 | DO91: 33
A92: 76 | C92: 1.759264162 | D92: 3.318743072 | E92: 4.058923803 | F92: 4.02079341 | G92: 4.338275401 | H92: 2.612536361 | I92: 2.695162184 | J92: 2.932867286 | K92: 3.834158061 | L92: 4.285633767 | M92: 1.922142045 | N92: 3.973611664 | O92: 1.900819503 | P92: 5.461880501 | Q92: 4.207576913 | R92: 1.674125224 | S92: 4.707071933 | T92: 3.660766469 | U92: 5.319653693 | V92: 3.165324762 | W92: 5.188024157 | X92: 2.651520817 | Y92: 5.220211093 | Z92: 5.924572046 | AA92: 6.647094218 | AB92: 4.626053251 | AC92: 5.48304141 | AD92: 4.877660505 | AE92: 4.85106605 | AF92: 3.885616912 | AG92: 7.239150236 | AH92: 3.860521338 | AI92: 5.862061881 | AJ92: 5.738745927 | AK92: 6.724396144 | AL92: 6.965270779 | AM92: 4.882246483 | AN92: 6.23392752 | AO92: 1.852188102 | AP92: 4.664341914 | AQ92: 8.029655961 | AR92: 6.029909858 | AS92: 6.608517253 | AT92: 2.689861278 | AU92: 4.762165789 | AV92: 2.064903032 | AW92: 3.525594441 | AX92: 2.8595385 | AY92: 3.009584382 | AZ92: 3.872764561 | BA92: 11.29906884 | BB92: 2.414177404 | BC92: 2.622027773 | BD92: 9.389434157 | BE92: 5.995840349 | BF92: 5.300158458 | BG92: 3.939441449 | BH92: 5.44191665 | BI92: 4.583025587 | BJ92: 3.465118888 | BK92: 6.649310728 | BL92: 10.81347154 | BM92: 4.835686369 | BN92: 9.502390396 | BO92: 6.394552547 | BP92: 4.59652587 | BQ92: 3.953338874 | BR92: 7.508735162 | BS92: 2.648464827 | BT92: 4.704729161 | BU92: 6.96940719 | BV92: 3.836372375 | BW92: 4.000143783 | BX92: 3.11344763 | BY92: 3.785344085 | BZ92: 6.38671885 | CA92: 3.920634706 | CB92: 7.651462384 | CC92: 5.929192285 | CD92: 5.536274886 | CE92: 6.21699905 | CF92: 5.379023541 | CG92: 6.155994152 | CH92: 4.488102511 | CI92: 7.363934598 | CJ92: 1.954523907 | CK92: 3.820275484 | CL92: 3.379697965 | CM92: 3.248886663 | CN92: 3.831822265 | CO92: 18.54823875 | CP92: 4.312875013 | CQ92: 5.635657849 | CR92: 5.439368267 | CS92: 2.265257424 | CT92: 5.165761444 | CU92: 4.5966946 | CV92: 4.363024995 | CW92: 7.567986734 | CX92: 4.585140932 | CY92: 7.629366566 | CZ92: 5.92169508 | DA92: 6.237398668 | DB92: 2.861730348 | DC92: 3.8669745 | DD92: 4.779046414 | DE92: 3.642431191 | DF92: 4.437250479 | DG92: 3.761505914 | DH92: 4.65128583 | DI92: 12.31808111 | DJ92: 3.176287018 | DK92: 3.900179294 | DL92: 1.562468306 | DM92: 0.08657491882 | DN92: -231.7605984 | DO92: 101
A93: 77 | C93: 6.383196654 | D93: 1.759633908 | E93: 6.279347661 | F93: 5.349116776 | G93: 7.617943149 | H93: 4.846874331 | I93: 5.385341846 | J93: 2.500114517 | K93: 5.473470837 | L93: 3.954201407 | M93: 5.103616176 | N93: 3.318922015 | O93: 3.164852654 | P93: 8.344390855 | Q93: 3.555594433 | R93: 2.603845626 | S93: 4.008586649 | T93: 3.769994331 | U93: 7.172662347 | V93: 9.014966774 | W93: 7.124927963 | X93: 4.783676096 | Y93: 1.126327002 | Z93: 3.76534746 | AA93: 3.110337037 | AB93: 5.541940416 | AC93: 3.740204023 | AD93: 3.568117443 | AE93: 3.792942681 | AF93: 3.751075781 | AG93: 2.677236004 | AH93: 3.132996695 | AI93: 4.994403117 | AJ93: 2.685376314 | AK93: 5.123939804 | AL93: 4.465886037 | AM93: 2.273999996 | AN93: 1.926093719 | AO93: 6.815912632 | AP93: 4.863601347 | AQ93: 3.119081333 | AR93: 4.645767873 | AS93: 3.088572144 | AT93: 4.80549879 | AU93: 3.149919314 | AV93: 7.356445768 | AW93: 4.823216359 | AX93: 6.055330902 | AY93: 6.687419405 | AZ93: 9.008294139 | BA93: 2.007087521 | BB93: 1.984522046 | BC93: 9.096038774 | BD93: 3.788816915 | BE93: 4.875768869 | BF93: 4.811571003 | BG93: 3.324531414 | BH93: 3.635978319 | BI93: 2.683044452 | BJ93: 3.153117594 | BK93: 3.639144166 | BL93: 4.58575397 | BM93: 3.574956153 | BN93: 3.125717785 | BO93: 5.349794894 | BP93: 6.373695543 | BQ93: 2.087426498 | BR93: 2.708117614 | BS93: 3.30979655 | BT93: 4.277662699 | BU93: 12.35548426 | BV93: 3.922606022 | BW93: 2.931811383 | BX93: 4.932791753 | BY93: 3.467529007 | BZ93: 4.566476206 | CA93: 4.916241832 | CB93: 7.157886843 | CC93: 2.299111145 | CD93: 3.174638331 | CE93: 2.842548957 | CF93: 10.31277371 | CG93: 1.875056285 | CH93: 6.970931571 | CI93: 1.991793198 | CJ93: 3.826413672 | CK93: 6.429873453 | CL93: 3.714484116 | CM93: 11.86799925 | CN93: 3.327056406 | CO93: 3.18024485 | CP93: 3.247751861 | CQ93: 2.927466467 | CR93: 3.947344649 | CS93: 6.141827118 | CT93: 5.847552905 | CU93: 3.751481812 | CV93: 7.119263081 | CW93: 4.54348991 | CX93: 4.109890924 | CY93: 4.014581548 | CZ93: 3.661105181 | DA93: 3.315619061 | DB93: 1.990985474 | DC93: 12.86167192 | DD93: 3.698674087 | DE93: 4.781206538 | DF93: 2.897122885 | DG93: 3.611985825 | DH93: 2.90161759 | DI93: 6.371411777 | DJ93: 14.47952765 | DK93: 3.529016398 | DL93: 1.471915823 | DM93: 0.1566446662 | DN93: -230.2288326 | DO93: 36
A94: 78 | C94: 6.295724295 | D94: 3.199394197 | E94: 4.244761859 | F94: 4.103001978 | G94: 1.960295322 | H94: 8.254248927 | I94: 5.653321248 | J94: 3.019339341 | K94: 5.710742295 | L94: 3.304093282 | M94: 3.746088449 | N94: 3.981378316 | O94: 5.850234997 | P94: 3.205394264 | Q94: 4.956269211 | R94: 3.707164397 | S94: 2.579241123 | T94: 2.34542397 | U94: 8.068732689 | V94: 4.770382827 | W94: 4.208500868 | X94: 7.023746426 | Y94: 7.110845719 | Z94: 9.733019849 | AA94: 2.315426567 | AB94: 4.570625849 | AC94: 5.865890765 | AD94: 4.009387825 | AE94: 3.357187748 | AF94: 2.343962022 | AG94: 2.152146825 | AH94: 4.67359476 | AI94: 3.010855347 | AJ94: 4.496988235 | AK94: 2.716879573 | AL94: 7.534685201 | AM94: 6.739973002 | AN94: 3.123614009 | AO94: 4.457730628 | AP94: 4.822458246 | AQ94: 11.42703303 | AR94: 2.660159194 | AS94: 3.080006893 | AT94: 6.423522826 | AU94: 1.922610968 | AV94: 3.384428484 | AW94: 2.102270394 | AX94: 4.653584946 | AY94: 3.279758023 | AZ94: 2.970443405 | BA94: 5.614791973 | BB94: 4.571119423 | BC94: 3.467535023 | BD94: 3.387660439 | BE94: 8.415298975 | BF94: 5.704403723 | BG94: 6.224191483 | BH94: 1.751180951 | BI94: 3.955713313 | BJ94: 3.950664787 | BK94: 3.589386908 | BL94: 6.598575146 | BM94: 7.642962888 | BN94: 4.487394335 | BO94: 5.569072945 | BP94: 5.224035676 | BQ94: 4.530519467 | BR94: 2.816788907 | BS94: 3.766966758 | BT94: 4.720184624 | BU94: 3.793350902 | BV94: 2.862725259 | BW94: 2.447717874 | BX94: 4.747355035 | BY94: 3.757478218 | BZ94: 3.897404828 | CA94: 6.984770469 | CB94: 6.856855935 | CC94: 2.750891836 | CD94: 8.681687242 | CE94: 3.312463326 | CF94: 1.783515276 | CG94: 5.274589652 | CH94: 3.76950484 | CI94: 6.325393027 | CJ94: 8.616497631 | CK94: 4.737431504 | CL94: 8.547112188 | CM94: 4.817778742 | CN94: 4.170385338 | CO94: 3.320881621 | CP94: 2.849179732 | CQ94: 3.955079964 | CR94: 5.785643014 | CS94: 4.387865465 | CT94: 3.880054732 | CU94: 6.378186159 | CV94: 3.843491447 | CW94: 4.031960685 | CX94: 3.365313356 | CY94: 4.553250094 | CZ94: 3.513264101 | DA94: 3.978332858 | DB94: 3.671341201 | DC94: 4.062494865 | DD94: 4.263209551 | DE94: 4.504196857 | DF94: 3.333448684 | DG94: 2.94691183 | DH94: 3.057938564 | DI94: 2.562683142 | DJ94: 9.156920504 | DK94: 3.637040127 | DL94: 1.331307417 | DM94: 0.09382326373 | DN94: -215.6047664 | DO94: 92
A95: 79 | C95: 4.39736729 | D95: 3.542655916 | E95: 3.943961193 | F95: 2.538154632 | G95: 7.638529771 | H95: 2.325271076 | I95: 2.267144176 | J95: 2.079140357 | K95: 8.050495035 | L95: 5.850452414 | M95: 8.958217474 | N95: 5.04570711 | O95: 4.077283444 | P95: 2.649413917 | Q95: 2.613775002 | R95: 5.416797001 | S95: 6.942309343 | T95: 4.282869526 | U95: 4.059045851 | V95: 3.51101168 | W95: 3.35891044 | X95: 5.211999208 | Y95: 6.683697204 | Z95: 5.775440719 | AA95: 4.345228721 | AB95: 4.761696972 | AC95: 3.741623378 | AD95: 3.898296193 | AE95: 7.619863263 | AF95: 4.967559477 | AG95: 2.45011185 | AH95: 2.825411023 | AI95: 4.051778383 | AJ95: 8.156159511 | AK95: 4.821557865 | AL95: 5.503191401 | AM95: 4.113744072 | AN95: 10.31340503 | AO95: 3.972946465 | AP95: 4.693709454 | AQ95: 2.533329895 | AR95: 4.90322422 | AS95: 2.498640584 | AT95: 9.554758468 | AU95: 3.562704135 | AV95: 3.004217952 | AW95: 6.032607126 | AX95: 10.35659302 | AY95: 3.274393683 | AZ95: 5.929322939 | BA95: 3.175810705 | BB95: 3.403618853 | BC95: 4.007540073 | BD95: 9.465532232 | BE95: 5.714729036 | BF95: 7.089930151 | BG95: 5.186125342 | BH95: 5.249314669 | BI95: 4.319648163 | BJ95: 7.368522422 | BK95: 7.842538687 | BL95: 3.957526491 | BM95: 3.168270105 | BN95: 2.50538297 | BO95: 4.007643414 | BP95: 4.475690936 | BQ95: 7.800208153 | BR95: 3.414254792 | BS95: 4.009936675 | BT95: 8.373056869 | BU95: 8.030626301 | BV95: 2.757203579 | BW95: 4.575349489 | BX95: 7.147785301 | BY95: 3.719703573 | BZ95: 2.474422893 | CA95: 9.910860245 | CB95: 3.314755465 | CC95: 5.401082498 | CD95: 5.458703152 | CE95: 3.967796151 | CF95: 11.0724025 | CG95: 3.992159223 | CH95: 3.162228784 | CI95: 10.0527785 | CJ95: 3.881752543 | CK95: 3.511598511 | CL95: 3.13937593 | CM95: 3.525912051 | CN95: 4.365337409 | CO95: 4.8445649 | CP95: 5.283166801 | CQ95: 2.651487282 | CR95: 7.12009775 | CS95: 5.492678503 | CT95: 3.364611726 | CU95: 7.983116509 | CV95: 1.820650251 | CW95: 9.083846185 | CX95: 6.935121532 | CY95: 5.553288379 | CZ95: 3.091895638 | DA95: 4.886029502 | DB95: 3.027872892 | DC95: 5.699683226 | DD95: 3.262178036 | DE95: 4.058718366 | DF95: 2.449833473 | DG95: 3.183913363 | DH95: 4.900178902 | DI95: 2.15885301 | DJ95: 4.19329071 | DK95: 3.823330354 | DL95: 1.457196664 | DM95: 0.1663812735 | DN95: -229.7684106 | DO95: 29
A96: 80 | C96: 6.093041912 | D96: 7.742897841 | E96: 5.596510599 | F96: 2.896337351 | G96: 5.605766274 | H96: 3.645802546 | I96: 5.497822131 | J96: 3.705357842 | K96: 7.327393668 | L96: 8.028843525 | M96: 3.6059432 | N96: 7.363359141 | O96: 3.977310665 | P96: 3.113440907 | Q96: 5.286473762 | R96: 3.309061847 | S96: 3.230635509 | T96: 2.537230569 | U96: 3.800989648 | V96: 3.926010812 | W96: 3.106682257 | X96: 2.694845749 | Y96: 5.697100937 | Z96: 3.462948772 | AA96: 1.997232251 | AB96: 4.631571209 | AC96: 14.00620183 | AD96: 10.84275863 | AE96: 2.45651139 | AF96: 4.475144472 | AG96: 8.960863509 | AH96: 6.440969044 | AI96: 5.507771632 | AJ96: 3.527903833 | AK96: 5.858844649 | AL96: 2.734229664 | AM96: 5.153454129 | AN96: 2.278135669 | AO96: 2.548435811 | AP96: 6.577946304 | AQ96: 5.654357824 | AR96: 4.828815193 | AS96: 3.629228456 | AT96: 4.160701372 | AU96: 5.990418737 | AV96: 5.98547321 | AW96: 3.445632595 | AX96: 4.614256346 | AY96: 7.303346562 | AZ96: 4.561053417 | BA96: 8.236596309 | BB96: 2.167657951 | BC96: 6.554210797 | BD96: 8.680671646 | BE96: 3.89715001 | BF96: 16.98671089 | BG96: 6.445034529 | BH96: 4.829937566 | BI96: 4.92516651 | BJ96: 6.116708482 | BK96: 3.786832009 | BL96: 3.474157901 | BM96: 4.519070587 | BN96: 3.176290808 | BO96: 4.980708772 | BP96: 2.139224143 | BQ96: 2.991667983 | BR96: 2.845171046 | BS96: 5.20467609 | BT96: 6.12702713 | BU96: 4.777577095 | BV96: 2.736711481 | BW96: 3.4880712 | BX96: 3.936657802 | BY96: 3.402447251 | BZ96: 4.359854343 | CA96: 2.13396426 | CB96: 6.413718993 | CC96: 5.487906043 | CD96: 5.635362836 | CE96: 3.011951655 | CF96: 3.088401314 | CG96: 2.879946835 | CH96: 5.594801365 | CI96: 4.071765727 | CJ96: 8.235347676 | CK96: 6.299655162 | CL96: 6.21241744 | CM96: 4.384308494 | CN96: 2.811887094 | CO96: 2.149009646 | CP96: 4.561415144 | CQ96: 2.444965855 | CR96: 3.02853359 | CS96: 2.281852114 | CT96: 3.316490963 | CU96: 10.01175926 | CV96: 6.41238921 | CW96: 5.156094707 | CX96: 3.31671503 | CY96: 5.104553079 | CZ96: 6.810975814 | DA96: 3.862222635 | DB96: 6.366780304 | DC96: 1.775331603 | DD96: 2.704792872 | DE96: 6.550347453 | DF96: 2.183190935 | DG96: 2.707972608 | DH96: 4.853742048 | DI96: 2.496834596 | DJ96: 3.353486158 | DK96: 3.673777906 | DL96: 1.442768975 | DM96: 0.1839723255 | DN96: -229.5205227 | DO96: 16
A97: 81 | C97: 4.801533246 | D97: 6.430517441 | E97: 6.145808069 | F97: 4.37990923 | G97: 1.963788495 | H97: 3.674890826 | I97: 2.347296688 | J97: 3.194599076 | K97: 4.558912079 | L97: 9.88880608 | M97: 7.101060847 | N97: 3.555400048 | O97: 2.215677453 | P97: 4.208955505 | Q97: 4.654719063 | R97: 4.055649107 | S97: 2.440130159 | T97: 3.989315271 | U97: 7.027203371 | V97: 4.285773789 | W97: 4.385750594 | X97: 4.259740651 | Y97: 5.09018272 | Z97: 3.817755538 | AA97: 3.187944794 | AB97: 4.205125932 | AC97: 4.78817855 | AD97: 2.363103148 | AE97: 9.498801503 | AF97: 4.121304124 | AG97: 4.565344137 | AH97: 5.663704051 | AI97: 4.395411048 | AJ97: 2.857010812 | AK97: 4.059709046 | AL97: 4.089186598 | AM97: 3.911914024 | AN97: 4.485077391 | AO97: 3.606882512 | AP97: 6.944488867 | AQ97: 3.553556889 | AR97: 6.510602555 | AS97: 5.900397674 | AT97: 2.675266959 | AU97: 3.041506823 | AV97: 4.118791832 | AW97: 3.444252114 | AX97: 3.516779177 | AY97: 3.831332772 | AZ97: 5.313235048 | BA97: 3.884680975 | BB97: 7.79028845 | BC97: 2.979493761 | BD97: 2.177179572 | BE97: 4.311673606 | BF97: 3.922554916 | BG97: 3.812220963 | BH97: 3.445140589 | BI97: 3.411976596 | BJ97: 4.876416366 | BK97: 3.882360584 | BL97: 5.026797749 | BM97: 3.487242974 | BN97: 5.001393278 | BO97: 3.675771784 | BP97: 1.89604293 | BQ97: 6.419537454 | BR97: 4.575018173 | BS97: 4.548411235 | BT97: 5.846724459 | BU97: 6.347580128 | BV97: 2.925149507 | BW97: 3.176736765 | BX97: 4.382719261 | BY97: 3.830085993 | BZ97: 9.994330479 | CA97: 4.036663275 | CB97: 3.897759105 | CC97: 3.700797487 | CD97: 3.826221541 | CE97: 3.588154781 | CF97: 3.648252099 | CG97: 14.32049231 | CH97: 4.138013532 | CI97: 4.430955712 | CJ97: 5.697343797 | CK97: 2.717161417 | CL97: 3.904798088 | CM97: 7.725172597 | CN97: 3.61324466 | CO97: 4.447532013 | CP97: 5.762484495 | CQ97: 3.930658473 | CR97: 3.973856882 | CS97: 4.189709315 | CT97: 4.38298008 | CU97: 4.296974671 | CV97: 2.945219049 | CW97: 4.362920667 | CX97: 7.258856422 | CY97: 3.637858325 | CZ97: 3.33363486 | DA97: 4.809935642 | DB97: 5.57640131 | DC97: 5.233671175 | DD97: 6.952552166 | DE97: 3.927630323 | DF97: 7.403345794 | DG97: 5.372197541 | DH97: 4.823587638 | DI97: 8.930333623 | DJ97: 3.12592844 | DK97: 3.785475598 | DL97: 1.180050754 | DM97: 0.0966952081 | DN97: -201.8738936 | DO97: 101
A98: 82 | C98: 3.426561683 | D98: 3.072007148 | E98: 3.223068814 | F98: 3.302217226 | G98: 4.219364063 | H98: 7.592511154 | I98: 5.080461648 | J98: 8.246575296 | K98: 2.783739619 | L98: 3.828325738 | M98: 1.577146278 | N98: 4.146439091 | O98: 7.612725674 | P98: 2.645636253 | Q98: 3.19375134 | R98: 8.397441835 | S98: 3.748889755 | T98: 3.90538594 | U98: 3.195508525 | V98: 3.86435974 | W98: 5.348026049 | X98: 3.7222312 | Y98: 8.046916469 | Z98: 2.255683347 | AA98: 2.447511374 | AB98: 4.648965779 | AC98: 4.223809413 | AD98: 8.282139711 | AE98: 7.00389915 | AF98: 3.594896053 | AG98: 2.879736847 | AH98: 3.50369474 | AI98: 5.24494184 | AJ98: 2.1062281 | AK98: 6.674457952 | AL98: 3.45474177 | AM98: 9.83163917 | AN98: 5.867274729 | AO98: 3.27903167 | AP98: 4.014083293 | AQ98: 4.435963728 | AR98: 3.225838214 | AS98: 3.604809047 | AT98: 6.634107084 | AU98: 5.478169094 | AV98: 10.18456695 | AW98: 5.574735888 | AX98: 3.644165988 | AY98: 3.748198215 | AZ98: 4.359263764 | BA98: 4.83615084 | BB98: 3.074272992 | BC98: 4.269169879 | BD98: 3.588492602 | BE98: 6.98681924 | BF98: 5.157672279 | BG98: 6.591749352 | BH98: 4.218032105 | BI98: 3.29427026 | BJ98: 2.579007361 | BK98: 6.565680996 | BL98: 7.408714439 | BM98: 3.052957953 | BN98: 3.121161242 | BO98: 7.812781928 | BP98: 4.80947797 | BQ98: 3.887082966 | BR98: 4.875120868 | BS98: 6.628989478 | BT98: 4.984770398 | BU98: 2.534527438 | BV98: 4.431391614 | BW98: 4.236212904 | BX98: 5.138956723 | BY98: 3.084243625 | BZ98: 6.879073574 | CA98: 6.311063276 | CB98: 3.282292351 | CC98: 2.630362036 | CD98: 3.661991435 | CE98: 8.234147816 | CF98: 3.32135678 | CG98: 3.481529713 | CH98: 3.443767976 | CI98: 5.209928726 | CJ98: 4.048603331 | CK98: 4.80609328 | CL98: 2.675901407 | CM98: 3.599952468 | CN98: 3.695303198 | CO98: 3.796055584 | CP98: 4.07483431 | CQ98: 4.322264277 | CR98: 4.309672897 | CS98: 3.101582949 | CT98: 4.075914206 | CU98: 3.646635458 | CV98: 5.548071472 | CW98: 4.98016481 | CX98: 3.24205348 | CY98: 2.057925122 | CZ98: 6.357532435 | DA98: 3.466550789 | DB98: 5.565297884 | DC98: 3.902724087 | DD98: 3.996722245 | DE98: 3.294892545 | DF98: 4.534088084 | DG98: 2.393159095 | DH98: 3.414880836 | DI98: 4.442173619 | DJ98: 4.101547391 | DK98: 3.673777906 | DL98: 1.204010564 | DM98: 0.09382326373 | DN98: -204.4864148 | DO98: 101
A99: 83 | C99: 3.796616313 | D99: 4.008267278 | E99: 12.52293638 | F99: 5.5286394 | G99: 2.706009929 | H99: 16.48964271 | I99: 3.54529569 | J99: 8.640877841 | K99: 2.005027698 | L99: 13.25305904 | M99: 4.411698706 | N99: 2.041604811 | O99: 6.592038648 | P99: 4.33907389 | Q99: 3.646792355 | R99: 4.576522902 | S99: 4.053626277 | T99: 2.836052796 | U99: 2.913891221 | V99: 3.117602451 | W99: 4.046658855 | X99: 4.475277291 | Y99: 2.378094645 | Z99: 4.442732758 | AA99: 5.454154627 | AB99: 3.635649001 | AC99: 2.865906073 | AD99: 15.0649455 | AE99: 3.866412359 | AF99: 3.605303592 | AG99: 2.942256815 | AH99: 3.067846807 | AI99: 3.108354772 | AJ99: 6.517852987 | AK99: 3.37557318 | AL99: 4.242113595 | AM99: 5.777305214 | AN99: 3.235049028 | AO99: 2.893936727 | AP99: 4.914695772 | AQ99: 3.360810045 | AR99: 2.747957255 | AS99: 3.614942406 | AT99: 6.674126674 | AU99: 5.187800681 | AV99: 2.958237355 | AW99: 6.010190083 | AX99: 2.437123801 | AY99: 4.776976226 | AZ99: 5.213831563 | BA99: 5.09024745 | BB99: 4.539504326 | BC99: 1.731270252 | BD99: 2.759299816 | BE99: 4.352005436 | BF99: 4.309581176 | BG99: 6.067861577 | BH99: 2.95356182 | BI99: 4.501334001 | BJ99: 2.964088948 | BK99: 5.636614621 | BL99: 5.289911202 | BM99: 2.933375307 | BN99: 2.651743756 | BO99: 6.203645266 | BP99: 2.996427713 | BQ99: 7.291092059 | BR99: 5.10705027 | BS99: 4.100244385 | BT99: 4.222425938 | BU99: 3.350357055 | BV99: 5.800821522 | BW99: 4.336679635 | BX99: 4.680961073 | BY99: 4.186041912 | BZ99: 8.17165512 | CA99: 9.945049688 | CB99: 6.031355031 | CC99: 4.971083663 | CD99: 4.315798252 | CE99: 3.095838459 | CF99: 2.474261942 | CG99: 5.874925982 | CH99: 3.453298287 | CI99: 4.781462424 | CJ99: 6.987247192 | CK99: 6.616899246 | CL99: 2.925178154 | CM99: 2.153110569 | CN99: 5.4097494 | CO99: 2.583444112 | CP99: 2.857493158 | CQ99: 9.658846882 | CR99: 4.809812145 | CS99: 5.300341224 | CT99: 5.491690754 | CU99: 4.417051077 | CV99: 3.532448781 | CW99: 3.856064223 | CX99: 3.21783339 | CY99: 2.918440047 | CZ99: 1.738345797 | DA99: 6.517744278 | DB99: 6.656576145 | DC99: 2.790074489 | DD99: 2.738429279 | DE99: 4.781048679 | DF99: 3.408814922 | DG99: 4.659103681 | DH99: 4.724279695 | DI99: 2.567639952 | DJ99: 3.886305644 | DK99: 3.564663028 | DL99: 1.304814399 | DM99: 0.2181626818 | DN99: -220.1371441 | DO99: 20
A100: 84 | C100: 5.26778529 | D100: 2.798346617 | E100: 2.772409569 | F100: 4.182579744 | G100: 2.817329622 | H100: 14.08970053 | I100: 2.823860806 | J100: 2.285871952 | K100: 7.457226158 | L100: 5.454692515 | M100: 4.074082814 | N100: 9.576737054 | O100: 10.55371928 | P100: 3.798153459 | Q100: 7.408894253 | R100: 4.477520474 | S100: 6.761961538 | T100: 1.755146056 | U100: 4.43816774 | V100: 3.348923671 | W100: 5.998315831 | X100: 2.473719503 | Y100: 9.880609309 | Z100: 3.820944803 | AA100: 4.536752767 | AB100: 4.465198201 | AC100: 3.694208889 | AD100: 1.618893805 | AE100: 4.080375921 | AF100: 8.134472021 | AG100: 3.465823382 | AH100: 3.467185426 | AI100: 3.940043344 | AJ100: 5.02173078 | AK100: 4.002021351 | AL100: 2.730423293 | AM100: 4.450068562 | AN100: 6.463192759 | AO100: 4.946157166 | AP100: 5.26219054 | AQ100: 5.547751351 | AR100: 11.93044646 | AS100: 3.376438442 | AT100: 4.703958822 | AU100: 5.246103829 | AV100: 3.487410793 | AW100: 7.843112761 | AX100: 2.768651306 | AY100: 2.684125917 | AZ100: 2.044572992 | BA100: 8.64946166 | BB100: 6.173938254 | BC100: 2.978440666 | BD100: 13.39006154 | BE100: 6.645942143 | BF100: 12.04031619 | BG100: 2.941129636 | BH100: 4.805803825 | BI100: 3.917228688 | BJ100: 2.495519748 | BK100: 4.227733859 | BL100: 1.674977214 | BM100: 3.938124976 | BN100: 5.571799737 | BO100: 6.817478332 | BP100: 3.720849153 | BQ100: 3.552047138 | BR100: 3.327220372 | BS100: 5.324538089 | BT100: 4.873980031 | BU100: 4.005482361 | BV100: 4.741666792 | BW100: 10.7570533 | BX100: 3.38895405 | BY100: 3.176790286 | BZ100: 2.653828633 | CA100: 1.710931184 | CB100: 5.071569858 | CC100: 8.01028896 | CD100: 1.907609584 | CE100: 6.020646184 | CF100: 2.856571154 | CG100: 3.159051262 | CH100: 6.496833518 | CI100: 3.45816249 | CJ100: 1.73317051 | CK100: 4.804849308 | CL100: 2.629842736 | CM100: 3.824356218 | CN100: 2.628718506 | CO100: 3.945314547 | CP100: 4.531064072 | CQ100: 4.696530081 | CR100: 2.897577181 | CS100: 4.804628757 | CT100: 3.046390345 | CU100: 3.609803119 | CV100: 2.590756803 | CW100: 4.071597836 | CX100: 9.255681034 | CY100: 4.299164126 | CZ100: 5.25670815 | DA100: 5.59284498 | DB100: 3.539232607 | DC100: 1.951160198 | DD100: 3.913740697 | DE100: 10.34148016 | DF100: 4.475719485 | DG100: 6.918636136 | DH100: 5.370013854 | DI100: 2.311467591 | DJ100: 5.514634444 | DK100: 3.600309658 | DL100: 1.546998323 | DM100: 0.1915189358 | DN100: -237.9227792 | DO100: 21
A101: 85 | C101: 3.12676019 | D101: 2.957095793 | E101: 2.577393448 | F101: 3.802097547 | G101: 2.21206191 | H101: 3.952260276 | I101: 4.014441336 | J101: 3.505560601 | K101: 4.936852423 | L101: 6.501372137 | M101: 2.202692589 | N101: 4.074376703 | O101: 5.073185975 | P101: 5.147191708 | Q101: 1.85399852 | R101: 3.292716946 | S101: 3.564783405 | T101: 4.829596501 | U101: 4.181049591 | V101: 2.933714521 | W101: 7.757411738 | X101: 3.371709925 | Y101: 5.044673365 | Z101: 3.827101838 | AA101: 3.39010432 | AB101: 2.86306925 | AC101: 2.718197433 | AD101: 8.477972119 | AE101: 2.666393518 | AF101: 5.583009062 | AG101: 4.277159298 | AH101: 5.984040683 | AI101: 6.993444132 | AJ101: 7.375960466 | AK101: 3.014582404 | AL101: 4.446302662 | AM101: 3.457999629 | AN101: 4.390479799 | AO101: 4.22177992 | AP101: 2.769089176 | AQ101: 3.381469632 | AR101: 4.389622484 | AS101: 8.420358087 | AT101: 6.460600904 | AU101: 4.728382 | AV101: 6.174020484 | AW101: 6.213207301 | AX101: 4.008144353 | AY101: 3.107412325 | AZ101: 5.323265463 | BA101: 2.349851812 | BB101: 17.19081783 | BC101: 5.852182322 | BD101: 5.389696055 | BE101: 3.685935552 | BF101: 3.624684731 | BG101: 2.946079404 | BH101: 3.364905079 | BI101: 3.761802447 | BJ101: 3.330350663 | BK101: 5.43758897 | BL101: 1.964764084 | BM101: 3.865290699 | BN101: 5.462944264 | BO101: 2.523135074 | BP101: 2.106621548 | BQ101: 2.91203555 | BR101: 3.418141449 | BS101: 17.81954424 | BT101: 4.688464035 | BU101: 8.090633103 | BV101: 2.576296287 | BW101: 5.881597229 | BX101: 1.83104432 | BY101: 5.516806161 | BZ101: 5.141800245 | CA101: 3.507226234 | CB101: 6.533154339 | CC101: 2.643359649 | CD101: 3.331900687 | CE101: 3.83215802 | CF101: 2.680900429 | CG101: 6.881118246 | CH101: 3.998836426 | CI101: 1.618441526 | CJ101: 3.133122401 | CK101: 2.009382493 | CL101: 5.406362014 | CM101: 2.550394359 | CN101: 4.603019503 | CO101: 3.780696885 | CP101: 4.904896767 | CQ101: 4.426770435 | CR101: 7.061732898 | CS101: 8.521933621 | CT101: 2.383353315 | CU101: 3.538485344 | CV101: 3.931251999 | CW101: 5.247982273 | CX101: 5.284209732 | CY101: 2.020548557 | CZ101: 7.610002958 | DA101: 6.936069413 | DB101: 5.624323525 | DC101: 4.126480652 | DD101: 2.308596787 | DE101: 2.553530451 | DF101: 2.136477126 | DG101: 5.583073985 | DH101: 2.191832978 | DI101: 2.667998286 | DJ101: 3.373756168 | DK101: 3.389959071 | DL101: 1.317994343 | DM101: 0.2054780131 | DN101: -219.7201693 | DO101: 22
A102: 86 | C102: 3.405758574 | D102: 5.184182225 | E102: 4.263361791 | F102: 4.437891638 | G102: 4.453006688 | H102: 2.709620043 | I102: 6.131290604 | J102: 21.74303909 | K102: 4.013794621 | L102: 6.385116007 | M102: 6.22085488 | N102: 1.932205878 | O102: 4.279658928 | P102: 4.380220442 | Q102: 3.071981661 | R102: 3.697474395 | S102: 11.36575565 | T102: 6.691969441 | U102: 3.785927163 | V102: 5.758671491 | W102: 3.419382128 | X102: 5.469094925 | Y102: 4.153850259 | Z102: 4.601489917 | AA102: 6.43552197 | AB102: 3.982942914 | AC102: 5.386841603 | AD102: 9.980974969 | AE102: 5.613703814 | AF102: 5.576521298 | AG102: 10.7324454 | AH102: 1.636712658 | AI102: 3.425458734 | AJ102: 2.763399095 | AK102: 5.207404828 | AL102: 3.521815745 | AM102: 3.33406779 | AN102: 5.302589155 | AO102: 6.400094636 | AP102: 5.90290871 | AQ102: 4.949560343 | AR102: 6.049060837 | AS102: 3.308447117 | AT102: 4.157326752 | AU102: 4.351984817 | AV102: 3.445289556 | AW102: 3.890632666 | AX102: 2.80466315 | AY102: 3.986063213 | AZ102: 2.237143054 | BA102: 9.367989661 | BB102: 4.306756259 | BC102: 5.479081511 | BD102: 3.595751483 | BE102: 9.114224248 | BF102: 2.810970099 | BG102: 3.056960878 | BH102: 9.07292184 | BI102: 3.035975753 | BJ102: 4.085088544 | BK102: 3.18611527 | BL102: 2.881655459 | BM102: 6.489921875 | BN102: 11.29035325 | BO102: 6.512385062 | BP102: 3.39795145 | BQ102: 2.064935375 | BR102: 6.498793309 | BS102: 2.619583428 | BT102: 3.042795668 | BU102: 3.254536407 | BV102: 4.402759971 | BW102: 2.421791234 | BX102: 3.282612271 | BY102: 4.054437308 | BZ102: 2.138875507 | CA102: 4.210650539 | CB102: 4.111406279 | CC102: 5.390077717 | CD102: 8.805685457 | CE102: 2.710782061 | CF102: 6.736858905 | CG102: 1.693002259 | CH102: 1.541948455 | CI102: 2.994094537 | CJ102: 2.293486684 | CK102: 3.818728896 | CL102: 13.58494147 | CM102: 2.191269747 | CN102: 3.601613588 | CO102: 3.203895284 | CP102: 4.6445467 | CQ102: 2.811314367 | CR102: 4.906120928 | CS102: 6.637455231 | CT102: 5.474783004 | CU102: 3.331128715 | CV102: 8.266693986 | CW102: 3.105084587 | CX102: 2.38861937 | CY102: 9.494423631 | CZ102: 8.960091824 | DA102: 3.30539042 | DB102: 6.623914794 | DC102: 2.879914973 | DD102: 2.106394597 | DE102: 1.853615454 | DF102: 5.549482077 | DG102: 3.508994137 | DH102: 3.450989216 | DI102: 3.150155981 | DJ102: 3.280145435 | DK102: 3.529016398 | DL102: 1.486634981 | DM102: 0.2362389229 | DN102: -236.364873 | DO102: 20
A103: 87 | C103: 3.999961533 | D103: 15.59538541 | E103: 3.175390017 | F103: 3.286995399 | G103: 4.882460724 | H103: 2.749073124 | I103: 1.549259196 | J103: 4.901419949 | K103: 5.635943667 | L103: 3.947513683 | M103: 4.181958058 | N103: 3.611981392 | O103: 3.709279006 | P103: 3.851103045 | Q103: 2.86211641 | R103: 5.86285911 | S103: 2.310472694 | T103: 6.199340961 | U103: 7.68215956 | V103: 2.539443288 | W103: 5.398299034 | X103: 2.954757547 | Y103: 1.686015627 | Z103: 3.013523416 | AA103: 3.476598987 | AB103: 7.380303902 | AC103: 4.773877088 | AD103: 4.6073037 | AE103: 8.18745325 | AF103: 2.541803112 | AG103: 2.799967614 | AH103: 5.094259477 | AI103: 6.176894935 | AJ103: 3.406915283 | AK103: 3.346545254 | AL103: 3.484636437 | AM103: 8.594529108 | AN103: 7.056510799 | AO103: 8.381350103 | AP103: 4.726367754 | AQ103: 5.29924486 | AR103: 12.01892392 | AS103: 4.665607649 | AT103: 6.113405393 | AU103: 6.391899195 | AV103: 6.000441815 | AW103: 9.867224456 | AX103: 5.008168262 | AY103: 4.630913276 | AZ103: 5.433177504 | BA103: 5.496648709 | BB103: 8.604332917 | BC103: 3.358443159 | BD103: 3.084429645 | BE103: 4.946868892 | BF103: 2.8311005 | BG103: 8.511225098 | BH103: 4.636183746 | BI103: 7.41683088 | BJ103: 4.833128377 | BK103: 2.957189934 | BL103: 2.66003557 | BM103: 4.8055164 | BN103: 5.105981162 | BO103: 4.675353204 | BP103: 4.328977886 | BQ103: 6.20238374 | BR103: 2.994328714 | BS103: 1.242618863 | BT103: 4.328757859 | BU103: 3.42733661 | BV103: 3.932390043 | BW103: 3.487911942 | BX103: 5.993427481 | BY103: 3.037388734 | BZ103: 8.98344558 | CA103: 3.748387241 | CB103: 1.95091037 | CC103: 3.746833885 | CD103: 7.784941049 | CE103: 3.218642027 | CF103: 3.984771958 | CG103: 3.607433825 | CH103: 4.762240508 | CI103: 4.657765288 | CJ103: 3.481009675 | CK103: 3.44745906 | CL103: 3.181194038 | CM103: 3.865467837 | CN103: 8.242481674 | CO103: 4.246286774 | CP103: 7.431996929 | CQ103: 2.015697155 | CR103: 5.051159232 | CS103: 6.061038182 | CT103: 6.216604309 | CU103: 3.1520684 | CV103: 4.019852724 | CW103: 4.01501528 | CX103: 8.439186261 | CY103: 5.843672661 | CZ103: 3.758327071 | DA103: 3.416654596 | DB103: 5.015467322 | DC103: 1.777386935 | DD103: 4.734196762 | DE103: 12.79244385 | DF103: 6.567903085 | DG103: 11.96288681 | DH103: 3.912968848 | DI103: 4.679703861 | DJ103: 2.260864187 | DK103: 3.823330354 | DL103: 1.609812658 | DM103: 0.1047908578 | DN103: -236.8424321 | DO103: 83
A104: 88 | C104: 4.08644285 | D104: 5.888356834 | E104: 3.953402227 | F104: 2.828852381 | G104: 4.342129261 | H104: 5.88328243 | I104: 2.908089666 | J104: 11.61717857 | K104: 2.920344775 | L104: 5.157589241 | M104: 2.656214977 | N104: 3.837932934 | O104: 3.648800415 | P104: 13.07233111 | Q104: 6.423617999 | R104: 4.737304589 | S104: 2.699430832 | T104: 7.114238071 | U104: 7.447816201 | V104: 4.454522323 | W104: 2.589854477 | X104: 5.678306386 | Y104: 2.392513143 | Z104: 6.150856563 | AA104: 2.998746521 | AB104: 3.152243321 | AC104: 4.72351632 | AD104: 4.1956006 | AE104: 4.326353285 | AF104: 3.270132726 | AG104: 5.634842413 | AH104: 4.933931147 | AI104: 4.956332322 | AJ104: 4.11387292 | AK104: 4.929269395 | AL104: 4.760090572 | AM104: 15.80143967 | AN104: 6.852939125 | AO104: 3.780333027 | AP104: 7.993771147 | AQ104: 4.846591994 | AR104: 4.865829106 | AS104: 3.768157398 | AT104: 3.07932072 | AU104: 2.438842022 | AV104: 3.814479312 | AW104: 7.15082794 | AX104: 4.724863708 | AY104: 5.221640375 | AZ104: 4.490188919 | BA104: 5.875039558 | BB104: 2.485306442 | BC104: 8.950807077 | BD104: 7.227741659 | BE104: 5.971110106 | BF104: 3.785893467 | BG104: 3.262397024 | BH104: 4.023028529 | BI104: 5.294829449 | BJ104: 9.532642002 | BK104: 7.756830404 | BL104: 6.39294137 | BM104: 11.85414081 | BN104: 2.948525429 | BO104: 2.935230574 | BP104: 3.55960648 | BQ104: 4.778011917 | BR104: 13.75367847 | BS104: 8.240974823 | BT104: 6.81083719 | BU104: 2.670974555 | BV104: 4.520570227 | BW104: 2.844551831 | BX104: 4.504481015 | BY104: 10.63343709 | BZ104: 3.569843238 | CA104: 2.542706687 | CB104: 2.895964692 | CC104: 2.531733846 | CD104: 3.517887806 | CE104: 3.43974847 | CF104: 3.382895727 | CG104: 5.702674381 | CH104: 4.607296346 | CI104: 2.913221239 | CJ104: 2.297749896 | CK104: 4.568019696 | CL104: 11.30526524 | CM104: 4.827191988 | CN104: 2.145177193 | CO104: 8.452920945 | CP104: 3.219663553 | CQ104: 2.045956424 | CR104: 3.695786677 | CS104: 4.137704873 | CT104: 3.107934786 | CU104: 4.178289388 | CV104: 2.763051113 | CW104: 1.630921398 | CX104: 3.595331681 | CY104: 2.990504493 | CZ104: 2.13915089 | DA104: 4.312676256 | DB104: 4.067318724 | DC104: 2.98571278 | DD104: 3.224207111 | DE104: 4.321456313 | DF104: 6.345829641 | DG104: 3.489216582 | DH104: 4.616190895 | DI104: 5.013788347 | DJ104: 3.457742614 | DK104: 3.673777906 | DL104: 1.399917293 | DM104: 0.2583710308 | DN104: -229.9178578 | DO104: 27
A105: 89 | C105: 3.814367129 | D105: 6.957335859 | E105: 4.162484535 | F105: 2.226059234 | G105: 5.42930449 | H105: 4.610728545 | I105: 4.764242474 | J105: 2.434320569 | K105: 5.180791714 | L105: 6.021865876 | M105: 9.59514004 | N105: 3.848008554 | O105: 6.423845574 | P105: 3.045840024 | Q105: 3.739916586 | R105: 3.357406801 | S105: 10.70061698 | T105: 5.116013957 | U105: 4.220592297 | V105: 5.304730219 | W105: 5.508483011 | X105: 5.39563754 | Y105: 5.603399913 | Z105: 2.785446899 | AA105: 2.69553667 | AB105: 4.169146184 | AC105: 5.273774055 | AD105: 5.1150463 | AE105: 5.003170176 | AF105: 7.976174298 | AG105: 5.285209134 | AH105: 2.471323259 | AI105: 3.712249367 | AJ105: 2.121188359 | AK105: 4.906747825 | AL105: 4.396860268 | AM105: 4.06907224 | AN105: 5.442311845 | AO105: 2.184762528 | AP105: 3.13605658 | AQ105: 6.699475005 | AR105: 4.044906378 | AS105: 3.951009312 | AT105: 4.080321953 | AU105: 2.893743191 | AV105: 4.736345674 | AW105: 6.842242722 | AX105: 7.816023851 | AY105: 2.111873196 | AZ105: 5.312754769 | BA105: 5.507311832 | BB105: 2.400318257 | BC105: 3.885063514 | BD105: 2.725041173 | BE105: 8.63080702 | BF105: 2.77337262 | BG105: 3.694494878 | BH105: 2.171609571 | BI105: 2.769410556 | BJ105: 8.634308723 | BK105: 14.41000047 | BL105: 3.986826389 | BM105: 3.71987853 | BN105: 2.943458845 | BO105: 4.920919423 | BP105: 4.793688433 | BQ105: 6.829419698 | BR105: 2.338212364 | BS105: 3.532180923 | BT105: 5.708583634 | BU105: 2.135295749 | BV105: 9.68973418 | BW105: 4.311045474 | BX105: 6.754531641 | BY105: 1.893425523 | BZ105: 4.007140031 | CA105: 12.86117637 | CB105: 6.711288424 | CC105: 2.140361185 | CD105: 4.777332461 | CE105: 2.516949993 | CF105: 1.583254306 | CG105: 3.596655206 | CH105: 4.287849282 | CI105: 2.954270684 | CJ105: 4.700633666 | CK105: 3.27797166 | CL105: 12.2376241 | CM105: 3.534809117 | CN105: 5.389365884 | CO105: 4.368194977 | CP105: 4.951133651 | CQ105: 3.277939466 | CR105: 4.05643924 | CS105: 6.995019786 | CT105: 2.714003581 | CU105: 4.652647262 | CV105: 3.65920538 | CW105: 6.122053593 | CX105: 5.13093878 | CY105: 3.103803003 | CZ105: 9.927308453 | DA105: 5.708830872 | DB105: 6.155785389 | DC105: 2.616573055 | DD105: 5.549872889 | DE105: 3.700996492 | DF105: 3.765794217 | DG105: 2.952812806 | DH105: 3.044861444 | DI105: 2.598489933 | DJ105: 8.715633806 | DK105: 3.637040127 | DL105: 1.457342399 | DM105: 0.174955851 | DN105: -230.8049596 | DO105: 21
